Workbook

Sheet INTRO
B2: PC Joint Reporting Form v.3.1
B4: The purpose of this template Joint Reporting Form (JRF) - available as an Excel file - is to provide national health authorities and data managers with a standardized tool to address these reporting challenges, facilitate integration and thereby further contribute to improving overall programme management. This template aims to standardize national reporting of programme implementation outcomes, improve availability and coordination of preventive chemotherapy data across the World Health Organization regions. National authorities are requested to complete this form for submission to the World Health Organization any time before 15 August of the current year for reporting data on PC interventions implemented during the previous year.
B6: Structure of the application (worksheets):
B8: INTRO | C8: This worksheet includes guides on how to complete the joint reporting form and information about status of PC for endemic diseases in the country
B9: COUNTRY_INFO | C9: This worksheet includes information about administrative structure of the country, population by age group, status of endemicity for each disease, population requiring PC, planned interventions and interventions implemented
B10: MDA1, MDA2, MDA3, T1, T2 and T3 | C10: These worksheets include information about endemic districts targeted for treatment with specified PC medicines, treatment plan, and number of people who received treatment by age group
B11: DISTRICT | C11: This worksheet includes summary of people treated by disease at the level of implementation. If data by gender is available, it requires to enter.
B12: SUMMARY | C12: This worksheet includes summary of people treated by disease and by PC intervention. Before generating the report (run macros) please select the disease for which you need the report. Follow the same rule to generate various reports. This worksheet should be printed and submitted as a Joint Report (see the instruction for submission in the SUMMARY worksheet).
B14: Instruction for data entry
B16: Most of the cells in the above-mentioned worksheets include formula that are calculated automatically according to the treatment policy recommended by WHO for each disease. See the link http://www.who.int/neglected_diseases/preventive_chemotherapy/pct_manual/en/index.html
B18: Please enter your data into the cells according to their colour code:
C20: White - cell is not protected. Please enter the value of the requested indicator.
C22: Yellow - cell is protected and includes name of indicator. No data entry required.
C24: Orange - cell is not protected and includes a drop-down menu. Please select the value from the drop-down list.
C27: Green - cell is not protected and includes formula. Please change the value only if your data are different from those that are calculated automatically.
C30: Blue - cell is protected and includes formula. No data entry required.
B32: Country data
B34: COUNTRY | E34: Tanzania
B36: Year of reporting data | E36: 2018
B38: Is country endemic for lymphatic filariasis (LF)? | E38: Endemic
B40: Is country endemic for onchocerciasis (ONCHO)? | E40: Endemic
B42: Is country endemic for soil-transmitted helminthiases (STH)? | E42: Endemic
B44: Is country endemic for schistosomiasis (SCH)? | E44: Endemic
B46: How many administrative units in the country? | E46: 185
B47: If demographical data at the second administrative level are not available by age group, please enter the proportion (%) of population by age group in the country. If data are available, please leave these cells blank.
B48: 1-4 years age | C48: Preschool-age children (PreSAC) | E48: 0.129
B49: 5-14 years age | C49: School-age children (SAC) | E49: 0.191
B50: 15 years + | C50: Adults | E50: 0.68

Sheet COUNTRY_INFO
A1: COUNTRY INFORMATION
A2: Administrative structure, population by age group, endemicity status, planned interventions and interventions implemented
A4: TOTAL | D4: =SUM(D$9:D$1000) -> 51855766 | E4: =SUM(E$9:E$1000) -> 5757577.937 | F4: =SUM(F$9:F$1000) -> 11292889 | G4: =SUM(G$9:G$1000) -> 34805301.06 | L4: =SUM(L$9:L$1000) -> 9986963 | M4: =SUM(M$9:M$1000) -> 6528587 | N4: =SUM(N$9:N$1000) -> 17050466.94 | O4: =SUM(O$9:O$1000) -> 15895883.79
A6: Country administrative structure | D6: Population | H6: Endemicity | L6: Population requiring PC | P6: Number of treatment rounds planned for the year | T6: PC implemented | V6: Click to see the recommended strategy
A7: Country | B7: Province/State | C7: District | D7: Total | E7: PreSAC | F7: SAC | G7: Adults | H7: LF | I7: Oncho | J7: STH | K7: SCH | L7: LF | M7: Oncho | N7: STH | O7: SCH | P7: LF | Q7: Oncho | R7: STH | S7: SCH | T7: ROUND 1 | U7: ROUND2 | X7: IU_ID | Y7: IU_Name
A9: =IF(INTRO!$E$34<>0,INTRO!$E$34,"") -> Tanzania | B9: Arusha | C9: Arusha City Council | D9: 488627 | E9: 34814 | F9: 102461 | G9: 351352 | H9: 0 | I9: 0 | J9: 3 | K9: 2 | L9: =IF(INTRO!$E$38="Endemic", IF($H9>0, IF($H9=4,"Unknown", IF($H9=99,"Stopped", $D9)), 0),"Not required") -> 0 | M9: =IF(INTRO!$E$40="Endemic", IF($I9>0, IF($I9=4,"Unknown",IF($I9=99,"Stopped", $D9)), 0),"Not required") -> 0 | N9: =IF(INTRO!$E$42="Endemic", IF(AND($J9>1,$J9<5), IF($J9=4, "Unknown", E9+F9), 0),"Not required") -> 137275 | O9: =IF(INTRO!$E$44="Endemic", IF(AND($K9>0,$K9<5), IF($K9=4,"Unknown", IF($K9=1, $F9*0.33, IF($K9=2, $F9*0.5+$G9*0.2, SUM(F9:G9)))), 0),"Not required") -> 121500.9 | P9: 0 | Q9: 0 | R9: 1 | S9: 0 | U9: T3 (ALB/MBD) | X9: 46459 | Y9: Arusha City Council | AB9: =Y9=C9 -> TRUE
A10: =IF(INTRO!$E$34<>0,INTRO!$E$34,"") -> Tanzania | B10: Arusha | C10: Arusha District Council | D10: 379220 | E10: 48919 | F10: 72732 | G10: 257569 | H10: 0 | I10: 0 | J10: 3 | K10: 2 | L10: =IF(INTRO!$E$38="Endemic", IF($H10>0, IF($H10=4,"Unknown", IF($H10=99,"Stopped", $D10)), 0),"Not required") -> 0 | M10: =IF(INTRO!$E$40="Endemic", IF($I10>0, IF($I10=4,"Unknown",IF($I10=99,"Stopped", $D10)), 0),"Not required") -> 0 | N10: =IF(INTRO!$E$42="Endemic", IF(AND($J10>1,$J10<5), IF($J10=4, "Unknown", E10+F10), 0),"Not required") -> 121651 | O10: =IF(INTRO!$E$44="Endemic", IF(AND($K10>0,$K10<5), IF($K10=4,"Unknown", IF($K10=1, $F10*0.33, IF($K10=2, $F10*0.5+$G10*0.2, SUM(F10:G10)))), 0),"Not required") -> 87879.8 | P10: 0 | Q10: 0 | R10: 1 | S10: 0 | U10: T3 (ALB/MBD) | X10: 46460 | Y10: Arusha District Council | AB10: =Y10=C10 -> TRUE
A11: =IF(INTRO!$E$34<>0,INTRO!$E$34,"") -> Tanzania | B11: Arusha | C11: Karatu District Council | D11: 270062 | E11: 30771 | F11: 56712 | G11: 182579 | H11: 0 | I11: 0 | J11: 3 | K11: 2 | L11: =IF(INTRO!$E$38="Endemic", IF($H11>0, IF($H11=4,"Unknown", IF($H11=99,"Stopped", $D11)), 0),"Not required") -> 0 | M11: =IF(INTRO!$E$40="Endemic", IF($I11>0, IF($I11=4,"Unknown",IF($I11=99,"Stopped", $D11)), 0),"Not required") -> 0 | N11: =IF(INTRO!$E$42="Endemic", IF(AND($J11>1,$J11<5), IF($J11=4, "Unknown", E11+F11), 0),"Not required") -> 87483 | O11: =IF(INTRO!$E$44="Endemic", IF(AND($K11>0,$K11<5), IF($K11=4,"Unknown", IF($K11=1, $F11*0.33, IF($K11=2, $F11*0.5+$G11*0.2, SUM(F11:G11)))), 0),"Not required") -> 64871.8 | P11: 0 | Q11: 0 | R11: 1 | S11: 0 | U11: T3 (ALB/MBD) | X11: 46461 | Y11: Karatu District Council | AB11: TRUE
A12: =IF(INTRO!$E$34<>0,INTRO!$E$34,"") -> Tanzania | B12: Arusha | C12: Longido District Council | D12: 144500 | E12: 18640 | F12: 30561 | G12: 95299 | H12: 0 | I12: 0 | J12: 3 | K12: 2 | L12: =IF(INTRO!$E$38="Endemic", IF($H12>0, IF($H12=4,"Unknown", IF($H12=99,"Stopped", $D12)), 0),"Not required") -> 0 | M12: =IF(INTRO!$E$40="Endemic", IF($I12>0, IF($I12=4,"Unknown",IF($I12=99,"Stopped", $D12)), 0),"Not required") -> 0 | N12: =IF(INTRO!$E$42="Endemic", IF(AND($J12>1,$J12<5), IF($J12=4, "Unknown", E12+F12), 0),"Not required") -> 49201 | O12: =IF(INTRO!$E$44="Endemic", IF(AND($K12>0,$K12<5), IF($K12=4,"Unknown", IF($K12=1, $F12*0.33, IF($K12=2, $F12*0.5+$G12*0.2, SUM(F12:G12)))), 0),"Not required") -> 34340.3 | P12: 0 | Q12: 0 | R12: 1 | S12: 0 | U12: T3 (ALB/MBD) | X12: 46462 | Y12: Longido District Council | AB12: TRUE
A13: =IF(INTRO!$E$34<>0,INTRO!$E$34,"") -> Tanzania | B13: Arusha | C13: Meru District Council | D13: 314623 | E13: 37095 | F13: 64102 | G13: 213426 | H13: 0 | I13: 0 | J13: 3 | K13: 2 | L13: =IF(INTRO!$E$38="Endemic", IF($H13>0, IF($H13=4,"Unknown", IF($H13=99,"Stopped", $D13)), 0),"Not required") -> 0 | M13: =IF(INTRO!$E$40="Endemic", IF($I13>0, IF($I13=4,"Unknown",IF($I13=99,"Stopped", $D13)), 0),"Not required") -> 0 | N13: =IF(INTRO!$E$42="Endemic", IF(AND($J13>1,$J13<5), IF($J13=4, "Unknown", E13+F13), 0),"Not required") -> 101197 | O13: =IF(INTRO!$E$44="Endemic", IF(AND($K13>0,$K13<5), IF($K13=4,"Unknown", IF($K13=1, $F13*0.33, IF($K13=2, $F13*0.5+$G13*0.2, SUM(F13:G13)))), 0),"Not required") -> 74736.2 | P13: 0 | Q13: 0 | R13: 1 | S13: 0 | U13: T3 (ALB/MBD) | X13: 46463 | Y13: Meru District Council | AB13: TRUE
A14: =IF(INTRO!$E$34<>0,INTRO!$E$34,"") -> Tanzania | B14: Arusha | C14: Monduli District Council | D14: 186477 | E14: 24055 | F14: 38063 | G14: 124359 | H14: 0 | I14: 0 | J14: 3 | K14: 2 | L14: =IF(INTRO!$E$38="Endemic", IF($H14>0, IF($H14=4,"Unknown", IF($H14=99,"Stopped", $D14)), 0),"Not required") -> 0 | M14: =IF(INTRO!$E$40="Endemic", IF($I14>0, IF($I14=4,"Unknown",IF($I14=99,"Stopped", $D14)), 0),"Not required") -> 0 | N14: =IF(INTRO!$E$42="Endemic", IF(AND($J14>1,$J14<5), IF($J14=4, "Unknown", E14+F14), 0),"Not required") -> 62118 | O14: =IF(INTRO!$E$44="Endemic", IF(AND($K14>0,$K14<5), IF($K14=4,"Unknown", IF($K14=1, $F14*0.33, IF($K14=2, $F14*0.5+$G14*0.2, SUM(F14:G14)))), 0),"Not required") -> 43903.3 | P14: 0 | Q14: 0 | R14: 1 | S14: 0 | U14: T3 (ALB/MBD) | X14: 46464 | Y14: Monduli District Council | AB14: TRUE
A15: =IF(INTRO!$E$34<>0,INTRO!$E$34,"") -> Tanzania | B15: Arusha | C15: Ngorongoro District Council | D15: 204487 | E15: 26379 | F15: 42851 | G15: 135257 | H15: 0 | I15: 0 | J15: 3 | K15: 2 | L15: =IF(INTRO!$E$38="Endemic", IF($H15>0, IF($H15=4,"Unknown", IF($H15=99,"Stopped", $D15)), 0),"Not required") -> 0 | M15: =IF(INTRO!$E$40="Endemic", IF($I15>0, IF($I15=4,"Unknown",IF($I15=99,"Stopped", $D15)), 0),"Not required") -> 0 | N15: =IF(INTRO!$E$42="Endemic", IF(AND($J15>1,$J15<5), IF($J15=4, "Unknown", E15+F15), 0),"Not required") -> 69230 | O15: =IF(INTRO!$E$44="Endemic", IF(AND($K15>0,$K15<5), IF($K15=4,"Unknown", IF($K15=1, $F15*0.33, IF($K15=2, $F15*0.5+$G15*0.2, SUM(F15:G15)))), 0),"Not required") -> 48476.9 | P15: 0 | Q15: 0 | R15: 1 | S15: 0 | U15: T3 (ALB/MBD) | X15: 46465 | Y15: Ngorongoro District Council | AB15: TRUE
A16: =IF(INTRO!$E$34<>0,INTRO!$E$34,"") -> Tanzania | B16: Dar Es Salaam | C16: Dar es Salaam City Council | D16: 1 | E16: 1 | F16: 1 | G16: 1 | H16: 1 | I16: 0 | J16: 3 | K16: 2 | L16: =IF(INTRO!$E$38="Endemic", IF($H16>0, IF($H16=4,"Unknown", IF($H16=99,"Stopped", $D16)), 0),"Not required") -> 1 | M16: =IF(INTRO!$E$40="Endemic", IF($I16>0, IF($I16=4,"Unknown",IF($I16=99,"Stopped", $D16)), 0),"Not required") -> 0 | N16: =IF(INTRO!$E$42="Endemic", IF(AND($J16>1,$J16<5), IF($J16=4, "Unknown", E16+F16), 0),"Not required") -> 2 | O16: =IF(INTRO!$E$44="Endemic", IF(AND($K16>0,$K16<5), IF($K16=4,"Unknown", IF($K16=1, $F16*0.33, IF($K16=2, $F16*0.5+$G16*0.2, SUM(F16:G16)))), 0),"Not required") -> 0.7 | P16: 1 | Q16: 0 | R16: 1 | S16: 1 | T16: MDA1 (IVM+ALB) | U16: T1 (PZQ+ALB/MBD) | X16: 46623 | Y16: Dar es Salaam City Council | AB16: TRUE
A17: =IF(INTRO!$E$34<>0,INTRO!$E$34,"") -> Tanzania | B17: Dar Es Salaam | C17: Ilala Municipal Council | D17: 1787412 | E17: 313135 | F17: 230745 | G17: 1243532 | H17: 1 | I17: 0 | J17: 3 | K17: 2 | L17: =IF(INTRO!$E$38="Endemic", IF($H17>0, IF($H17=4,"Unknown", IF($H17=99,"Stopped", $D17)), 0),"Not required") -> 1787412 | M17: =IF(INTRO!$E$40="Endemic", IF($I17>0, IF($I17=4,"Unknown",IF($I17=99,"Stopped", $D17)), 0),"Not required") -> 0 | N17: =IF(INTRO!$E$42="Endemic", IF(AND($J17>1,$J17<5), IF($J17=4, "Unknown", E17+F17), 0),"Not required") -> 543880 | O17: =IF(INTRO!$E$44="Endemic", IF(AND($K17>0,$K17<5), IF($K17=4,"Unknown", IF($K17=1, $F17*0.33, IF($K17=2, $F17*0.5+$G17*0.2, SUM(F17:G17)))), 0),"Not required") -> 364078.9 | P17: 1 | Q17: 0 | R17: 1 | S17: 1 | T17: MDA1 (IVM+ALB) | U17: T1 (PZQ+ALB/MBD) | X17: 46466 | Y17: Ilala Municipal Council | AB17: TRUE
A18: =IF(INTRO!$E$34<>0,INTRO!$E$34,"") -> Tanzania | B18: Dar Es Salaam | C18: Kigamboni Municipal Council | D18: 236331 | E18: 39538 | F18: 32119 | G18: 164674 | H18: 1 | I18: 0 | J18: 3 | K18: 2 | L18: =IF(INTRO!$E$38="Endemic", IF($H18>0, IF($H18=4,"Unknown", IF($H18=99,"Stopped", $D18)), 0),"Not required") -> 236331 | M18: =IF(INTRO!$E$40="Endemic", IF($I18>0, IF($I18=4,"Unknown",IF($I18=99,"Stopped", $D18)), 0),"Not required") -> 0 | N18: =IF(INTRO!$E$42="Endemic", IF(AND($J18>1,$J18<5), IF($J18=4, "Unknown", E18+F18), 0),"Not required") -> 71657 | O18: =IF(INTRO!$E$44="Endemic", IF(AND($K18>0,$K18<5), IF($K18=4,"Unknown", IF($K18=1, $F18*0.33, IF($K18=2, $F18*0.5+$G18*0.2, SUM(F18:G18)))), 0),"Not required") -> 48994.3 | P18: 1 | Q18: 0 | R18: 1 | S18: 1 | T18: MDA1 (IVM+ALB) | U18: T1 (PZQ+ALB/MBD) | X18: 46624 | Y18: Kigamboni Municipal Council | AB18: TRUE
A19: =IF(INTRO!$E$34<>0,INTRO!$E$34,"") -> Tanzania | B19: Dar Es Salaam | C19: Kinondoni Municipal Council | D19: 1289192 | E19: 166306 | F19: 158969 | G19: 963917 | H19: 1 | I19: 0 | J19: 3 | K19: 2 | L19: =IF(INTRO!$E$38="Endemic", IF($H19>0, IF($H19=4,"Unknown", IF($H19=99,"Stopped", $D19)), 0),"Not required") -> 1289192 | M19: =IF(INTRO!$E$40="Endemic", IF($I19>0, IF($I19=4,"Unknown",IF($I19=99,"Stopped", $D19)), 0),"Not required") -> 0 | N19: =IF(INTRO!$E$42="Endemic", IF(AND($J19>1,$J19<5), IF($J19=4, "Unknown", E19+F19), 0),"Not required") -> 325275 | O19: =IF(INTRO!$E$44="Endemic", IF(AND($K19>0,$K19<5), IF($K19=4,"Unknown", IF($K19=1, $F19*0.33, IF($K19=2, $F19*0.5+$G19*0.2, SUM(F19:G19)))), 0),"Not required") -> 272267.9 | P19: 1 | Q19: 0 | R19: 1 | S19: 1 | T19: MDA1 (IVM+ALB) | U19: T1 (PZQ+ALB/MBD) | X19: 46467 | Y19: Kinondoni Municipal Council | AB19: TRUE
A20: =IF(INTRO!$E$34<>0,INTRO!$E$34,"") -> Tanzania | B20: Dar Es Salaam | C20: Temeke Municipal Council | D20: 1672293 | E20: 215725 | F20: 237727 | G20: 1218841 | H20: 1 | I20: 0 | J20: 3 | K20: 2 | L20: =IF(INTRO!$E$38="Endemic", IF($H20>0, IF($H20=4,"Unknown", IF($H20=99,"Stopped", $D20)), 0),"Not required") -> 1672293 | M20: =IF(INTRO!$E$40="Endemic", IF($I20>0, IF($I20=4,"Unknown",IF($I20=99,"Stopped", $D20)), 0),"Not required") -> 0 | N20: =IF(INTRO!$E$42="Endemic", IF(AND($J20>1,$J20<5), IF($J20=4, "Unknown", E20+F20), 0),"Not required") -> 453452 | O20: =IF(INTRO!$E$44="Endemic", IF(AND($K20>0,$K20<5), IF($K20=4,"Unknown", IF($K20=1, $F20*0.33, IF($K20=2, $F20*0.5+$G20*0.2, SUM(F20:G20)))), 0),"Not required") -> 362631.7 | P20: 1 | Q20: 0 | R20: 1 | S20: 1 | T20: MDA1 (IVM+ALB) | U20: T1 (PZQ+ALB/MBD) | X20: 46468 | Y20: Temeke Municipal Council | AB20: TRUE
A21: =IF(INTRO!$E$34<>0,INTRO!$E$34,"") -> Tanzania | B21: Dar Es Salaam | C21: Ubungo Municipal Council | D21: 1172274 | E21: 151223 | F21: 144552 | G21: 876499 | H21: 1 | I21: 0 | J21: 3 | K21: 2 | L21: =IF(INTRO!$E$38="Endemic", IF($H21>0, IF($H21=4,"Unknown", IF($H21=99,"Stopped", $D21)), 0),"Not required") -> 1172274 | M21: =IF(INTRO!$E$40="Endemic", IF($I21>0, IF($I21=4,"Unknown",IF($I21=99,"Stopped", $D21)), 0),"Not required") -> 0 | N21: =IF(INTRO!$E$42="Endemic", IF(AND($J21>1,$J21<5), IF($J21=4, "Unknown", E21+F21), 0),"Not required") -> 295775 | O21: =IF(INTRO!$E$44="Endemic", IF(AND($K21>0,$K21<5), IF($K21=4,"Unknown", IF($K21=1, $F21*0.33, IF($K21=2, $F21*0.5+$G21*0.2, SUM(F21:G21)))), 0),"Not required") -> 247575.8 | P21: 1 | Q21: 0 | R21: 1 | S21: 1 | T21: MDA1 (IVM+ALB) | U21: T1 (PZQ+ALB/MBD) | X21: 46625 | Y21: Ubungo Municipal Council | AB21: TRUE
A22: =IF(INTRO!$E$34<>0,INTRO!$E$34,"") -> Tanzania | B22: Dodoma | C22: Bahi District Council | D22: 251080 | E22: 32389 | F22: 51182 | G22: 167509 | H22: 99 | I22: 0 | J22: 3 | K22: 2 | L22: =IF(INTRO!$E$38="Endemic", IF($H22>0, IF($H22=4,"Unknown", IF($H22=99,"Stopped", $D22)), 0),"Not required") -> Stopped | M22: =IF(INTRO!$E$40="Endemic", IF($I22>0, IF($I22=4,"Unknown",IF($I22=99,"Stopped", $D22)), 0),"Not required") -> 0 | N22: =IF(INTRO!$E$42="Endemic", IF(AND($J22>1,$J22<5), IF($J22=4, "Unknown", E22+F22), 0),"Not required") -> 83571 | O22: =IF(INTRO!$E$44="Endemic", IF(AND($K22>0,$K22<5), IF($K22=4,"Unknown", IF($K22=1, $F22*0.33, IF($K22=2, $F22*0.5+$G22*0.2, SUM(F22:G22)))), 0),"Not required") -> 59092.8 | P22: 0 | Q22: 0 | R22: 1 | S22: 0 | U22: T3 (ALB/MBD) | X22: 46469 | Y22: Bahi District Council | AB22: TRUE
A23: =IF(INTRO!$E$34<>0,INTRO!$E$34,"") -> Tanzania | B23: Dodoma | C23: Chamwino District Council | D23: 374440 | E23: 48303 | F23: 79517 | G23: 246620 | H23: 99 | I23: 0 | J23: 3 | K23: 2 | L23: =IF(INTRO!$E$38="Endemic", IF($H23>0, IF($H23=4,"Unknown", IF($H23=99,"Stopped", $D23)), 0),"Not required") -> Stopped | M23: =IF(INTRO!$E$40="Endemic", IF($I23>0, IF($I23=4,"Unknown",IF($I23=99,"Stopped", $D23)), 0),"Not required") -> 0 | N23: =IF(INTRO!$E$42="Endemic", IF(AND($J23>1,$J23<5), IF($J23=4, "Unknown", E23+F23), 0),"Not required") -> 127820 | O23: =IF(INTRO!$E$44="Endemic", IF(AND($K23>0,$K23<5), IF($K23=4,"Unknown", IF($K23=1, $F23*0.33, IF($K23=2, $F23*0.5+$G23*0.2, SUM(F23:G23)))), 0),"Not required") -> 89082.5 | P23: 0 | Q23: 0 | R23: 1 | S23: 0 | U23: T3 (ALB/MBD) | X23: 46470 | Y23: Chamwino District Council | AB23: TRUE
A24: =IF(INTRO!$E$34<>0,INTRO!$E$34,"") -> Tanzania | B24: Dodoma | C24: Chemba District Council | D24: 267014 | E24: 34445 | F24: 56863 | G24: 175706 | H24: 99 | I24: 0 | J24: 3 | K24: 2 | L24: =IF(INTRO!$E$38="Endemic", IF($H24>0, IF($H24=4,"Unknown", IF($H24=99,"Stopped", $D24)), 0),"Not required") -> Stopped | M24: =IF(INTRO!$E$40="Endemic", IF($I24>0, IF($I24=4,"Unknown",IF($I24=99,"Stopped", $D24)), 0),"Not required") -> 0 | N24: =IF(INTRO!$E$42="Endemic", IF(AND($J24>1,$J24<5), IF($J24=4, "Unknown", E24+F24), 0),"Not required") -> 91308 | O24: =IF(INTRO!$E$44="Endemic", IF(AND($K24>0,$K24<5), IF($K24=4,"Unknown", IF($K24=1, $F24*0.33, IF($K24=2, $F24*0.5+$G24*0.2, SUM(F24:G24)))), 0),"Not required") -> 63572.7 | P24: 0 | Q24: 0 | R24: 1 | S24: 0 | U24: T3 (ALB/MBD) | X24: 46471 | Y24: Chemba District Council | AB24: TRUE
A25: =IF(INTRO!$E$34<>0,INTRO!$E$34,"") -> Tanzania | B25: Dodoma | C25: Dodoma Municipal Council | D25: 465532 | E25: 37231 | F25: 102420 | G25: 325881 | H25: 99 | I25: 0 | J25: 3 | K25: 2 | L25: =IF(INTRO!$E$38="Endemic", IF($H25>0, IF($H25=4,"Unknown", IF($H25=99,"Stopped", $D25)), 0),"Not required") -> Stopped | M25: =IF(INTRO!$E$40="Endemic", IF($I25>0, IF($I25=4,"Unknown",IF($I25=99,"Stopped", $D25)), 0),"Not required") -> 0 | N25: =IF(INTRO!$E$42="Endemic", IF(AND($J25>1,$J25<5), IF($J25=4, "Unknown", E25+F25), 0),"Not required") -> 139651 | O25: =IF(INTRO!$E$44="Endemic", IF(AND($K25>0,$K25<5), IF($K25=4,"Unknown", IF($K25=1, $F25*0.33, IF($K25=2, $F25*0.5+$G25*0.2, SUM(F25:G25)))), 0),"Not required") -> 116386.2 | P25: 0 | Q25: 0 | R25: 1 | S25: 0 | U25: T3 (ALB/MBD) | X25: 46472 | Y25: Dodoma Municipal Council | AB25: TRUE
A26: =IF(INTRO!$E$34<>0,INTRO!$E$34,"") -> Tanzania | B26: Dodoma | C26: Kondoa District Council | D26: 238661 | E26: 30787 | F26: 52375 | G26: 155499 | H26: 99 | I26: 0 | J26: 3 | K26: 2 | L26: =IF(INTRO!$E$38="Endemic", IF($H26>0, IF($H26=4,"Unknown", IF($H26=99,"Stopped", $D26)), 0),"Not required") -> Stopped | M26: =IF(INTRO!$E$40="Endemic", IF($I26>0, IF($I26=4,"Unknown",IF($I26=99,"Stopped", $D26)), 0),"Not required") -> 0 | N26: =IF(INTRO!$E$42="Endemic", IF(AND($J26>1,$J26<5), IF($J26=4, "Unknown", E26+F26), 0),"Not required") -> 83162 | O26: =IF(INTRO!$E$44="Endemic", IF(AND($K26>0,$K26<5), IF($K26=4,"Unknown", IF($K26=1, $F26*0.33, IF($K26=2, $F26*0.5+$G26*0.2, SUM(F26:G26)))), 0),"Not required") -> 57287.3 | P26: 0 | Q26: 0 | R26: 1 | S26: 0 | U26: T3 (ALB/MBD) | X26: 46473 | Y26: Kondoa District Council | AB26: TRUE
A27: =IF(INTRO!$E$34<>0,INTRO!$E$34,"") -> Tanzania | B27: Dodoma | C27: Kondoa Town Council | D27: 66860 | E27: 7154 | F27: 16143 | G27: 43563 | H27: 99 | I27: 0 | J27: 3 | K27: 2 | L27: =IF(INTRO!$E$38="Endemic", IF($H27>0, IF($H27=4,"Unknown", IF($H27=99,"Stopped", $D27)), 0),"Not required") -> Stopped | M27: =IF(INTRO!$E$40="Endemic", IF($I27>0, IF($I27=4,"Unknown",IF($I27=99,"Stopped", $D27)), 0),"Not required") -> 0 | N27: =IF(INTRO!$E$42="Endemic", IF(AND($J27>1,$J27<5), IF($J27=4, "Unknown", E27+F27), 0),"Not required") -> 23297 | O27: =IF(INTRO!$E$44="Endemic", IF(AND($K27>0,$K27<5), IF($K27=4,"Unknown", IF($K27=1, $F27*0.33, IF($K27=2, $F27*0.5+$G27*0.2, SUM(F27:G27)))), 0),"Not required") -> 16784.1 | P27: 0 | Q27: 0 | R27: 1 | S27: 0 | U27: T3 (ALB/MBD) | X27: 46626 | Y27: Kondoa Town Council | AB27: TRUE
A28: =IF(INTRO!$E$34<>0,INTRO!$E$34,"") -> Tanzania | B28: Dodoma | C28: Kongwa District Council | D28: 351138 | E28: 45296 | F28: 75402 | G28: 230440 | H28: 99 | I28: 0 | J28: 3 | K28: 2 | L28: =IF(INTRO!$E$38="Endemic", IF($H28>0, IF($H28=4,"Unknown", IF($H28=99,"Stopped", $D28)), 0),"Not required") -> Stopped | M28: =IF(INTRO!$E$40="Endemic", IF($I28>0, IF($I28=4,"Unknown",IF($I28=99,"Stopped", $D28)), 0),"Not required") -> 0 | N28: =IF(INTRO!$E$42="Endemic", IF(AND($J28>1,$J28<5), IF($J28=4, "Unknown", E28+F28), 0),"Not required") -> 120698 | O28: =IF(INTRO!$E$44="Endemic", IF(AND($K28>0,$K28<5), IF($K28=4,"Unknown", IF($K28=1, $F28*0.33, IF($K28=2, $F28*0.5+$G28*0.2, SUM(F28:G28)))), 0),"Not required") -> 83789 | P28: 0 | Q28: 0 | R28: 1 | S28: 0 | U28: T3 (ALB/MBD) | X28: 46474 | Y28: Kongwa District Council | AB28: TRUE
A29: =IF(INTRO!$E$34<>0,INTRO!$E$34,"") -> Tanzania | B29: Dodoma | C29: Mpwapwa District Council | D29: 345568 | E29: 43355 | F29: 76015 | G29: 226198 | H29: 99 | I29: 0 | J29: 3 | K29: 2 | L29: =IF(INTRO!$E$38="Endemic", IF($H29>0, IF($H29=4,"Unknown", IF($H29=99,"Stopped", $D29)), 0),"Not required") -> Stopped | M29: =IF(INTRO!$E$40="Endemic", IF($I29>0, IF($I29=4,"Unknown",IF($I29=99,"Stopped", $D29)), 0),"Not required") -> 0 | N29: =IF(INTRO!$E$42="Endemic", IF(AND($J29>1,$J29<5), IF($J29=4, "Unknown", E29+F29), 0),"Not required") -> 119370 | O29: =IF(INTRO!$E$44="Endemic", IF(AND($K29>0,$K29<5), IF($K29=4,"Unknown", IF($K29=1, $F29*0.33, IF($K29=2, $F29*0.5+$G29*0.2, SUM(F29:G29)))), 0),"Not required") -> 83247.1 | P29: 0 | Q29: 0 | R29: 1 | S29: 0 | U29: T3 (ALB/MBD) | X29: 46475 | Y29: Mpwapwa District Council | AB29: TRUE
A30: =IF(INTRO!$E$34<>0,INTRO!$E$34,"") -> Tanzania | B30: Geita | C30: Bukombe District Council | D30: 261928 | E30: 5028 | F30: 84103 | G30: 172797 | H30: 0 | I30: 0 | J30: 3 | K30: 2 | L30: =IF(INTRO!$E$38="Endemic", IF($H30>0, IF($H30=4,"Unknown", IF($H30=99,"Stopped", $D30)), 0),"Not required") -> 0 | M30: =IF(INTRO!$E$40="Endemic", IF($I30>0, IF($I30=4,"Unknown",IF($I30=99,"Stopped", $D30)), 0),"Not required") -> 0 | N30: =IF(INTRO!$E$42="Endemic", IF(AND($J30>1,$J30<5), IF($J30=4, "Unknown", E30+F30), 0),"Not required") -> 89131 | O30: =IF(INTRO!$E$44="Endemic", IF(AND($K30>0,$K30<5), IF($K30=4,"Unknown", IF($K30=1, $F30*0.33, IF($K30=2, $F30*0.5+$G30*0.2, SUM(F30:G30)))), 0),"Not required") -> 76610.9 | P30: 0 | Q30: 0 | R30: 1 | S30: 0 | U30: T3 (ALB/MBD) | X30: 46476 | Y30: Bukombe District Council | AB30: TRUE
A31: =IF(INTRO!$E$34<>0,INTRO!$E$34,"") -> Tanzania | B31: Geita | C31: Chato District Council | D31: 425920 | E31: 18994 | F31: 128458 | G31: 278468 | H31: 0 | I31: 0 | J31: 3 | K31: 2 | L31: =IF(INTRO!$E$38="Endemic", IF($H31>0, IF($H31=4,"Unknown", IF($H31=99,"Stopped", $D31)), 0),"Not required") -> 0 | M31: =IF(INTRO!$E$40="Endemic", IF($I31>0, IF($I31=4,"Unknown",IF($I31=99,"Stopped", $D31)), 0),"Not required") -> 0 | N31: =IF(INTRO!$E$42="Endemic", IF(AND($J31>1,$J31<5), IF($J31=4, "Unknown", E31+F31), 0),"Not required") -> 147452 | O31: =IF(INTRO!$E$44="Endemic", IF(AND($K31>0,$K31<5), IF($K31=4,"Unknown", IF($K31=1, $F31*0.33, IF($K31=2, $F31*0.5+$G31*0.2, SUM(F31:G31)))), 0),"Not required") -> 119922.6 | P31: 0 | Q31: 0 | R31: 1 | S31: 0 | U31: T3 (ALB/MBD) | X31: 46477 | Y31: Chato District Council | AB31: TRUE
A32: =IF(INTRO!$E$34<>0,INTRO!$E$34,"") -> Tanzania | B32: Geita | C32: Geita District Council | D32: 717294 | E32: 21198 | F32: 220279 | G32: 475817 | H32: 0 | I32: 0 | J32: 3 | K32: 2 | L32: =IF(INTRO!$E$38="Endemic", IF($H32>0, IF($H32=4,"Unknown", IF($H32=99,"Stopped", $D32)), 0),"Not required") -> 0 | M32: =IF(INTRO!$E$40="Endemic", IF($I32>0, IF($I32=4,"Unknown",IF($I32=99,"Stopped", $D32)), 0),"Not required") -> 0 | N32: =IF(INTRO!$E$42="Endemic", IF(AND($J32>1,$J32<5), IF($J32=4, "Unknown", E32+F32), 0),"Not required") -> 241477 | O32: =IF(INTRO!$E$44="Endemic", IF(AND($K32>0,$K32<5), IF($K32=4,"Unknown", IF($K32=1, $F32*0.33, IF($K32=2, $F32*0.5+$G32*0.2, SUM(F32:G32)))), 0),"Not required") -> 205302.9 | P32: 0 | Q32: 0 | R32: 1 | S32: 0 | U32: T3 (ALB/MBD) | X32: 46478 | Y32: Geita District Council | AB32: TRUE
A33: =IF(INTRO!$E$34<>0,INTRO!$E$34,"") -> Tanzania | B33: Geita | C33: Geita Town Council | D33: 224792 | E33: 6282 | F33: 69394 | G33: 149116 | H33: 0 | I33: 0 | J33: 3 | K33: 2 | L33: =IF(INTRO!$E$38="Endemic", IF($H33>0, IF($H33=4,"Unknown", IF($H33=99,"Stopped", $D33)), 0),"Not required") -> 0 | M33: =IF(INTRO!$E$40="Endemic", IF($I33>0, IF($I33=4,"Unknown",IF($I33=99,"Stopped", $D33)), 0),"Not required") -> 0 | N33: =IF(INTRO!$E$42="Endemic", IF(AND($J33>1,$J33<5), IF($J33=4, "Unknown", E33+F33), 0),"Not required") -> 75676 | O33: =IF(INTRO!$E$44="Endemic", IF(AND($K33>0,$K33<5), IF($K33=4,"Unknown", IF($K33=1, $F33*0.33, IF($K33=2, $F33*0.5+$G33*0.2, SUM(F33:G33)))), 0),"Not required") -> 64520.2 | P33: 0 | Q33: 0 | R33: 1 | S33: 0 | U33: T3 (ALB/MBD) | X33: 46627 | Y33: Geita Town Council | AB33: TRUE
A34: =IF(INTRO!$E$34<>0,INTRO!$E$34,"") -> Tanzania | B34: Geita | C34: Mbogwe District Council | D34: 226210 | E34: 2893 | F34: 75611 | G34: 147706 | H34: 0 | I34: 0 | J34: 3 | K34: 2 | L34: =IF(INTRO!$E$38="Endemic", IF($H34>0, IF($H34=4,"Unknown", IF($H34=99,"Stopped", $D34)), 0),"Not required") -> 0 | M34: =IF(INTRO!$E$40="Endemic", IF($I34>0, IF($I34=4,"Unknown",IF($I34=99,"Stopped", $D34)), 0),"Not required") -> 0 | N34: =IF(INTRO!$E$42="Endemic", IF(AND($J34>1,$J34<5), IF($J34=4, "Unknown", E34+F34), 0),"Not required") -> 78504 | O34: =IF(INTRO!$E$44="Endemic", IF(AND($K34>0,$K34<5), IF($K34=4,"Unknown", IF($K34=1, $F34*0.33, IF($K34=2, $F34*0.5+$G34*0.2, SUM(F34:G34)))), 0),"Not required") -> 67346.7 | P34: 0 | Q34: 0 | R34: 1 | S34: 0 | U34: T3 (ALB/MBD) | X34: 46479 | Y34: Mbogwe District Council | AB34: TRUE
A35: =IF(INTRO!$E$34<>0,INTRO!$E$34,"") -> Tanzania | B35: Geita | C35: Nyang'hwale District Council | D35: 173015 | E35: 9279 | F35: 50501 | G35: 113235 | H35: 0 | I35: 0 | J35: 3 | K35: 2 | L35: =IF(INTRO!$E$38="Endemic", IF($H35>0, IF($H35=4,"Unknown", IF($H35=99,"Stopped", $D35)), 0),"Not required") -> 0 | M35: =IF(INTRO!$E$40="Endemic", IF($I35>0, IF($I35=4,"Unknown",IF($I35=99,"Stopped", $D35)), 0),"Not required") -> 0 | N35: =IF(INTRO!$E$42="Endemic", IF(AND($J35>1,$J35<5), IF($J35=4, "Unknown", E35+F35), 0),"Not required") -> 59780 | O35: =IF(INTRO!$E$44="Endemic", IF(AND($K35>0,$K35<5), IF($K35=4,"Unknown", IF($K35=1, $F35*0.33, IF($K35=2, $F35*0.5+$G35*0.2, SUM(F35:G35)))), 0),"Not required") -> 47897.5 | P35: 0 | Q35: 0 | R35: 1 | S35: 0 | U35: T3 (ALB/MBD) | X35: 46480 | Y35: Nyang'hwale District Council | AB35: TRUE
A36: =IF(INTRO!$E$34<>0,INTRO!$E$34,"") -> Tanzania | B36: Iringa | C36: Iringa District Council | D36: 271266 | E36: 21817 | F36: 69583 | G36: 179866 | H36: 99 | I36: 0 | J36: 3 | K36: 2 | L36: =IF(INTRO!$E$38="Endemic", IF($H36>0, IF($H36=4,"Unknown", IF($H36=99,"Stopped", $D36)), 0),"Not required") -> Stopped | M36: =IF(INTRO!$E$40="Endemic", IF($I36>0, IF($I36=4,"Unknown",IF($I36=99,"Stopped", $D36)), 0),"Not required") -> 0 | N36: =IF(INTRO!$E$42="Endemic", IF(AND($J36>1,$J36<5), IF($J36=4, "Unknown", E36+F36), 0),"Not required") -> 91400 | O36: =IF(INTRO!$E$44="Endemic", IF(AND($K36>0,$K36<5), IF($K36=4,"Unknown", IF($K36=1, $F36*0.33, IF($K36=2, $F36*0.5+$G36*0.2, SUM(F36:G36)))), 0),"Not required") -> 70764.7 | P36: 0 | Q36: 0 | R36: 1 | S36: 1 | U36: T1 (PZQ+ALB/MBD) | X36: 46481 | Y36: Iringa District Council | AB36: TRUE
A37: =IF(INTRO!$E$34<>0,INTRO!$E$34,"") -> Tanzania | B37: Iringa | C37: Iringa Municipal Council | D37: 161613 | E37: 13227 | F37: 32779 | G37: 115607 | H37: 99 | I37: 0 | J37: 3 | K37: 2 | L37: =IF(INTRO!$E$38="Endemic", IF($H37>0, IF($H37=4,"Unknown", IF($H37=99,"Stopped", $D37)), 0),"Not required") -> Stopped | M37: =IF(INTRO!$E$40="Endemic", IF($I37>0, IF($I37=4,"Unknown",IF($I37=99,"Stopped", $D37)), 0),"Not required") -> 0 | N37: =IF(INTRO!$E$42="Endemic", IF(AND($J37>1,$J37<5), IF($J37=4, "Unknown", E37+F37), 0),"Not required") -> 46006 | O37: =IF(INTRO!$E$44="Endemic", IF(AND($K37>0,$K37<5), IF($K37=4,"Unknown", IF($K37=1, $F37*0.33, IF($K37=2, $F37*0.5+$G37*0.2, SUM(F37:G37)))), 0),"Not required") -> 39510.9 | P37: 0 | Q37: 0 | R37: 1 | S37: 1 | U37: T1 (PZQ+ALB/MBD) | X37: 46482 | Y37: Iringa Municipal Council | AB37: TRUE
A38: =IF(INTRO!$E$34<>0,INTRO!$E$34,"") -> Tanzania | B38: Iringa | C38: Kilolo District Council | D38: 232928 | E38: 30047 | F38: 48712 | G38: 154169 | H38: 99 | I38: 0 | J38: 3 | K38: 2 | L38: =IF(INTRO!$E$38="Endemic", IF($H38>0, IF($H38=4,"Unknown", IF($H38=99,"Stopped", $D38)), 0),"Not required") -> Stopped | M38: =IF(INTRO!$E$40="Endemic", IF($I38>0, IF($I38=4,"Unknown",IF($I38=99,"Stopped", $D38)), 0),"Not required") -> 0 | N38: =IF(INTRO!$E$42="Endemic", IF(AND($J38>1,$J38<5), IF($J38=4, "Unknown", E38+F38), 0),"Not required") -> 78759 | O38: =IF(INTRO!$E$44="Endemic", IF(AND($K38>0,$K38<5), IF($K38=4,"Unknown", IF($K38=1, $F38*0.33, IF($K38=2, $F38*0.5+$G38*0.2, SUM(F38:G38)))), 0),"Not required") -> 55189.8 | P38: 0 | Q38: 0 | R38: 1 | S38: 1 | U38: T1 (PZQ+ALB/MBD) | X38: 46483 | Y38: Kilolo District Council | AB38: TRUE
A39: =IF(INTRO!$E$34<>0,INTRO!$E$34,"") -> Tanzania | B39: Iringa | C39: Mafinga Town Council | D39: 55423 | E39: 7149.58341 | F39: 18037 | G39: 30236.41659 | H39: 99 | I39: 0 | J39: 3 | K39: 2 | L39: =IF(INTRO!$E$38="Endemic", IF($H39>0, IF($H39=4,"Unknown", IF($H39=99,"Stopped", $D39)), 0),"Not required") -> Stopped | M39: =IF(INTRO!$E$40="Endemic", IF($I39>0, IF($I39=4,"Unknown",IF($I39=99,"Stopped", $D39)), 0),"Not required") -> 0 | N39: =IF(INTRO!$E$42="Endemic", IF(AND($J39>1,$J39<5), IF($J39=4, "Unknown", E39+F39), 0),"Not required") -> 25186.58341 | O39: =IF(INTRO!$E$44="Endemic", IF(AND($K39>0,$K39<5), IF($K39=4,"Unknown", IF($K39=1, $F39*0.33, IF($K39=2, $F39*0.5+$G39*0.2, SUM(F39:G39)))), 0),"Not required") -> 15065.78332 | P39: 0 | Q39: 0 | R39: 1 | S39: 1 | U39: T1 (PZQ+ALB/MBD) | X39: 46484 | Y39: Mafinga Town Council | AB39: TRUE
A40: =IF(INTRO!$E$34<>0,INTRO!$E$34,"") -> Tanzania | B40: Iringa | C40: Mufindi District Council | D40: 283863 | E40: 28501 | F40: 67966 | G40: 187396 | H40: 99 | I40: 1 | J40: 3 | K40: 2 | L40: =IF(INTRO!$E$38="Endemic", IF($H40>0, IF($H40=4,"Unknown", IF($H40=99,"Stopped", $D40)), 0),"Not required") -> Stopped | M40: =IF(INTRO!$E$40="Endemic", IF($I40>0, IF($I40=4,"Unknown",IF($I40=99,"Stopped", $D40)), 0),"Not required") -> 283863 | N40: =IF(INTRO!$E$42="Endemic", IF(AND($J40>1,$J40<5), IF($J40=4, "Unknown", E40+F40), 0),"Not required") -> 96467 | O40: =IF(INTRO!$E$44="Endemic", IF(AND($K40>0,$K40<5), IF($K40=4,"Unknown", IF($K40=1, $F40*0.33, IF($K40=2, $F40*0.5+$G40*0.2, SUM(F40:G40)))), 0),"Not required") -> 71462.2 | P40: 0 | Q40: 1 | R40: 1 | S40: 1 | T40: MDA3 (IVM) | U40: T1 (PZQ+ALB/MBD) | X40: 46485 | Y40: Mufindi District Council | AB40: TRUE
A41: =IF(INTRO!$E$34<>0,INTRO!$E$34,"") -> Tanzania | B41: Kagera | C41: Biharamulo District Council | D41: 390781 | E41: 50410 | F41: 81093 | G41: 259278 | H41: 0 | I41: 0 | J41: 3 | K41: 2 | L41: =IF(INTRO!$E$38="Endemic", IF($H41>0, IF($H41=4,"Unknown", IF($H41=99,"Stopped", $D41)), 0),"Not required") -> 0 | M41: =IF(INTRO!$E$40="Endemic", IF($I41>0, IF($I41=4,"Unknown",IF($I41=99,"Stopped", $D41)), 0),"Not required") -> 0 | N41: =IF(INTRO!$E$42="Endemic", IF(AND($J41>1,$J41<5), IF($J41=4, "Unknown", E41+F41), 0),"Not required") -> 131503 | O41: =IF(INTRO!$E$44="Endemic", IF(AND($K41>0,$K41<5), IF($K41=4,"Unknown", IF($K41=1, $F41*0.33, IF($K41=2, $F41*0.5+$G41*0.2, SUM(F41:G41)))), 0),"Not required") -> 92402.1 | P41: 0 | Q41: 0 | R41: 1 | S41: 1 | U41: T1 (PZQ+ALB/MBD) | X41: 46486 | Y41: Biharamulo District Council | AB41: TRUE
A42: =IF(INTRO!$E$34<>0,INTRO!$E$34,"") -> Tanzania | B42: Kagera | C42: Bukoba District Council | D42: 349963 | E42: 38474 | F42: 81110 | G42: 230379 | H42: 0 | I42: 0 | J42: 3 | K42: 2 | L42: =IF(INTRO!$E$38="Endemic", IF($H42>0, IF($H42=4,"Unknown", IF($H42=99,"Stopped", $D42)), 0),"Not required") -> 0 | M42: =IF(INTRO!$E$40="Endemic", IF($I42>0, IF($I42=4,"Unknown",IF($I42=99,"Stopped", $D42)), 0),"Not required") -> 0 | N42: =IF(INTRO!$E$42="Endemic", IF(AND($J42>1,$J42<5), IF($J42=4, "Unknown", E42+F42), 0),"Not required") -> 119584 | O42: =IF(INTRO!$E$44="Endemic", IF(AND($K42>0,$K42<5), IF($K42=4,"Unknown", IF($K42=1, $F42*0.33, IF($K42=2, $F42*0.5+$G42*0.2, SUM(F42:G42)))), 0),"Not required") -> 86630.8 | P42: 0 | Q42: 0 | R42: 1 | S42: 1 | U42: T1 (PZQ+ALB/MBD) | X42: 46487 | Y42: Bukoba District Council | AB42: TRUE
A43: =IF(INTRO!$E$34<>0,INTRO!$E$34,"") -> Tanzania | B43: Kagera | C43: Bukoba Municipal Council | D43: 155590 | E43: 15748 | F43: 29661 | G43: 110181 | H43: 0 | I43: 0 | J43: 3 | K43: 2 | L43: =IF(INTRO!$E$38="Endemic", IF($H43>0, IF($H43=4,"Unknown", IF($H43=99,"Stopped", $D43)), 0),"Not required") -> 0 | M43: =IF(INTRO!$E$40="Endemic", IF($I43>0, IF($I43=4,"Unknown",IF($I43=99,"Stopped", $D43)), 0),"Not required") -> 0 | N43: =IF(INTRO!$E$42="Endemic", IF(AND($J43>1,$J43<5), IF($J43=4, "Unknown", E43+F43), 0),"Not required") -> 45409 | O43: =IF(INTRO!$E$44="Endemic", IF(AND($K43>0,$K43<5), IF($K43=4,"Unknown", IF($K43=1, $F43*0.33, IF($K43=2, $F43*0.5+$G43*0.2, SUM(F43:G43)))), 0),"Not required") -> 36866.7 | P43: 0 | Q43: 0 | R43: 1 | S43: 1 | U43: T1 (PZQ+ALB/MBD) | X43: 46488 | Y43: Bukoba Municipal Council | AB43: TRUE
A44: =IF(INTRO!$E$34<>0,INTRO!$E$34,"") -> Tanzania | B44: Kagera | C44: Karagwe District Council | D44: 401091 | E44: 51742 | F44: 81538 | G44: 267811 | H44: 0 | I44: 0 | J44: 3 | K44: 2 | L44: =IF(INTRO!$E$38="Endemic", IF($H44>0, IF($H44=4,"Unknown", IF($H44=99,"Stopped", $D44)), 0),"Not required") -> 0 | M44: =IF(INTRO!$E$40="Endemic", IF($I44>0, IF($I44=4,"Unknown",IF($I44=99,"Stopped", $D44)), 0),"Not required") -> 0 | N44: =IF(INTRO!$E$42="Endemic", IF(AND($J44>1,$J44<5), IF($J44=4, "Unknown", E44+F44), 0),"Not required") -> 133280 | O44: =IF(INTRO!$E$44="Endemic", IF(AND($K44>0,$K44<5), IF($K44=4,"Unknown", IF($K44=1, $F44*0.33, IF($K44=2, $F44*0.5+$G44*0.2, SUM(F44:G44)))), 0),"Not required") -> 94331.2 | P44: 0 | Q44: 0 | R44: 1 | S44: 1 | U44: T1 (PZQ+ALB/MBD) | X44: 46489 | Y44: Karagwe District Council | AB44: TRUE
A45: =IF(INTRO!$E$34<>0,INTRO!$E$34,"") -> Tanzania | B45: Kagera | C45: Kyerwa District Council | D45: 387809 | E45: 41545 | F45: 91563 | G45: 254701 | H45: 0 | I45: 0 | J45: 3 | K45: 2 | L45: =IF(INTRO!$E$38="Endemic", IF($H45>0, IF($H45=4,"Unknown", IF($H45=99,"Stopped", $D45)), 0),"Not required") -> 0 | M45: =IF(INTRO!$E$40="Endemic", IF($I45>0, IF($I45=4,"Unknown",IF($I45=99,"Stopped", $D45)), 0),"Not required") -> 0 | N45: =IF(INTRO!$E$42="Endemic", IF(AND($J45>1,$J45<5), IF($J45=4, "Unknown", E45+F45), 0),"Not required") -> 133108 | O45: =IF(INTRO!$E$44="Endemic", IF(AND($K45>0,$K45<5), IF($K45=4,"Unknown", IF($K45=1, $F45*0.33, IF($K45=2, $F45*0.5+$G45*0.2, SUM(F45:G45)))), 0),"Not required") -> 96721.7 | P45: 0 | Q45: 0 | R45: 1 | S45: 1 | U45: T1 (PZQ+ALB/MBD) | X45: 46490 | Y45: Kyerwa District Council | AB45: TRUE
A46: =IF(INTRO!$E$34<>0,INTRO!$E$34,"") -> Tanzania | B46: Kagera | C46: Missenyi District Council | D46: 244786 | E46: 31578 | F46: 49170 | G46: 164038 | H46: 0 | I46: 0 | J46: 3 | K46: 2 | L46: =IF(INTRO!$E$38="Endemic", IF($H46>0, IF($H46=4,"Unknown", IF($H46=99,"Stopped", $D46)), 0),"Not required") -> 0 | M46: =IF(INTRO!$E$40="Endemic", IF($I46>0, IF($I46=4,"Unknown",IF($I46=99,"Stopped", $D46)), 0),"Not required") -> 0 | N46: =IF(INTRO!$E$42="Endemic", IF(AND($J46>1,$J46<5), IF($J46=4, "Unknown", E46+F46), 0),"Not required") -> 80748 | O46: =IF(INTRO!$E$44="Endemic", IF(AND($K46>0,$K46<5), IF($K46=4,"Unknown", IF($K46=1, $F46*0.33, IF($K46=2, $F46*0.5+$G46*0.2, SUM(F46:G46)))), 0),"Not required") -> 57392.6 | P46: 0 | Q46: 0 | R46: 1 | S46: 1 | U46: T1 (PZQ+ALB/MBD) | X46: 46491 | Y46: Missenyi District Council | AB46: TRUE
A47: =IF(INTRO!$E$34<>0,INTRO!$E$34,"") -> Tanzania | B47: Kagera | C47: Muleba District Council | D47: 652711 | E47: 84199 | F47: 134592 | G47: 433920 | H47: 0 | I47: 0 | J47: 3 | K47: 2 | L47: =IF(INTRO!$E$38="Endemic", IF($H47>0, IF($H47=4,"Unknown", IF($H47=99,"Stopped", $D47)), 0),"Not required") -> 0 | M47: =IF(INTRO!$E$40="Endemic", IF($I47>0, IF($I47=4,"Unknown",IF($I47=99,"Stopped", $D47)), 0),"Not required") -> 0 | N47: =IF(INTRO!$E$42="Endemic", IF(AND($J47>1,$J47<5), IF($J47=4, "Unknown", E47+F47), 0),"Not required") -> 218791 | O47: =IF(INTRO!$E$44="Endemic", IF(AND($K47>0,$K47<5), IF($K47=4,"Unknown", IF($K47=1, $F47*0.33, IF($K47=2, $F47*0.5+$G47*0.2, SUM(F47:G47)))), 0),"Not required") -> 154080 | P47: 0 | Q47: 0 | R47: 1 | S47: 1 | U47: T1 (PZQ+ALB/MBD) | X47: 46492 | Y47: Muleba District Council | AB47: TRUE
A48: =IF(INTRO!$E$34<>0,INTRO!$E$34,"") -> Tanzania | B48: Kagera | C48: Ngara District Council | D48: 386638 | E48: 49876 | F48: 78131 | G48: 258631 | H48: 0 | I48: 0 | J48: 3 | K48: 2 | L48: =IF(INTRO!$E$38="Endemic", IF($H48>0, IF($H48=4,"Unknown", IF($H48=99,"Stopped", $D48)), 0),"Not required") -> 0 | M48: =IF(INTRO!$E$40="Endemic", IF($I48>0, IF($I48=4,"Unknown",IF($I48=99,"Stopped", $D48)), 0),"Not required") -> 0 | N48: =IF(INTRO!$E$42="Endemic", IF(AND($J48>1,$J48<5), IF($J48=4, "Unknown", E48+F48), 0),"Not required") -> 128007 | O48: =IF(INTRO!$E$44="Endemic", IF(AND($K48>0,$K48<5), IF($K48=4,"Unknown", IF($K48=1, $F48*0.33, IF($K48=2, $F48*0.5+$G48*0.2, SUM(F48:G48)))), 0),"Not required") -> 90791.7 | P48: 0 | Q48: 0 | R48: 1 | S48: 1 | U48: T1 (PZQ+ALB/MBD) | X48: 46493 | Y48: Ngara District Council | AB48: TRUE
A49: =IF(INTRO!$E$34<>0,INTRO!$E$34,"") -> Tanzania | B49: Katavi | C49: Mlele District Council | D49: 52256 | E49: 4434 | F49: 13037 | G49: 34785 | H49: 99 | I49: 0 | J49: 3 | K49: 2 | L49: =IF(INTRO!$E$38="Endemic", IF($H49>0, IF($H49=4,"Unknown", IF($H49=99,"Stopped", $D49)), 0),"Not required") -> Stopped | M49: =IF(INTRO!$E$40="Endemic", IF($I49>0, IF($I49=4,"Unknown",IF($I49=99,"Stopped", $D49)), 0),"Not required") -> 0 | N49: =IF(INTRO!$E$42="Endemic", IF(AND($J49>1,$J49<5), IF($J49=4, "Unknown", E49+F49), 0),"Not required") -> 17471 | O49: =IF(INTRO!$E$44="Endemic", IF(AND($K49>0,$K49<5), IF($K49=4,"Unknown", IF($K49=1, $F49*0.33, IF($K49=2, $F49*0.5+$G49*0.2, SUM(F49:G49)))), 0),"Not required") -> 13475.5 | P49: 0 | Q49: 0 | R49: 1 | S49: 0 | U49: T3 (ALB/MBD) | X49: 46494 | Y49: Mlele District Council | AB49: TRUE
A50: =IF(INTRO!$E$34<>0,INTRO!$E$34,"") -> Tanzania | B50: Katavi | C50: Mpanda District Council | D50: 132947 | E50: 17150.22333 | F50: 69583 | G50: 46213.77667 | H50: 99 | I50: 0 | J50: 3 | K50: 2 | L50: =IF(INTRO!$E$38="Endemic", IF($H50>0, IF($H50=4,"Unknown", IF($H50=99,"Stopped", $D50)), 0),"Not required") -> Stopped | M50: =IF(INTRO!$E$40="Endemic", IF($I50>0, IF($I50=4,"Unknown",IF($I50=99,"Stopped", $D50)), 0),"Not required") -> 0 | N50: =IF(INTRO!$E$42="Endemic", IF(AND($J50>1,$J50<5), IF($J50=4, "Unknown", E50+F50), 0),"Not required") -> 86733.22333 | O50: =IF(INTRO!$E$44="Endemic", IF(AND($K50>0,$K50<5), IF($K50=4,"Unknown", IF($K50=1, $F50*0.33, IF($K50=2, $F50*0.5+$G50*0.2, SUM(F50:G50)))), 0),"Not required") -> 44034.25533 | P50: 0 | Q50: 0 | R50: 1 | S50: 0 | U50: T3 (ALB/MBD) | X50: 46495 | Y50: Mpanda District Council | AB50: TRUE
A51: =IF(INTRO!$E$34<>0,INTRO!$E$34,"") -> Tanzania | B51: Katavi | C51: Mpanda Municipal Council | D51: 216402 | E51: 17992 | F51: 49471 | G51: 148939 | H51: 99 | I51: 0 | J51: 3 | K51: 2 | L51: =IF(INTRO!$E$38="Endemic", IF($H51>0, IF($H51=4,"Unknown", IF($H51=99,"Stopped", $D51)), 0),"Not required") -> Stopped | M51: =IF(INTRO!$E$40="Endemic", IF($I51>0, IF($I51=4,"Unknown",IF($I51=99,"Stopped", $D51)), 0),"Not required") -> 0 | N51: =IF(INTRO!$E$42="Endemic", IF(AND($J51>1,$J51<5), IF($J51=4, "Unknown", E51+F51), 0),"Not required") -> 67463 | O51: =IF(INTRO!$E$44="Endemic", IF(AND($K51>0,$K51<5), IF($K51=4,"Unknown", IF($K51=1, $F51*0.33, IF($K51=2, $F51*0.5+$G51*0.2, SUM(F51:G51)))), 0),"Not required") -> 54523.3 | P51: 0 | Q51: 0 | R51: 1 | S51: 0 | U51: T3 (ALB/MBD) | X51: 46496 | Y51: Mpanda Municipal Council | AB51: TRUE
A52: =IF(INTRO!$E$34<>0,INTRO!$E$34,"") -> Tanzania | B52: Katavi | C52: Mpimbwe District Council | D52: 125182 | E52: 16148 | F52: 25705 | G52: 83329 | H52: 99 | I52: 0 | J52: 3 | K52: 2 | L52: =IF(INTRO!$E$38="Endemic", IF($H52>0, IF($H52=4,"Unknown", IF($H52=99,"Stopped", $D52)), 0),"Not required") -> Stopped | M52: =IF(INTRO!$E$40="Endemic", IF($I52>0, IF($I52=4,"Unknown",IF($I52=99,"Stopped", $D52)), 0),"Not required") -> 0 | N52: =IF(INTRO!$E$42="Endemic", IF(AND($J52>1,$J52<5), IF($J52=4, "Unknown", E52+F52), 0),"Not required") -> 41853 | O52: =IF(INTRO!$E$44="Endemic", IF(AND($K52>0,$K52<5), IF($K52=4,"Unknown", IF($K52=1, $F52*0.33, IF($K52=2, $F52*0.5+$G52*0.2, SUM(F52:G52)))), 0),"Not required") -> 29518.3 | P52: 0 | Q52: 0 | R52: 1 | S52: 0 | U52: T3 (ALB/MBD) | X52: 46628 | Y52: Mpimbwe District Council | AB52: TRUE
A53: =IF(INTRO!$E$34<>0,INTRO!$E$34,"") -> Tanzania | B53: Katavi | C53: Nsimbo District Council | D53: 155272 | E53: 16980 | F53: 34820 | G53: 103472 | H53: 99 | I53: 0 | J53: 3 | K53: 2 | L53: =IF(INTRO!$E$38="Endemic", IF($H53>0, IF($H53=4,"Unknown", IF($H53=99,"Stopped", $D53)), 0),"Not required") -> Stopped | M53: =IF(INTRO!$E$40="Endemic", IF($I53>0, IF($I53=4,"Unknown",IF($I53=99,"Stopped", $D53)), 0),"Not required") -> 0 | N53: =IF(INTRO!$E$42="Endemic", IF(AND($J53>1,$J53<5), IF($J53=4, "Unknown", E53+F53), 0),"Not required") -> 51800 | O53: =IF(INTRO!$E$44="Endemic", IF(AND($K53>0,$K53<5), IF($K53=4,"Unknown", IF($K53=1, $F53*0.33, IF($K53=2, $F53*0.5+$G53*0.2, SUM(F53:G53)))), 0),"Not required") -> 38104.4 | P53: 0 | Q53: 0 | R53: 1 | S53: 0 | U53: T3 (ALB/MBD) | X53: 46497 | Y53: Nsimbo District Council | AB53: TRUE
A54: =IF(INTRO!$E$34<>0,INTRO!$E$34,"") -> Tanzania | B54: Kigoma | C54: Buhigwe District Council | D54: 307253 | E54: 33622 | F54: 66990 | G54: 206641 | H54: 0 | I54: 0 | J54: 3 | K54: 2 | L54: =IF(INTRO!$E$38="Endemic", IF($H54>0, IF($H54=4,"Unknown", IF($H54=99,"Stopped", $D54)), 0),"Not required") -> 0 | M54: =IF(INTRO!$E$40="Endemic", IF($I54>0, IF($I54=4,"Unknown",IF($I54=99,"Stopped", $D54)), 0),"Not required") -> 0 | N54: =IF(INTRO!$E$42="Endemic", IF(AND($J54>1,$J54<5), IF($J54=4, "Unknown", E54+F54), 0),"Not required") -> 100612 | O54: =IF(INTRO!$E$44="Endemic", IF(AND($K54>0,$K54<5), IF($K54=4,"Unknown", IF($K54=1, $F54*0.33, IF($K54=2, $F54*0.5+$G54*0.2, SUM(F54:G54)))), 0),"Not required") -> 74823.2 | P54: 0 | Q54: 0 | R54: 1 | S54: 1 | U54: T1 (PZQ+ALB/MBD) | X54: 46498 | Y54: Buhigwe District Council | AB54: TRUE
A55: =IF(INTRO!$E$34<>0,INTRO!$E$34,"") -> Tanzania | B55: Kigoma | C55: Kakonko District Council | D55: 202412 | E55: 26111 | F55: 42087 | G55: 134214 | H55: 0 | I55: 0 | J55: 3 | K55: 2 | L55: =IF(INTRO!$E$38="Endemic", IF($H55>0, IF($H55=4,"Unknown", IF($H55=99,"Stopped", $D55)), 0),"Not required") -> 0 | M55: =IF(INTRO!$E$40="Endemic", IF($I55>0, IF($I55=4,"Unknown",IF($I55=99,"Stopped", $D55)), 0),"Not required") -> 0 | N55: =IF(INTRO!$E$42="Endemic", IF(AND($J55>1,$J55<5), IF($J55=4, "Unknown", E55+F55), 0),"Not required") -> 68198 | O55: =IF(INTRO!$E$44="Endemic", IF(AND($K55>0,$K55<5), IF($K55=4,"Unknown", IF($K55=1, $F55*0.33, IF($K55=2, $F55*0.5+$G55*0.2, SUM(F55:G55)))), 0),"Not required") -> 47886.3 | P55: 0 | Q55: 0 | R55: 1 | S55: 1 | U55: T1 (PZQ+ALB/MBD) | X55: 46499 | Y55: Kakonko District Council | AB55: TRUE
A56: =IF(INTRO!$E$34<>0,INTRO!$E$34,"") -> Tanzania | B56: Kigoma | C56: Kasulu District Council | D56: 514372 | E56: 66353 | F56: 107659 | G56: 340360 | H56: 0 | I56: 0 | J56: 3 | K56: 2 | L56: =IF(INTRO!$E$38="Endemic", IF($H56>0, IF($H56=4,"Unknown", IF($H56=99,"Stopped", $D56)), 0),"Not required") -> 0 | M56: =IF(INTRO!$E$40="Endemic", IF($I56>0, IF($I56=4,"Unknown",IF($I56=99,"Stopped", $D56)), 0),"Not required") -> 0 | N56: =IF(INTRO!$E$42="Endemic", IF(AND($J56>1,$J56<5), IF($J56=4, "Unknown", E56+F56), 0),"Not required") -> 174012 | O56: =IF(INTRO!$E$44="Endemic", IF(AND($K56>0,$K56<5), IF($K56=4,"Unknown", IF($K56=1, $F56*0.33, IF($K56=2, $F56*0.5+$G56*0.2, SUM(F56:G56)))), 0),"Not required") -> 121901.5 | P56: 0 | Q56: 0 | R56: 1 | S56: 1 | U56: T1 (PZQ+ALB/MBD) | X56: 46500 | Y56: Kasulu District Council | AB56: TRUE
A57: =IF(INTRO!$E$34<>0,INTRO!$E$34,"") -> Tanzania | B57: Kigoma | C57: Kasulu Town Council | D57: 251565 | E57: 21943 | F57: 60792 | G57: 168830 | H57: 0 | I57: 0 | J57: 3 | K57: 2 | L57: =IF(INTRO!$E$38="Endemic", IF($H57>0, IF($H57=4,"Unknown", IF($H57=99,"Stopped", $D57)), 0),"Not required") -> 0 | M57: =IF(INTRO!$E$40="Endemic", IF($I57>0, IF($I57=4,"Unknown",IF($I57=99,"Stopped", $D57)), 0),"Not required") -> 0 | N57: =IF(INTRO!$E$42="Endemic", IF(AND($J57>1,$J57<5), IF($J57=4, "Unknown", E57+F57), 0),"Not required") -> 82735 | O57: =IF(INTRO!$E$44="Endemic", IF(AND($K57>0,$K57<5), IF($K57=4,"Unknown", IF($K57=1, $F57*0.33, IF($K57=2, $F57*0.5+$G57*0.2, SUM(F57:G57)))), 0),"Not required") -> 64162 | P57: 0 | Q57: 0 | R57: 1 | S57: 1 | U57: T1 (PZQ+ALB/MBD) | X57: 46501 | Y57: Kasulu Town Council | AB57: TRUE
A58: =IF(INTRO!$E$34<>0,INTRO!$E$34,"") -> Tanzania | B58: Kigoma | C58: Kibondo District Council | D58: 315696 | E58: 40725 | F58: 64637 | G58: 210334 | H58: 0 | I58: 0 | J58: 3 | K58: 2 | L58: =IF(INTRO!$E$38="Endemic", IF($H58>0, IF($H58=4,"Unknown", IF($H58=99,"Stopped", $D58)), 0),"Not required") -> 0 | M58: =IF(INTRO!$E$40="Endemic", IF($I58>0, IF($I58=4,"Unknown",IF($I58=99,"Stopped", $D58)), 0),"Not required") -> 0 | N58: =IF(INTRO!$E$42="Endemic", IF(AND($J58>1,$J58<5), IF($J58=4, "Unknown", E58+F58), 0),"Not required") -> 105362 | O58: =IF(INTRO!$E$44="Endemic", IF(AND($K58>0,$K58<5), IF($K58=4,"Unknown", IF($K58=1, $F58*0.33, IF($K58=2, $F58*0.5+$G58*0.2, SUM(F58:G58)))), 0),"Not required") -> 74385.3 | P58: 0 | Q58: 0 | R58: 1 | S58: 1 | U58: T1 (PZQ+ALB/MBD) | X58: 46502 | Y58: Kibondo District Council | AB58: TRUE
A59: =IF(INTRO!$E$34<>0,INTRO!$E$34,"") -> Tanzania | B59: Kigoma | C59: Kigoma District Council | D59: 255578 | E59: 19895 | F59: 64669 | G59: 171014 | H59: 0 | I59: 0 | J59: 3 | K59: 2 | L59: =IF(INTRO!$E$38="Endemic", IF($H59>0, IF($H59=4,"Unknown", IF($H59=99,"Stopped", $D59)), 0),"Not required") -> 0 | M59: =IF(INTRO!$E$40="Endemic", IF($I59>0, IF($I59=4,"Unknown",IF($I59=99,"Stopped", $D59)), 0),"Not required") -> 0 | N59: =IF(INTRO!$E$42="Endemic", IF(AND($J59>1,$J59<5), IF($J59=4, "Unknown", E59+F59), 0),"Not required") -> 84564 | O59: =IF(INTRO!$E$44="Endemic", IF(AND($K59>0,$K59<5), IF($K59=4,"Unknown", IF($K59=1, $F59*0.33, IF($K59=2, $F59*0.5+$G59*0.2, SUM(F59:G59)))), 0),"Not required") -> 66537.3 | P59: 0 | Q59: 0 | R59: 1 | S59: 1 | U59: T1 (PZQ+ALB/MBD) | X59: 46504 | Y59: Kigoma District Council | AB59: TRUE
A60: =IF(INTRO!$E$34<>0,INTRO!$E$34,"") -> Tanzania | B60: Kigoma | C60: Kigoma-Ujiji Municipal Council | D60: 260280 | E60: 33576 | F60: 48963 | G60: 177741 | H60: 0 | I60: 0 | J60: 3 | K60: 2 | L60: =IF(INTRO!$E$38="Endemic", IF($H60>0, IF($H60=4,"Unknown", IF($H60=99,"Stopped", $D60)), 0),"Not required") -> 0 | M60: =IF(INTRO!$E$40="Endemic", IF($I60>0, IF($I60=4,"Unknown",IF($I60=99,"Stopped", $D60)), 0),"Not required") -> 0 | N60: =IF(INTRO!$E$42="Endemic", IF(AND($J60>1,$J60<5), IF($J60=4, "Unknown", E60+F60), 0),"Not required") -> 82539 | O60: =IF(INTRO!$E$44="Endemic", IF(AND($K60>0,$K60<5), IF($K60=4,"Unknown", IF($K60=1, $F60*0.33, IF($K60=2, $F60*0.5+$G60*0.2, SUM(F60:G60)))), 0),"Not required") -> 60029.7 | P60: 0 | Q60: 0 | R60: 1 | S60: 1 | U60: T1 (PZQ+ALB/MBD) | X60: 46503 | Y60: Kigoma-Ujiji Municipal Council | AB60: TRUE
A61: =IF(INTRO!$E$34<>0,INTRO!$E$34,"") -> Tanzania | B61: Kigoma | C61: Uvinza District Council | D61: 463449 | E61: 59785 | F61: 91484 | G61: 312180 | H61: 0 | I61: 0 | J61: 3 | K61: 2 | L61: =IF(INTRO!$E$38="Endemic", IF($H61>0, IF($H61=4,"Unknown", IF($H61=99,"Stopped", $D61)), 0),"Not required") -> 0 | M61: =IF(INTRO!$E$40="Endemic", IF($I61>0, IF($I61=4,"Unknown",IF($I61=99,"Stopped", $D61)), 0),"Not required") -> 0 | N61: =IF(INTRO!$E$42="Endemic", IF(AND($J61>1,$J61<5), IF($J61=4, "Unknown", E61+F61), 0),"Not required") -> 151269 | O61: =IF(INTRO!$E$44="Endemic", IF(AND($K61>0,$K61<5), IF($K61=4,"Unknown", IF($K61=1, $F61*0.33, IF($K61=2, $F61*0.5+$G61*0.2, SUM(F61:G61)))), 0),"Not required") -> 108178 | P61: 0 | Q61: 0 | R61: 1 | S61: 1 | U61: T1 (PZQ+ALB/MBD) | X61: 46505 | Y61: Uvinza District Council | AB61: TRUE
A62: =IF(INTRO!$E$34<>0,INTRO!$E$34,"") -> Tanzania | B62: Kilimanjaro | C62: Hai District Council | D62: 234319 | E62: 30228 | F62: 41506 | G62: 162585 | H62: 0 | I62: 0 | J62: 3 | K62: 2 | L62: =IF(INTRO!$E$38="Endemic", IF($H62>0, IF($H62=4,"Unknown", IF($H62=99,"Stopped", $D62)), 0),"Not required") -> 0 | M62: =IF(INTRO!$E$40="Endemic", IF($I62>0, IF($I62=4,"Unknown",IF($I62=99,"Stopped", $D62)), 0),"Not required") -> 0 | N62: =IF(INTRO!$E$42="Endemic", IF(AND($J62>1,$J62<5), IF($J62=4, "Unknown", E62+F62), 0),"Not required") -> 71734 | O62: =IF(INTRO!$E$44="Endemic", IF(AND($K62>0,$K62<5), IF($K62=4,"Unknown", IF($K62=1, $F62*0.33, IF($K62=2, $F62*0.5+$G62*0.2, SUM(F62:G62)))), 0),"Not required") -> 53270 | P62: 0 | Q62: 0 | R62: 1 | S62: 0 | U62: T3 (ALB/MBD) | X62: 46506 | Y62: Hai District Council | AB62: TRUE
A63: =IF(INTRO!$E$34<>0,INTRO!$E$34,"") -> Tanzania | B63: Kilimanjaro | C63: Moshi District Council | D63: 519468 | E63: 67011 | F63: 94096 | G63: 358361 | H63: 0 | I63: 0 | J63: 3 | K63: 2 | L63: =IF(INTRO!$E$38="Endemic", IF($H63>0, IF($H63=4,"Unknown", IF($H63=99,"Stopped", $D63)), 0),"Not required") -> 0 | M63: =IF(INTRO!$E$40="Endemic", IF($I63>0, IF($I63=4,"Unknown",IF($I63=99,"Stopped", $D63)), 0),"Not required") -> 0 | N63: =IF(INTRO!$E$42="Endemic", IF(AND($J63>1,$J63<5), IF($J63=4, "Unknown", E63+F63), 0),"Not required") -> 161107 | O63: =IF(INTRO!$E$44="Endemic", IF(AND($K63>0,$K63<5), IF($K63=4,"Unknown", IF($K63=1, $F63*0.33, IF($K63=2, $F63*0.5+$G63*0.2, SUM(F63:G63)))), 0),"Not required") -> 118720.2 | P63: 0 | Q63: 0 | R63: 1 | S63: 0 | U63: T3 (ALB/MBD) | X63: 46507 | Y63: Moshi District Council | AB63: TRUE
A64: =IF(INTRO!$E$34<>0,INTRO!$E$34,"") -> Tanzania | B64: Kilimanjaro | C64: Moshi Municipal Council | D64: 205113 | E64: 23766 | F64: 31595 | G64: 149752 | H64: 0 | I64: 0 | J64: 3 | K64: 2 | L64: =IF(INTRO!$E$38="Endemic", IF($H64>0, IF($H64=4,"Unknown", IF($H64=99,"Stopped", $D64)), 0),"Not required") -> 0 | M64: =IF(INTRO!$E$40="Endemic", IF($I64>0, IF($I64=4,"Unknown",IF($I64=99,"Stopped", $D64)), 0),"Not required") -> 0 | N64: =IF(INTRO!$E$42="Endemic", IF(AND($J64>1,$J64<5), IF($J64=4, "Unknown", E64+F64), 0),"Not required") -> 55361 | O64: =IF(INTRO!$E$44="Endemic", IF(AND($K64>0,$K64<5), IF($K64=4,"Unknown", IF($K64=1, $F64*0.33, IF($K64=2, $F64*0.5+$G64*0.2, SUM(F64:G64)))), 0),"Not required") -> 45747.9 | P64: 0 | Q64: 0 | R64: 1 | S64: 0 | U64: T3 (ALB/MBD) | X64: 46508 | Y64: Moshi Municipal Council | AB64: TRUE
A65: =IF(INTRO!$E$34<>0,INTRO!$E$34,"") -> Tanzania | B65: Kilimanjaro | C65: Mwanga District Council | D65: 146292 | E65: 18872 | F65: 28934 | G65: 98486 | H65: 0 | I65: 0 | J65: 3 | K65: 2 | L65: =IF(INTRO!$E$38="Endemic", IF($H65>0, IF($H65=4,"Unknown", IF($H65=99,"Stopped", $D65)), 0),"Not required") -> 0 | M65: =IF(INTRO!$E$40="Endemic", IF($I65>0, IF($I65=4,"Unknown",IF($I65=99,"Stopped", $D65)), 0),"Not required") -> 0 | N65: =IF(INTRO!$E$42="Endemic", IF(AND($J65>1,$J65<5), IF($J65=4, "Unknown", E65+F65), 0),"Not required") -> 47806 | O65: =IF(INTRO!$E$44="Endemic", IF(AND($K65>0,$K65<5), IF($K65=4,"Unknown", IF($K65=1, $F65*0.33, IF($K65=2, $F65*0.5+$G65*0.2, SUM(F65:G65)))), 0),"Not required") -> 34164.2 | P65: 0 | Q65: 0 | R65: 1 | S65: 0 | U65: T3 (ALB/MBD) | X65: 46509 | Y65: Mwanga District Council | AB65: TRUE
A66: =IF(INTRO!$E$34<>0,INTRO!$E$34,"") -> Tanzania | B66: Kilimanjaro | C66: Rombo District Council | D66: 290446 | E66: 37467 | F66: 61531 | G66: 191448 | H66: 0 | I66: 0 | J66: 3 | K66: 2 | L66: =IF(INTRO!$E$38="Endemic", IF($H66>0, IF($H66=4,"Unknown", IF($H66=99,"Stopped", $D66)), 0),"Not required") -> 0 | M66: =IF(INTRO!$E$40="Endemic", IF($I66>0, IF($I66=4,"Unknown",IF($I66=99,"Stopped", $D66)), 0),"Not required") -> 0 | N66: =IF(INTRO!$E$42="Endemic", IF(AND($J66>1,$J66<5), IF($J66=4, "Unknown", E66+F66), 0),"Not required") -> 98998 | O66: =IF(INTRO!$E$44="Endemic", IF(AND($K66>0,$K66<5), IF($K66=4,"Unknown", IF($K66=1, $F66*0.33, IF($K66=2, $F66*0.5+$G66*0.2, SUM(F66:G66)))), 0),"Not required") -> 69055.1 | P66: 0 | Q66: 0 | R66: 1 | S66: 0 | U66: T3 (ALB/MBD) | X66: 46510 | Y66: Rombo District Council | AB66: TRUE
A67: =IF(INTRO!$E$34<>0,INTRO!$E$34,"") -> Tanzania | B67: Kilimanjaro | C67: Same District Council | D67: 300289 | E67: 38737 | F67: 61653 | G67: 199899 | H67: 0 | I67: 0 | J67: 3 | K67: 2 | L67: =IF(INTRO!$E$38="Endemic", IF($H67>0, IF($H67=4,"Unknown", IF($H67=99,"Stopped", $D67)), 0),"Not required") -> 0 | M67: =IF(INTRO!$E$40="Endemic", IF($I67>0, IF($I67=4,"Unknown",IF($I67=99,"Stopped", $D67)), 0),"Not required") -> 0 | N67: =IF(INTRO!$E$42="Endemic", IF(AND($J67>1,$J67<5), IF($J67=4, "Unknown", E67+F67), 0),"Not required") -> 100390 | O67: =IF(INTRO!$E$44="Endemic", IF(AND($K67>0,$K67<5), IF($K67=4,"Unknown", IF($K67=1, $F67*0.33, IF($K67=2, $F67*0.5+$G67*0.2, SUM(F67:G67)))), 0),"Not required") -> 70806.3 | P67: 0 | Q67: 0 | R67: 1 | S67: 0 | U67: T3 (ALB/MBD) | X67: 46511 | Y67: Same District Council | AB67: TRUE
A68: =IF(INTRO!$E$34<>0,INTRO!$E$34,"") -> Tanzania | B68: Kilimanjaro | C68: Siha District Council | D68: 129454 | E68: 16700 | F68: 25140 | G68: 87614 | H68: 0 | I68: 0 | J68: 3 | K68: 2 | L68: =IF(INTRO!$E$38="Endemic", IF($H68>0, IF($H68=4,"Unknown", IF($H68=99,"Stopped", $D68)), 0),"Not required") -> 0 | M68: =IF(INTRO!$E$40="Endemic", IF($I68>0, IF($I68=4,"Unknown",IF($I68=99,"Stopped", $D68)), 0),"Not required") -> 0 | N68: =IF(INTRO!$E$42="Endemic", IF(AND($J68>1,$J68<5), IF($J68=4, "Unknown", E68+F68), 0),"Not required") -> 41840 | O68: =IF(INTRO!$E$44="Endemic", IF(AND($K68>0,$K68<5), IF($K68=4,"Unknown", IF($K68=1, $F68*0.33, IF($K68=2, $F68*0.5+$G68*0.2, SUM(F68:G68)))), 0),"Not required") -> 30092.8 | P68: 0 | Q68: 0 | R68: 1 | S68: 0 | U68: T3 (ALB/MBD) | X68: 46512 | Y68: Siha District Council | AB68: TRUE
A69: =IF(INTRO!$E$34<>0,INTRO!$E$34,"") -> Tanzania | B69: Lindi | C69: Kilwa District Council | D69: 201279 | E69: 17450 | F69: 49123 | G69: 134706 | H69: 1 | I69: 0 | J69: 3 | K69: 2 | L69: =IF(INTRO!$E$38="Endemic", IF($H69>0, IF($H69=4,"Unknown", IF($H69=99,"Stopped", $D69)), 0),"Not required") -> 201279 | M69: =IF(INTRO!$E$40="Endemic", IF($I69>0, IF($I69=4,"Unknown",IF($I69=99,"Stopped", $D69)), 0),"Not required") -> 0 | N69: =IF(INTRO!$E$42="Endemic", IF(AND($J69>1,$J69<5), IF($J69=4, "Unknown", E69+F69), 0),"Not required") -> 66573 | O69: =IF(INTRO!$E$44="Endemic", IF(AND($K69>0,$K69<5), IF($K69=4,"Unknown", IF($K69=1, $F69*0.33, IF($K69=2, $F69*0.5+$G69*0.2, SUM(F69:G69)))), 0),"Not required") -> 51502.7 | P69: 1 | Q69: 0 | R69: 1 | S69: 0 | T69: MDA1 (IVM+ALB) | U69: T3 (ALB/MBD) | X69: 46513 | Y69: Kilwa District Council | AB69: TRUE
A70: =IF(INTRO!$E$34<>0,INTRO!$E$34,"") -> Tanzania | B70: Lindi | C70: Lindi District Council | D70: 204865 | E70: 26427 | F70: 37103 | G70: 141335 | H70: 1 | I70: 0 | J70: 3 | K70: 2 | L70: =IF(INTRO!$E$38="Endemic", IF($H70>0, IF($H70=4,"Unknown", IF($H70=99,"Stopped", $D70)), 0),"Not required") -> 204865 | M70: =IF(INTRO!$E$40="Endemic", IF($I70>0, IF($I70=4,"Unknown",IF($I70=99,"Stopped", $D70)), 0),"Not required") -> 0 | N70: =IF(INTRO!$E$42="Endemic", IF(AND($J70>1,$J70<5), IF($J70=4, "Unknown", E70+F70), 0),"Not required") -> 63530 | O70: =IF(INTRO!$E$44="Endemic", IF(AND($K70>0,$K70<5), IF($K70=4,"Unknown", IF($K70=1, $F70*0.33, IF($K70=2, $F70*0.5+$G70*0.2, SUM(F70:G70)))), 0),"Not required") -> 46818.5 | P70: 1 | Q70: 0 | R70: 1 | S70: 0 | T70: MDA1 (IVM+ALB) | U70: T3 (ALB/MBD) | X70: 46514 | Y70: Lindi District Council | AB70: TRUE
A71: =IF(INTRO!$E$34<>0,INTRO!$E$34,"") -> Tanzania | B71: Lindi | C71: Lindi Municipal Council | D71: 98765 | E71: 25152 | F71: 15190 | G71: 58423 | H71: 1 | I71: 0 | J71: 3 | K71: 2 | L71: =IF(INTRO!$E$38="Endemic", IF($H71>0, IF($H71=4,"Unknown", IF($H71=99,"Stopped", $D71)), 0),"Not required") -> 98765 | M71: =IF(INTRO!$E$40="Endemic", IF($I71>0, IF($I71=4,"Unknown",IF($I71=99,"Stopped", $D71)), 0),"Not required") -> 0 | N71: =IF(INTRO!$E$42="Endemic", IF(AND($J71>1,$J71<5), IF($J71=4, "Unknown", E71+F71), 0),"Not required") -> 40342 | O71: =IF(INTRO!$E$44="Endemic", IF(AND($K71>0,$K71<5), IF($K71=4,"Unknown", IF($K71=1, $F71*0.33, IF($K71=2, $F71*0.5+$G71*0.2, SUM(F71:G71)))), 0),"Not required") -> 19279.6 | P71: 1 | Q71: 0 | R71: 1 | S71: 0 | T71: MDA1 (IVM+ALB) | U71: T3 (ALB/MBD) | X71: 46515 | Y71: Lindi Municipal Council | AB71: TRUE
A72: =IF(INTRO!$E$34<>0,INTRO!$E$34,"") -> Tanzania | B72: Lindi | C72: Liwale District Council | D72: 96427 | E72: 7422 | F72: 24326 | G72: 64679 | H72: 99 | I72: 0 | J72: 3 | K72: 2 | L72: =IF(INTRO!$E$38="Endemic", IF($H72>0, IF($H72=4,"Unknown", IF($H72=99,"Stopped", $D72)), 0),"Not required") -> Stopped | M72: =IF(INTRO!$E$40="Endemic", IF($I72>0, IF($I72=4,"Unknown",IF($I72=99,"Stopped", $D72)), 0),"Not required") -> 0 | N72: =IF(INTRO!$E$42="Endemic", IF(AND($J72>1,$J72<5), IF($J72=4, "Unknown", E72+F72), 0),"Not required") -> 31748 | O72: =IF(INTRO!$E$44="Endemic", IF(AND($K72>0,$K72<5), IF($K72=4,"Unknown", IF($K72=1, $F72*0.33, IF($K72=2, $F72*0.5+$G72*0.2, SUM(F72:G72)))), 0),"Not required") -> 25098.8 | P72: 0 | Q72: 0 | R72: 1 | S72: 0 | U72: T3 (ALB/MBD) | X72: 46516 | Y72: Liwale District Council | AB72: TRUE
A73: =IF(INTRO!$E$34<>0,INTRO!$E$34,"") -> Tanzania | B73: Lindi | C73: Nachingwea District Council | D73: 195988 | E73: 31961 | F73: 34062 | G73: 129965 | H73: 1 | I73: 0 | J73: 3 | K73: 3 | L73: =IF(INTRO!$E$38="Endemic", IF($H73>0, IF($H73=4,"Unknown", IF($H73=99,"Stopped", $D73)), 0),"Not required") -> 195988 | M73: =IF(INTRO!$E$40="Endemic", IF($I73>0, IF($I73=4,"Unknown",IF($I73=99,"Stopped", $D73)), 0),"Not required") -> 0 | N73: =IF(INTRO!$E$42="Endemic", IF(AND($J73>1,$J73<5), IF($J73=4, "Unknown", E73+F73), 0),"Not required") -> 66023 | O73: =IF(INTRO!$E$44="Endemic", IF(AND($K73>0,$K73<5), IF($K73=4,"Unknown", IF($K73=1, $F73*0.33, IF($K73=2, $F73*0.5+$G73*0.2, SUM(F73:G73)))), 0),"Not required") -> 164027 | P73: 1 | Q73: 0 | R73: 1 | S73: 1 | T73: MDA1 (IVM+ALB) | U73: T1 (PZQ+ALB/MBD) | X73: 46517 | Y73: Nachingwea District Council | AB73: TRUE
A74: =IF(INTRO!$E$34<>0,INTRO!$E$34,"") -> Tanzania | B74: Lindi | C74: Ruangwa District Council | D74: 138320 | E74: 14077 | F74: 28226 | G74: 96017 | H74: 1 | I74: 0 | J74: 3 | K74: 3 | L74: =IF(INTRO!$E$38="Endemic", IF($H74>0, IF($H74=4,"Unknown", IF($H74=99,"Stopped", $D74)), 0),"Not required") -> 138320 | M74: =IF(INTRO!$E$40="Endemic", IF($I74>0, IF($I74=4,"Unknown",IF($I74=99,"Stopped", $D74)), 0),"Not required") -> 0 | N74: =IF(INTRO!$E$42="Endemic", IF(AND($J74>1,$J74<5), IF($J74=4, "Unknown", E74+F74), 0),"Not required") -> 42303 | O74: =IF(INTRO!$E$44="Endemic", IF(AND($K74>0,$K74<5), IF($K74=4,"Unknown", IF($K74=1, $F74*0.33, IF($K74=2, $F74*0.5+$G74*0.2, SUM(F74:G74)))), 0),"Not required") -> 124243 | P74: 1 | Q74: 0 | R74: 1 | S74: 1 | T74: MDA1 (IVM+ALB) | U74: T1 (PZQ+ALB/MBD) | X74: 46518 | Y74: Ruangwa District Council | AB74: =Y74=C74 -> TRUE
A75: =IF(INTRO!$E$34<>0,INTRO!$E$34,"") -> Tanzania | B75: Manyara | C75: Babati District Council | D75: 377379 | E75: 41546 | F75: 84407 | G75: 251426 | H75: 99 | I75: 0 | J75: 3 | K75: 2 | L75: =IF(INTRO!$E$38="Endemic", IF($H75>0, IF($H75=4,"Unknown", IF($H75=99,"Stopped", $D75)), 0),"Not required") -> Stopped | M75: =IF(INTRO!$E$40="Endemic", IF($I75>0, IF($I75=4,"Unknown",IF($I75=99,"Stopped", $D75)), 0),"Not required") -> 0 | N75: =IF(INTRO!$E$42="Endemic", IF(AND($J75>1,$J75<5), IF($J75=4, "Unknown", E75+F75), 0),"Not required") -> 125953 | O75: =IF(INTRO!$E$44="Endemic", IF(AND($K75>0,$K75<5), IF($K75=4,"Unknown", IF($K75=1, $F75*0.33, IF($K75=2, $F75*0.5+$G75*0.2, SUM(F75:G75)))), 0),"Not required") -> 92488.7 | P75: 0 | Q75: 0 | R75: 1 | S75: 0 | U75: T3 (ALB/MBD) | X75: 46519 | Y75: Babati District Council | AB75: TRUE
A76: =IF(INTRO!$E$34<>0,INTRO!$E$34,"") -> Tanzania | B76: Manyara | C76: Babati Town Council | D76: 112477 | E76: 12010 | F76: 21901 | G76: 78566 | H76: 99 | I76: 0 | J76: 3 | K76: 2 | L76: =IF(INTRO!$E$38="Endemic", IF($H76>0, IF($H76=4,"Unknown", IF($H76=99,"Stopped", $D76)), 0),"Not required") -> Stopped | M76: =IF(INTRO!$E$40="Endemic", IF($I76>0, IF($I76=4,"Unknown",IF($I76=99,"Stopped", $D76)), 0),"Not required") -> 0 | N76: =IF(INTRO!$E$42="Endemic", IF(AND($J76>1,$J76<5), IF($J76=4, "Unknown", E76+F76), 0),"Not required") -> 33911 | O76: =IF(INTRO!$E$44="Endemic", IF(AND($K76>0,$K76<5), IF($K76=4,"Unknown", IF($K76=1, $F76*0.33, IF($K76=2, $F76*0.5+$G76*0.2, SUM(F76:G76)))), 0),"Not required") -> 26663.7 | P76: 0 | Q76: 0 | R76: 1 | S76: 0 | U76: T3 (ALB/MBD) | X76: 46520 | Y76: Babati Town Council | AB76: TRUE
A77: =IF(INTRO!$E$34<>0,INTRO!$E$34,"") -> Tanzania | B77: Manyara | C77: Hanang District Council | D77: 333405 | E77: 43009 | F77: 69131 | G77: 221265 | H77: 99 | I77: 0 | J77: 3 | K77: 2 | L77: =IF(INTRO!$E$38="Endemic", IF($H77>0, IF($H77=4,"Unknown", IF($H77=99,"Stopped", $D77)), 0),"Not required") -> Stopped | M77: =IF(INTRO!$E$40="Endemic", IF($I77>0, IF($I77=4,"Unknown",IF($I77=99,"Stopped", $D77)), 0),"Not required") -> 0 | N77: =IF(INTRO!$E$42="Endemic", IF(AND($J77>1,$J77<5), IF($J77=4, "Unknown", E77+F77), 0),"Not required") -> 112140 | O77: =IF(INTRO!$E$44="Endemic", IF(AND($K77>0,$K77<5), IF($K77=4,"Unknown", IF($K77=1, $F77*0.33, IF($K77=2, $F77*0.5+$G77*0.2, SUM(F77:G77)))), 0),"Not required") -> 78818.5 | P77: 0 | Q77: 0 | R77: 1 | S77: 0 | U77: T3 (ALB/MBD) | X77: 46521 | Y77: Hanang District Council | AB77: TRUE
A78: =IF(INTRO!$E$34<>0,INTRO!$E$34,"") -> Tanzania | B78: Manyara | C78: Kiteto District Council | D78: 295568 | E78: 38129 | F78: 58263 | G78: 199176 | H78: 99 | I78: 0 | J78: 3 | K78: 2 | L78: =IF(INTRO!$E$38="Endemic", IF($H78>0, IF($H78=4,"Unknown", IF($H78=99,"Stopped", $D78)), 0),"Not required") -> Stopped | M78: =IF(INTRO!$E$40="Endemic", IF($I78>0, IF($I78=4,"Unknown",IF($I78=99,"Stopped", $D78)), 0),"Not required") -> 0 | N78: =IF(INTRO!$E$42="Endemic", IF(AND($J78>1,$J78<5), IF($J78=4, "Unknown", E78+F78), 0),"Not required") -> 96392 | O78: =IF(INTRO!$E$44="Endemic", IF(AND($K78>0,$K78<5), IF($K78=4,"Unknown", IF($K78=1, $F78*0.33, IF($K78=2, $F78*0.5+$G78*0.2, SUM(F78:G78)))), 0),"Not required") -> 68966.7 | P78: 0 | Q78: 0 | R78: 1 | S78: 0 | U78: T3 (ALB/MBD) | X78: 46522 | Y78: Kiteto District Council | AB78: TRUE
A79: =IF(INTRO!$E$34<>0,INTRO!$E$34,"") -> Tanzania | B79: Manyara | C79: Mbulu District Council | D79: 231000 | E79: 29799 | F79: 47787 | G79: 153414 | H79: 99 | I79: 0 | J79: 3 | K79: 2 | L79: =IF(INTRO!$E$38="Endemic", IF($H79>0, IF($H79=4,"Unknown", IF($H79=99,"Stopped", $D79)), 0),"Not required") -> Stopped | M79: =IF(INTRO!$E$40="Endemic", IF($I79>0, IF($I79=4,"Unknown",IF($I79=99,"Stopped", $D79)), 0),"Not required") -> 0 | N79: =IF(INTRO!$E$42="Endemic", IF(AND($J79>1,$J79<5), IF($J79=4, "Unknown", E79+F79), 0),"Not required") -> 77586 | O79: =IF(INTRO!$E$44="Endemic", IF(AND($K79>0,$K79<5), IF($K79=4,"Unknown", IF($K79=1, $F79*0.33, IF($K79=2, $F79*0.5+$G79*0.2, SUM(F79:G79)))), 0),"Not required") -> 54576.3 | P79: 0 | Q79: 0 | R79: 1 | S79: 0 | U79: T3 (ALB/MBD) | X79: 46523 | Y79: Mbulu District Council | AB79: TRUE
A80: =IF(INTRO!$E$34<>0,INTRO!$E$34,"") -> Tanzania | B80: Manyara | C80: Mbulu Town Council | D80: 155907 | E80: 20112 | F80: 32252 | G80: 103543 | H80: 99 | I80: 0 | J80: 3 | K80: 2 | L80: =IF(INTRO!$E$38="Endemic", IF($H80>0, IF($H80=4,"Unknown", IF($H80=99,"Stopped", $D80)), 0),"Not required") -> Stopped | M80: =IF(INTRO!$E$40="Endemic", IF($I80>0, IF($I80=4,"Unknown",IF($I80=99,"Stopped", $D80)), 0),"Not required") -> 0 | N80: =IF(INTRO!$E$42="Endemic", IF(AND($J80>1,$J80<5), IF($J80=4, "Unknown", E80+F80), 0),"Not required") -> 52364 | O80: =IF(INTRO!$E$44="Endemic", IF(AND($K80>0,$K80<5), IF($K80=4,"Unknown", IF($K80=1, $F80*0.33, IF($K80=2, $F80*0.5+$G80*0.2, SUM(F80:G80)))), 0),"Not required") -> 36834.6 | P80: 0 | Q80: 0 | R80: 1 | S80: 0 | U80: T3 (ALB/MBD) | X80: 46630 | Y80: Mbulu Town Council | AB80: TRUE
A81: =IF(INTRO!$E$34<>0,INTRO!$E$34,"") -> Tanzania | B81: Manyara | C81: Simanjiro District Council | D81: 215867 | E81: 27847 | F81: 43382 | G81: 144638 | H81: 99 | I81: 0 | J81: 3 | K81: 2 | L81: =IF(INTRO!$E$38="Endemic", IF($H81>0, IF($H81=4,"Unknown", IF($H81=99,"Stopped", $D81)), 0),"Not required") -> Stopped | M81: =IF(INTRO!$E$40="Endemic", IF($I81>0, IF($I81=4,"Unknown",IF($I81=99,"Stopped", $D81)), 0),"Not required") -> 0 | N81: =IF(INTRO!$E$42="Endemic", IF(AND($J81>1,$J81<5), IF($J81=4, "Unknown", E81+F81), 0),"Not required") -> 71229 | O81: =IF(INTRO!$E$44="Endemic", IF(AND($K81>0,$K81<5), IF($K81=4,"Unknown", IF($K81=1, $F81*0.33, IF($K81=2, $F81*0.5+$G81*0.2, SUM(F81:G81)))), 0),"Not required") -> 50618.6 | P81: 0 | Q81: 0 | R81: 1 | S81: 0 | U81: T3 (ALB/MBD) | X81: 46524 | Y81: Simanjiro District Council | AB81: TRUE
A82: =IF(INTRO!$E$34<>0,INTRO!$E$34,"") -> Tanzania | B82: Mara | C82: Bunda District Council | D82: 256407 | E82: 18163 | F82: 69027 | G82: 169217 | H82: 0 | I82: 0 | J82: 3 | K82: 2 | L82: =IF(INTRO!$E$38="Endemic", IF($H82>0, IF($H82=4,"Unknown", IF($H82=99,"Stopped", $D82)), 0),"Not required") -> 0 | M82: =IF(INTRO!$E$40="Endemic", IF($I82>0, IF($I82=4,"Unknown",IF($I82=99,"Stopped", $D82)), 0),"Not required") -> 0 | N82: =IF(INTRO!$E$42="Endemic", IF(AND($J82>1,$J82<5), IF($J82=4, "Unknown", E82+F82), 0),"Not required") -> 87190 | O82: =IF(INTRO!$E$44="Endemic", IF(AND($K82>0,$K82<5), IF($K82=4,"Unknown", IF($K82=1, $F82*0.33, IF($K82=2, $F82*0.5+$G82*0.2, SUM(F82:G82)))), 0),"Not required") -> 68356.9 | P82: 0 | Q82: 0 | R82: 1 | S82: 1 | U82: T1 (PZQ+ALB/MBD) | X82: 46525 | Y82: Bunda District Council | AB82: TRUE
A83: =IF(INTRO!$E$34<>0,INTRO!$E$34,"") -> Tanzania | B83: Mara | C83: Bunda Town Council | D83: 132161 | E83: 17048.76659 | F83: 48875 | G83: 66237.23341 | H83: 0 | I83: 0 | J83: 3 | K83: 2 | L83: =IF(INTRO!$E$38="Endemic", IF($H83>0, IF($H83=4,"Unknown", IF($H83=99,"Stopped", $D83)), 0),"Not required") -> 0 | M83: =IF(INTRO!$E$40="Endemic", IF($I83>0, IF($I83=4,"Unknown",IF($I83=99,"Stopped", $D83)), 0),"Not required") -> 0 | N83: =IF(INTRO!$E$42="Endemic", IF(AND($J83>1,$J83<5), IF($J83=4, "Unknown", E83+F83), 0),"Not required") -> 65923.76659 | O83: =IF(INTRO!$E$44="Endemic", IF(AND($K83>0,$K83<5), IF($K83=4,"Unknown", IF($K83=1, $F83*0.33, IF($K83=2, $F83*0.5+$G83*0.2, SUM(F83:G83)))), 0),"Not required") -> 37684.94668 | P83: 0 | Q83: 0 | R83: 1 | S83: 1 | U83: T1 (PZQ+ALB/MBD) | X83: 46631 | Y83: Bunda Town Council | AB83: TRUE
A84: =IF(INTRO!$E$34<>0,INTRO!$E$34,"") -> Tanzania | B84: Mara | C84: Butiama District Council | D84: 280335 | E84: 36163 | F84: 58537 | G84: 185635 | H84: 0 | I84: 0 | J84: 3 | K84: 2 | L84: =IF(INTRO!$E$38="Endemic", IF($H84>0, IF($H84=4,"Unknown", IF($H84=99,"Stopped", $D84)), 0),"Not required") -> 0 | M84: =IF(INTRO!$E$40="Endemic", IF($I84>0, IF($I84=4,"Unknown",IF($I84=99,"Stopped", $D84)), 0),"Not required") -> 0 | N84: =IF(INTRO!$E$42="Endemic", IF(AND($J84>1,$J84<5), IF($J84=4, "Unknown", E84+F84), 0),"Not required") -> 94700 | O84: =IF(INTRO!$E$44="Endemic", IF(AND($K84>0,$K84<5), IF($K84=4,"Unknown", IF($K84=1, $F84*0.33, IF($K84=2, $F84*0.5+$G84*0.2, SUM(F84:G84)))), 0),"Not required") -> 66395.5 | P84: 0 | Q84: 0 | R84: 1 | S84: 1 | U84: T1 (PZQ+ALB/MBD) | X84: 46526 | Y84: Butiama District Council | AB84: TRUE
A85: =IF(INTRO!$E$34<>0,INTRO!$E$34,"") -> Tanzania | B85: Mara | C85: Musoma District Council | D85: 206838 | E85: 26682.13803 | F85: 70497 | G85: 109658.862 | H85: 0 | I85: 0 | J85: 3 | K85: 2 | L85: =IF(INTRO!$E$38="Endemic", IF($H85>0, IF($H85=4,"Unknown", IF($H85=99,"Stopped", $D85)), 0),"Not required") -> 0 | M85: =IF(INTRO!$E$40="Endemic", IF($I85>0, IF($I85=4,"Unknown",IF($I85=99,"Stopped", $D85)), 0),"Not required") -> 0 | N85: =IF(INTRO!$E$42="Endemic", IF(AND($J85>1,$J85<5), IF($J85=4, "Unknown", E85+F85), 0),"Not required") -> 97179.13803 | O85: =IF(INTRO!$E$44="Endemic", IF(AND($K85>0,$K85<5), IF($K85=4,"Unknown", IF($K85=1, $F85*0.33, IF($K85=2, $F85*0.5+$G85*0.2, SUM(F85:G85)))), 0),"Not required") -> 57180.27239 | P85: 0 | Q85: 0 | R85: 1 | S85: 1 | U85: T1 (PZQ+ALB/MBD) | X85: 46527 | Y85: Musoma District Council | AB85: TRUE
A86: =IF(INTRO!$E$34<>0,INTRO!$E$34,"") -> Tanzania | B86: Mara | C86: Musoma Municipal Council | D86: 155778 | E86: 20095 | F86: 42996 | G86: 92687 | H86: 0 | I86: 0 | J86: 3 | K86: 2 | L86: =IF(INTRO!$E$38="Endemic", IF($H86>0, IF($H86=4,"Unknown", IF($H86=99,"Stopped", $D86)), 0),"Not required") -> 0 | M86: =IF(INTRO!$E$40="Endemic", IF($I86>0, IF($I86=4,"Unknown",IF($I86=99,"Stopped", $D86)), 0),"Not required") -> 0 | N86: =IF(INTRO!$E$42="Endemic", IF(AND($J86>1,$J86<5), IF($J86=4, "Unknown", E86+F86), 0),"Not required") -> 63091 | O86: =IF(INTRO!$E$44="Endemic", IF(AND($K86>0,$K86<5), IF($K86=4,"Unknown", IF($K86=1, $F86*0.33, IF($K86=2, $F86*0.5+$G86*0.2, SUM(F86:G86)))), 0),"Not required") -> 40035.4 | P86: 0 | Q86: 0 | R86: 1 | S86: 1 | U86: T1 (PZQ+ALB/MBD) | X86: 46528 | Y86: Musoma Municipal Council | AB86: TRUE
A87: =IF(INTRO!$E$34<>0,INTRO!$E$34,"") -> Tanzania | B87: Mara | C87: Rorya District Council | D87: 307598 | E87: 39680 | F87: 100375 | G87: 167543 | H87: 0 | I87: 0 | J87: 3 | K87: 2 | L87: =IF(INTRO!$E$38="Endemic", IF($H87>0, IF($H87=4,"Unknown", IF($H87=99,"Stopped", $D87)), 0),"Not required") -> 0 | M87: =IF(INTRO!$E$40="Endemic", IF($I87>0, IF($I87=4,"Unknown",IF($I87=99,"Stopped", $D87)), 0),"Not required") -> 0 | N87: =IF(INTRO!$E$42="Endemic", IF(AND($J87>1,$J87<5), IF($J87=4, "Unknown", E87+F87), 0),"Not required") -> 140055 | O87: =IF(INTRO!$E$44="Endemic", IF(AND($K87>0,$K87<5), IF($K87=4,"Unknown", IF($K87=1, $F87*0.33, IF($K87=2, $F87*0.5+$G87*0.2, SUM(F87:G87)))), 0),"Not required") -> 83696.1 | P87: 0 | Q87: 0 | R87: 1 | S87: 1 | U87: T1 (PZQ+ALB/MBD) | X87: 46529 | Y87: Rorya District Council | AB87: TRUE
A88: =IF(INTRO!$E$34<>0,INTRO!$E$34,"") -> Tanzania | B88: Mara | C88: Serengeti District Council | D88: 289251 | E88: 16743 | F88: 82764 | G88: 189744 | H88: 0 | I88: 0 | J88: 3 | K88: 2 | L88: =IF(INTRO!$E$38="Endemic", IF($H88>0, IF($H88=4,"Unknown", IF($H88=99,"Stopped", $D88)), 0),"Not required") -> 0 | M88: =IF(INTRO!$E$40="Endemic", IF($I88>0, IF($I88=4,"Unknown",IF($I88=99,"Stopped", $D88)), 0),"Not required") -> 0 | N88: =IF(INTRO!$E$42="Endemic", IF(AND($J88>1,$J88<5), IF($J88=4, "Unknown", E88+F88), 0),"Not required") -> 99507 | O88: =IF(INTRO!$E$44="Endemic", IF(AND($K88>0,$K88<5), IF($K88=4,"Unknown", IF($K88=1, $F88*0.33, IF($K88=2, $F88*0.5+$G88*0.2, SUM(F88:G88)))), 0),"Not required") -> 79330.8 | P88: 0 | Q88: 0 | R88: 1 | S88: 1 | U88: T1 (PZQ+ALB/MBD) | X88: 46530 | Y88: Serengeti District Council | AB88: TRUE
A89: =IF(INTRO!$E$34<>0,INTRO!$E$34,"") -> Tanzania | B89: Mara | C89: Tarime District Council | D89: 303441 | E89: 39144 | F89: 102779 | G89: 161518 | H89: 0 | I89: 0 | J89: 3 | K89: 2 | L89: =IF(INTRO!$E$38="Endemic", IF($H89>0, IF($H89=4,"Unknown", IF($H89=99,"Stopped", $D89)), 0),"Not required") -> 0 | M89: =IF(INTRO!$E$40="Endemic", IF($I89>0, IF($I89=4,"Unknown",IF($I89=99,"Stopped", $D89)), 0),"Not required") -> 0 | N89: =IF(INTRO!$E$42="Endemic", IF(AND($J89>1,$J89<5), IF($J89=4, "Unknown", E89+F89), 0),"Not required") -> 141923 | O89: =IF(INTRO!$E$44="Endemic", IF(AND($K89>0,$K89<5), IF($K89=4,"Unknown", IF($K89=1, $F89*0.33, IF($K89=2, $F89*0.5+$G89*0.2, SUM(F89:G89)))), 0),"Not required") -> 83693.1 | P89: 0 | Q89: 0 | R89: 1 | S89: 1 | U89: T1 (PZQ+ALB/MBD) | X89: 46531 | Y89: Tarime District Council | AB89: TRUE
A90: =IF(INTRO!$E$34<>0,INTRO!$E$34,"") -> Tanzania | B90: Mara | C90: Tarime Town Council | D90: 90499 | E90: 11674.37039 | F90: 33251 | G90: 45573.62961 | H90: 0 | I90: 0 | J90: 3 | K90: 2 | L90: =IF(INTRO!$E$38="Endemic", IF($H90>0, IF($H90=4,"Unknown", IF($H90=99,"Stopped", $D90)), 0),"Not required") -> 0 | M90: =IF(INTRO!$E$40="Endemic", IF($I90>0, IF($I90=4,"Unknown",IF($I90=99,"Stopped", $D90)), 0),"Not required") -> 0 | N90: =IF(INTRO!$E$42="Endemic", IF(AND($J90>1,$J90<5), IF($J90=4, "Unknown", E90+F90), 0),"Not required") -> 44925.37039 | O90: =IF(INTRO!$E$44="Endemic", IF(AND($K90>0,$K90<5), IF($K90=4,"Unknown", IF($K90=1, $F90*0.33, IF($K90=2, $F90*0.5+$G90*0.2, SUM(F90:G90)))), 0),"Not required") -> 25740.22592 | P90: 0 | Q90: 0 | R90: 1 | S90: 1 | U90: T1 (PZQ+ALB/MBD) | X90: 46532 | Y90: Tarime Town Council | AB90: TRUE
A91: =IF(INTRO!$E$34<>0,INTRO!$E$34,"") -> Tanzania | B91: Mbeya | C91: Busokelo District Council | D91: 119578 | E91: 15426 | F91: 22009 | G91: 82143 | H91: 99 | I91: 1 | J91: 3 | K91: 2 | L91: =IF(INTRO!$E$38="Endemic", IF($H91>0, IF($H91=4,"Unknown", IF($H91=99,"Stopped", $D91)), 0),"Not required") -> Stopped | M91: =IF(INTRO!$E$40="Endemic", IF($I91>0, IF($I91=4,"Unknown",IF($I91=99,"Stopped", $D91)), 0),"Not required") -> 119578 | N91: =IF(INTRO!$E$42="Endemic", IF(AND($J91>1,$J91<5), IF($J91=4, "Unknown", E91+F91), 0),"Not required") -> 37435 | O91: =IF(INTRO!$E$44="Endemic", IF(AND($K91>0,$K91<5), IF($K91=4,"Unknown", IF($K91=1, $F91*0.33, IF($K91=2, $F91*0.5+$G91*0.2, SUM(F91:G91)))), 0),"Not required") -> 27433.1 | P91: 0 | Q91: 1 | R91: 1 | S91: 1 | T91: MDA3 (IVM) | U91: T1 (PZQ+ALB/MBD) | X91: 46533 | Y91: Busokelo District Council | AB91: TRUE
A92: =IF(INTRO!$E$34<>0,INTRO!$E$34,"") -> Tanzania | B92: Mbeya | C92: Chunya District Council | D92: 183963 | E92: 19686 | F92: 38511 | G92: 125766 | H92: 99 | I92: 0 | J92: 3 | K92: 2 | L92: =IF(INTRO!$E$38="Endemic", IF($H92>0, IF($H92=4,"Unknown", IF($H92=99,"Stopped", $D92)), 0),"Not required") -> Stopped | M92: =IF(INTRO!$E$40="Endemic", IF($I92>0, IF($I92=4,"Unknown",IF($I92=99,"Stopped", $D92)), 0),"Not required") -> 0 | N92: =IF(INTRO!$E$42="Endemic", IF(AND($J92>1,$J92<5), IF($J92=4, "Unknown", E92+F92), 0),"Not required") -> 58197 | O92: =IF(INTRO!$E$44="Endemic", IF(AND($K92>0,$K92<5), IF($K92=4,"Unknown", IF($K92=1, $F92*0.33, IF($K92=2, $F92*0.5+$G92*0.2, SUM(F92:G92)))), 0),"Not required") -> 44408.7 | P92: 0 | Q92: 0 | R92: 1 | S92: 1 | U92: T1 (PZQ+ALB/MBD) | X92: 46534 | Y92: Chunya District Council | AB92: TRUE
A93: =IF(INTRO!$E$34<>0,INTRO!$E$34,"") -> Tanzania | B93: Mbeya | C93: Kyela District Council | D93: 259882 | E93: 28116 | F93: 55882 | G93: 175884 | H93: 99 | I93: 1 | J93: 3 | K93: 3 | L93: =IF(INTRO!$E$38="Endemic", IF($H93>0, IF($H93=4,"Unknown", IF($H93=99,"Stopped", $D93)), 0),"Not required") -> Stopped | M93: =IF(INTRO!$E$40="Endemic", IF($I93>0, IF($I93=4,"Unknown",IF($I93=99,"Stopped", $D93)), 0),"Not required") -> 259882 | N93: =IF(INTRO!$E$42="Endemic", IF(AND($J93>1,$J93<5), IF($J93=4, "Unknown", E93+F93), 0),"Not required") -> 83998 | O93: =IF(INTRO!$E$44="Endemic", IF(AND($K93>0,$K93<5), IF($K93=4,"Unknown", IF($K93=1, $F93*0.33, IF($K93=2, $F93*0.5+$G93*0.2, SUM(F93:G93)))), 0),"Not required") -> 231766 | P93: 0 | Q93: 1 | R93: 1 | S93: 1 | T93: MDA3 (IVM) | U93: T1 (PZQ+ALB/MBD) | X93: 46536 | Y93: Kyela District Council | AB93: TRUE
A94: =IF(INTRO!$E$34<>0,INTRO!$E$34,"") -> Tanzania | B94: Mbeya | C94: Mbarali District Council | D94: 352608 | E94: 45487 | F94: 66217 | G94: 240904 | H94: 99 | I94: 0 | J94: 3 | K94: 2 | L94: =IF(INTRO!$E$38="Endemic", IF($H94>0, IF($H94=4,"Unknown", IF($H94=99,"Stopped", $D94)), 0),"Not required") -> Stopped | M94: =IF(INTRO!$E$40="Endemic", IF($I94>0, IF($I94=4,"Unknown",IF($I94=99,"Stopped", $D94)), 0),"Not required") -> 0 | N94: =IF(INTRO!$E$42="Endemic", IF(AND($J94>1,$J94<5), IF($J94=4, "Unknown", E94+F94), 0),"Not required") -> 111704 | O94: =IF(INTRO!$E$44="Endemic", IF(AND($K94>0,$K94<5), IF($K94=4,"Unknown", IF($K94=1, $F94*0.33, IF($K94=2, $F94*0.5+$G94*0.2, SUM(F94:G94)))), 0),"Not required") -> 81289.3 | P94: 0 | Q94: 0 | R94: 1 | S94: 1 | U94: T1 (PZQ+ALB/MBD) | X94: 46537 | Y94: Mbarali District Council | AB94: TRUE
A95: =IF(INTRO!$E$34<>0,INTRO!$E$34,"") -> Tanzania | B95: Mbeya | C95: Mbeya City Council | D95: 452062 | E95: 58316 | F95: 74111 | G95: 319635 | H95: 99 | I95: 0 | J95: 3 | K95: 2 | L95: =IF(INTRO!$E$38="Endemic", IF($H95>0, IF($H95=4,"Unknown", IF($H95=99,"Stopped", $D95)), 0),"Not required") -> Stopped | M95: =IF(INTRO!$E$40="Endemic", IF($I95>0, IF($I95=4,"Unknown",IF($I95=99,"Stopped", $D95)), 0),"Not required") -> 0 | N95: =IF(INTRO!$E$42="Endemic", IF(AND($J95>1,$J95<5), IF($J95=4, "Unknown", E95+F95), 0),"Not required") -> 132427 | O95: =IF(INTRO!$E$44="Endemic", IF(AND($K95>0,$K95<5), IF($K95=4,"Unknown", IF($K95=1, $F95*0.33, IF($K95=2, $F95*0.5+$G95*0.2, SUM(F95:G95)))), 0),"Not required") -> 100982.5 | P95: 0 | Q95: 0 | R95: 1 | S95: 1 | U95: T1 (PZQ+ALB/MBD) | X95: 46538 | Y95: Mbeya City Council | AB95: TRUE
A96: =IF(INTRO!$E$34<>0,INTRO!$E$34,"") -> Tanzania | B96: Mbeya | C96: Mbeya District Council | D96: 358242 | E96: 40350 | F96: 74576 | G96: 243316 | H96: 99 | I96: 0 | J96: 3 | K96: 2 | L96: =IF(INTRO!$E$38="Endemic", IF($H96>0, IF($H96=4,"Unknown", IF($H96=99,"Stopped", $D96)), 0),"Not required") -> Stopped | M96: =IF(INTRO!$E$40="Endemic", IF($I96>0, IF($I96=4,"Unknown",IF($I96=99,"Stopped", $D96)), 0),"Not required") -> 0 | N96: =IF(INTRO!$E$42="Endemic", IF(AND($J96>1,$J96<5), IF($J96=4, "Unknown", E96+F96), 0),"Not required") -> 114926 | O96: =IF(INTRO!$E$44="Endemic", IF(AND($K96>0,$K96<5), IF($K96=4,"Unknown", IF($K96=1, $F96*0.33, IF($K96=2, $F96*0.5+$G96*0.2, SUM(F96:G96)))), 0),"Not required") -> 85951.2 | P96: 0 | Q96: 0 | R96: 1 | S96: 1 | U96: T1 (PZQ+ALB/MBD) | X96: 46539 | Y96: Mbeya District Council | AB96: TRUE
A97: =IF(INTRO!$E$34<>0,INTRO!$E$34,"") -> Tanzania | B97: Mbeya | C97: Rungwe District Council | D97: 293112 | E97: 44967 | F97: 55465 | G97: 192680 | H97: 99 | I97: 1 | J97: 3 | K97: 2 | L97: =IF(INTRO!$E$38="Endemic", IF($H97>0, IF($H97=4,"Unknown", IF($H97=99,"Stopped", $D97)), 0),"Not required") -> Stopped | M97: =IF(INTRO!$E$40="Endemic", IF($I97>0, IF($I97=4,"Unknown",IF($I97=99,"Stopped", $D97)), 0),"Not required") -> 293112 | N97: =IF(INTRO!$E$42="Endemic", IF(AND($J97>1,$J97<5), IF($J97=4, "Unknown", E97+F97), 0),"Not required") -> 100432 | O97: =IF(INTRO!$E$44="Endemic", IF(AND($K97>0,$K97<5), IF($K97=4,"Unknown", IF($K97=1, $F97*0.33, IF($K97=2, $F97*0.5+$G97*0.2, SUM(F97:G97)))), 0),"Not required") -> 66268.5 | P97: 0 | Q97: 1 | R97: 1 | S97: 1 | T97: MDA3 (IVM) | U97: T1 (PZQ+ALB/MBD) | X97: 46542 | Y97: Rungwe District Council | AB97: TRUE
A98: =IF(INTRO!$E$34<>0,INTRO!$E$34,"") -> Tanzania | B98: Morogoro | C98: Gairo District Council | D98: 223834 | E98: 28875 | F98: 47640 | G98: 147319 | H98: 99 | I98: 1 | J98: 3 | K98: 2 | L98: =IF(INTRO!$E$38="Endemic", IF($H98>0, IF($H98=4,"Unknown", IF($H98=99,"Stopped", $D98)), 0),"Not required") -> Stopped | M98: =IF(INTRO!$E$40="Endemic", IF($I98>0, IF($I98=4,"Unknown",IF($I98=99,"Stopped", $D98)), 0),"Not required") -> 223834 | N98: =IF(INTRO!$E$42="Endemic", IF(AND($J98>1,$J98<5), IF($J98=4, "Unknown", E98+F98), 0),"Not required") -> 76515 | O98: =IF(INTRO!$E$44="Endemic", IF(AND($K98>0,$K98<5), IF($K98=4,"Unknown", IF($K98=1, $F98*0.33, IF($K98=2, $F98*0.5+$G98*0.2, SUM(F98:G98)))), 0),"Not required") -> 53283.8 | P98: 0 | Q98: 1 | R98: 1 | S98: 1 | T98: MDA3 (IVM) | U98: T1 (PZQ+ALB/MBD) | X98: 46544 | Y98: Gairo District Council | AB98: TRUE
A99: =IF(INTRO!$E$34<>0,INTRO!$E$34,"") -> Tanzania | B99: Morogoro | C99: Ifakara Town Council | D99: 146982 | E99: 13936 | F99: 27741 | G99: 105305 | H99: 99 | I99: 1 | J99: 3 | K99: 2 | L99: =IF(INTRO!$E$38="Endemic", IF($H99>0, IF($H99=4,"Unknown", IF($H99=99,"Stopped", $D99)), 0),"Not required") -> Stopped | M99: =IF(INTRO!$E$40="Endemic", IF($I99>0, IF($I99=4,"Unknown",IF($I99=99,"Stopped", $D99)), 0),"Not required") -> 146982 | N99: =IF(INTRO!$E$42="Endemic", IF(AND($J99>1,$J99<5), IF($J99=4, "Unknown", E99+F99), 0),"Not required") -> 41677 | O99: =IF(INTRO!$E$44="Endemic", IF(AND($K99>0,$K99<5), IF($K99=4,"Unknown", IF($K99=1, $F99*0.33, IF($K99=2, $F99*0.5+$G99*0.2, SUM(F99:G99)))), 0),"Not required") -> 34931.5 | P99: 0 | Q99: 1 | R99: 1 | S99: 1 | T99: MDA1 (IVM+ALB) | U99: T2 (PZQ) | X99: 46632 | Y99: Ifakara Town Council | AB99: TRUE
A100: =IF(INTRO!$E$34<>0,INTRO!$E$34,"") -> Tanzania | B100: Morogoro | C100: Kilombero District Council | D100: 461479 | E100: 140386 | F100: 80942 | G100: 240151 | H100: 99 | I100: 1 | J100: 3 | K100: 2 | L100: =IF(INTRO!$E$38="Endemic", IF($H100>0, IF($H100=4,"Unknown", IF($H100=99,"Stopped", $D100)), 0),"Not required") -> Stopped | M100: =IF(INTRO!$E$40="Endemic", IF($I100>0, IF($I100=4,"Unknown",IF($I100=99,"Stopped", $D100)), 0),"Not required") -> 461479 | N100: =IF(INTRO!$E$42="Endemic", IF(AND($J100>1,$J100<5), IF($J100=4, "Unknown", E100+F100), 0),"Not required") -> 221328 | O100: =IF(INTRO!$E$44="Endemic", IF(AND($K100>0,$K100<5), IF($K100=4,"Unknown", IF($K100=1, $F100*0.33, IF($K100=2, $F100*0.5+$G100*0.2, SUM(F100:G100)))), 0),"Not required") -> 88501.2 | P100: 0 | Q100: 1 | R100: 1 | S100: 1 | T100: MDA1 (IVM+ALB) | U100: T2 (PZQ) | X100: 46545 | Y100: Kilombero District Council | AB100: TRUE
A101: =IF(INTRO!$E$34<>0,INTRO!$E$34,"") -> Tanzania | B101: Morogoro | C101: Kilosa District Council | D101: 514045 | E101: 66312 | F101: 92883 | G101: 354850 | H101: 1 | I101: 1 | J101: 3 | K101: 2 | L101: =IF(INTRO!$E$38="Endemic", IF($H101>0, IF($H101=4,"Unknown", IF($H101=99,"Stopped", $D101)), 0),"Not required") -> 514045 | M101: =IF(INTRO!$E$40="Endemic", IF($I101>0, IF($I101=4,"Unknown",IF($I101=99,"Stopped", $D101)), 0),"Not required") -> 514045 | N101: =IF(INTRO!$E$42="Endemic", IF(AND($J101>1,$J101<5), IF($J101=4, "Unknown", E101+F101), 0),"Not required") -> 159195 | O101: =IF(INTRO!$E$44="Endemic", IF(AND($K101>0,$K101<5), IF($K101=4,"Unknown", IF($K101=1, $F101*0.33, IF($K101=2, $F101*0.5+$G101*0.2, SUM(F101:G101)))), 0),"Not required") -> 117411.5 | P101: 1 | Q101: 1 | R101: 1 | S101: 1 | T101: MDA1 (IVM+ALB) | U101: T2 (PZQ) | X101: 46546 | Y101: Kilosa District Council | AB101: TRUE
A102: =IF(INTRO!$E$34<>0,INTRO!$E$34,"") -> Tanzania | B102: Morogoro | C102: Malinyi District Council | D102: 170856 | E102: 15638 | F102: 32053 | G102: 123165 | H102: 99 | I102: 1 | J102: 3 | K102: 2 | L102: =IF(INTRO!$E$38="Endemic", IF($H102>0, IF($H102=4,"Unknown", IF($H102=99,"Stopped", $D102)), 0),"Not required") -> Stopped | M102: =IF(INTRO!$E$40="Endemic", IF($I102>0, IF($I102=4,"Unknown",IF($I102=99,"Stopped", $D102)), 0),"Not required") -> 170856 | N102: =IF(INTRO!$E$42="Endemic", IF(AND($J102>1,$J102<5), IF($J102=4, "Unknown", E102+F102), 0),"Not required") -> 47691 | O102: =IF(INTRO!$E$44="Endemic", IF(AND($K102>0,$K102<5), IF($K102=4,"Unknown", IF($K102=1, $F102*0.33, IF($K102=2, $F102*0.5+$G102*0.2, SUM(F102:G102)))), 0),"Not required") -> 40659.5 | P102: 0 | Q102: 1 | R102: 1 | S102: 1 | T102: MDA1 (IVM+ALB) | U102: T2 (PZQ) | X102: 46633 | Y102: Malinyi District Council | AB102: TRUE
A103: =IF(INTRO!$E$34<>0,INTRO!$E$34,"") -> Tanzania | B103: Morogoro | C103: Morogoro District Council | D103: 331960 | E103: 42823 | F103: 62244 | G103: 226893 | H103: 1 | I103: 1 | J103: 3 | K103: 2 | L103: =IF(INTRO!$E$38="Endemic", IF($H103>0, IF($H103=4,"Unknown", IF($H103=99,"Stopped", $D103)), 0),"Not required") -> 331960 | M103: =IF(INTRO!$E$40="Endemic", IF($I103>0, IF($I103=4,"Unknown",IF($I103=99,"Stopped", $D103)), 0),"Not required") -> 331960 | N103: =IF(INTRO!$E$42="Endemic", IF(AND($J103>1,$J103<5), IF($J103=4, "Unknown", E103+F103), 0),"Not required") -> 105067 | O103: =IF(INTRO!$E$44="Endemic", IF(AND($K103>0,$K103<5), IF($K103=4,"Unknown", IF($K103=1, $F103*0.33, IF($K103=2, $F103*0.5+$G103*0.2, SUM(F103:G103)))), 0),"Not required") -> 76500.6 | P103: 1 | Q103: 1 | R103: 1 | S103: 1 | T103: MDA1 (IVM+ALB) | U103: T2 (PZQ) | X103: 46547 | Y103: Morogoro District Council | AB103: TRUE
A104: =IF(INTRO!$E$34<>0,INTRO!$E$34,"") -> Tanzania | B104: Morogoro | C104: Morogoro Municipal Council | D104: 366308 | E104: 27935 | F104: 74866 | G104: 263507 | H104: 1 | I104: 0 | J104: 3 | K104: 2 | L104: =IF(INTRO!$E$38="Endemic", IF($H104>0, IF($H104=4,"Unknown", IF($H104=99,"Stopped", $D104)), 0),"Not required") -> 366308 | M104: =IF(INTRO!$E$40="Endemic", IF($I104>0, IF($I104=4,"Unknown",IF($I104=99,"Stopped", $D104)), 0),"Not required") -> 0 | N104: =IF(INTRO!$E$42="Endemic", IF(AND($J104>1,$J104<5), IF($J104=4, "Unknown", E104+F104), 0),"Not required") -> 102801 | O104: =IF(INTRO!$E$44="Endemic", IF(AND($K104>0,$K104<5), IF($K104=4,"Unknown", IF($K104=1, $F104*0.33, IF($K104=2, $F104*0.5+$G104*0.2, SUM(F104:G104)))), 0),"Not required") -> 90134.4 | P104: 1 | Q104: 0 | R104: 1 | S104: 1 | T104: MDA1 (IVM+ALB) | U104: T2 (PZQ) | X104: 46548 | Y104: Morogoro Municipal Council | AB104: TRUE
A105: =IF(INTRO!$E$34<>0,INTRO!$E$34,"") -> Tanzania | B105: Morogoro | C105: Mvomero District Council | D105: 363335 | E105: 38650 | F105: 76386 | G105: 248299 | H105: 1 | I105: 1 | J105: 3 | K105: 2 | L105: =IF(INTRO!$E$38="Endemic", IF($H105>0, IF($H105=4,"Unknown", IF($H105=99,"Stopped", $D105)), 0),"Not required") -> 363335 | M105: =IF(INTRO!$E$40="Endemic", IF($I105>0, IF($I105=4,"Unknown",IF($I105=99,"Stopped", $D105)), 0),"Not required") -> 363335 | N105: =IF(INTRO!$E$42="Endemic", IF(AND($J105>1,$J105<5), IF($J105=4, "Unknown", E105+F105), 0),"Not required") -> 115036 | O105: =IF(INTRO!$E$44="Endemic", IF(AND($K105>0,$K105<5), IF($K105=4,"Unknown", IF($K105=1, $F105*0.33, IF($K105=2, $F105*0.5+$G105*0.2, SUM(F105:G105)))), 0),"Not required") -> 87852.8 | P105: 1 | Q105: 1 | R105: 1 | S105: 1 | T105: MDA1 (IVM+ALB) | U105: T1 (PZQ+ALB/MBD) | X105: 46549 | Y105: Mvomero District Council | AB105: TRUE
A106: =IF(INTRO!$E$34<>0,INTRO!$E$34,"") -> Tanzania | B106: Morogoro | C106: Ulanga District Council | D106: 199151 | E106: 25691 | F106: 33915 | G106: 139545 | H106: 99 | I106: 1 | J106: 3 | K106: 2 | L106: =IF(INTRO!$E$38="Endemic", IF($H106>0, IF($H106=4,"Unknown", IF($H106=99,"Stopped", $D106)), 0),"Not required") -> Stopped | M106: =IF(INTRO!$E$40="Endemic", IF($I106>0, IF($I106=4,"Unknown",IF($I106=99,"Stopped", $D106)), 0),"Not required") -> 199151 | N106: =IF(INTRO!$E$42="Endemic", IF(AND($J106>1,$J106<5), IF($J106=4, "Unknown", E106+F106), 0),"Not required") -> 59606 | O106: =IF(INTRO!$E$44="Endemic", IF(AND($K106>0,$K106<5), IF($K106=4,"Unknown", IF($K106=1, $F106*0.33, IF($K106=2, $F106*0.5+$G106*0.2, SUM(F106:G106)))), 0),"Not required") -> 44866.5 | P106: 0 | Q106: 1 | R106: 1 | S106: 1 | T106: MDA1 (IVM+ALB) | U106: T2 (PZQ) | X106: 46550 | Y106: Ulanga District Council | AB106: TRUE
A107: =IF(INTRO!$E$34<>0,INTRO!$E$34,"") -> Tanzania | B107: Mtwara | C107: Masasi District Council | D107: 277688 | E107: 27684 | F107: 57110 | G107: 192894 | H107: 1 | I107: 0 | J107: 3 | K107: 3 | L107: =IF(INTRO!$E$38="Endemic", IF($H107>0, IF($H107=4,"Unknown", IF($H107=99,"Stopped", $D107)), 0),"Not required") -> 277688 | M107: =IF(INTRO!$E$40="Endemic", IF($I107>0, IF($I107=4,"Unknown",IF($I107=99,"Stopped", $D107)), 0),"Not required") -> 0 | N107: =IF(INTRO!$E$42="Endemic", IF(AND($J107>1,$J107<5), IF($J107=4, "Unknown", E107+F107), 0),"Not required") -> 84794 | O107: =IF(INTRO!$E$44="Endemic", IF(AND($K107>0,$K107<5), IF($K107=4,"Unknown", IF($K107=1, $F107*0.33, IF($K107=2, $F107*0.5+$G107*0.2, SUM(F107:G107)))), 0),"Not required") -> 250004 | P107: 1 | Q107: 0 | R107: 1 | S107: 1 | T107: MDA1 (IVM+ALB) | U107: T1 (PZQ+ALB/MBD) | X107: 46551 | Y107: Masasi District Council | AB107: TRUE
A108: =IF(INTRO!$E$34<>0,INTRO!$E$34,"") -> Tanzania | B108: Mtwara | C108: Masasi Town Council | D108: 110316 | E108: 10184 | F108: 22887 | G108: 77245 | H108: 99 | I108: 0 | J108: 3 | K108: 3 | L108: =IF(INTRO!$E$38="Endemic", IF($H108>0, IF($H108=4,"Unknown", IF($H108=99,"Stopped", $D108)), 0),"Not required") -> Stopped | M108: =IF(INTRO!$E$40="Endemic", IF($I108>0, IF($I108=4,"Unknown",IF($I108=99,"Stopped", $D108)), 0),"Not required") -> 0 | N108: =IF(INTRO!$E$42="Endemic", IF(AND($J108>1,$J108<5), IF($J108=4, "Unknown", E108+F108), 0),"Not required") -> 33071 | O108: =IF(INTRO!$E$44="Endemic", IF(AND($K108>0,$K108<5), IF($K108=4,"Unknown", IF($K108=1, $F108*0.33, IF($K108=2, $F108*0.5+$G108*0.2, SUM(F108:G108)))), 0),"Not required") -> 100132 | P108: 0 | Q108: 0 | R108: 1 | S108: 1 | U108: T1 (PZQ+ALB/MBD) | X108: 46552 | Y108: Masasi Town Council | AB108: TRUE
A109: =IF(INTRO!$E$34<>0,INTRO!$E$34,"") -> Tanzania | B109: Mtwara | C109: Mtwara District Council | D109: 132123 | E109: 9765 | F109: 32276 | G109: 90082 | H109: 99 | I109: 0 | J109: 3 | K109: 3 | L109: =IF(INTRO!$E$38="Endemic", IF($H109>0, IF($H109=4,"Unknown", IF($H109=99,"Stopped", $D109)), 0),"Not required") -> Stopped | M109: =IF(INTRO!$E$40="Endemic", IF($I109>0, IF($I109=4,"Unknown",IF($I109=99,"Stopped", $D109)), 0),"Not required") -> 0 | N109: =IF(INTRO!$E$42="Endemic", IF(AND($J109>1,$J109<5), IF($J109=4, "Unknown", E109+F109), 0),"Not required") -> 42041 | O109: =IF(INTRO!$E$44="Endemic", IF(AND($K109>0,$K109<5), IF($K109=4,"Unknown", IF($K109=1, $F109*0.33, IF($K109=2, $F109*0.5+$G109*0.2, SUM(F109:G109)))), 0),"Not required") -> 122358 | P109: 0 | Q109: 0 | R109: 1 | S109: 1 | U109: T1 (PZQ+ALB/MBD) | X109: 46553 | Y109: Mtwara District Council | AB109: TRUE
A110: =IF(INTRO!$E$34<>0,INTRO!$E$34,"") -> Tanzania | B110: Mtwara | C110: Mtwara-Mikindani Municipal Council | D110: 142811 | E110: 36214 | F110: 23240 | G110: 83357 | H110: 1 | I110: 0 | J110: 3 | K110: 2 | L110: =IF(INTRO!$E$38="Endemic", IF($H110>0, IF($H110=4,"Unknown", IF($H110=99,"Stopped", $D110)), 0),"Not required") -> 142811 | M110: =IF(INTRO!$E$40="Endemic", IF($I110>0, IF($I110=4,"Unknown",IF($I110=99,"Stopped", $D110)), 0),"Not required") -> 0 | N110: =IF(INTRO!$E$42="Endemic", IF(AND($J110>1,$J110<5), IF($J110=4, "Unknown", E110+F110), 0),"Not required") -> 59454 | O110: =IF(INTRO!$E$44="Endemic", IF(AND($K110>0,$K110<5), IF($K110=4,"Unknown", IF($K110=1, $F110*0.33, IF($K110=2, $F110*0.5+$G110*0.2, SUM(F110:G110)))), 0),"Not required") -> 28291.4 | P110: 1 | Q110: 0 | R110: 1 | S110: 0 | T110: MDA1 (IVM+ALB) | U110: T3 (ALB/MBD) | X110: 46554 | Y110: Mtwara-Mikindani Municipal Council | AB110: TRUE
A111: =IF(INTRO!$E$34<>0,INTRO!$E$34,"") -> Tanzania | B111: Mtwara | C111: Nanyamba District Council | D111: 112797 | E111: 8524 | F111: 27367 | G111: 76906 | H111: 99 | I111: 0 | J111: 3 | K111: 3 | L111: =IF(INTRO!$E$38="Endemic", IF($H111>0, IF($H111=4,"Unknown", IF($H111=99,"Stopped", $D111)), 0),"Not required") -> Stopped | M111: =IF(INTRO!$E$40="Endemic", IF($I111>0, IF($I111=4,"Unknown",IF($I111=99,"Stopped", $D111)), 0),"Not required") -> 0 | N111: =IF(INTRO!$E$42="Endemic", IF(AND($J111>1,$J111<5), IF($J111=4, "Unknown", E111+F111), 0),"Not required") -> 35891 | O111: =IF(INTRO!$E$44="Endemic", IF(AND($K111>0,$K111<5), IF($K111=4,"Unknown", IF($K111=1, $F111*0.33, IF($K111=2, $F111*0.5+$G111*0.2, SUM(F111:G111)))), 0),"Not required") -> 104273 | P111: 0 | Q111: 0 | R111: 1 | S111: 1 | U111: T1 (PZQ+ALB/MBD) | X111: 46634 | Y111: Nanyamba District Council | AB111: TRUE
A112: =IF(INTRO!$E$34<>0,INTRO!$E$34,"") -> Tanzania | B112: Mtwara | C112: Nanyumbu District Council | D112: 162050 | E112: 17378 | F112: 34666 | G112: 110006 | H112: 99 | I112: 0 | J112: 3 | K112: 3 | L112: =IF(INTRO!$E$38="Endemic", IF($H112>0, IF($H112=4,"Unknown", IF($H112=99,"Stopped", $D112)), 0),"Not required") -> Stopped | M112: =IF(INTRO!$E$40="Endemic", IF($I112>0, IF($I112=4,"Unknown",IF($I112=99,"Stopped", $D112)), 0),"Not required") -> 0 | N112: =IF(INTRO!$E$42="Endemic", IF(AND($J112>1,$J112<5), IF($J112=4, "Unknown", E112+F112), 0),"Not required") -> 52044 | O112: =IF(INTRO!$E$44="Endemic", IF(AND($K112>0,$K112<5), IF($K112=4,"Unknown", IF($K112=1, $F112*0.33, IF($K112=2, $F112*0.5+$G112*0.2, SUM(F112:G112)))), 0),"Not required") -> 144672 | P112: 0 | Q112: 0 | R112: 1 | S112: 1 | U112: T1 (PZQ+ALB/MBD) | X112: 46555 | Y112: Nanyumbu District Council | AB112: TRUE
A113: =IF(INTRO!$E$34<>0,INTRO!$E$34,"") -> Tanzania | B113: Mtwara | C113: Newala District Council | D113: 124865 | E113: 13206 | F113: 24544 | G113: 87115 | H113: 99 | I113: 0 | J113: 3 | K113: 2 | L113: =IF(INTRO!$E$38="Endemic", IF($H113>0, IF($H113=4,"Unknown", IF($H113=99,"Stopped", $D113)), 0),"Not required") -> Stopped | M113: =IF(INTRO!$E$40="Endemic", IF($I113>0, IF($I113=4,"Unknown",IF($I113=99,"Stopped", $D113)), 0),"Not required") -> 0 | N113: =IF(INTRO!$E$42="Endemic", IF(AND($J113>1,$J113<5), IF($J113=4, "Unknown", E113+F113), 0),"Not required") -> 37750 | O113: =IF(INTRO!$E$44="Endemic", IF(AND($K113>0,$K113<5), IF($K113=4,"Unknown", IF($K113=1, $F113*0.33, IF($K113=2, $F113*0.5+$G113*0.2, SUM(F113:G113)))), 0),"Not required") -> 29695 | P113: 0 | Q113: 0 | R113: 1 | S113: 0 | U113: T3 (ALB/MBD) | X113: 46556 | Y113: Newala District Council | AB113: TRUE
A114: =IF(INTRO!$E$34<>0,INTRO!$E$34,"") -> Tanzania | B114: Mtwara | C114: Newala Town Council | D114: 95873 | E114: 8078 | F114: 20907 | G114: 66888 | H114: 99 | I114: 0 | J114: 3 | K114: 2 | L114: =IF(INTRO!$E$38="Endemic", IF($H114>0, IF($H114=4,"Unknown", IF($H114=99,"Stopped", $D114)), 0),"Not required") -> Stopped | M114: =IF(INTRO!$E$40="Endemic", IF($I114>0, IF($I114=4,"Unknown",IF($I114=99,"Stopped", $D114)), 0),"Not required") -> 0 | N114: =IF(INTRO!$E$42="Endemic", IF(AND($J114>1,$J114<5), IF($J114=4, "Unknown", E114+F114), 0),"Not required") -> 28985 | O114: =IF(INTRO!$E$44="Endemic", IF(AND($K114>0,$K114<5), IF($K114=4,"Unknown", IF($K114=1, $F114*0.33, IF($K114=2, $F114*0.5+$G114*0.2, SUM(F114:G114)))), 0),"Not required") -> 23831.1 | P114: 0 | Q114: 0 | R114: 1 | S114: 0 | U114: T3 (ALB/MBD) | X114: 46635 | Y114: Newala Town Council | AB114: TRUE
A115: =IF(INTRO!$E$34<>0,INTRO!$E$34,"") -> Tanzania | B115: Mtwara | C115: Tandahimba District Council | D115: 244394 | E115: 18943 | F115: 55792 | G115: 169659 | H115: 99 | I115: 0 | J115: 3 | K115: 2 | L115: =IF(INTRO!$E$38="Endemic", IF($H115>0, IF($H115=4,"Unknown", IF($H115=99,"Stopped", $D115)), 0),"Not required") -> Stopped | M115: =IF(INTRO!$E$40="Endemic", IF($I115>0, IF($I115=4,"Unknown",IF($I115=99,"Stopped", $D115)), 0),"Not required") -> 0 | N115: =IF(INTRO!$E$42="Endemic", IF(AND($J115>1,$J115<5), IF($J115=4, "Unknown", E115+F115), 0),"Not required") -> 74735 | O115: =IF(INTRO!$E$44="Endemic", IF(AND($K115>0,$K115<5), IF($K115=4,"Unknown", IF($K115=1, $F115*0.33, IF($K115=2, $F115*0.5+$G115*0.2, SUM(F115:G115)))), 0),"Not required") -> 61827.8 | P115: 0 | Q115: 0 | R115: 1 | S115: 0 | U115: T3 (ALB/MBD) | X115: 46557 | Y115: Tandahimba District Council | AB115: TRUE
A116: =IF(INTRO!$E$34<>0,INTRO!$E$34,"") -> Tanzania | B116: Mwanza | C116: Buchosa District Council | D116: 391371 | E116: 24818 | F116: 105840 | G116: 260713 | H116: 0 | I116: 0 | J116: 3 | K116: 2 | L116: =IF(INTRO!$E$38="Endemic", IF($H116>0, IF($H116=4,"Unknown", IF($H116=99,"Stopped", $D116)), 0),"Not required") -> 0 | M116: =IF(INTRO!$E$40="Endemic", IF($I116>0, IF($I116=4,"Unknown",IF($I116=99,"Stopped", $D116)), 0),"Not required") -> 0 | N116: =IF(INTRO!$E$42="Endemic", IF(AND($J116>1,$J116<5), IF($J116=4, "Unknown", E116+F116), 0),"Not required") -> 130658 | O116: =IF(INTRO!$E$44="Endemic", IF(AND($K116>0,$K116<5), IF($K116=4,"Unknown", IF($K116=1, $F116*0.33, IF($K116=2, $F116*0.5+$G116*0.2, SUM(F116:G116)))), 0),"Not required") -> 105062.6 | P116: 0 | Q116: 0 | R116: 1 | S116: 1 | U116: T1 (PZQ+ALB/MBD) | X116: 46636 | Y116: Buchosa District Council | AB116: TRUE
A117: =IF(INTRO!$E$34<>0,INTRO!$E$34,"") -> Tanzania | B117: Mwanza | C117: Ilemela Municipal Council | D117: 409561 | E117: 28333 | F117: 94743 | G117: 286485 | H117: 0 | I117: 0 | J117: 3 | K117: 2 | L117: =IF(INTRO!$E$38="Endemic", IF($H117>0, IF($H117=4,"Unknown", IF($H117=99,"Stopped", $D117)), 0),"Not required") -> 0 | M117: =IF(INTRO!$E$40="Endemic", IF($I117>0, IF($I117=4,"Unknown",IF($I117=99,"Stopped", $D117)), 0),"Not required") -> 0 | N117: =IF(INTRO!$E$42="Endemic", IF(AND($J117>1,$J117<5), IF($J117=4, "Unknown", E117+F117), 0),"Not required") -> 123076 | O117: =IF(INTRO!$E$44="Endemic", IF(AND($K117>0,$K117<5), IF($K117=4,"Unknown", IF($K117=1, $F117*0.33, IF($K117=2, $F117*0.5+$G117*0.2, SUM(F117:G117)))), 0),"Not required") -> 104668.5 | P117: 0 | Q117: 0 | R117: 1 | S117: 1 | U117: T1 (PZQ+ALB/MBD) | X117: 46558 | Y117: Ilemela Municipal Council | AB117: TRUE
A118: =IF(INTRO!$E$34<>0,INTRO!$E$34,"") -> Tanzania | B118: Mwanza | C118: Kwimba District Council | D118: 485393 | E118: 50256 | F118: 114329 | G118: 320808 | H118: 0 | I118: 0 | J118: 3 | K118: 3 | L118: =IF(INTRO!$E$38="Endemic", IF($H118>0, IF($H118=4,"Unknown", IF($H118=99,"Stopped", $D118)), 0),"Not required") -> 0 | M118: =IF(INTRO!$E$40="Endemic", IF($I118>0, IF($I118=4,"Unknown",IF($I118=99,"Stopped", $D118)), 0),"Not required") -> 0 | N118: =IF(INTRO!$E$42="Endemic", IF(AND($J118>1,$J118<5), IF($J118=4, "Unknown", E118+F118), 0),"Not required") -> 164585 | O118: =IF(INTRO!$E$44="Endemic", IF(AND($K118>0,$K118<5), IF($K118=4,"Unknown", IF($K118=1, $F118*0.33, IF($K118=2, $F118*0.5+$G118*0.2, SUM(F118:G118)))), 0),"Not required") -> 435137 | P118: 0 | Q118: 0 | R118: 1 | S118: 1 | U118: T1 (PZQ+ALB/MBD) | X118: 46559 | Y118: Kwimba District Council | AB118: TRUE
A119: =IF(INTRO!$E$34<>0,INTRO!$E$34,"") -> Tanzania | B119: Mwanza | C119: Magu District Council | D119: 357928 | E119: 25600 | F119: 94743 | G119: 237585 | H119: 0 | I119: 0 | J119: 3 | K119: 3 | L119: =IF(INTRO!$E$38="Endemic", IF($H119>0, IF($H119=4,"Unknown", IF($H119=99,"Stopped", $D119)), 0),"Not required") -> 0 | M119: =IF(INTRO!$E$40="Endemic", IF($I119>0, IF($I119=4,"Unknown",IF($I119=99,"Stopped", $D119)), 0),"Not required") -> 0 | N119: =IF(INTRO!$E$42="Endemic", IF(AND($J119>1,$J119<5), IF($J119=4, "Unknown", E119+F119), 0),"Not required") -> 120343 | O119: =IF(INTRO!$E$44="Endemic", IF(AND($K119>0,$K119<5), IF($K119=4,"Unknown", IF($K119=1, $F119*0.33, IF($K119=2, $F119*0.5+$G119*0.2, SUM(F119:G119)))), 0),"Not required") -> 332328 | P119: 0 | Q119: 0 | R119: 1 | S119: 1 | U119: T1 (PZQ+ALB/MBD) | X119: 46560 | Y119: Magu District Council | AB119: TRUE
A120: =IF(INTRO!$E$34<>0,INTRO!$E$34,"") -> Tanzania | B120: Mwanza | C120: Misungwi District Council | D120: 419837 | E120: 37633 | F120: 101927 | G120: 280277 | H120: 0 | I120: 0 | J120: 3 | K120: 3 | L120: =IF(INTRO!$E$38="Endemic", IF($H120>0, IF($H120=4,"Unknown", IF($H120=99,"Stopped", $D120)), 0),"Not required") -> 0 | M120: =IF(INTRO!$E$40="Endemic", IF($I120>0, IF($I120=4,"Unknown",IF($I120=99,"Stopped", $D120)), 0),"Not required") -> 0 | N120: =IF(INTRO!$E$42="Endemic", IF(AND($J120>1,$J120<5), IF($J120=4, "Unknown", E120+F120), 0),"Not required") -> 139560 | O120: =IF(INTRO!$E$44="Endemic", IF(AND($K120>0,$K120<5), IF($K120=4,"Unknown", IF($K120=1, $F120*0.33, IF($K120=2, $F120*0.5+$G120*0.2, SUM(F120:G120)))), 0),"Not required") -> 382204 | P120: 0 | Q120: 0 | R120: 1 | S120: 1 | U120: T1 (PZQ+ALB/MBD) | X120: 46561 | Y120: Misungwi District Council | AB120: TRUE
A121: =IF(INTRO!$E$34<>0,INTRO!$E$34,"") -> Tanzania | B121: Mwanza | C121: Mwanza-Nyamagana City Council | D121: 433981 | E121: 16164 | F121: 113527 | G121: 304290 | H121: 0 | I121: 0 | J121: 3 | K121: 2 | L121: =IF(INTRO!$E$38="Endemic", IF($H121>0, IF($H121=4,"Unknown", IF($H121=99,"Stopped", $D121)), 0),"Not required") -> 0 | M121: =IF(INTRO!$E$40="Endemic", IF($I121>0, IF($I121=4,"Unknown",IF($I121=99,"Stopped", $D121)), 0),"Not required") -> 0 | N121: =IF(INTRO!$E$42="Endemic", IF(AND($J121>1,$J121<5), IF($J121=4, "Unknown", E121+F121), 0),"Not required") -> 129691 | O121: =IF(INTRO!$E$44="Endemic", IF(AND($K121>0,$K121<5), IF($K121=4,"Unknown", IF($K121=1, $F121*0.33, IF($K121=2, $F121*0.5+$G121*0.2, SUM(F121:G121)))), 0),"Not required") -> 117621.5 | P121: 0 | Q121: 0 | R121: 1 | S121: 1 | U121: T1 (PZQ+ALB/MBD) | X121: 46562 | Y121: Mwanza-Nyamagana City Council | AB121: FALSE
A122: =IF(INTRO!$E$34<>0,INTRO!$E$34,"") -> Tanzania | B122: Mwanza | C122: Sengerema District Council | D122: 400326 | E122: 20794 | F122: 112853 | G122: 266679 | H122: 0 | I122: 0 | J122: 3 | K122: 2 | L122: =IF(INTRO!$E$38="Endemic", IF($H122>0, IF($H122=4,"Unknown", IF($H122=99,"Stopped", $D122)), 0),"Not required") -> 0 | M122: =IF(INTRO!$E$40="Endemic", IF($I122>0, IF($I122=4,"Unknown",IF($I122=99,"Stopped", $D122)), 0),"Not required") -> 0 | N122: =IF(INTRO!$E$42="Endemic", IF(AND($J122>1,$J122<5), IF($J122=4, "Unknown", E122+F122), 0),"Not required") -> 133647 | O122: =IF(INTRO!$E$44="Endemic", IF(AND($K122>0,$K122<5), IF($K122=4,"Unknown", IF($K122=1, $F122*0.33, IF($K122=2, $F122*0.5+$G122*0.2, SUM(F122:G122)))), 0),"Not required") -> 109762.3 | P122: 0 | Q122: 0 | R122: 1 | S122: 1 | U122: T1 (PZQ+ALB/MBD) | X122: 46563 | Y122: Sengerema District Council | AB122: TRUE
A123: =IF(INTRO!$E$34<>0,INTRO!$E$34,"") -> Tanzania | B123: Mwanza | C123: Ukerewe District Council | D123: 412124 | E123: 22490 | F123: 111835 | G123: 277799 | H123: 0 | I123: 0 | J123: 3 | K123: 2 | L123: =IF(INTRO!$E$38="Endemic", IF($H123>0, IF($H123=4,"Unknown", IF($H123=99,"Stopped", $D123)), 0),"Not required") -> 0 | M123: =IF(INTRO!$E$40="Endemic", IF($I123>0, IF($I123=4,"Unknown",IF($I123=99,"Stopped", $D123)), 0),"Not required") -> 0 | N123: =IF(INTRO!$E$42="Endemic", IF(AND($J123>1,$J123<5), IF($J123=4, "Unknown", E123+F123), 0),"Not required") -> 134325 | O123: =IF(INTRO!$E$44="Endemic", IF(AND($K123>0,$K123<5), IF($K123=4,"Unknown", IF($K123=1, $F123*0.33, IF($K123=2, $F123*0.5+$G123*0.2, SUM(F123:G123)))), 0),"Not required") -> 111477.3 | P123: 0 | Q123: 0 | R123: 1 | S123: 1 | U123: T1 (PZQ+ALB/MBD) | X123: 46564 | Y123: Ukerewe District Council | AB123: TRUE
A124: =IF(INTRO!$E$34<>0,INTRO!$E$34,"") -> Tanzania | B124: Njombe | C124: Ludewa District Council | D124: 139742 | E124: 11215 | F124: 36703 | G124: 91824 | H124: 99 | I124: 1 | J124: 3 | K124: 2 | L124: =IF(INTRO!$E$38="Endemic", IF($H124>0, IF($H124=4,"Unknown", IF($H124=99,"Stopped", $D124)), 0),"Not required") -> Stopped | M124: =IF(INTRO!$E$40="Endemic", IF($I124>0, IF($I124=4,"Unknown",IF($I124=99,"Stopped", $D124)), 0),"Not required") -> 139742 | N124: =IF(INTRO!$E$42="Endemic", IF(AND($J124>1,$J124<5), IF($J124=4, "Unknown", E124+F124), 0),"Not required") -> 47918 | O124: =IF(INTRO!$E$44="Endemic", IF(AND($K124>0,$K124<5), IF($K124=4,"Unknown", IF($K124=1, $F124*0.33, IF($K124=2, $F124*0.5+$G124*0.2, SUM(F124:G124)))), 0),"Not required") -> 36716.3 | P124: 0 | Q124: 1 | R124: 1 | S124: 1 | T124: MDA3 (IVM) | U124: T1 (PZQ+ALB/MBD) | X124: 46565 | Y124: Ludewa District Council | AB124: TRUE
A125: =IF(INTRO!$E$34<>0,INTRO!$E$34,"") -> Tanzania | B125: Njombe | C125: Makambako Town Council | D125: 98422 | E125: 4953 | F125: 26808 | G125: 66661 | H125: 99 | I125: 0 | J125: 3 | K125: 2 | L125: =IF(INTRO!$E$38="Endemic", IF($H125>0, IF($H125=4,"Unknown", IF($H125=99,"Stopped", $D125)), 0),"Not required") -> Stopped | M125: =IF(INTRO!$E$40="Endemic", IF($I125>0, IF($I125=4,"Unknown",IF($I125=99,"Stopped", $D125)), 0),"Not required") -> 0 | N125: =IF(INTRO!$E$42="Endemic", IF(AND($J125>1,$J125<5), IF($J125=4, "Unknown", E125+F125), 0),"Not required") -> 31761 | O125: =IF(INTRO!$E$44="Endemic", IF(AND($K125>0,$K125<5), IF($K125=4,"Unknown", IF($K125=1, $F125*0.33, IF($K125=2, $F125*0.5+$G125*0.2, SUM(F125:G125)))), 0),"Not required") -> 26736.2 | P125: 0 | Q125: 0 | R125: 1 | S125: 1 | U125: T1 (PZQ+ALB/MBD) | X125: 46566 | Y125: Makambako Town Council | AB125: TRUE
A126: =IF(INTRO!$E$34<>0,INTRO!$E$34,"") -> Tanzania | B126: Njombe | C126: Makete District Council | D126: 102029 | E126: 10107 | F126: 22779 | G126: 69143 | H126: 99 | I126: 0 | J126: 3 | K126: 2 | L126: =IF(INTRO!$E$38="Endemic", IF($H126>0, IF($H126=4,"Unknown", IF($H126=99,"Stopped", $D126)), 0),"Not required") -> Stopped | M126: =IF(INTRO!$E$40="Endemic", IF($I126>0, IF($I126=4,"Unknown",IF($I126=99,"Stopped", $D126)), 0),"Not required") -> 0 | N126: =IF(INTRO!$E$42="Endemic", IF(AND($J126>1,$J126<5), IF($J126=4, "Unknown", E126+F126), 0),"Not required") -> 32886 | O126: =IF(INTRO!$E$44="Endemic", IF(AND($K126>0,$K126<5), IF($K126=4,"Unknown", IF($K126=1, $F126*0.33, IF($K126=2, $F126*0.5+$G126*0.2, SUM(F126:G126)))), 0),"Not required") -> 25218.1 | P126: 0 | Q126: 0 | R126: 1 | S126: 1 | U126: T1 (PZQ+ALB/MBD) | X126: 46567 | Y126: Makete District Council | AB126: TRUE
A127: =IF(INTRO!$E$34<>0,INTRO!$E$34,"") -> Tanzania | B127: Njombe | C127: Njombe District Council | D127: 92911 | E127: 10882 | F127: 22285 | G127: 59744 | H127: 99 | I127: 1 | J127: 3 | K127: 2 | L127: =IF(INTRO!$E$38="Endemic", IF($H127>0, IF($H127=4,"Unknown", IF($H127=99,"Stopped", $D127)), 0),"Not required") -> Stopped | M127: =IF(INTRO!$E$40="Endemic", IF($I127>0, IF($I127=4,"Unknown",IF($I127=99,"Stopped", $D127)), 0),"Not required") -> 92911 | N127: =IF(INTRO!$E$42="Endemic", IF(AND($J127>1,$J127<5), IF($J127=4, "Unknown", E127+F127), 0),"Not required") -> 33167 | O127: =IF(INTRO!$E$44="Endemic", IF(AND($K127>0,$K127<5), IF($K127=4,"Unknown", IF($K127=1, $F127*0.33, IF($K127=2, $F127*0.5+$G127*0.2, SUM(F127:G127)))), 0),"Not required") -> 23091.3 | P127: 0 | Q127: 1 | R127: 1 | S127: 1 | T127: MDA3 (IVM) | U127: T1 (PZQ+ALB/MBD) | X127: 46568 | Y127: Njombe District Council | AB127: TRUE
A128: =IF(INTRO!$E$34<>0,INTRO!$E$34,"") -> Tanzania | B128: Njombe | C128: Njombe Town Council | D128: 136600 | E128: 7878 | F128: 35652 | G128: 93070 | H128: 99 | I128: 0 | J128: 3 | K128: 2 | L128: =IF(INTRO!$E$38="Endemic", IF($H128>0, IF($H128=4,"Unknown", IF($H128=99,"Stopped", $D128)), 0),"Not required") -> Stopped | M128: =IF(INTRO!$E$40="Endemic", IF($I128>0, IF($I128=4,"Unknown",IF($I128=99,"Stopped", $D128)), 0),"Not required") -> 0 | N128: =IF(INTRO!$E$42="Endemic", IF(AND($J128>1,$J128<5), IF($J128=4, "Unknown", E128+F128), 0),"Not required") -> 43530 | O128: =IF(INTRO!$E$44="Endemic", IF(AND($K128>0,$K128<5), IF($K128=4,"Unknown", IF($K128=1, $F128*0.33, IF($K128=2, $F128*0.5+$G128*0.2, SUM(F128:G128)))), 0),"Not required") -> 36440 | P128: 0 | Q128: 0 | R128: 1 | S128: 1 | U128: T1 (PZQ+ALB/MBD) | X128: 46569 | Y128: Njombe Town Council | AB128: TRUE
A129: =IF(INTRO!$E$34<>0,INTRO!$E$34,"") -> Tanzania | B129: Njombe | C129: Wanging'ombe District Council | D129: 169740 | E129: 14538 | F129: 42240 | G129: 112962 | H129: 99 | I129: 0 | J129: 3 | K129: 2 | L129: =IF(INTRO!$E$38="Endemic", IF($H129>0, IF($H129=4,"Unknown", IF($H129=99,"Stopped", $D129)), 0),"Not required") -> Stopped | M129: =IF(INTRO!$E$40="Endemic", IF($I129>0, IF($I129=4,"Unknown",IF($I129=99,"Stopped", $D129)), 0),"Not required") -> 0 | N129: =IF(INTRO!$E$42="Endemic", IF(AND($J129>1,$J129<5), IF($J129=4, "Unknown", E129+F129), 0),"Not required") -> 56778 | O129: =IF(INTRO!$E$44="Endemic", IF(AND($K129>0,$K129<5), IF($K129=4,"Unknown", IF($K129=1, $F129*0.33, IF($K129=2, $F129*0.5+$G129*0.2, SUM(F129:G129)))), 0),"Not required") -> 43712.4 | P129: 0 | Q129: 0 | R129: 1 | S129: 1 | U129: T1 (PZQ+ALB/MBD) | X129: 46570 | Y129: Wanging'ombe District Council | AB129: TRUE
A130: =IF(INTRO!$E$34<>0,INTRO!$E$34,"") -> Tanzania | B130: Pwani | C130: Bagamoyo District Council | D130: 111281 | E130: 6289 | F130: 27373 | G130: 77619 | H130: 99 | I130: 0 | J130: 3 | K130: 2 | L130: =IF(INTRO!$E$38="Endemic", IF($H130>0, IF($H130=4,"Unknown", IF($H130=99,"Stopped", $D130)), 0),"Not required") -> Stopped | M130: =IF(INTRO!$E$40="Endemic", IF($I130>0, IF($I130=4,"Unknown",IF($I130=99,"Stopped", $D130)), 0),"Not required") -> 0 | N130: =IF(INTRO!$E$42="Endemic", IF(AND($J130>1,$J130<5), IF($J130=4, "Unknown", E130+F130), 0),"Not required") -> 33662 | O130: =IF(INTRO!$E$44="Endemic", IF(AND($K130>0,$K130<5), IF($K130=4,"Unknown", IF($K130=1, $F130*0.33, IF($K130=2, $F130*0.5+$G130*0.2, SUM(F130:G130)))), 0),"Not required") -> 29210.3 | P130: 0 | Q130: 0 | R130: 1 | S130: 0 | U130: T3 (ALB/MBD) | X130: 46571 | Y130: Bagamoyo District Council | AB130: TRUE
A131: =IF(INTRO!$E$34<>0,INTRO!$E$34,"") -> Tanzania | B131: Pwani | C131: Chalinze District Council | D131: 243939 | E131: 22697 | F131: 51095 | G131: 170147 | H131: 99 | I131: 0 | J131: 3 | K131: 2 | L131: =IF(INTRO!$E$38="Endemic", IF($H131>0, IF($H131=4,"Unknown", IF($H131=99,"Stopped", $D131)), 0),"Not required") -> Stopped | M131: =IF(INTRO!$E$40="Endemic", IF($I131>0, IF($I131=4,"Unknown",IF($I131=99,"Stopped", $D131)), 0),"Not required") -> 0 | N131: =IF(INTRO!$E$42="Endemic", IF(AND($J131>1,$J131<5), IF($J131=4, "Unknown", E131+F131), 0),"Not required") -> 73792 | O131: =IF(INTRO!$E$44="Endemic", IF(AND($K131>0,$K131<5), IF($K131=4,"Unknown", IF($K131=1, $F131*0.33, IF($K131=2, $F131*0.5+$G131*0.2, SUM(F131:G131)))), 0),"Not required") -> 59576.9 | P131: 0 | Q131: 0 | R131: 1 | S131: 0 | U131: T3 (ALB/MBD) | X131: 46638 | Y131: Chalinze District Council | AB131: TRUE
A132: =IF(INTRO!$E$34<>0,INTRO!$E$34,"") -> Tanzania | B132: Pwani | C132: Kibaha District Council | D132: 80002 | E132: 4231 | F132: 19481 | G132: 56290 | H132: 1 | I132: 0 | J132: 3 | K132: 2 | L132: =IF(INTRO!$E$38="Endemic", IF($H132>0, IF($H132=4,"Unknown", IF($H132=99,"Stopped", $D132)), 0),"Not required") -> 80002 | M132: =IF(INTRO!$E$40="Endemic", IF($I132>0, IF($I132=4,"Unknown",IF($I132=99,"Stopped", $D132)), 0),"Not required") -> 0 | N132: =IF(INTRO!$E$42="Endemic", IF(AND($J132>1,$J132<5), IF($J132=4, "Unknown", E132+F132), 0),"Not required") -> 23712 | O132: =IF(INTRO!$E$44="Endemic", IF(AND($K132>0,$K132<5), IF($K132=4,"Unknown", IF($K132=1, $F132*0.33, IF($K132=2, $F132*0.5+$G132*0.2, SUM(F132:G132)))), 0),"Not required") -> 20998.5 | P132: 1 | Q132: 0 | R132: 1 | S132: 1 | T132: MDA1 (IVM+ALB) | U132: T1 (PZQ+ALB/MBD) | X132: 46572 | Y132: Kibaha District Council | AB132: TRUE
A133: =IF(INTRO!$E$34<>0,INTRO!$E$34,"") -> Tanzania | B133: Pwani | C133: Kibaha Town Council | D133: 146409 | E133: 6443 | F133: 35161 | G133: 104805 | H133: 99 | I133: 0 | J133: 3 | K133: 2 | L133: =IF(INTRO!$E$38="Endemic", IF($H133>0, IF($H133=4,"Unknown", IF($H133=99,"Stopped", $D133)), 0),"Not required") -> Stopped | M133: =IF(INTRO!$E$40="Endemic", IF($I133>0, IF($I133=4,"Unknown",IF($I133=99,"Stopped", $D133)), 0),"Not required") -> 0 | N133: =IF(INTRO!$E$42="Endemic", IF(AND($J133>1,$J133<5), IF($J133=4, "Unknown", E133+F133), 0),"Not required") -> 41604 | O133: =IF(INTRO!$E$44="Endemic", IF(AND($K133>0,$K133<5), IF($K133=4,"Unknown", IF($K133=1, $F133*0.33, IF($K133=2, $F133*0.5+$G133*0.2, SUM(F133:G133)))), 0),"Not required") -> 38541.5 | P133: 0 | Q133: 0 | R133: 1 | S133: 1 | U133: T1 (PZQ+ALB/MBD) | X133: 46573 | Y133: Kibaha Town Council | AB133: TRUE
A134: =IF(INTRO!$E$34<>0,INTRO!$E$34,"") -> Tanzania | B134: Pwani | C134: Kibiti District Council | D134: 118425 | E134: 4461 | F134: 34891 | G134: 79073 | H134: 99 | I134: 0 | J134: 3 | K134: 2 | L134: =IF(INTRO!$E$38="Endemic", IF($H134>0, IF($H134=4,"Unknown", IF($H134=99,"Stopped", $D134)), 0),"Not required") -> Stopped | M134: =IF(INTRO!$E$40="Endemic", IF($I134>0, IF($I134=4,"Unknown",IF($I134=99,"Stopped", $D134)), 0),"Not required") -> 0 | N134: =IF(INTRO!$E$42="Endemic", IF(AND($J134>1,$J134<5), IF($J134=4, "Unknown", E134+F134), 0),"Not required") -> 39352 | O134: =IF(INTRO!$E$44="Endemic", IF(AND($K134>0,$K134<5), IF($K134=4,"Unknown", IF($K134=1, $F134*0.33, IF($K134=2, $F134*0.5+$G134*0.2, SUM(F134:G134)))), 0),"Not required") -> 33260.1 | P134: 0 | Q134: 0 | R134: 1 | S134: 0 | U134: T3 (ALB/MBD) | X134: 46639 | Y134: Kibiti District Council | AB134: TRUE
A135: =IF(INTRO!$E$34<>0,INTRO!$E$34,"") -> Tanzania | B135: Pwani | C135: Kisarawe District Council | D135: 115769 | E135: 4326 | F135: 29405 | G135: 82038 | H135: 99 | I135: 0 | J135: 3 | K135: 2 | L135: =IF(INTRO!$E$38="Endemic", IF($H135>0, IF($H135=4,"Unknown", IF($H135=99,"Stopped", $D135)), 0),"Not required") -> Stopped | M135: =IF(INTRO!$E$40="Endemic", IF($I135>0, IF($I135=4,"Unknown",IF($I135=99,"Stopped", $D135)), 0),"Not required") -> 0 | N135: =IF(INTRO!$E$42="Endemic", IF(AND($J135>1,$J135<5), IF($J135=4, "Unknown", E135+F135), 0),"Not required") -> 33731 | O135: =IF(INTRO!$E$44="Endemic", IF(AND($K135>0,$K135<5), IF($K135=4,"Unknown", IF($K135=1, $F135*0.33, IF($K135=2, $F135*0.5+$G135*0.2, SUM(F135:G135)))), 0),"Not required") -> 31110.1 | P135: 0 | Q135: 0 | R135: 1 | S135: 0 | U135: T3 (ALB/MBD) | X135: 46574 | Y135: Kisarawe District Council | AB135: TRUE
A136: =IF(INTRO!$E$34<>0,INTRO!$E$34,"") -> Tanzania | B136: Pwani | C136: Mafia District Council | D136: 52915 | E136: 4652 | F136: 11265 | G136: 36998 | H136: 1 | I136: 0 | J136: 3 | K136: 2 | L136: =IF(INTRO!$E$38="Endemic", IF($H136>0, IF($H136=4,"Unknown", IF($H136=99,"Stopped", $D136)), 0),"Not required") -> 52915 | M136: =IF(INTRO!$E$40="Endemic", IF($I136>0, IF($I136=4,"Unknown",IF($I136=99,"Stopped", $D136)), 0),"Not required") -> 0 | N136: =IF(INTRO!$E$42="Endemic", IF(AND($J136>1,$J136<5), IF($J136=4, "Unknown", E136+F136), 0),"Not required") -> 15917 | O136: =IF(INTRO!$E$44="Endemic", IF(AND($K136>0,$K136<5), IF($K136=4,"Unknown", IF($K136=1, $F136*0.33, IF($K136=2, $F136*0.5+$G136*0.2, SUM(F136:G136)))), 0),"Not required") -> 13032.1 | P136: 1 | Q136: 0 | R136: 1 | S136: 1 | T136: MDA1 (IVM+ALB) | U136: T1 (PZQ+ALB/MBD) | X136: 46575 | Y136: Mafia District Council | AB136: TRUE
A137: =IF(INTRO!$E$34<>0,INTRO!$E$34,"") -> Tanzania | B137: Pwani | C137: Mkuranga District Council | D137: 254013 | E137: 6887 | F137: 74369 | G137: 172757 | H137: 99 | I137: 0 | J137: 3 | K137: 2 | L137: =IF(INTRO!$E$38="Endemic", IF($H137>0, IF($H137=4,"Unknown", IF($H137=99,"Stopped", $D137)), 0),"Not required") -> Stopped | M137: =IF(INTRO!$E$40="Endemic", IF($I137>0, IF($I137=4,"Unknown",IF($I137=99,"Stopped", $D137)), 0),"Not required") -> 0 | N137: =IF(INTRO!$E$42="Endemic", IF(AND($J137>1,$J137<5), IF($J137=4, "Unknown", E137+F137), 0),"Not required") -> 81256 | O137: =IF(INTRO!$E$44="Endemic", IF(AND($K137>0,$K137<5), IF($K137=4,"Unknown", IF($K137=1, $F137*0.33, IF($K137=2, $F137*0.5+$G137*0.2, SUM(F137:G137)))), 0),"Not required") -> 71735.9 | P137: 0 | Q137: 0 | R137: 1 | S137: 0 | U137: T3 (ALB/MBD) | X137: 46576 | Y137: Mkuranga District Council | AB137: TRUE
A138: =IF(INTRO!$E$34<>0,INTRO!$E$34,"") -> Tanzania | B138: Pwani | C138: Rufiji District Council | D138: 129154 | E138: 16661 | F138: 26256 | G138: 86237 | H138: 99 | I138: 0 | J138: 3 | K138: 2 | L138: =IF(INTRO!$E$38="Endemic", IF($H138>0, IF($H138=4,"Unknown", IF($H138=99,"Stopped", $D138)), 0),"Not required") -> Stopped | M138: =IF(INTRO!$E$40="Endemic", IF($I138>0, IF($I138=4,"Unknown",IF($I138=99,"Stopped", $D138)), 0),"Not required") -> 0 | N138: =IF(INTRO!$E$42="Endemic", IF(AND($J138>1,$J138<5), IF($J138=4, "Unknown", E138+F138), 0),"Not required") -> 42917 | O138: =IF(INTRO!$E$44="Endemic", IF(AND($K138>0,$K138<5), IF($K138=4,"Unknown", IF($K138=1, $F138*0.33, IF($K138=2, $F138*0.5+$G138*0.2, SUM(F138:G138)))), 0),"Not required") -> 30375.4 | P138: 0 | Q138: 0 | R138: 1 | S138: 0 | U138: T3 (ALB/MBD) | X138: 46577 | Y138: Rufiji District Council | AB138: =Y138=C138 -> TRUE
A139: =IF(INTRO!$E$34<>0,INTRO!$E$34,"") -> Tanzania | B139: Rukwa | C139: Kalambo District Council | D139: 250908 | E139: 32367 | F139: 53400 | G139: 165141 | H139: 99 | I139: 0 | J139: 3 | K139: 2 | L139: =IF(INTRO!$E$38="Endemic", IF($H139>0, IF($H139=4,"Unknown", IF($H139=99,"Stopped", $D139)), 0),"Not required") -> Stopped | M139: =IF(INTRO!$E$40="Endemic", IF($I139>0, IF($I139=4,"Unknown",IF($I139=99,"Stopped", $D139)), 0),"Not required") -> 0 | N139: =IF(INTRO!$E$42="Endemic", IF(AND($J139>1,$J139<5), IF($J139=4, "Unknown", E139+F139), 0),"Not required") -> 85767 | O139: =IF(INTRO!$E$44="Endemic", IF(AND($K139>0,$K139<5), IF($K139=4,"Unknown", IF($K139=1, $F139*0.33, IF($K139=2, $F139*0.5+$G139*0.2, SUM(F139:G139)))), 0),"Not required") -> 59728.2 | P139: 0 | Q139: 0 | R139: 1 | S139: 0 | U139: T3 (ALB/MBD) | X139: 46578 | Y139: Kalambo District Council | AB139: TRUE
A140: =IF(INTRO!$E$34<>0,INTRO!$E$34,"") -> Tanzania | B140: Rukwa | C140: Nkasi District Council | D140: 339698 | E140: 28308 | F140: 86665 | G140: 224725 | H140: 99 | I140: 0 | J140: 3 | K140: 2 | L140: =IF(INTRO!$E$38="Endemic", IF($H140>0, IF($H140=4,"Unknown", IF($H140=99,"Stopped", $D140)), 0),"Not required") -> Stopped | M140: =IF(INTRO!$E$40="Endemic", IF($I140>0, IF($I140=4,"Unknown",IF($I140=99,"Stopped", $D140)), 0),"Not required") -> 0 | N140: =IF(INTRO!$E$42="Endemic", IF(AND($J140>1,$J140<5), IF($J140=4, "Unknown", E140+F140), 0),"Not required") -> 114973 | O140: =IF(INTRO!$E$44="Endemic", IF(AND($K140>0,$K140<5), IF($K140=4,"Unknown", IF($K140=1, $F140*0.33, IF($K140=2, $F140*0.5+$G140*0.2, SUM(F140:G140)))), 0),"Not required") -> 88277.5 | P140: 0 | Q140: 0 | R140: 1 | S140: 0 | U140: T3 (ALB/MBD) | X140: 46579 | Y140: Nkasi District Council | AB140: TRUE
A141: =IF(INTRO!$E$34<>0,INTRO!$E$34,"") -> Tanzania | B141: Rukwa | C141: Sumbawanga District Council | D141: 369472 | E141: 47663 | F141: 77659 | G141: 244150 | H141: 99 | I141: 0 | J141: 3 | K141: 2 | L141: =IF(INTRO!$E$38="Endemic", IF($H141>0, IF($H141=4,"Unknown", IF($H141=99,"Stopped", $D141)), 0),"Not required") -> Stopped | M141: =IF(INTRO!$E$40="Endemic", IF($I141>0, IF($I141=4,"Unknown",IF($I141=99,"Stopped", $D141)), 0),"Not required") -> 0 | N141: =IF(INTRO!$E$42="Endemic", IF(AND($J141>1,$J141<5), IF($J141=4, "Unknown", E141+F141), 0),"Not required") -> 125322 | O141: =IF(INTRO!$E$44="Endemic", IF(AND($K141>0,$K141<5), IF($K141=4,"Unknown", IF($K141=1, $F141*0.33, IF($K141=2, $F141*0.5+$G141*0.2, SUM(F141:G141)))), 0),"Not required") -> 87659.5 | P141: 0 | Q141: 0 | R141: 1 | S141: 0 | U141: T3 (ALB/MBD) | X141: 46580 | Y141: Sumbawanga District Council | AB141: TRUE
A142: =IF(INTRO!$E$34<>0,INTRO!$E$34,"") -> Tanzania | B142: Rukwa | C142: Sumbawanga Municipal Council | D142: 253437 | E142: 32693.30961 | F142: 85777 | G142: 134966.6904 | H142: 99 | I142: 0 | J142: 3 | K142: 2 | L142: =IF(INTRO!$E$38="Endemic", IF($H142>0, IF($H142=4,"Unknown", IF($H142=99,"Stopped", $D142)), 0),"Not required") -> Stopped | M142: =IF(INTRO!$E$40="Endemic", IF($I142>0, IF($I142=4,"Unknown",IF($I142=99,"Stopped", $D142)), 0),"Not required") -> 0 | N142: =IF(INTRO!$E$42="Endemic", IF(AND($J142>1,$J142<5), IF($J142=4, "Unknown", E142+F142), 0),"Not required") -> 118470.3096 | O142: =IF(INTRO!$E$44="Endemic", IF(AND($K142>0,$K142<5), IF($K142=4,"Unknown", IF($K142=1, $F142*0.33, IF($K142=2, $F142*0.5+$G142*0.2, SUM(F142:G142)))), 0),"Not required") -> 69881.83808 | P142: 0 | Q142: 0 | R142: 1 | S142: 0 | U142: T3 (ALB/MBD) | X142: 46581 | Y142: Sumbawanga Municipal Council | AB142: TRUE
A143: =IF(INTRO!$E$34<>0,INTRO!$E$34,"") -> Tanzania | B143: Ruvuma | C143: Madaba District Council | D143: 54119 | E143: 6333 | F143: 10961 | G143: 36825 | H143: 99 | I143: 1 | J143: 3 | K143: 2 | L143: =IF(INTRO!$E$38="Endemic", IF($H143>0, IF($H143=4,"Unknown", IF($H143=99,"Stopped", $D143)), 0),"Not required") -> Stopped | M143: =IF(INTRO!$E$40="Endemic", IF($I143>0, IF($I143=4,"Unknown",IF($I143=99,"Stopped", $D143)), 0),"Not required") -> 54119 | N143: =IF(INTRO!$E$42="Endemic", IF(AND($J143>1,$J143<5), IF($J143=4, "Unknown", E143+F143), 0),"Not required") -> 17294 | O143: =IF(INTRO!$E$44="Endemic", IF(AND($K143>0,$K143<5), IF($K143=4,"Unknown", IF($K143=1, $F143*0.33, IF($K143=2, $F143*0.5+$G143*0.2, SUM(F143:G143)))), 0),"Not required") -> 12845.5 | P143: 0 | Q143: 1 | R143: 1 | S143: 1 | T143: MDA3 (IVM) | U143: T1 (PZQ+ALB/MBD) | X143: 46640 | Y143: Madaba District Council | AB143: TRUE
A144: =IF(INTRO!$E$34<>0,INTRO!$E$34,"") -> Tanzania | B144: Ruvuma | C144: Mbinga District Council | D144: 254185 | E144: 32789 | F144: 49353 | G144: 172043 | H144: 99 | I144: 1 | J144: 3 | K144: 2 | L144: =IF(INTRO!$E$38="Endemic", IF($H144>0, IF($H144=4,"Unknown", IF($H144=99,"Stopped", $D144)), 0),"Not required") -> Stopped | M144: =IF(INTRO!$E$40="Endemic", IF($I144>0, IF($I144=4,"Unknown",IF($I144=99,"Stopped", $D144)), 0),"Not required") -> 254185 | N144: =IF(INTRO!$E$42="Endemic", IF(AND($J144>1,$J144<5), IF($J144=4, "Unknown", E144+F144), 0),"Not required") -> 82142 | O144: =IF(INTRO!$E$44="Endemic", IF(AND($K144>0,$K144<5), IF($K144=4,"Unknown", IF($K144=1, $F144*0.33, IF($K144=2, $F144*0.5+$G144*0.2, SUM(F144:G144)))), 0),"Not required") -> 59085.1 | P144: 0 | Q144: 1 | R144: 1 | S144: 1 | T144: MDA3 (IVM) | U144: T1 (PZQ+ALB/MBD) | X144: 46582 | Y144: Mbinga District Council | AB144: TRUE
A145: =IF(INTRO!$E$34<>0,INTRO!$E$34,"") -> Tanzania | B145: Ruvuma | C145: Mbinga Town Council | D145: 146468 | E145: 18895 | F145: 28438 | G145: 99135 | H145: 99 | I145: 1 | J145: 3 | K145: 2 | L145: =IF(INTRO!$E$38="Endemic", IF($H145>0, IF($H145=4,"Unknown", IF($H145=99,"Stopped", $D145)), 0),"Not required") -> Stopped | M145: =IF(INTRO!$E$40="Endemic", IF($I145>0, IF($I145=4,"Unknown",IF($I145=99,"Stopped", $D145)), 0),"Not required") -> 146468 | N145: =IF(INTRO!$E$42="Endemic", IF(AND($J145>1,$J145<5), IF($J145=4, "Unknown", E145+F145), 0),"Not required") -> 47333 | O145: =IF(INTRO!$E$44="Endemic", IF(AND($K145>0,$K145<5), IF($K145=4,"Unknown", IF($K145=1, $F145*0.33, IF($K145=2, $F145*0.5+$G145*0.2, SUM(F145:G145)))), 0),"Not required") -> 34046 | P145: 0 | Q145: 1 | R145: 1 | S145: 1 | T145: MDA3 (IVM) | U145: T1 (PZQ+ALB/MBD) | X145: 46641 | Y145: Mbinga Town Council | AB145: TRUE
A146: =IF(INTRO!$E$34<>0,INTRO!$E$34,"") -> Tanzania | B146: Ruvuma | C146: Namtumbo District Council | D146: 228417 | E146: 14364 | F146: 60332 | G146: 153721 | H146: 99 | I146: 1 | J146: 3 | K146: 2 | L146: =IF(INTRO!$E$38="Endemic", IF($H146>0, IF($H146=4,"Unknown", IF($H146=99,"Stopped", $D146)), 0),"Not required") -> Stopped | M146: =IF(INTRO!$E$40="Endemic", IF($I146>0, IF($I146=4,"Unknown",IF($I146=99,"Stopped", $D146)), 0),"Not required") -> 228417 | N146: =IF(INTRO!$E$42="Endemic", IF(AND($J146>1,$J146<5), IF($J146=4, "Unknown", E146+F146), 0),"Not required") -> 74696 | O146: =IF(INTRO!$E$44="Endemic", IF(AND($K146>0,$K146<5), IF($K146=4,"Unknown", IF($K146=1, $F146*0.33, IF($K146=2, $F146*0.5+$G146*0.2, SUM(F146:G146)))), 0),"Not required") -> 60910.2 | P146: 0 | Q146: 1 | R146: 1 | S146: 1 | T146: MDA3 (IVM) | U146: T1 (PZQ+ALB/MBD) | X146: 46583 | Y146: Namtumbo District Council | AB146: TRUE
A147: =IF(INTRO!$E$34<>0,INTRO!$E$34,"") -> Tanzania | B147: Ruvuma | C147: Nyasa District Council | D147: 165571 | E147: 10433 | F147: 43675 | G147: 111463 | H147: 99 | I147: 1 | J147: 3 | K147: 2 | L147: =IF(INTRO!$E$38="Endemic", IF($H147>0, IF($H147=4,"Unknown", IF($H147=99,"Stopped", $D147)), 0),"Not required") -> Stopped | M147: =IF(INTRO!$E$40="Endemic", IF($I147>0, IF($I147=4,"Unknown",IF($I147=99,"Stopped", $D147)), 0),"Not required") -> 165571 | N147: =IF(INTRO!$E$42="Endemic", IF(AND($J147>1,$J147<5), IF($J147=4, "Unknown", E147+F147), 0),"Not required") -> 54108 | O147: =IF(INTRO!$E$44="Endemic", IF(AND($K147>0,$K147<5), IF($K147=4,"Unknown", IF($K147=1, $F147*0.33, IF($K147=2, $F147*0.5+$G147*0.2, SUM(F147:G147)))), 0),"Not required") -> 44130.1 | P147: 0 | Q147: 1 | R147: 1 | S147: 1 | T147: MDA3 (IVM) | U147: T1 (PZQ+ALB/MBD) | X147: 46584 | Y147: Nyasa District Council | AB147: TRUE
A148: =IF(INTRO!$E$34<>0,INTRO!$E$34,"") -> Tanzania | B148: Ruvuma | C148: Songea District Council | D148: 142786 | E148: 17978 | F148: 27649 | G148: 97159 | H148: 99 | I148: 1 | J148: 3 | K148: 2 | L148: =IF(INTRO!$E$38="Endemic", IF($H148>0, IF($H148=4,"Unknown", IF($H148=99,"Stopped", $D148)), 0),"Not required") -> Stopped | M148: =IF(INTRO!$E$40="Endemic", IF($I148>0, IF($I148=4,"Unknown",IF($I148=99,"Stopped", $D148)), 0),"Not required") -> 142786 | N148: =IF(INTRO!$E$42="Endemic", IF(AND($J148>1,$J148<5), IF($J148=4, "Unknown", E148+F148), 0),"Not required") -> 45627 | O148: =IF(INTRO!$E$44="Endemic", IF(AND($K148>0,$K148<5), IF($K148=4,"Unknown", IF($K148=1, $F148*0.33, IF($K148=2, $F148*0.5+$G148*0.2, SUM(F148:G148)))), 0),"Not required") -> 33256.3 | P148: 0 | Q148: 1 | R148: 1 | S148: 1 | T148: MDA3 (IVM) | U148: T1 (PZQ+ALB/MBD) | X148: 46585 | Y148: Songea District Council | AB148: TRUE
A149: =IF(INTRO!$E$34<>0,INTRO!$E$34,"") -> Tanzania | B149: Ruvuma | C149: Songea Municipal Council | D149: 230309 | E149: 17208 | F149: 54043 | G149: 159058 | H149: 99 | I149: 1 | J149: 3 | K149: 2 | L149: =IF(INTRO!$E$38="Endemic", IF($H149>0, IF($H149=4,"Unknown", IF($H149=99,"Stopped", $D149)), 0),"Not required") -> Stopped | M149: =IF(INTRO!$E$40="Endemic", IF($I149>0, IF($I149=4,"Unknown",IF($I149=99,"Stopped", $D149)), 0),"Not required") -> 230309 | N149: =IF(INTRO!$E$42="Endemic", IF(AND($J149>1,$J149<5), IF($J149=4, "Unknown", E149+F149), 0),"Not required") -> 71251 | O149: =IF(INTRO!$E$44="Endemic", IF(AND($K149>0,$K149<5), IF($K149=4,"Unknown", IF($K149=1, $F149*0.33, IF($K149=2, $F149*0.5+$G149*0.2, SUM(F149:G149)))), 0),"Not required") -> 58833.1 | P149: 0 | Q149: 0 | R149: 1 | S149: 1 | T149: MDA3 (IVM) | U149: T1 (PZQ+ALB/MBD) | X149: 46586 | Y149: Songea Municipal Council | AB149: TRUE
A150: =IF(INTRO!$E$34<>0,INTRO!$E$34,"") -> Tanzania | B150: Ruvuma | C150: Tunduru District Council | D150: 349982 | E150: 55679 | F150: 67211 | G150: 227092 | H150: 99 | I150: 1 | J150: 3 | K150: 3 | L150: =IF(INTRO!$E$38="Endemic", IF($H150>0, IF($H150=4,"Unknown", IF($H150=99,"Stopped", $D150)), 0),"Not required") -> Stopped | M150: =IF(INTRO!$E$40="Endemic", IF($I150>0, IF($I150=4,"Unknown",IF($I150=99,"Stopped", $D150)), 0),"Not required") -> 349982 | N150: =IF(INTRO!$E$42="Endemic", IF(AND($J150>1,$J150<5), IF($J150=4, "Unknown", E150+F150), 0),"Not required") -> 122890 | O150: =IF(INTRO!$E$44="Endemic", IF(AND($K150>0,$K150<5), IF($K150=4,"Unknown", IF($K150=1, $F150*0.33, IF($K150=2, $F150*0.5+$G150*0.2, SUM(F150:G150)))), 0),"Not required") -> 294303 | P150: 0 | Q150: 1 | R150: 1 | S150: 1 | T150: MDA3 (IVM) | U150: T1 (PZQ+ALB/MBD) | X150: 46587 | Y150: Tunduru District Council | AB150: TRUE
A151: =IF(INTRO!$E$34<>0,INTRO!$E$34,"") -> Tanzania | B151: Shinyanga | C151: Kahama Town Council | D151: 274374 | E151: 35394.24448 | F151: 87078 | G151: 151901.7555 | H151: 0 | I151: 0 | J151: 3 | K151: 2 | L151: =IF(INTRO!$E$38="Endemic", IF($H151>0, IF($H151=4,"Unknown", IF($H151=99,"Stopped", $D151)), 0),"Not required") -> 0 | M151: =IF(INTRO!$E$40="Endemic", IF($I151>0, IF($I151=4,"Unknown",IF($I151=99,"Stopped", $D151)), 0),"Not required") -> 0 | N151: =IF(INTRO!$E$42="Endemic", IF(AND($J151>1,$J151<5), IF($J151=4, "Unknown", E151+F151), 0),"Not required") -> 122472.2445 | O151: =IF(INTRO!$E$44="Endemic", IF(AND($K151>0,$K151<5), IF($K151=4,"Unknown", IF($K151=1, $F151*0.33, IF($K151=2, $F151*0.5+$G151*0.2, SUM(F151:G151)))), 0),"Not required") -> 73919.3511 | P151: 0 | Q151: 0 | R151: 1 | S151: 1 | U151: T1 (PZQ+ALB/MBD) | X151: 46589 | Y151: Kahama Town Council | AB151: TRUE
A152: =IF(INTRO!$E$34<>0,INTRO!$E$34,"") -> Tanzania | B152: Shinyanga | C152: Kishapu District Council | D152: 309244 | E152: 13634 | F152: 88003 | G152: 207607 | H152: 0 | I152: 0 | J152: 3 | K152: 2 | L152: =IF(INTRO!$E$38="Endemic", IF($H152>0, IF($H152=4,"Unknown", IF($H152=99,"Stopped", $D152)), 0),"Not required") -> 0 | M152: =IF(INTRO!$E$40="Endemic", IF($I152>0, IF($I152=4,"Unknown",IF($I152=99,"Stopped", $D152)), 0),"Not required") -> 0 | N152: =IF(INTRO!$E$42="Endemic", IF(AND($J152>1,$J152<5), IF($J152=4, "Unknown", E152+F152), 0),"Not required") -> 101637 | O152: =IF(INTRO!$E$44="Endemic", IF(AND($K152>0,$K152<5), IF($K152=4,"Unknown", IF($K152=1, $F152*0.33, IF($K152=2, $F152*0.5+$G152*0.2, SUM(F152:G152)))), 0),"Not required") -> 85522.9 | P152: 0 | Q152: 0 | R152: 1 | S152: 1 | U152: T1 (PZQ+ALB/MBD) | X152: 46590 | Y152: Kishapu District Council | AB152: TRUE
A153: =IF(INTRO!$E$34<>0,INTRO!$E$34,"") -> Tanzania | B153: Shinyanga | C153: Msalala District Council | D153: 284024 | E153: 29564 | F153: 66129 | G153: 188331 | H153: 0 | I153: 0 | J153: 3 | K153: 2 | L153: =IF(INTRO!$E$38="Endemic", IF($H153>0, IF($H153=4,"Unknown", IF($H153=99,"Stopped", $D153)), 0),"Not required") -> 0 | M153: =IF(INTRO!$E$40="Endemic", IF($I153>0, IF($I153=4,"Unknown",IF($I153=99,"Stopped", $D153)), 0),"Not required") -> 0 | N153: =IF(INTRO!$E$42="Endemic", IF(AND($J153>1,$J153<5), IF($J153=4, "Unknown", E153+F153), 0),"Not required") -> 95693 | O153: =IF(INTRO!$E$44="Endemic", IF(AND($K153>0,$K153<5), IF($K153=4,"Unknown", IF($K153=1, $F153*0.33, IF($K153=2, $F153*0.5+$G153*0.2, SUM(F153:G153)))), 0),"Not required") -> 70730.7 | P153: 0 | Q153: 0 | R153: 1 | S153: 1 | U153: T1 (PZQ+ALB/MBD) | X153: 46642 | Y153: Msalala District Council | AB153: TRUE
A154: =IF(INTRO!$E$34<>0,INTRO!$E$34,"") -> Tanzania | B154: Shinyanga | C154: Shinyanga District Council | D154: 378829 | E154: 36582 | F154: 89943 | G154: 252304 | H154: 0 | I154: 0 | J154: 3 | K154: 2 | L154: =IF(INTRO!$E$38="Endemic", IF($H154>0, IF($H154=4,"Unknown", IF($H154=99,"Stopped", $D154)), 0),"Not required") -> 0 | M154: =IF(INTRO!$E$40="Endemic", IF($I154>0, IF($I154=4,"Unknown",IF($I154=99,"Stopped", $D154)), 0),"Not required") -> 0 | N154: =IF(INTRO!$E$42="Endemic", IF(AND($J154>1,$J154<5), IF($J154=4, "Unknown", E154+F154), 0),"Not required") -> 126525 | O154: =IF(INTRO!$E$44="Endemic", IF(AND($K154>0,$K154<5), IF($K154=4,"Unknown", IF($K154=1, $F154*0.33, IF($K154=2, $F154*0.5+$G154*0.2, SUM(F154:G154)))), 0),"Not required") -> 95432.3 | P154: 0 | Q154: 0 | R154: 1 | S154: 1 | U154: T1 (PZQ+ALB/MBD) | X154: 46591 | Y154: Shinyanga District Council | AB154: TRUE
A155: =IF(INTRO!$E$34<>0,INTRO!$E$34,"") -> Tanzania | B155: Shinyanga | C155: Shinyanga Municipal Council | D155: 182824 | E155: 13799 | F155: 42184 | G155: 126841 | H155: 0 | I155: 0 | J155: 3 | K155: 2 | L155: =IF(INTRO!$E$38="Endemic", IF($H155>0, IF($H155=4,"Unknown", IF($H155=99,"Stopped", $D155)), 0),"Not required") -> 0 | M155: =IF(INTRO!$E$40="Endemic", IF($I155>0, IF($I155=4,"Unknown",IF($I155=99,"Stopped", $D155)), 0),"Not required") -> 0 | N155: =IF(INTRO!$E$42="Endemic", IF(AND($J155>1,$J155<5), IF($J155=4, "Unknown", E155+F155), 0),"Not required") -> 55983 | O155: =IF(INTRO!$E$44="Endemic", IF(AND($K155>0,$K155<5), IF($K155=4,"Unknown", IF($K155=1, $F155*0.33, IF($K155=2, $F155*0.5+$G155*0.2, SUM(F155:G155)))), 0),"Not required") -> 46460.2 | P155: 0 | Q155: 0 | R155: 1 | S155: 1 | U155: T1 (PZQ+ALB/MBD) | X155: 46592 | Y155: Shinyanga Municipal Council | AB155: TRUE
A156: =IF(INTRO!$E$34<>0,INTRO!$E$34,"") -> Tanzania | B156: Shinyanga | C156: Ushetu District Council | D156: 309340 | E156: 21151 | F156: 83071 | G156: 205118 | H156: 0 | I156: 0 | J156: 3 | K156: 2 | L156: =IF(INTRO!$E$38="Endemic", IF($H156>0, IF($H156=4,"Unknown", IF($H156=99,"Stopped", $D156)), 0),"Not required") -> 0 | M156: =IF(INTRO!$E$40="Endemic", IF($I156>0, IF($I156=4,"Unknown",IF($I156=99,"Stopped", $D156)), 0),"Not required") -> 0 | N156: =IF(INTRO!$E$42="Endemic", IF(AND($J156>1,$J156<5), IF($J156=4, "Unknown", E156+F156), 0),"Not required") -> 104222 | O156: =IF(INTRO!$E$44="Endemic", IF(AND($K156>0,$K156<5), IF($K156=4,"Unknown", IF($K156=1, $F156*0.33, IF($K156=2, $F156*0.5+$G156*0.2, SUM(F156:G156)))), 0),"Not required") -> 82559.1 | P156: 0 | Q156: 0 | R156: 1 | S156: 1 | U156: T1 (PZQ+ALB/MBD) | X156: 46643 | Y156: Ushetu District Council | AB156: TRUE
A157: =IF(INTRO!$E$34<>0,INTRO!$E$34,"") -> Tanzania | B157: Simiyu | C157: Bariadi District Council | D157: 297495 | E157: 12252 | F157: 90094 | G157: 195149 | H157: 0 | I157: 0 | J157: 3 | K157: 3 | L157: =IF(INTRO!$E$38="Endemic", IF($H157>0, IF($H157=4,"Unknown", IF($H157=99,"Stopped", $D157)), 0),"Not required") -> 0 | M157: =IF(INTRO!$E$40="Endemic", IF($I157>0, IF($I157=4,"Unknown",IF($I157=99,"Stopped", $D157)), 0),"Not required") -> 0 | N157: =IF(INTRO!$E$42="Endemic", IF(AND($J157>1,$J157<5), IF($J157=4, "Unknown", E157+F157), 0),"Not required") -> 102346 | O157: =IF(INTRO!$E$44="Endemic", IF(AND($K157>0,$K157<5), IF($K157=4,"Unknown", IF($K157=1, $F157*0.33, IF($K157=2, $F157*0.5+$G157*0.2, SUM(F157:G157)))), 0),"Not required") -> 285243 | P157: 0 | Q157: 0 | R157: 1 | S157: 1 | U157: T1 (PZQ+ALB/MBD) | X157: 46593 | Y157: Bariadi District Council | AB157: TRUE
A158: =IF(INTRO!$E$34<>0,INTRO!$E$34,"") -> Tanzania | B158: Simiyu | C158: Bariadi Town Council | D158: 173202 | E158: 6545 | F158: 53041 | G158: 113616 | H158: 0 | I158: 0 | J158: 3 | K158: 3 | L158: =IF(INTRO!$E$38="Endemic", IF($H158>0, IF($H158=4,"Unknown", IF($H158=99,"Stopped", $D158)), 0),"Not required") -> 0 | M158: =IF(INTRO!$E$40="Endemic", IF($I158>0, IF($I158=4,"Unknown",IF($I158=99,"Stopped", $D158)), 0),"Not required") -> 0 | N158: =IF(INTRO!$E$42="Endemic", IF(AND($J158>1,$J158<5), IF($J158=4, "Unknown", E158+F158), 0),"Not required") -> 59586 | O158: =IF(INTRO!$E$44="Endemic", IF(AND($K158>0,$K158<5), IF($K158=4,"Unknown", IF($K158=1, $F158*0.33, IF($K158=2, $F158*0.5+$G158*0.2, SUM(F158:G158)))), 0),"Not required") -> 166657 | P158: 0 | Q158: 0 | R158: 1 | S158: 1 | U158: T1 (PZQ+ALB/MBD) | X158: 46594 | Y158: Bariadi Town Council | AB158: TRUE
A159: =IF(INTRO!$E$34<>0,INTRO!$E$34,"") -> Tanzania | B159: Simiyu | C159: Busega District Council | D159: 226599 | E159: 29231.2746 | F159: 83962 | G159: 113405.7254 | H159: 0 | I159: 0 | J159: 3 | K159: 2 | L159: =IF(INTRO!$E$38="Endemic", IF($H159>0, IF($H159=4,"Unknown", IF($H159=99,"Stopped", $D159)), 0),"Not required") -> 0 | M159: =IF(INTRO!$E$40="Endemic", IF($I159>0, IF($I159=4,"Unknown",IF($I159=99,"Stopped", $D159)), 0),"Not required") -> 0 | N159: =IF(INTRO!$E$42="Endemic", IF(AND($J159>1,$J159<5), IF($J159=4, "Unknown", E159+F159), 0),"Not required") -> 113193.2746 | O159: =IF(INTRO!$E$44="Endemic", IF(AND($K159>0,$K159<5), IF($K159=4,"Unknown", IF($K159=1, $F159*0.33, IF($K159=2, $F159*0.5+$G159*0.2, SUM(F159:G159)))), 0),"Not required") -> 64662.14508 | P159: 0 | Q159: 0 | R159: 1 | S159: 1 | U159: T1 (PZQ+ALB/MBD) | X159: 46595 | Y159: Busega District Council | AB159: TRUE
A160: =IF(INTRO!$E$34<>0,INTRO!$E$34,"") -> Tanzania | B160: Simiyu | C160: Itilima District Council | D160: 349364 | E160: 22844 | F160: 99917 | G160: 226603 | H160: 0 | I160: 0 | J160: 3 | K160: 3 | L160: =IF(INTRO!$E$38="Endemic", IF($H160>0, IF($H160=4,"Unknown", IF($H160=99,"Stopped", $D160)), 0),"Not required") -> 0 | M160: =IF(INTRO!$E$40="Endemic", IF($I160>0, IF($I160=4,"Unknown",IF($I160=99,"Stopped", $D160)), 0),"Not required") -> 0 | N160: =IF(INTRO!$E$42="Endemic", IF(AND($J160>1,$J160<5), IF($J160=4, "Unknown", E160+F160), 0),"Not required") -> 122761 | O160: =IF(INTRO!$E$44="Endemic", IF(AND($K160>0,$K160<5), IF($K160=4,"Unknown", IF($K160=1, $F160*0.33, IF($K160=2, $F160*0.5+$G160*0.2, SUM(F160:G160)))), 0),"Not required") -> 326520 | P160: 0 | Q160: 0 | R160: 1 | S160: 1 | U160: T1 (PZQ+ALB/MBD) | X160: 46596 | Y160: Itilima District Council | AB160: TRUE
A161: =IF(INTRO!$E$34<>0,INTRO!$E$34,"") -> Tanzania | B161: Simiyu | C161: Maswa District Council | D161: 383004 | E161: 49408 | F161: 79352 | G161: 254244 | H161: 0 | I161: 0 | J161: 3 | K161: 3 | L161: =IF(INTRO!$E$38="Endemic", IF($H161>0, IF($H161=4,"Unknown", IF($H161=99,"Stopped", $D161)), 0),"Not required") -> 0 | M161: =IF(INTRO!$E$40="Endemic", IF($I161>0, IF($I161=4,"Unknown",IF($I161=99,"Stopped", $D161)), 0),"Not required") -> 0 | N161: =IF(INTRO!$E$42="Endemic", IF(AND($J161>1,$J161<5), IF($J161=4, "Unknown", E161+F161), 0),"Not required") -> 128760 | O161: =IF(INTRO!$E$44="Endemic", IF(AND($K161>0,$K161<5), IF($K161=4,"Unknown", IF($K161=1, $F161*0.33, IF($K161=2, $F161*0.5+$G161*0.2, SUM(F161:G161)))), 0),"Not required") -> 333596 | P161: 0 | Q161: 0 | R161: 1 | S161: 1 | U161: T1 (PZQ+ALB/MBD) | X161: 46597 | Y161: Maswa District Council | AB161: TRUE
A162: =IF(INTRO!$E$34<>0,INTRO!$E$34,"") -> Tanzania | B162: Simiyu | C162: Meatu District Council | D162: 333469 | E162: 43017 | F162: 69679 | G162: 220773 | H162: 0 | I162: 0 | J162: 3 | K162: 2 | L162: =IF(INTRO!$E$38="Endemic", IF($H162>0, IF($H162=4,"Unknown", IF($H162=99,"Stopped", $D162)), 0),"Not required") -> 0 | M162: =IF(INTRO!$E$40="Endemic", IF($I162>0, IF($I162=4,"Unknown",IF($I162=99,"Stopped", $D162)), 0),"Not required") -> 0 | N162: =IF(INTRO!$E$42="Endemic", IF(AND($J162>1,$J162<5), IF($J162=4, "Unknown", E162+F162), 0),"Not required") -> 112696 | O162: =IF(INTRO!$E$44="Endemic", IF(AND($K162>0,$K162<5), IF($K162=4,"Unknown", IF($K162=1, $F162*0.33, IF($K162=2, $F162*0.5+$G162*0.2, SUM(F162:G162)))), 0),"Not required") -> 78994.1 | P162: 0 | Q162: 0 | R162: 1 | S162: 1 | U162: T1 (PZQ+ALB/MBD) | X162: 46598 | Y162: Meatu District Council | AB162: TRUE
A163: =IF(INTRO!$E$34<>0,INTRO!$E$34,"") -> Tanzania | B163: Singida | C163: Ikungi District Council | D163: 312861 | E163: 29422 | F163: 74024 | G163: 209415 | H163: 99 | I163: 0 | J163: 3 | K163: 2 | L163: =IF(INTRO!$E$38="Endemic", IF($H163>0, IF($H163=4,"Unknown", IF($H163=99,"Stopped", $D163)), 0),"Not required") -> Stopped | M163: =IF(INTRO!$E$40="Endemic", IF($I163>0, IF($I163=4,"Unknown",IF($I163=99,"Stopped", $D163)), 0),"Not required") -> 0 | N163: =IF(INTRO!$E$42="Endemic", IF(AND($J163>1,$J163<5), IF($J163=4, "Unknown", E163+F163), 0),"Not required") -> 103446 | O163: =IF(INTRO!$E$44="Endemic", IF(AND($K163>0,$K163<5), IF($K163=4,"Unknown", IF($K163=1, $F163*0.33, IF($K163=2, $F163*0.5+$G163*0.2, SUM(F163:G163)))), 0),"Not required") -> 78895 | P163: 0 | Q163: 0 | R163: 1 | S163: 0 | U163: T3 (ALB/MBD) | X163: 46599 | Y163: Ikungi District Council | AB163: TRUE
A164: =IF(INTRO!$E$34<>0,INTRO!$E$34,"") -> Tanzania | B164: Singida | C164: Iramba District Council | D164: 270822 | E164: 30355 | F164: 58322 | G164: 182145 | H164: 99 | I164: 0 | J164: 3 | K164: 2 | L164: =IF(INTRO!$E$38="Endemic", IF($H164>0, IF($H164=4,"Unknown", IF($H164=99,"Stopped", $D164)), 0),"Not required") -> Stopped | M164: =IF(INTRO!$E$40="Endemic", IF($I164>0, IF($I164=4,"Unknown",IF($I164=99,"Stopped", $D164)), 0),"Not required") -> 0 | N164: =IF(INTRO!$E$42="Endemic", IF(AND($J164>1,$J164<5), IF($J164=4, "Unknown", E164+F164), 0),"Not required") -> 88677 | O164: =IF(INTRO!$E$44="Endemic", IF(AND($K164>0,$K164<5), IF($K164=4,"Unknown", IF($K164=1, $F164*0.33, IF($K164=2, $F164*0.5+$G164*0.2, SUM(F164:G164)))), 0),"Not required") -> 65590 | P164: 0 | Q164: 0 | R164: 1 | S164: 0 | U164: T3 (ALB/MBD) | X164: 46600 | Y164: Iramba District Council | AB164: TRUE
A165: =IF(INTRO!$E$34<>0,INTRO!$E$34,"") -> Tanzania | B165: Singida | C165: Itigi District Council | D165: 129020 | E165: 6974 | F165: 35203 | G165: 86843 | H165: 99 | I165: 0 | J165: 3 | K165: 2 | L165: =IF(INTRO!$E$38="Endemic", IF($H165>0, IF($H165=4,"Unknown", IF($H165=99,"Stopped", $D165)), 0),"Not required") -> Stopped | M165: =IF(INTRO!$E$40="Endemic", IF($I165>0, IF($I165=4,"Unknown",IF($I165=99,"Stopped", $D165)), 0),"Not required") -> 0 | N165: =IF(INTRO!$E$42="Endemic", IF(AND($J165>1,$J165<5), IF($J165=4, "Unknown", E165+F165), 0),"Not required") -> 42177 | O165: =IF(INTRO!$E$44="Endemic", IF(AND($K165>0,$K165<5), IF($K165=4,"Unknown", IF($K165=1, $F165*0.33, IF($K165=2, $F165*0.5+$G165*0.2, SUM(F165:G165)))), 0),"Not required") -> 34970.1 | P165: 0 | Q165: 0 | R165: 1 | S165: 0 | U165: T3 (ALB/MBD) | X165: 46644 | Y165: Itigi District Council | AB165: TRUE
A166: =IF(INTRO!$E$34<>0,INTRO!$E$34,"") -> Tanzania | B166: Singida | C166: Manyoni District Council | D166: 211125 | E166: 25929 | F166: 43089 | G166: 142107 | H166: 99 | I166: 0 | J166: 3 | K166: 2 | L166: =IF(INTRO!$E$38="Endemic", IF($H166>0, IF($H166=4,"Unknown", IF($H166=99,"Stopped", $D166)), 0),"Not required") -> Stopped | M166: =IF(INTRO!$E$40="Endemic", IF($I166>0, IF($I166=4,"Unknown",IF($I166=99,"Stopped", $D166)), 0),"Not required") -> 0 | N166: =IF(INTRO!$E$42="Endemic", IF(AND($J166>1,$J166<5), IF($J166=4, "Unknown", E166+F166), 0),"Not required") -> 69018 | O166: =IF(INTRO!$E$44="Endemic", IF(AND($K166>0,$K166<5), IF($K166=4,"Unknown", IF($K166=1, $F166*0.33, IF($K166=2, $F166*0.5+$G166*0.2, SUM(F166:G166)))), 0),"Not required") -> 49965.9 | P166: 0 | Q166: 0 | R166: 1 | S166: 0 | U166: T3 (ALB/MBD) | X166: 46601 | Y166: Manyoni District Council | AB166: TRUE
A167: =IF(INTRO!$E$34<>0,INTRO!$E$34,"") -> Tanzania | B167: Singida | C167: Mkalama District Council | D167: 216322 | E167: 14644 | F167: 58738 | G167: 142940 | H167: 99 | I167: 0 | J167: 3 | K167: 2 | L167: =IF(INTRO!$E$38="Endemic", IF($H167>0, IF($H167=4,"Unknown", IF($H167=99,"Stopped", $D167)), 0),"Not required") -> Stopped | M167: =IF(INTRO!$E$40="Endemic", IF($I167>0, IF($I167=4,"Unknown",IF($I167=99,"Stopped", $D167)), 0),"Not required") -> 0 | N167: =IF(INTRO!$E$42="Endemic", IF(AND($J167>1,$J167<5), IF($J167=4, "Unknown", E167+F167), 0),"Not required") -> 73382 | O167: =IF(INTRO!$E$44="Endemic", IF(AND($K167>0,$K167<5), IF($K167=4,"Unknown", IF($K167=1, $F167*0.33, IF($K167=2, $F167*0.5+$G167*0.2, SUM(F167:G167)))), 0),"Not required") -> 57957 | P167: 0 | Q167: 0 | R167: 1 | S167: 0 | U167: T3 (ALB/MBD) | X167: 46602 | Y167: Mkalama District Council | AB167: TRUE
A168: =IF(INTRO!$E$34<>0,INTRO!$E$34,"") -> Tanzania | B168: Singida | C168: Singida District Council | D168: 258488 | E168: 16933 | F168: 71535 | G168: 170020 | H168: 99 | I168: 0 | J168: 3 | K168: 2 | L168: =IF(INTRO!$E$38="Endemic", IF($H168>0, IF($H168=4,"Unknown", IF($H168=99,"Stopped", $D168)), 0),"Not required") -> Stopped | M168: =IF(INTRO!$E$40="Endemic", IF($I168>0, IF($I168=4,"Unknown",IF($I168=99,"Stopped", $D168)), 0),"Not required") -> 0 | N168: =IF(INTRO!$E$42="Endemic", IF(AND($J168>1,$J168<5), IF($J168=4, "Unknown", E168+F168), 0),"Not required") -> 88468 | O168: =IF(INTRO!$E$44="Endemic", IF(AND($K168>0,$K168<5), IF($K168=4,"Unknown", IF($K168=1, $F168*0.33, IF($K168=2, $F168*0.5+$G168*0.2, SUM(F168:G168)))), 0),"Not required") -> 69771.5 | P168: 0 | Q168: 0 | R168: 1 | S168: 0 | U168: T3 (ALB/MBD) | X168: 46603 | Y168: Singida District Council | AB168: TRUE
A169: =IF(INTRO!$E$34<>0,INTRO!$E$34,"") -> Tanzania | B169: Singida | C169: Singida Municipal Council | D169: 172362 | E169: 8276 | F169: 44573 | G169: 119513 | H169: 99 | I169: 0 | J169: 3 | K169: 2 | L169: =IF(INTRO!$E$38="Endemic", IF($H169>0, IF($H169=4,"Unknown", IF($H169=99,"Stopped", $D169)), 0),"Not required") -> Stopped | M169: =IF(INTRO!$E$40="Endemic", IF($I169>0, IF($I169=4,"Unknown",IF($I169=99,"Stopped", $D169)), 0),"Not required") -> 0 | N169: =IF(INTRO!$E$42="Endemic", IF(AND($J169>1,$J169<5), IF($J169=4, "Unknown", E169+F169), 0),"Not required") -> 52849 | O169: =IF(INTRO!$E$44="Endemic", IF(AND($K169>0,$K169<5), IF($K169=4,"Unknown", IF($K169=1, $F169*0.33, IF($K169=2, $F169*0.5+$G169*0.2, SUM(F169:G169)))), 0),"Not required") -> 46189.1 | P169: 0 | Q169: 0 | R169: 1 | S169: 0 | U169: T3 (ALB/MBD) | X169: 46604 | Y169: Singida Municipal Council | AB169: TRUE
A170: =IF(INTRO!$E$34<>0,INTRO!$E$34,"") -> Tanzania | B170: Songwe | C170: Ileje District Council | D170: 151587 | E170: 20045 | F170: 29071 | G170: 102471 | H170: 99 | I170: 1 | J170: 3 | K170: 2 | L170: =IF(INTRO!$E$38="Endemic", IF($H170>0, IF($H170=4,"Unknown", IF($H170=99,"Stopped", $D170)), 0),"Not required") -> Stopped | M170: =IF(INTRO!$E$40="Endemic", IF($I170>0, IF($I170=4,"Unknown",IF($I170=99,"Stopped", $D170)), 0),"Not required") -> 151587 | N170: =IF(INTRO!$E$42="Endemic", IF(AND($J170>1,$J170<5), IF($J170=4, "Unknown", E170+F170), 0),"Not required") -> 49116 | O170: =IF(INTRO!$E$44="Endemic", IF(AND($K170>0,$K170<5), IF($K170=4,"Unknown", IF($K170=1, $F170*0.33, IF($K170=2, $F170*0.5+$G170*0.2, SUM(F170:G170)))), 0),"Not required") -> 35029.7 | P170: 0 | Q170: 1 | R170: 1 | S170: 1 | T170: MDA3 (IVM) | U170: T1 (PZQ+ALB/MBD) | X170: 46535 | Y170: Ileje District Council | AB170: TRUE
A171: =IF(INTRO!$E$34<>0,INTRO!$E$34,"") -> Tanzania | B171: Songwe | C171: Mbozi District Council | D171: 523706 | E171: 67558 | F171: 108056 | G171: 348092 | H171: 99 | I171: 0 | J171: 3 | K171: 3 | L171: =IF(INTRO!$E$38="Endemic", IF($H171>0, IF($H171=4,"Unknown", IF($H171=99,"Stopped", $D171)), 0),"Not required") -> Stopped | M171: =IF(INTRO!$E$40="Endemic", IF($I171>0, IF($I171=4,"Unknown",IF($I171=99,"Stopped", $D171)), 0),"Not required") -> 0 | N171: =IF(INTRO!$E$42="Endemic", IF(AND($J171>1,$J171<5), IF($J171=4, "Unknown", E171+F171), 0),"Not required") -> 175614 | O171: =IF(INTRO!$E$44="Endemic", IF(AND($K171>0,$K171<5), IF($K171=4,"Unknown", IF($K171=1, $F171*0.33, IF($K171=2, $F171*0.5+$G171*0.2, SUM(F171:G171)))), 0),"Not required") -> 456148 | P171: 0 | Q171: 0 | R171: 1 | S171: 1 | U171: T1 (PZQ+ALB/MBD) | X171: 46540 | Y171: Mbozi District Council | AB171: TRUE
A172: =IF(INTRO!$E$34<>0,INTRO!$E$34,"") -> Tanzania | B172: Songwe | C172: Momba District Council | D172: 230934 | E172: 29791 | F172: 47060 | G172: 154083 | H172: 99 | I172: 0 | J172: 3 | K172: 3 | L172: =IF(INTRO!$E$38="Endemic", IF($H172>0, IF($H172=4,"Unknown", IF($H172=99,"Stopped", $D172)), 0),"Not required") -> Stopped | M172: =IF(INTRO!$E$40="Endemic", IF($I172>0, IF($I172=4,"Unknown",IF($I172=99,"Stopped", $D172)), 0),"Not required") -> 0 | N172: =IF(INTRO!$E$42="Endemic", IF(AND($J172>1,$J172<5), IF($J172=4, "Unknown", E172+F172), 0),"Not required") -> 76851 | O172: =IF(INTRO!$E$44="Endemic", IF(AND($K172>0,$K172<5), IF($K172=4,"Unknown", IF($K172=1, $F172*0.33, IF($K172=2, $F172*0.5+$G172*0.2, SUM(F172:G172)))), 0),"Not required") -> 201143 | P172: 0 | Q172: 0 | R172: 1 | S172: 1 | U172: T1 (PZQ+ALB/MBD) | X172: 46541 | Y172: Momba District Council | AB172: TRUE
A173: =IF(INTRO!$E$34<>0,INTRO!$E$34,"") -> Tanzania | B173: Songwe | C173: Songwe District Council | D173: 156866 | E173: 16901 | F173: 32724 | G173: 107241 | H173: 99 | I173: 0 | J173: 3 | K173: 2 | L173: =IF(INTRO!$E$38="Endemic", IF($H173>0, IF($H173=4,"Unknown", IF($H173=99,"Stopped", $D173)), 0),"Not required") -> Stopped | M173: =IF(INTRO!$E$40="Endemic", IF($I173>0, IF($I173=4,"Unknown",IF($I173=99,"Stopped", $D173)), 0),"Not required") -> 0 | N173: =IF(INTRO!$E$42="Endemic", IF(AND($J173>1,$J173<5), IF($J173=4, "Unknown", E173+F173), 0),"Not required") -> 49625 | O173: =IF(INTRO!$E$44="Endemic", IF(AND($K173>0,$K173<5), IF($K173=4,"Unknown", IF($K173=1, $F173*0.33, IF($K173=2, $F173*0.5+$G173*0.2, SUM(F173:G173)))), 0),"Not required") -> 37810.2 | P173: 0 | Q173: 0 | R173: 1 | S173: 1 | U173: T1 (PZQ+ALB/MBD) | X173: 46645 | Y173: Songwe District Council | AB173: TRUE
A174: =IF(INTRO!$E$34<>0,INTRO!$E$34,"") -> Tanzania | B174: Songwe | C174: Tunduma Town Council | D174: 114473 | E174: 14767.02692 | F174: 35757 | G174: 63948.97308 | H174: 99 | I174: 0 | J174: 3 | K174: 3 | L174: =IF(INTRO!$E$38="Endemic", IF($H174>0, IF($H174=4,"Unknown", IF($H174=99,"Stopped", $D174)), 0),"Not required") -> Stopped | M174: =IF(INTRO!$E$40="Endemic", IF($I174>0, IF($I174=4,"Unknown",IF($I174=99,"Stopped", $D174)), 0),"Not required") -> 0 | N174: =IF(INTRO!$E$42="Endemic", IF(AND($J174>1,$J174<5), IF($J174=4, "Unknown", E174+F174), 0),"Not required") -> 50524.02692 | O174: =IF(INTRO!$E$44="Endemic", IF(AND($K174>0,$K174<5), IF($K174=4,"Unknown", IF($K174=1, $F174*0.33, IF($K174=2, $F174*0.5+$G174*0.2, SUM(F174:G174)))), 0),"Not required") -> 99705.97308 | P174: 0 | Q174: 0 | R174: 1 | S174: 1 | U174: T1 (PZQ+ALB/MBD) | X174: 46543 | Y174: Tunduma Town Council | AB174: TRUE
A175: =IF(INTRO!$E$34<>0,INTRO!$E$34,"") -> Tanzania | B175: Tabora | C175: Igunga District Council | D175: 474521 | E175: 61213 | F175: 93962 | G175: 319346 | H175: 99 | I175: 0 | J175: 3 | K175: 2 | L175: =IF(INTRO!$E$38="Endemic", IF($H175>0, IF($H175=4,"Unknown", IF($H175=99,"Stopped", $D175)), 0),"Not required") -> Stopped | M175: =IF(INTRO!$E$40="Endemic", IF($I175>0, IF($I175=4,"Unknown",IF($I175=99,"Stopped", $D175)), 0),"Not required") -> 0 | N175: =IF(INTRO!$E$42="Endemic", IF(AND($J175>1,$J175<5), IF($J175=4, "Unknown", E175+F175), 0),"Not required") -> 155175 | O175: =IF(INTRO!$E$44="Endemic", IF(AND($K175>0,$K175<5), IF($K175=4,"Unknown", IF($K175=1, $F175*0.33, IF($K175=2, $F175*0.5+$G175*0.2, SUM(F175:G175)))), 0),"Not required") -> 110850.2 | P175: 0 | Q175: 0 | R175: 1 | S175: 0 | U175: T3 (ALB/MBD) | X175: 46605 | Y175: Igunga District Council | AB175: TRUE
A176: =IF(INTRO!$E$34<>0,INTRO!$E$34,"") -> Tanzania | B176: Tabora | C176: Kaliua District Council | D176: 466961 | E176: 53879 | F176: 103462 | G176: 309620 | H176: 99 | I176: 0 | J176: 3 | K176: 2 | L176: =IF(INTRO!$E$38="Endemic", IF($H176>0, IF($H176=4,"Unknown", IF($H176=99,"Stopped", $D176)), 0),"Not required") -> Stopped | M176: =IF(INTRO!$E$40="Endemic", IF($I176>0, IF($I176=4,"Unknown",IF($I176=99,"Stopped", $D176)), 0),"Not required") -> 0 | N176: =IF(INTRO!$E$42="Endemic", IF(AND($J176>1,$J176<5), IF($J176=4, "Unknown", E176+F176), 0),"Not required") -> 157341 | O176: =IF(INTRO!$E$44="Endemic", IF(AND($K176>0,$K176<5), IF($K176=4,"Unknown", IF($K176=1, $F176*0.33, IF($K176=2, $F176*0.5+$G176*0.2, SUM(F176:G176)))), 0),"Not required") -> 113655 | P176: 0 | Q176: 0 | R176: 1 | S176: 1 | U176: T1 (PZQ+T3 (ALB/MBD)/MBD) | X176: 46606 | Y176: Kaliua District Council | AB176: TRUE
A177: =IF(INTRO!$E$34<>0,INTRO!$E$34,"") -> Tanzania | B177: Tabora | C177: Nzega District Council | D177: 519820 | E177: 67057 | F177: 104900 | G177: 347863 | H177: 99 | I177: 0 | J177: 3 | K177: 2 | L177: =IF(INTRO!$E$38="Endemic", IF($H177>0, IF($H177=4,"Unknown", IF($H177=99,"Stopped", $D177)), 0),"Not required") -> Stopped | M177: =IF(INTRO!$E$40="Endemic", IF($I177>0, IF($I177=4,"Unknown",IF($I177=99,"Stopped", $D177)), 0),"Not required") -> 0 | N177: =IF(INTRO!$E$42="Endemic", IF(AND($J177>1,$J177<5), IF($J177=4, "Unknown", E177+F177), 0),"Not required") -> 171957 | O177: =IF(INTRO!$E$44="Endemic", IF(AND($K177>0,$K177<5), IF($K177=4,"Unknown", IF($K177=1, $F177*0.33, IF($K177=2, $F177*0.5+$G177*0.2, SUM(F177:G177)))), 0),"Not required") -> 122022.6 | P177: 0 | Q177: 0 | R177: 1 | S177: 0 | U177: T3 (ALB/MBD) | X177: 46607 | Y177: Nzega District Council | AB177: TRUE
A178: =IF(INTRO!$E$34<>0,INTRO!$E$34,"") -> Tanzania | B178: Tabora | C178: Nzega Town Council | D178: 76410 | E178: 4088 | F178: 21189 | G178: 51133 | H178: 99 | I178: 0 | J178: 3 | K178: 2 | L178: =IF(INTRO!$E$38="Endemic", IF($H178>0, IF($H178=4,"Unknown", IF($H178=99,"Stopped", $D178)), 0),"Not required") -> Stopped | M178: =IF(INTRO!$E$40="Endemic", IF($I178>0, IF($I178=4,"Unknown",IF($I178=99,"Stopped", $D178)), 0),"Not required") -> 0 | N178: =IF(INTRO!$E$42="Endemic", IF(AND($J178>1,$J178<5), IF($J178=4, "Unknown", E178+F178), 0),"Not required") -> 25277 | O178: =IF(INTRO!$E$44="Endemic", IF(AND($K178>0,$K178<5), IF($K178=4,"Unknown", IF($K178=1, $F178*0.33, IF($K178=2, $F178*0.5+$G178*0.2, SUM(F178:G178)))), 0),"Not required") -> 20821.1 | P178: 0 | Q178: 0 | R178: 1 | S178: 0 | U178: T3 (ALB/MBD) | X178: 46646 | Y178: Nzega Town Council | AB178: TRUE
A179: =IF(INTRO!$E$34<>0,INTRO!$E$34,"") -> Tanzania | B179: Tabora | C179: Sikonge District Council | D179: 213542 | E179: 27547 | F179: 43707 | G179: 142288 | H179: 99 | I179: 0 | J179: 3 | K179: 2 | L179: =IF(INTRO!$E$38="Endemic", IF($H179>0, IF($H179=4,"Unknown", IF($H179=99,"Stopped", $D179)), 0),"Not required") -> Stopped | M179: =IF(INTRO!$E$40="Endemic", IF($I179>0, IF($I179=4,"Unknown",IF($I179=99,"Stopped", $D179)), 0),"Not required") -> 0 | N179: =IF(INTRO!$E$42="Endemic", IF(AND($J179>1,$J179<5), IF($J179=4, "Unknown", E179+F179), 0),"Not required") -> 71254 | O179: =IF(INTRO!$E$44="Endemic", IF(AND($K179>0,$K179<5), IF($K179=4,"Unknown", IF($K179=1, $F179*0.33, IF($K179=2, $F179*0.5+$G179*0.2, SUM(F179:G179)))), 0),"Not required") -> 50311.1 | P179: 0 | Q179: 0 | R179: 1 | S179: 0 | U179: T3 (ALB/MBD) | X179: 46608 | Y179: Sikonge District Council | AB179: TRUE
A180: =IF(INTRO!$E$34<>0,INTRO!$E$34,"") -> Tanzania | B180: Tabora | C180: Tabora Municipal Council | D180: 269474 | E180: 34763 | F180: 48371 | G180: 186340 | H180: 99 | I180: 0 | J180: 3 | K180: 2 | L180: =IF(INTRO!$E$38="Endemic", IF($H180>0, IF($H180=4,"Unknown", IF($H180=99,"Stopped", $D180)), 0),"Not required") -> Stopped | M180: =IF(INTRO!$E$40="Endemic", IF($I180>0, IF($I180=4,"Unknown",IF($I180=99,"Stopped", $D180)), 0),"Not required") -> 0 | N180: =IF(INTRO!$E$42="Endemic", IF(AND($J180>1,$J180<5), IF($J180=4, "Unknown", E180+F180), 0),"Not required") -> 83134 | O180: =IF(INTRO!$E$44="Endemic", IF(AND($K180>0,$K180<5), IF($K180=4,"Unknown", IF($K180=1, $F180*0.33, IF($K180=2, $F180*0.5+$G180*0.2, SUM(F180:G180)))), 0),"Not required") -> 61453.5 | P180: 0 | Q180: 0 | R180: 1 | S180: 1 | U180: T1 (PZQ+ALB/MBD) | X180: 46609 | Y180: Tabora Municipal Council | AB180: TRUE
A181: =IF(INTRO!$E$34<>0,INTRO!$E$34,"") -> Tanzania | B181: Tabora | C181: Urambo District Council | D181: 228853 | E181: 29523 | F181: 46938 | G181: 152392 | H181: 99 | I181: 0 | J181: 3 | K181: 2 | L181: =IF(INTRO!$E$38="Endemic", IF($H181>0, IF($H181=4,"Unknown", IF($H181=99,"Stopped", $D181)), 0),"Not required") -> Stopped | M181: =IF(INTRO!$E$40="Endemic", IF($I181>0, IF($I181=4,"Unknown",IF($I181=99,"Stopped", $D181)), 0),"Not required") -> 0 | N181: =IF(INTRO!$E$42="Endemic", IF(AND($J181>1,$J181<5), IF($J181=4, "Unknown", E181+F181), 0),"Not required") -> 76461 | O181: =IF(INTRO!$E$44="Endemic", IF(AND($K181>0,$K181<5), IF($K181=4,"Unknown", IF($K181=1, $F181*0.33, IF($K181=2, $F181*0.5+$G181*0.2, SUM(F181:G181)))), 0),"Not required") -> 53947.4 | P181: 0 | Q181: 0 | R181: 1 | S181: 1 | U181: T1 (PZQ+ALB/MBD) | X181: 46610 | Y181: Urambo District Council | AB181: TRUE
A182: =IF(INTRO!$E$34<>0,INTRO!$E$34,"") -> Tanzania | B182: Tabora | C182: Uyui District Council | D182: 470837 | E182: 60738 | F182: 98805 | G182: 311294 | H182: 99 | I182: 0 | J182: 3 | K182: 2 | L182: =IF(INTRO!$E$38="Endemic", IF($H182>0, IF($H182=4,"Unknown", IF($H182=99,"Stopped", $D182)), 0),"Not required") -> Stopped | M182: =IF(INTRO!$E$40="Endemic", IF($I182>0, IF($I182=4,"Unknown",IF($I182=99,"Stopped", $D182)), 0),"Not required") -> 0 | N182: =IF(INTRO!$E$42="Endemic", IF(AND($J182>1,$J182<5), IF($J182=4, "Unknown", E182+F182), 0),"Not required") -> 159543 | O182: =IF(INTRO!$E$44="Endemic", IF(AND($K182>0,$K182<5), IF($K182=4,"Unknown", IF($K182=1, $F182*0.33, IF($K182=2, $F182*0.5+$G182*0.2, SUM(F182:G182)))), 0),"Not required") -> 111661.3 | P182: 0 | Q182: 0 | R182: 1 | S182: 1 | U182: T1 (PZQ+ALB/MBD) | X182: 46611 | Y182: Uyui District Council | AB182: TRUE
A183: =IF(INTRO!$E$34<>0,INTRO!$E$34,"") -> Tanzania | B183: Tanga | C183: Bumbuli District Council | D183: 182322 | E183: 20728 | F183: 44266 | G183: 117328 | H183: 99 | I183: 1 | J183: 3 | K183: 2 | L183: =IF(INTRO!$E$38="Endemic", IF($H183>0, IF($H183=4,"Unknown", IF($H183=99,"Stopped", $D183)), 0),"Not required") -> Stopped | M183: =IF(INTRO!$E$40="Endemic", IF($I183>0, IF($I183=4,"Unknown",IF($I183=99,"Stopped", $D183)), 0),"Not required") -> 182322 | N183: =IF(INTRO!$E$42="Endemic", IF(AND($J183>1,$J183<5), IF($J183=4, "Unknown", E183+F183), 0),"Not required") -> 64994 | O183: =IF(INTRO!$E$44="Endemic", IF(AND($K183>0,$K183<5), IF($K183=4,"Unknown", IF($K183=1, $F183*0.33, IF($K183=2, $F183*0.5+$G183*0.2, SUM(F183:G183)))), 0),"Not required") -> 45598.6 | P183: 0 | Q183: 1 | R183: 1 | S183: 1 | T183: MDA3 (IVM) | U183: T1 (PZQ+ALB/MBD) | X183: 46612 | Y183: Bumbuli District Council | AB183: TRUE
A184: =IF(INTRO!$E$34<>0,INTRO!$E$34,"") -> Tanzania | B184: Tanga | C184: Handeni District Council | D184: 315232 | E184: 35398 | F184: 70290 | G184: 209544 | H184: 99 | I184: 0 | J184: 3 | K184: 2 | L184: =IF(INTRO!$E$38="Endemic", IF($H184>0, IF($H184=4,"Unknown", IF($H184=99,"Stopped", $D184)), 0),"Not required") -> Stopped | M184: =IF(INTRO!$E$40="Endemic", IF($I184>0, IF($I184=4,"Unknown",IF($I184=99,"Stopped", $D184)), 0),"Not required") -> 0 | N184: =IF(INTRO!$E$42="Endemic", IF(AND($J184>1,$J184<5), IF($J184=4, "Unknown", E184+F184), 0),"Not required") -> 105688 | O184: =IF(INTRO!$E$44="Endemic", IF(AND($K184>0,$K184<5), IF($K184=4,"Unknown", IF($K184=1, $F184*0.33, IF($K184=2, $F184*0.5+$G184*0.2, SUM(F184:G184)))), 0),"Not required") -> 77053.8 | P184: 0 | Q184: 0 | R184: 1 | S184: 1 | U184: T1 (PZQ+ALB/MBD) | X184: 46613 | Y184: Handeni District Council | AB184: TRUE
A185: =IF(INTRO!$E$34<>0,INTRO!$E$34,"") -> Tanzania | B185: Tanga | C185: Handeni Town Council | D185: 90082 | E185: 6677 | F185: 23020 | G185: 60385 | H185: 99 | I185: 0 | J185: 3 | K185: 2 | L185: =IF(INTRO!$E$38="Endemic", IF($H185>0, IF($H185=4,"Unknown", IF($H185=99,"Stopped", $D185)), 0),"Not required") -> Stopped | M185: =IF(INTRO!$E$40="Endemic", IF($I185>0, IF($I185=4,"Unknown",IF($I185=99,"Stopped", $D185)), 0),"Not required") -> 0 | N185: =IF(INTRO!$E$42="Endemic", IF(AND($J185>1,$J185<5), IF($J185=4, "Unknown", E185+F185), 0),"Not required") -> 29697 | O185: =IF(INTRO!$E$44="Endemic", IF(AND($K185>0,$K185<5), IF($K185=4,"Unknown", IF($K185=1, $F185*0.33, IF($K185=2, $F185*0.5+$G185*0.2, SUM(F185:G185)))), 0),"Not required") -> 23587 | P185: 0 | Q185: 0 | R185: 1 | S185: 1 | U185: T1 (PZQ+ALB/MBD) | X185: 46614 | Y185: Handeni Town Council | AB185: TRUE
A186: =IF(INTRO!$E$34<>0,INTRO!$E$34,"") -> Tanzania | B186: Tanga | C186: Kilindi District Council | D186: 269866 | E186: 34813 | F186: 54336 | G186: 180717 | H186: 99 | I186: 0 | J186: 3 | K186: 2 | L186: =IF(INTRO!$E$38="Endemic", IF($H186>0, IF($H186=4,"Unknown", IF($H186=99,"Stopped", $D186)), 0),"Not required") -> Stopped | M186: =IF(INTRO!$E$40="Endemic", IF($I186>0, IF($I186=4,"Unknown",IF($I186=99,"Stopped", $D186)), 0),"Not required") -> 0 | N186: =IF(INTRO!$E$42="Endemic", IF(AND($J186>1,$J186<5), IF($J186=4, "Unknown", E186+F186), 0),"Not required") -> 89149 | O186: =IF(INTRO!$E$44="Endemic", IF(AND($K186>0,$K186<5), IF($K186=4,"Unknown", IF($K186=1, $F186*0.33, IF($K186=2, $F186*0.5+$G186*0.2, SUM(F186:G186)))), 0),"Not required") -> 63311.4 | P186: 0 | Q186: 0 | R186: 1 | S186: 1 | U186: T1 (PZQ+ALB/MBD) | X186: 46615 | Y186: Kilindi District Council | AB186: TRUE
A187: =IF(INTRO!$E$34<>0,INTRO!$E$34,"") -> Tanzania | B187: Tanga | C187: Korogwe District Council | D187: 275797 | E187: 35578 | F187: 55862 | G187: 184357 | H187: 1 | I187: 1 | J187: 3 | K187: 2 | L187: =IF(INTRO!$E$38="Endemic", IF($H187>0, IF($H187=4,"Unknown", IF($H187=99,"Stopped", $D187)), 0),"Not required") -> 275797 | M187: =IF(INTRO!$E$40="Endemic", IF($I187>0, IF($I187=4,"Unknown",IF($I187=99,"Stopped", $D187)), 0),"Not required") -> 275797 | N187: =IF(INTRO!$E$42="Endemic", IF(AND($J187>1,$J187<5), IF($J187=4, "Unknown", E187+F187), 0),"Not required") -> 91440 | O187: =IF(INTRO!$E$44="Endemic", IF(AND($K187>0,$K187<5), IF($K187=4,"Unknown", IF($K187=1, $F187*0.33, IF($K187=2, $F187*0.5+$G187*0.2, SUM(F187:G187)))), 0),"Not required") -> 64802.4 | P187: 1 | Q187: 1 | R187: 1 | S187: 1 | T187: MDA1 (IVM+ALB) | U187: T1 (PZQ+ALB/MBD) | X187: 46616 | Y187: Korogwe District Council | AB187: TRUE
A188: =IF(INTRO!$E$34<>0,INTRO!$E$34,"") -> Tanzania | B188: Tanga | C188: Korogwe Town Council | D188: 77835 | E188: 6789 | F188: 16473 | G188: 54573 | H188: 1 | I188: 0 | J188: 3 | K188: 2 | L188: =IF(INTRO!$E$38="Endemic", IF($H188>0, IF($H188=4,"Unknown", IF($H188=99,"Stopped", $D188)), 0),"Not required") -> 77835 | M188: =IF(INTRO!$E$40="Endemic", IF($I188>0, IF($I188=4,"Unknown",IF($I188=99,"Stopped", $D188)), 0),"Not required") -> 0 | N188: =IF(INTRO!$E$42="Endemic", IF(AND($J188>1,$J188<5), IF($J188=4, "Unknown", E188+F188), 0),"Not required") -> 23262 | O188: =IF(INTRO!$E$44="Endemic", IF(AND($K188>0,$K188<5), IF($K188=4,"Unknown", IF($K188=1, $F188*0.33, IF($K188=2, $F188*0.5+$G188*0.2, SUM(F188:G188)))), 0),"Not required") -> 19151.1 | P188: 1 | Q188: 0 | R188: 1 | S188: 1 | T188: MDA1 (IVM+ALB) | U188: T1 (PZQ+ALB/MBD) | X188: 46617 | Y188: Korogwe Town Council | AB188: TRUE
A189: =IF(INTRO!$E$34<>0,INTRO!$E$34,"") -> Tanzania | B189: Tanga | C189: Lushoto District Council | D189: 378803 | E189: 48865 | F189: 86170 | G189: 243768 | H189: 99 | I189: 1 | J189: 3 | K189: 2 | L189: =IF(INTRO!$E$38="Endemic", IF($H189>0, IF($H189=4,"Unknown", IF($H189=99,"Stopped", $D189)), 0),"Not required") -> Stopped | M189: =IF(INTRO!$E$40="Endemic", IF($I189>0, IF($I189=4,"Unknown",IF($I189=99,"Stopped", $D189)), 0),"Not required") -> 378803 | N189: =IF(INTRO!$E$42="Endemic", IF(AND($J189>1,$J189<5), IF($J189=4, "Unknown", E189+F189), 0),"Not required") -> 135035 | O189: =IF(INTRO!$E$44="Endemic", IF(AND($K189>0,$K189<5), IF($K189=4,"Unknown", IF($K189=1, $F189*0.33, IF($K189=2, $F189*0.5+$G189*0.2, SUM(F189:G189)))), 0),"Not required") -> 91838.6 | P189: 0 | Q189: 1 | R189: 1 | S189: 1 | T189: MDA3 (IVM) | U189: T1 (PZQ+ALB/MBD) | X189: 46618 | Y189: Lushoto District Council | AB189: TRUE
A190: =IF(INTRO!$E$34<>0,INTRO!$E$34,"") -> Tanzania | B190: Tanga | C190: Mkinga District Council | D190: 134532 | E190: 11761 | F190: 32387 | G190: 90384 | H190: 1 | I190: 1 | J190: 3 | K190: 2 | L190: =IF(INTRO!$E$38="Endemic", IF($H190>0, IF($H190=4,"Unknown", IF($H190=99,"Stopped", $D190)), 0),"Not required") -> 134532 | M190: =IF(INTRO!$E$40="Endemic", IF($I190>0, IF($I190=4,"Unknown",IF($I190=99,"Stopped", $D190)), 0),"Not required") -> 134532 | N190: =IF(INTRO!$E$42="Endemic", IF(AND($J190>1,$J190<5), IF($J190=4, "Unknown", E190+F190), 0),"Not required") -> 44148 | O190: =IF(INTRO!$E$44="Endemic", IF(AND($K190>0,$K190<5), IF($K190=4,"Unknown", IF($K190=1, $F190*0.33, IF($K190=2, $F190*0.5+$G190*0.2, SUM(F190:G190)))), 0),"Not required") -> 34270.3 | P190: 1 | Q190: 1 | R190: 1 | S190: 1 | T190: MDA1 (IVM+ALB) | U190: T1 (PZQ+ALB/MBD) | X190: 46619 | Y190: Mkinga District Council | AB190: TRUE
A191: =IF(INTRO!$E$34<>0,INTRO!$E$34,"") -> Tanzania | B191: Tanga | C191: Muheza District Council | D191: 232979 | E191: 30055 | F191: 42067 | G191: 160857 | H191: 99 | I191: 1 | J191: 3 | K191: 2 | L191: =IF(INTRO!$E$38="Endemic", IF($H191>0, IF($H191=4,"Unknown", IF($H191=99,"Stopped", $D191)), 0),"Not required") -> Stopped | M191: =IF(INTRO!$E$40="Endemic", IF($I191>0, IF($I191=4,"Unknown",IF($I191=99,"Stopped", $D191)), 0),"Not required") -> 232979 | N191: =IF(INTRO!$E$42="Endemic", IF(AND($J191>1,$J191<5), IF($J191=4, "Unknown", E191+F191), 0),"Not required") -> 72122 | O191: =IF(INTRO!$E$44="Endemic", IF(AND($K191>0,$K191<5), IF($K191=4,"Unknown", IF($K191=1, $F191*0.33, IF($K191=2, $F191*0.5+$G191*0.2, SUM(F191:G191)))), 0),"Not required") -> 53204.9 | P191: 0 | Q191: 1 | R191: 1 | S191: 1 | T191: MDA3 (IVM) | U191: T1 (PZQ+ALB/MBD) | X191: 46620 | Y191: Muheza District Council | AB191: TRUE
A192: =IF(INTRO!$E$34<>0,INTRO!$E$34,"") -> Tanzania | B192: Tanga | C192: Pangani District Council | D192: 61560 | E192: 5187 | F192: 13701 | G192: 42672 | H192: 1 | I192: 0 | J192: 3 | K192: 2 | L192: =IF(INTRO!$E$38="Endemic", IF($H192>0, IF($H192=4,"Unknown", IF($H192=99,"Stopped", $D192)), 0),"Not required") -> 61560 | M192: =IF(INTRO!$E$40="Endemic", IF($I192>0, IF($I192=4,"Unknown",IF($I192=99,"Stopped", $D192)), 0),"Not required") -> 0 | N192: =IF(INTRO!$E$42="Endemic", IF(AND($J192>1,$J192<5), IF($J192=4, "Unknown", E192+F192), 0),"Not required") -> 18888 | O192: =IF(INTRO!$E$44="Endemic", IF(AND($K192>0,$K192<5), IF($K192=4,"Unknown", IF($K192=1, $F192*0.33, IF($K192=2, $F192*0.5+$G192*0.2, SUM(F192:G192)))), 0),"Not required") -> 15384.9 | P192: 1 | Q192: 0 | R192: 1 | S192: 1 | T192: MDA1 (IVM+ALB) | U192: T1 (PZQ+ALB/MBD) | X192: 46621 | Y192: Pangani District Council | AB192: TRUE
A193: =IF(INTRO!$E$34<>0,INTRO!$E$34,"") -> Tanzania | B193: Tanga | C193: Tanga City Council | D193: 311455 | E193: 26936 | F193: 65026 | G193: 219493 | H193: 1 | I193: 0 | J193: 3 | K193: 2 | L193: =IF(INTRO!$E$38="Endemic", IF($H193>0, IF($H193=4,"Unknown", IF($H193=99,"Stopped", $D193)), 0),"Not required") -> 311455 | M193: =IF(INTRO!$E$40="Endemic", IF($I193>0, IF($I193=4,"Unknown",IF($I193=99,"Stopped", $D193)), 0),"Not required") -> 0 | N193: =IF(INTRO!$E$42="Endemic", IF(AND($J193>1,$J193<5), IF($J193=4, "Unknown", E193+F193), 0),"Not required") -> 91962 | O193: =IF(INTRO!$E$44="Endemic", IF(AND($K193>0,$K193<5), IF($K193=4,"Unknown", IF($K193=1, $F193*0.33, IF($K193=2, $F193*0.5+$G193*0.2, SUM(F193:G193)))), 0),"Not required") -> 76411.6 | P193: 1 | Q193: 0 | R193: 1 | S193: 1 | T193: MDA1 (IVM+ALB) | U193: T2 (PZQ) | X193: 46622 | Y193: Tanga City Council | AB193: TRUE

Sheet MDA1
A1: MDA 1 - Ivermectin (IVM) and Albendazole (ALB)
A2: Administrative structure, population requiring PC by age group, population treated by age group and coverage
A4: TOTAL | G4: =SUM(G$9:G$1000) -> 2094397 | H4: =SUM(H$9:H$1000) -> 7456495 | I4: =SUM(I$9:I$1000) -> 9550892 | K4: =SUM(K$9:K$1000) -> 1739637.503 | L4: =SUM(L$9:L$1000) -> 7368414.497 | M4: =SUM(M$9:M$1000) -> 9108052 | O4: =IF(G4<>0, IF(K4/G4*100=0, "-", K4/G4*100), " ") -> 83.06149708 | P4: =IF(H4<>0, IF(L4/H4*100=0, "-", L4/H4*100), " ") -> 98.8187412 | Q4: =IF(I4<>0, IF(M4/I4*100=0, "-", M4/I4*100), " ") -> 95.36336501
D6: PC implemented | E6: Date | F6: Population targeted for MDA 1 | J6: Population treated | N6: Programme coverage (%)
A7: Country | B7: Province/State | C7: District | F7: PreSAC | G7: SAC | H7: Adults | I7: Total | J7: PreSAC | K7: SAC | L7: Adults | M7: Total | N7: PreSAC | O7: SAC | P7: Adults | Q7: Total
A9: =IF(COUNTRY_INFO!A9=0," ",COUNTRY_INFO!A9) -> Tanzania | B9: =IF(COUNTRY_INFO!B9=0," ",COUNTRY_INFO!B9) -> Arusha | C9: =IF(COUNTRY_INFO!C9=0," ",COUNTRY_INFO!C9) -> Arusha City Council | D9: =IF(COUNTRY_INFO!$T$9:$T$1000="MDA1 (IVM+ALB)", COUNTRY_INFO!$T$9:$T$1000, " ") ->  | I9: =SUM(F9:H9) -> 0 | M9: =SUM(J9:L9) -> 0 | O9: =IF(G9<>0, IF(K9/G9*100=0, "-", K9/G9*100), " ") ->  | P9: =IF(H9<>0, IF(L9/H9*100=0, "-", L9/H9*100), " ") -> 
A10: =IF(COUNTRY_INFO!A10=0," ",COUNTRY_INFO!A10) -> Tanzania | B10: =IF(COUNTRY_INFO!B10=0," ",COUNTRY_INFO!B10) -> Arusha | C10: =IF(COUNTRY_INFO!C10=0," ",COUNTRY_INFO!C10) -> Arusha District Council | D10: =IF(COUNTRY_INFO!$T$9:$T$1000="MDA1 (IVM+ALB)", COUNTRY_INFO!$T$9:$T$1000, " ") ->  | I10: =SUM(F10:H10) -> 0 | M10: =SUM(J10:L10) -> 0 | O10: =IF(G10<>0, IF(K10/G10*100=0, "-", K10/G10*100), " ") ->  | P10: =IF(H10<>0, IF(L10/H10*100=0, "-", L10/H10*100), " ") ->  | Q10: =IF(I10<>0, IF(M10/I10*100=0, "-", M10/I10*100), " ") -> 
A11: =IF(COUNTRY_INFO!A11=0," ",COUNTRY_INFO!A11) -> Tanzania | B11: =IF(COUNTRY_INFO!B11=0," ",COUNTRY_INFO!B11) -> Arusha | C11: =IF(COUNTRY_INFO!C11=0," ",COUNTRY_INFO!C11) -> Karatu District Council | D11: =IF(COUNTRY_INFO!$T$9:$T$1000="MDA1 (IVM+ALB)", COUNTRY_INFO!$T$9:$T$1000, " ") ->  | I11: 0 | M11: 0
A12: =IF(COUNTRY_INFO!A12=0," ",COUNTRY_INFO!A12) -> Tanzania | B12: =IF(COUNTRY_INFO!B12=0," ",COUNTRY_INFO!B12) -> Arusha | C12: =IF(COUNTRY_INFO!C12=0," ",COUNTRY_INFO!C12) -> Longido District Council | D12: =IF(COUNTRY_INFO!$T$9:$T$1000="MDA1 (IVM+ALB)", COUNTRY_INFO!$T$9:$T$1000, " ") ->  | I12: 0 | M12: 0
A13: =IF(COUNTRY_INFO!A13=0," ",COUNTRY_INFO!A13) -> Tanzania | B13: =IF(COUNTRY_INFO!B13=0," ",COUNTRY_INFO!B13) -> Arusha | C13: =IF(COUNTRY_INFO!C13=0," ",COUNTRY_INFO!C13) -> Meru District Council | D13: =IF(COUNTRY_INFO!$T$9:$T$1000="MDA1 (IVM+ALB)", COUNTRY_INFO!$T$9:$T$1000, " ") ->  | I13: 0 | M13: 0
A14: =IF(COUNTRY_INFO!A14=0," ",COUNTRY_INFO!A14) -> Tanzania | B14: =IF(COUNTRY_INFO!B14=0," ",COUNTRY_INFO!B14) -> Arusha | C14: =IF(COUNTRY_INFO!C14=0," ",COUNTRY_INFO!C14) -> Monduli District Council | D14: =IF(COUNTRY_INFO!$T$9:$T$1000="MDA1 (IVM+ALB)", COUNTRY_INFO!$T$9:$T$1000, " ") ->  | I14: 0 | M14: 0
A15: =IF(COUNTRY_INFO!A15=0," ",COUNTRY_INFO!A15) -> Tanzania | B15: =IF(COUNTRY_INFO!B15=0," ",COUNTRY_INFO!B15) -> Arusha | C15: =IF(COUNTRY_INFO!C15=0," ",COUNTRY_INFO!C15) -> Ngorongoro District Council | D15: =IF(COUNTRY_INFO!$T$9:$T$1000="MDA1 (IVM+ALB)", COUNTRY_INFO!$T$9:$T$1000, " ") ->  | I15: 0 | M15: 0
A16: =IF(COUNTRY_INFO!A16=0," ",COUNTRY_INFO!A16) -> Tanzania | B16: =IF(COUNTRY_INFO!B16=0," ",COUNTRY_INFO!B16) -> Dar Es Salaam | C16: =IF(COUNTRY_INFO!C16=0," ",COUNTRY_INFO!C16) -> Dar es Salaam City Council | D16: =IF(COUNTRY_INFO!$T$9:$T$1000="MDA1 (IVM+ALB)", COUNTRY_INFO!$T$9:$T$1000, " ") -> MDA1 (IVM+ALB) | E16: Dec - 2018 | G16: 0 | H16: 1 | I16: 1 | K16: 1 | L16: 1 | M16: 2 | P16: 100 | Q16: 200
A17: =IF(COUNTRY_INFO!A17=0," ",COUNTRY_INFO!A17) -> Tanzania | B17: =IF(COUNTRY_INFO!B17=0," ",COUNTRY_INFO!B17) -> Dar Es Salaam | C17: =IF(COUNTRY_INFO!C17=0," ",COUNTRY_INFO!C17) -> Ilala Municipal Council | D17: =IF(COUNTRY_INFO!$T$9:$T$1000="MDA1 (IVM+ALB)", COUNTRY_INFO!$T$9:$T$1000, " ") -> MDA1 (IVM+ALB) | E17: Dec - 2018 | G17: 341396 | H17: 1215440 | I17: 1556836 | K17: 312913 | L17: 1325378 | M17: 1638291 | O17: 91.65690283 | P17: 109.0451195 | Q17: 105.2320861
A18: =IF(COUNTRY_INFO!A18=0," ",COUNTRY_INFO!A18) -> Tanzania | B18: =IF(COUNTRY_INFO!B18=0," ",COUNTRY_INFO!B18) -> Dar Es Salaam | C18: =IF(COUNTRY_INFO!C18=0," ",COUNTRY_INFO!C18) -> Kigamboni Municipal Council | D18: =IF(COUNTRY_INFO!$T$9:$T$1000="MDA1 (IVM+ALB)", COUNTRY_INFO!$T$9:$T$1000, " ") -> MDA1 (IVM+ALB) | E18: Dec - 2018 | G18: 45139 | H18: 160705 | I18: 205844 | K18: 39469.386 | L18: 167176.614 | M18: 206646 | O18: 87.43965529 | P18: 104.0270147 | Q18: 100.3896154
A19: =IF(COUNTRY_INFO!A19=0," ",COUNTRY_INFO!A19) -> Tanzania | B19: =IF(COUNTRY_INFO!B19=0," ",COUNTRY_INFO!B19) -> Dar Es Salaam | C19: =IF(COUNTRY_INFO!C19=0," ",COUNTRY_INFO!C19) -> Kinondoni Municipal Council | D19: =IF(COUNTRY_INFO!$T$9:$T$1000="MDA1 (IVM+ALB)", COUNTRY_INFO!$T$9:$T$1000, " ") -> MDA1 (IVM+ALB) | E19: Dec - 2018 | G19: 246236 | H19: 876650 | I19: 1122886 | K19: 208493.117 | L19: 883093.883 | M19: 1091587 | O19: 84.67206948 | P19: 100.7350577 | Q19: 97.21262889
A20: =IF(COUNTRY_INFO!A20=0," ",COUNTRY_INFO!A20) -> Tanzania | B20: =IF(COUNTRY_INFO!B20=0," ",COUNTRY_INFO!B20) -> Dar Es Salaam | C20: =IF(COUNTRY_INFO!C20=0," ",COUNTRY_INFO!C20) -> Temeke Municipal Council | D20: =IF(COUNTRY_INFO!$T$9:$T$1000="MDA1 (IVM+ALB)", COUNTRY_INFO!$T$9:$T$1000, " ") -> MDA1 (IVM+ALB) | E20: Dec - 2018 | G20: 319408 | H20: 1137159 | I20: 1456567 | K20: 227934.816 | L20: 965441.184 | M20: 1193376 | O20: 71.36164905 | P20: 84.8994014 | Q20: 81.93073165
A21: =IF(COUNTRY_INFO!A21=0," ",COUNTRY_INFO!A21) -> Tanzania | B21: =IF(COUNTRY_INFO!B21=0," ",COUNTRY_INFO!B21) -> Dar Es Salaam | C21: =IF(COUNTRY_INFO!C21=0," ",COUNTRY_INFO!C21) -> Ubungo Municipal Council | D21: =IF(COUNTRY_INFO!$T$9:$T$1000="MDA1 (IVM+ALB)", COUNTRY_INFO!$T$9:$T$1000, " ") -> MDA1 (IVM+ALB) | E21: Dec - 2018 | G21: 223904 | H21: 797147 | I21: 1021051 | K21: 190547.712 | L21: 807084.288 | M21: 997632 | O21: 85.10241532 | P21: 101.2466067 | Q21: 97.70638293
A22: =IF(COUNTRY_INFO!A22=0," ",COUNTRY_INFO!A22) -> Tanzania | B22: =IF(COUNTRY_INFO!B22=0," ",COUNTRY_INFO!B22) -> Dodoma | C22: =IF(COUNTRY_INFO!C22=0," ",COUNTRY_INFO!C22) -> Bahi District Council | D22: =IF(COUNTRY_INFO!$T$9:$T$1000="MDA1 (IVM+ALB)", COUNTRY_INFO!$T$9:$T$1000, " ") ->  | I22: 0 | M22: 0
A23: =IF(COUNTRY_INFO!A23=0," ",COUNTRY_INFO!A23) -> Tanzania | B23: =IF(COUNTRY_INFO!B23=0," ",COUNTRY_INFO!B23) -> Dodoma | C23: =IF(COUNTRY_INFO!C23=0," ",COUNTRY_INFO!C23) -> Chamwino District Council | D23: =IF(COUNTRY_INFO!$T$9:$T$1000="MDA1 (IVM+ALB)", COUNTRY_INFO!$T$9:$T$1000, " ") ->  | I23: 0 | M23: 0
A24: =IF(COUNTRY_INFO!A24=0," ",COUNTRY_INFO!A24) -> Tanzania | B24: =IF(COUNTRY_INFO!B24=0," ",COUNTRY_INFO!B24) -> Dodoma | C24: =IF(COUNTRY_INFO!C24=0," ",COUNTRY_INFO!C24) -> Chemba District Council | D24: =IF(COUNTRY_INFO!$T$9:$T$1000="MDA1 (IVM+ALB)", COUNTRY_INFO!$T$9:$T$1000, " ") ->  | I24: 0 | M24: 0
A25: =IF(COUNTRY_INFO!A25=0," ",COUNTRY_INFO!A25) -> Tanzania | B25: =IF(COUNTRY_INFO!B25=0," ",COUNTRY_INFO!B25) -> Dodoma | C25: =IF(COUNTRY_INFO!C25=0," ",COUNTRY_INFO!C25) -> Dodoma Municipal Council | D25: =IF(COUNTRY_INFO!$T$9:$T$1000="MDA1 (IVM+ALB)", COUNTRY_INFO!$T$9:$T$1000, " ") ->  | I25: 0 | M25: 0
A26: =IF(COUNTRY_INFO!A26=0," ",COUNTRY_INFO!A26) -> Tanzania | B26: =IF(COUNTRY_INFO!B26=0," ",COUNTRY_INFO!B26) -> Dodoma | C26: =IF(COUNTRY_INFO!C26=0," ",COUNTRY_INFO!C26) -> Kondoa District Council | D26: =IF(COUNTRY_INFO!$T$9:$T$1000="MDA1 (IVM+ALB)", COUNTRY_INFO!$T$9:$T$1000, " ") ->  | I26: 0 | M26: 0
A27: =IF(COUNTRY_INFO!A27=0," ",COUNTRY_INFO!A27) -> Tanzania | B27: =IF(COUNTRY_INFO!B27=0," ",COUNTRY_INFO!B27) -> Dodoma | C27: =IF(COUNTRY_INFO!C27=0," ",COUNTRY_INFO!C27) -> Kondoa Town Council | D27: =IF(COUNTRY_INFO!$T$9:$T$1000="MDA1 (IVM+ALB)", COUNTRY_INFO!$T$9:$T$1000, " ") ->  | I27: 0 | M27: 0
A28: =IF(COUNTRY_INFO!A28=0," ",COUNTRY_INFO!A28) -> Tanzania | B28: =IF(COUNTRY_INFO!B28=0," ",COUNTRY_INFO!B28) -> Dodoma | C28: =IF(COUNTRY_INFO!C28=0," ",COUNTRY_INFO!C28) -> Kongwa District Council | D28: =IF(COUNTRY_INFO!$T$9:$T$1000="MDA1 (IVM+ALB)", COUNTRY_INFO!$T$9:$T$1000, " ") ->  | I28: 0 | M28: 0
A29: =IF(COUNTRY_INFO!A29=0," ",COUNTRY_INFO!A29) -> Tanzania | B29: =IF(COUNTRY_INFO!B29=0," ",COUNTRY_INFO!B29) -> Dodoma | C29: =IF(COUNTRY_INFO!C29=0," ",COUNTRY_INFO!C29) -> Mpwapwa District Council | D29: =IF(COUNTRY_INFO!$T$9:$T$1000="MDA1 (IVM+ALB)", COUNTRY_INFO!$T$9:$T$1000, " ") ->  | I29: 0 | M29: 0
A30: =IF(COUNTRY_INFO!A30=0," ",COUNTRY_INFO!A30) -> Tanzania | B30: =IF(COUNTRY_INFO!B30=0," ",COUNTRY_INFO!B30) -> Geita | C30: =IF(COUNTRY_INFO!C30=0," ",COUNTRY_INFO!C30) -> Bukombe District Council | D30: =IF(COUNTRY_INFO!$T$9:$T$1000="MDA1 (IVM+ALB)", COUNTRY_INFO!$T$9:$T$1000, " ") ->  | I30: 0 | M30: 0
A31: =IF(COUNTRY_INFO!A31=0," ",COUNTRY_INFO!A31) -> Tanzania | B31: =IF(COUNTRY_INFO!B31=0," ",COUNTRY_INFO!B31) -> Geita | C31: =IF(COUNTRY_INFO!C31=0," ",COUNTRY_INFO!C31) -> Chato District Council | D31: =IF(COUNTRY_INFO!$T$9:$T$1000="MDA1 (IVM+ALB)", COUNTRY_INFO!$T$9:$T$1000, " ") ->  | I31: 0 | M31: 0
A32: =IF(COUNTRY_INFO!A32=0," ",COUNTRY_INFO!A32) -> Tanzania | B32: =IF(COUNTRY_INFO!B32=0," ",COUNTRY_INFO!B32) -> Geita | C32: =IF(COUNTRY_INFO!C32=0," ",COUNTRY_INFO!C32) -> Geita District Council | D32: =IF(COUNTRY_INFO!$T$9:$T$1000="MDA1 (IVM+ALB)", COUNTRY_INFO!$T$9:$T$1000, " ") ->  | I32: 0 | M32: 0
A33: =IF(COUNTRY_INFO!A33=0," ",COUNTRY_INFO!A33) -> Tanzania | B33: =IF(COUNTRY_INFO!B33=0," ",COUNTRY_INFO!B33) -> Geita | C33: =IF(COUNTRY_INFO!C33=0," ",COUNTRY_INFO!C33) -> Geita Town Council | D33: =IF(COUNTRY_INFO!$T$9:$T$1000="MDA1 (IVM+ALB)", COUNTRY_INFO!$T$9:$T$1000, " ") ->  | I33: 0 | M33: 0
A34: =IF(COUNTRY_INFO!A34=0," ",COUNTRY_INFO!A34) -> Tanzania | B34: =IF(COUNTRY_INFO!B34=0," ",COUNTRY_INFO!B34) -> Geita | C34: =IF(COUNTRY_INFO!C34=0," ",COUNTRY_INFO!C34) -> Mbogwe District Council | D34: =IF(COUNTRY_INFO!$T$9:$T$1000="MDA1 (IVM+ALB)", COUNTRY_INFO!$T$9:$T$1000, " ") ->  | I34: 0 | M34: 0
A35: =IF(COUNTRY_INFO!A35=0," ",COUNTRY_INFO!A35) -> Tanzania | B35: =IF(COUNTRY_INFO!B35=0," ",COUNTRY_INFO!B35) -> Geita | C35: =IF(COUNTRY_INFO!C35=0," ",COUNTRY_INFO!C35) -> Nyang'hwale District Council | D35: =IF(COUNTRY_INFO!$T$9:$T$1000="MDA1 (IVM+ALB)", COUNTRY_INFO!$T$9:$T$1000, " ") ->  | I35: 0 | M35: 0
A36: =IF(COUNTRY_INFO!A36=0," ",COUNTRY_INFO!A36) -> Tanzania | B36: =IF(COUNTRY_INFO!B36=0," ",COUNTRY_INFO!B36) -> Iringa | C36: =IF(COUNTRY_INFO!C36=0," ",COUNTRY_INFO!C36) -> Iringa District Council | D36: =IF(COUNTRY_INFO!$T$9:$T$1000="MDA1 (IVM+ALB)", COUNTRY_INFO!$T$9:$T$1000, " ") ->  | I36: 0 | M36: 0
A37: =IF(COUNTRY_INFO!A37=0," ",COUNTRY_INFO!A37) -> Tanzania | B37: =IF(COUNTRY_INFO!B37=0," ",COUNTRY_INFO!B37) -> Iringa | C37: =IF(COUNTRY_INFO!C37=0," ",COUNTRY_INFO!C37) -> Iringa Municipal Council | D37: =IF(COUNTRY_INFO!$T$9:$T$1000="MDA1 (IVM+ALB)", COUNTRY_INFO!$T$9:$T$1000, " ") ->  | I37: 0 | M37: 0
A38: =IF(COUNTRY_INFO!A38=0," ",COUNTRY_INFO!A38) -> Tanzania | B38: =IF(COUNTRY_INFO!B38=0," ",COUNTRY_INFO!B38) -> Iringa | C38: =IF(COUNTRY_INFO!C38=0," ",COUNTRY_INFO!C38) -> Kilolo District Council | D38: =IF(COUNTRY_INFO!$T$9:$T$1000="MDA1 (IVM+ALB)", COUNTRY_INFO!$T$9:$T$1000, " ") ->  | I38: 0 | M38: 0
A39: =IF(COUNTRY_INFO!A39=0," ",COUNTRY_INFO!A39) -> Tanzania | B39: =IF(COUNTRY_INFO!B39=0," ",COUNTRY_INFO!B39) -> Iringa | C39: =IF(COUNTRY_INFO!C39=0," ",COUNTRY_INFO!C39) -> Mafinga Town Council | D39: =IF(COUNTRY_INFO!$T$9:$T$1000="MDA1 (IVM+ALB)", COUNTRY_INFO!$T$9:$T$1000, " ") ->  | I39: 0 | M39: 0
A40: =IF(COUNTRY_INFO!A40=0," ",COUNTRY_INFO!A40) -> Tanzania | B40: =IF(COUNTRY_INFO!B40=0," ",COUNTRY_INFO!B40) -> Iringa | C40: =IF(COUNTRY_INFO!C40=0," ",COUNTRY_INFO!C40) -> Mufindi District Council | D40: =IF(COUNTRY_INFO!$T$9:$T$1000="MDA1 (IVM+ALB)", COUNTRY_INFO!$T$9:$T$1000, " ") ->  | I40: 0 | M40: 0
A41: =IF(COUNTRY_INFO!A41=0," ",COUNTRY_INFO!A41) -> Tanzania | B41: =IF(COUNTRY_INFO!B41=0," ",COUNTRY_INFO!B41) -> Kagera | C41: =IF(COUNTRY_INFO!C41=0," ",COUNTRY_INFO!C41) -> Biharamulo District Council | D41: =IF(COUNTRY_INFO!$T$9:$T$1000="MDA1 (IVM+ALB)", COUNTRY_INFO!$T$9:$T$1000, " ") ->  | I41: 0 | M41: 0
A42: =IF(COUNTRY_INFO!A42=0," ",COUNTRY_INFO!A42) -> Tanzania | B42: =IF(COUNTRY_INFO!B42=0," ",COUNTRY_INFO!B42) -> Kagera | C42: =IF(COUNTRY_INFO!C42=0," ",COUNTRY_INFO!C42) -> Bukoba District Council | D42: =IF(COUNTRY_INFO!$T$9:$T$1000="MDA1 (IVM+ALB)", COUNTRY_INFO!$T$9:$T$1000, " ") ->  | I42: 0 | M42: 0
A43: =IF(COUNTRY_INFO!A43=0," ",COUNTRY_INFO!A43) -> Tanzania | B43: =IF(COUNTRY_INFO!B43=0," ",COUNTRY_INFO!B43) -> Kagera | C43: =IF(COUNTRY_INFO!C43=0," ",COUNTRY_INFO!C43) -> Bukoba Municipal Council | D43: =IF(COUNTRY_INFO!$T$9:$T$1000="MDA1 (IVM+ALB)", COUNTRY_INFO!$T$9:$T$1000, " ") ->  | I43: 0 | M43: 0
A44: =IF(COUNTRY_INFO!A44=0," ",COUNTRY_INFO!A44) -> Tanzania | B44: =IF(COUNTRY_INFO!B44=0," ",COUNTRY_INFO!B44) -> Kagera | C44: =IF(COUNTRY_INFO!C44=0," ",COUNTRY_INFO!C44) -> Karagwe District Council | D44: =IF(COUNTRY_INFO!$T$9:$T$1000="MDA1 (IVM+ALB)", COUNTRY_INFO!$T$9:$T$1000, " ") ->  | I44: 0 | M44: 0
A45: =IF(COUNTRY_INFO!A45=0," ",COUNTRY_INFO!A45) -> Tanzania | B45: =IF(COUNTRY_INFO!B45=0," ",COUNTRY_INFO!B45) -> Kagera | C45: =IF(COUNTRY_INFO!C45=0," ",COUNTRY_INFO!C45) -> Kyerwa District Council | D45: =IF(COUNTRY_INFO!$T$9:$T$1000="MDA1 (IVM+ALB)", COUNTRY_INFO!$T$9:$T$1000, " ") ->  | I45: 0 | M45: 0
A46: =IF(COUNTRY_INFO!A46=0," ",COUNTRY_INFO!A46) -> Tanzania | B46: =IF(COUNTRY_INFO!B46=0," ",COUNTRY_INFO!B46) -> Kagera | C46: =IF(COUNTRY_INFO!C46=0," ",COUNTRY_INFO!C46) -> Missenyi District Council | D46: =IF(COUNTRY_INFO!$T$9:$T$1000="MDA1 (IVM+ALB)", COUNTRY_INFO!$T$9:$T$1000, " ") ->  | I46: 0 | M46: 0
A47: =IF(COUNTRY_INFO!A47=0," ",COUNTRY_INFO!A47) -> Tanzania | B47: =IF(COUNTRY_INFO!B47=0," ",COUNTRY_INFO!B47) -> Kagera | C47: =IF(COUNTRY_INFO!C47=0," ",COUNTRY_INFO!C47) -> Muleba District Council | D47: =IF(COUNTRY_INFO!$T$9:$T$1000="MDA1 (IVM+ALB)", COUNTRY_INFO!$T$9:$T$1000, " ") ->  | I47: 0 | M47: 0
A48: =IF(COUNTRY_INFO!A48=0," ",COUNTRY_INFO!A48) -> Tanzania | B48: =IF(COUNTRY_INFO!B48=0," ",COUNTRY_INFO!B48) -> Kagera | C48: =IF(COUNTRY_INFO!C48=0," ",COUNTRY_INFO!C48) -> Ngara District Council | D48: =IF(COUNTRY_INFO!$T$9:$T$1000="MDA1 (IVM+ALB)", COUNTRY_INFO!$T$9:$T$1000, " ") ->  | I48: 0 | M48: 0
A49: =IF(COUNTRY_INFO!A49=0," ",COUNTRY_INFO!A49) -> Tanzania | B49: =IF(COUNTRY_INFO!B49=0," ",COUNTRY_INFO!B49) -> Katavi | C49: =IF(COUNTRY_INFO!C49=0," ",COUNTRY_INFO!C49) -> Mlele District Council | D49: =IF(COUNTRY_INFO!$T$9:$T$1000="MDA1 (IVM+ALB)", COUNTRY_INFO!$T$9:$T$1000, " ") ->  | I49: 0 | M49: 0
A50: =IF(COUNTRY_INFO!A50=0," ",COUNTRY_INFO!A50) -> Tanzania | B50: =IF(COUNTRY_INFO!B50=0," ",COUNTRY_INFO!B50) -> Katavi | C50: =IF(COUNTRY_INFO!C50=0," ",COUNTRY_INFO!C50) -> Mpanda District Council | D50: =IF(COUNTRY_INFO!$T$9:$T$1000="MDA1 (IVM+ALB)", COUNTRY_INFO!$T$9:$T$1000, " ") ->  | I50: 0 | M50: 0
A51: =IF(COUNTRY_INFO!A51=0," ",COUNTRY_INFO!A51) -> Tanzania | B51: =IF(COUNTRY_INFO!B51=0," ",COUNTRY_INFO!B51) -> Katavi | C51: =IF(COUNTRY_INFO!C51=0," ",COUNTRY_INFO!C51) -> Mpanda Municipal Council | D51: =IF(COUNTRY_INFO!$T$9:$T$1000="MDA1 (IVM+ALB)", COUNTRY_INFO!$T$9:$T$1000, " ") ->  | I51: 0 | M51: 0
A52: =IF(COUNTRY_INFO!A52=0," ",COUNTRY_INFO!A52) -> Tanzania | B52: =IF(COUNTRY_INFO!B52=0," ",COUNTRY_INFO!B52) -> Katavi | C52: =IF(COUNTRY_INFO!C52=0," ",COUNTRY_INFO!C52) -> Mpimbwe District Council | D52: =IF(COUNTRY_INFO!$T$9:$T$1000="MDA1 (IVM+ALB)", COUNTRY_INFO!$T$9:$T$1000, " ") ->  | I52: 0 | M52: 0
A53: =IF(COUNTRY_INFO!A53=0," ",COUNTRY_INFO!A53) -> Tanzania | B53: =IF(COUNTRY_INFO!B53=0," ",COUNTRY_INFO!B53) -> Katavi | C53: =IF(COUNTRY_INFO!C53=0," ",COUNTRY_INFO!C53) -> Nsimbo District Council | D53: =IF(COUNTRY_INFO!$T$9:$T$1000="MDA1 (IVM+ALB)", COUNTRY_INFO!$T$9:$T$1000, " ") ->  | I53: 0 | M53: 0
A54: =IF(COUNTRY_INFO!A54=0," ",COUNTRY_INFO!A54) -> Tanzania | B54: =IF(COUNTRY_INFO!B54=0," ",COUNTRY_INFO!B54) -> Kigoma | C54: =IF(COUNTRY_INFO!C54=0," ",COUNTRY_INFO!C54) -> Buhigwe District Council | D54: =IF(COUNTRY_INFO!$T$9:$T$1000="MDA1 (IVM+ALB)", COUNTRY_INFO!$T$9:$T$1000, " ") ->  | I54: 0 | M54: 0
A55: =IF(COUNTRY_INFO!A55=0," ",COUNTRY_INFO!A55) -> Tanzania | B55: =IF(COUNTRY_INFO!B55=0," ",COUNTRY_INFO!B55) -> Kigoma | C55: =IF(COUNTRY_INFO!C55=0," ",COUNTRY_INFO!C55) -> Kakonko District Council | D55: =IF(COUNTRY_INFO!$T$9:$T$1000="MDA1 (IVM+ALB)", COUNTRY_INFO!$T$9:$T$1000, " ") ->  | I55: 0 | M55: 0
A56: =IF(COUNTRY_INFO!A56=0," ",COUNTRY_INFO!A56) -> Tanzania | B56: =IF(COUNTRY_INFO!B56=0," ",COUNTRY_INFO!B56) -> Kigoma | C56: =IF(COUNTRY_INFO!C56=0," ",COUNTRY_INFO!C56) -> Kasulu District Council | D56: =IF(COUNTRY_INFO!$T$9:$T$1000="MDA1 (IVM+ALB)", COUNTRY_INFO!$T$9:$T$1000, " ") ->  | I56: 0 | M56: 0
A57: =IF(COUNTRY_INFO!A57=0," ",COUNTRY_INFO!A57) -> Tanzania | B57: =IF(COUNTRY_INFO!B57=0," ",COUNTRY_INFO!B57) -> Kigoma | C57: =IF(COUNTRY_INFO!C57=0," ",COUNTRY_INFO!C57) -> Kasulu Town Council | D57: =IF(COUNTRY_INFO!$T$9:$T$1000="MDA1 (IVM+ALB)", COUNTRY_INFO!$T$9:$T$1000, " ") ->  | I57: 0 | M57: 0
A58: =IF(COUNTRY_INFO!A58=0," ",COUNTRY_INFO!A58) -> Tanzania | B58: =IF(COUNTRY_INFO!B58=0," ",COUNTRY_INFO!B58) -> Kigoma | C58: =IF(COUNTRY_INFO!C58=0," ",COUNTRY_INFO!C58) -> Kibondo District Council | D58: =IF(COUNTRY_INFO!$T$9:$T$1000="MDA1 (IVM+ALB)", COUNTRY_INFO!$T$9:$T$1000, " ") ->  | I58: 0 | M58: 0
A59: =IF(COUNTRY_INFO!A59=0," ",COUNTRY_INFO!A59) -> Tanzania | B59: =IF(COUNTRY_INFO!B59=0," ",COUNTRY_INFO!B59) -> Kigoma | C59: =IF(COUNTRY_INFO!C59=0," ",COUNTRY_INFO!C59) -> Kigoma District Council | D59: =IF(COUNTRY_INFO!$T$9:$T$1000="MDA1 (IVM+ALB)", COUNTRY_INFO!$T$9:$T$1000, " ") ->  | I59: 0 | M59: 0
A60: =IF(COUNTRY_INFO!A60=0," ",COUNTRY_INFO!A60) -> Tanzania | B60: =IF(COUNTRY_INFO!B60=0," ",COUNTRY_INFO!B60) -> Kigoma | C60: =IF(COUNTRY_INFO!C60=0," ",COUNTRY_INFO!C60) -> Kigoma-Ujiji Municipal Council | D60: =IF(COUNTRY_INFO!$T$9:$T$1000="MDA1 (IVM+ALB)", COUNTRY_INFO!$T$9:$T$1000, " ") ->  | I60: 0 | M60: 0
A61: =IF(COUNTRY_INFO!A61=0," ",COUNTRY_INFO!A61) -> Tanzania | B61: =IF(COUNTRY_INFO!B61=0," ",COUNTRY_INFO!B61) -> Kigoma | C61: =IF(COUNTRY_INFO!C61=0," ",COUNTRY_INFO!C61) -> Uvinza District Council | D61: =IF(COUNTRY_INFO!$T$9:$T$1000="MDA1 (IVM+ALB)", COUNTRY_INFO!$T$9:$T$1000, " ") ->  | I61: 0 | M61: 0
A62: =IF(COUNTRY_INFO!A62=0," ",COUNTRY_INFO!A62) -> Tanzania | B62: =IF(COUNTRY_INFO!B62=0," ",COUNTRY_INFO!B62) -> Kilimanjaro | C62: =IF(COUNTRY_INFO!C62=0," ",COUNTRY_INFO!C62) -> Hai District Council | D62: =IF(COUNTRY_INFO!$T$9:$T$1000="MDA1 (IVM+ALB)", COUNTRY_INFO!$T$9:$T$1000, " ") ->  | I62: 0 | M62: 0
A63: =IF(COUNTRY_INFO!A63=0," ",COUNTRY_INFO!A63) -> Tanzania | B63: =IF(COUNTRY_INFO!B63=0," ",COUNTRY_INFO!B63) -> Kilimanjaro | C63: =IF(COUNTRY_INFO!C63=0," ",COUNTRY_INFO!C63) -> Moshi District Council | D63: =IF(COUNTRY_INFO!$T$9:$T$1000="MDA1 (IVM+ALB)", COUNTRY_INFO!$T$9:$T$1000, " ") ->  | I63: 0 | M63: 0
A64: =IF(COUNTRY_INFO!A64=0," ",COUNTRY_INFO!A64) -> Tanzania | B64: =IF(COUNTRY_INFO!B64=0," ",COUNTRY_INFO!B64) -> Kilimanjaro | C64: =IF(COUNTRY_INFO!C64=0," ",COUNTRY_INFO!C64) -> Moshi Municipal Council | D64: =IF(COUNTRY_INFO!$T$9:$T$1000="MDA1 (IVM+ALB)", COUNTRY_INFO!$T$9:$T$1000, " ") ->  | I64: 0 | M64: 0
A65: =IF(COUNTRY_INFO!A65=0," ",COUNTRY_INFO!A65) -> Tanzania | B65: =IF(COUNTRY_INFO!B65=0," ",COUNTRY_INFO!B65) -> Kilimanjaro | C65: =IF(COUNTRY_INFO!C65=0," ",COUNTRY_INFO!C65) -> Mwanga District Council | D65: =IF(COUNTRY_INFO!$T$9:$T$1000="MDA1 (IVM+ALB)", COUNTRY_INFO!$T$9:$T$1000, " ") ->  | I65: 0 | M65: 0
A66: =IF(COUNTRY_INFO!A66=0," ",COUNTRY_INFO!A66) -> Tanzania | B66: =IF(COUNTRY_INFO!B66=0," ",COUNTRY_INFO!B66) -> Kilimanjaro | C66: =IF(COUNTRY_INFO!C66=0," ",COUNTRY_INFO!C66) -> Rombo District Council | D66: =IF(COUNTRY_INFO!$T$9:$T$1000="MDA1 (IVM+ALB)", COUNTRY_INFO!$T$9:$T$1000, " ") ->  | I66: 0 | M66: 0
A67: =IF(COUNTRY_INFO!A67=0," ",COUNTRY_INFO!A67) -> Tanzania | B67: =IF(COUNTRY_INFO!B67=0," ",COUNTRY_INFO!B67) -> Kilimanjaro | C67: =IF(COUNTRY_INFO!C67=0," ",COUNTRY_INFO!C67) -> Same District Council | D67: =IF(COUNTRY_INFO!$T$9:$T$1000="MDA1 (IVM+ALB)", COUNTRY_INFO!$T$9:$T$1000, " ") ->  | I67: 0 | M67: 0
A68: =IF(COUNTRY_INFO!A68=0," ",COUNTRY_INFO!A68) -> Tanzania | B68: =IF(COUNTRY_INFO!B68=0," ",COUNTRY_INFO!B68) -> Kilimanjaro | C68: =IF(COUNTRY_INFO!C68=0," ",COUNTRY_INFO!C68) -> Siha District Council | D68: =IF(COUNTRY_INFO!$T$9:$T$1000="MDA1 (IVM+ALB)", COUNTRY_INFO!$T$9:$T$1000, " ") ->  | I68: 0 | M68: 0
A69: =IF(COUNTRY_INFO!A69=0," ",COUNTRY_INFO!A69) -> Tanzania | B69: =IF(COUNTRY_INFO!B69=0," ",COUNTRY_INFO!B69) -> Lindi | C69: =IF(COUNTRY_INFO!C69=0," ",COUNTRY_INFO!C69) -> Kilwa District Council | D69: =IF(COUNTRY_INFO!$T$9:$T$1000="MDA1 (IVM+ALB)", COUNTRY_INFO!$T$9:$T$1000, " ") -> MDA1 (IVM+ALB) | E69: Sept - 2018 | G69: 38444 | H69: 136870 | I69: 175314 | K69: 31015.535 | L69: 131369.465 | M69: 162385 | O69: 80.67717979 | P69: 95.98119749 | Q69: 92.62523244
A70: =IF(COUNTRY_INFO!A70=0," ",COUNTRY_INFO!A70) -> Tanzania | B70: =IF(COUNTRY_INFO!B70=0," ",COUNTRY_INFO!B70) -> Lindi | C70: =IF(COUNTRY_INFO!C70=0," ",COUNTRY_INFO!C70) -> Lindi District Council | D70: =IF(COUNTRY_INFO!$T$9:$T$1000="MDA1 (IVM+ALB)", COUNTRY_INFO!$T$9:$T$1000, " ") -> MDA1 (IVM+ALB) | E70: Sept - 2018 | G70: 39129 | H70: 139309 | I70: 178438 | K70: 29499.759 | L70: 124949.241 | M70: 154449 | O70: 75.39103734 | P70: 89.6921527 | Q70: 86.55611473
A71: =IF(COUNTRY_INFO!A71=0," ",COUNTRY_INFO!A71) -> Tanzania | B71: =IF(COUNTRY_INFO!B71=0," ",COUNTRY_INFO!B71) -> Lindi | C71: =IF(COUNTRY_INFO!C71=0," ",COUNTRY_INFO!C71) -> Lindi Municipal Council | D71: =IF(COUNTRY_INFO!$T$9:$T$1000="MDA1 (IVM+ALB)", COUNTRY_INFO!$T$9:$T$1000, " ") -> MDA1 (IVM+ALB) | E71: Sept - 2018 | G71: 18864 | H71: 67160 | I71: 86024 | K71: 12544.689 | L71: 53134.311 | M71: 65679 | O71: 66.50068384 | P71: 79.11600804 | Q71: 76.34962336
A72: =IF(COUNTRY_INFO!A72=0," ",COUNTRY_INFO!A72) -> Tanzania | B72: =IF(COUNTRY_INFO!B72=0," ",COUNTRY_INFO!B72) -> Lindi | C72: =IF(COUNTRY_INFO!C72=0," ",COUNTRY_INFO!C72) -> Liwale District Council | D72: =IF(COUNTRY_INFO!$T$9:$T$1000="MDA1 (IVM+ALB)", COUNTRY_INFO!$T$9:$T$1000, " ") ->  | I72: 0 | M72: 0
A73: =IF(COUNTRY_INFO!A73=0," ",COUNTRY_INFO!A73) -> Tanzania | B73: =IF(COUNTRY_INFO!B73=0," ",COUNTRY_INFO!B73) -> Lindi | C73: =IF(COUNTRY_INFO!C73=0," ",COUNTRY_INFO!C73) -> Nachingwea District Council | D73: =IF(COUNTRY_INFO!$T$9:$T$1000="MDA1 (IVM+ALB)", COUNTRY_INFO!$T$9:$T$1000, " ") -> MDA1 (IVM+ALB) | E73: Sept - 2018 | G73: 37434 | H73: 133272 | I73: 170706 | K73: 26327.631 | L73: 111513.369 | M73: 137841 | O73: 70.3307982 | P73: 83.67351657 | Q73: 80.74760114
A74: =IF(COUNTRY_INFO!A74=0," ",COUNTRY_INFO!A74) -> Tanzania | B74: =IF(COUNTRY_INFO!B74=0," ",COUNTRY_INFO!B74) -> Lindi | C74: =IF(COUNTRY_INFO!C74=0," ",COUNTRY_INFO!C74) -> Ruangwa District Council | D74: =IF(COUNTRY_INFO!$T$9:$T$1000="MDA1 (IVM+ALB)", COUNTRY_INFO!$T$9:$T$1000, " ") -> MDA1 (IVM+ALB) | E74: Oct - 2018 | G74: 26419 | H74: 94057 | I74: =SUM(F74:H74) -> 120476 | K74: 20074.864 | L74: 85029.136 | M74: =SUM(J74:L74) -> 105104 | O74: =IF(G74<>0, IF(K74/G74*100=0, "-", K74/G74*100), " ") -> 75.98646429 | P74: =IF(H74<>0, IF(L74/H74*100=0, "-", L74/H74*100), " ") -> 90.4017096 | Q74: =IF(I74<>0, IF(M74/I74*100=0, "-", M74/I74*100), " ") -> 87.24061224
A75: =IF(COUNTRY_INFO!A75=0," ",COUNTRY_INFO!A75) -> Tanzania | B75: =IF(COUNTRY_INFO!B75=0," ",COUNTRY_INFO!B75) -> Manyara | C75: =IF(COUNTRY_INFO!C75=0," ",COUNTRY_INFO!C75) -> Babati District Council | D75: =IF(COUNTRY_INFO!$T$9:$T$1000="MDA1 (IVM+ALB)", COUNTRY_INFO!$T$9:$T$1000, " ") ->  | I75: 0 | M75: 0
A76: =IF(COUNTRY_INFO!A76=0," ",COUNTRY_INFO!A76) -> Tanzania | B76: =IF(COUNTRY_INFO!B76=0," ",COUNTRY_INFO!B76) -> Manyara | C76: =IF(COUNTRY_INFO!C76=0," ",COUNTRY_INFO!C76) -> Babati Town Council | D76: =IF(COUNTRY_INFO!$T$9:$T$1000="MDA1 (IVM+ALB)", COUNTRY_INFO!$T$9:$T$1000, " ") ->  | I76: 0 | M76: 0
A77: =IF(COUNTRY_INFO!A77=0," ",COUNTRY_INFO!A77) -> Tanzania | B77: =IF(COUNTRY_INFO!B77=0," ",COUNTRY_INFO!B77) -> Manyara | C77: =IF(COUNTRY_INFO!C77=0," ",COUNTRY_INFO!C77) -> Hanang District Council | D77: =IF(COUNTRY_INFO!$T$9:$T$1000="MDA1 (IVM+ALB)", COUNTRY_INFO!$T$9:$T$1000, " ") ->  | I77: 0 | M77: 0
A78: =IF(COUNTRY_INFO!A78=0," ",COUNTRY_INFO!A78) -> Tanzania | B78: =IF(COUNTRY_INFO!B78=0," ",COUNTRY_INFO!B78) -> Manyara | C78: =IF(COUNTRY_INFO!C78=0," ",COUNTRY_INFO!C78) -> Kiteto District Council | D78: =IF(COUNTRY_INFO!$T$9:$T$1000="MDA1 (IVM+ALB)", COUNTRY_INFO!$T$9:$T$1000, " ") ->  | I78: 0 | M78: 0
A79: =IF(COUNTRY_INFO!A79=0," ",COUNTRY_INFO!A79) -> Tanzania | B79: =IF(COUNTRY_INFO!B79=0," ",COUNTRY_INFO!B79) -> Manyara | C79: =IF(COUNTRY_INFO!C79=0," ",COUNTRY_INFO!C79) -> Mbulu District Council | D79: =IF(COUNTRY_INFO!$T$9:$T$1000="MDA1 (IVM+ALB)", COUNTRY_INFO!$T$9:$T$1000, " ") ->  | I79: 0 | M79: 0
A80: =IF(COUNTRY_INFO!A80=0," ",COUNTRY_INFO!A80) -> Tanzania | B80: =IF(COUNTRY_INFO!B80=0," ",COUNTRY_INFO!B80) -> Manyara | C80: =IF(COUNTRY_INFO!C80=0," ",COUNTRY_INFO!C80) -> Mbulu Town Council | D80: =IF(COUNTRY_INFO!$T$9:$T$1000="MDA1 (IVM+ALB)", COUNTRY_INFO!$T$9:$T$1000, " ") ->  | I80: 0 | M80: 0
A81: =IF(COUNTRY_INFO!A81=0," ",COUNTRY_INFO!A81) -> Tanzania | B81: =IF(COUNTRY_INFO!B81=0," ",COUNTRY_INFO!B81) -> Manyara | C81: =IF(COUNTRY_INFO!C81=0," ",COUNTRY_INFO!C81) -> Simanjiro District Council | D81: =IF(COUNTRY_INFO!$T$9:$T$1000="MDA1 (IVM+ALB)", COUNTRY_INFO!$T$9:$T$1000, " ") ->  | I81: 0 | M81: 0
A82: =IF(COUNTRY_INFO!A82=0," ",COUNTRY_INFO!A82) -> Tanzania | B82: =IF(COUNTRY_INFO!B82=0," ",COUNTRY_INFO!B82) -> Mara | C82: =IF(COUNTRY_INFO!C82=0," ",COUNTRY_INFO!C82) -> Bunda District Council | D82: =IF(COUNTRY_INFO!$T$9:$T$1000="MDA1 (IVM+ALB)", COUNTRY_INFO!$T$9:$T$1000, " ") ->  | I82: 0 | M82: 0
A83: =IF(COUNTRY_INFO!A83=0," ",COUNTRY_INFO!A83) -> Tanzania | B83: =IF(COUNTRY_INFO!B83=0," ",COUNTRY_INFO!B83) -> Mara | C83: =IF(COUNTRY_INFO!C83=0," ",COUNTRY_INFO!C83) -> Bunda Town Council | D83: =IF(COUNTRY_INFO!$T$9:$T$1000="MDA1 (IVM+ALB)", COUNTRY_INFO!$T$9:$T$1000, " ") ->  | I83: 0 | M83: 0
A84: =IF(COUNTRY_INFO!A84=0," ",COUNTRY_INFO!A84) -> Tanzania | B84: =IF(COUNTRY_INFO!B84=0," ",COUNTRY_INFO!B84) -> Mara | C84: =IF(COUNTRY_INFO!C84=0," ",COUNTRY_INFO!C84) -> Butiama District Council | D84: =IF(COUNTRY_INFO!$T$9:$T$1000="MDA1 (IVM+ALB)", COUNTRY_INFO!$T$9:$T$1000, " ") ->  | I84: 0 | M84: 0
A85: =IF(COUNTRY_INFO!A85=0," ",COUNTRY_INFO!A85) -> Tanzania | B85: =IF(COUNTRY_INFO!B85=0," ",COUNTRY_INFO!B85) -> Mara | C85: =IF(COUNTRY_INFO!C85=0," ",COUNTRY_INFO!C85) -> Musoma District Council | D85: =IF(COUNTRY_INFO!$T$9:$T$1000="MDA1 (IVM+ALB)", COUNTRY_INFO!$T$9:$T$1000, " ") ->  | I85: 0 | M85: 0
A86: =IF(COUNTRY_INFO!A86=0," ",COUNTRY_INFO!A86) -> Tanzania | B86: =IF(COUNTRY_INFO!B86=0," ",COUNTRY_INFO!B86) -> Mara | C86: =IF(COUNTRY_INFO!C86=0," ",COUNTRY_INFO!C86) -> Musoma Municipal Council | D86: =IF(COUNTRY_INFO!$T$9:$T$1000="MDA1 (IVM+ALB)", COUNTRY_INFO!$T$9:$T$1000, " ") ->  | I86: 0 | M86: 0
A87: =IF(COUNTRY_INFO!A87=0," ",COUNTRY_INFO!A87) -> Tanzania | B87: =IF(COUNTRY_INFO!B87=0," ",COUNTRY_INFO!B87) -> Mara | C87: =IF(COUNTRY_INFO!C87=0," ",COUNTRY_INFO!C87) -> Rorya District Council | D87: =IF(COUNTRY_INFO!$T$9:$T$1000="MDA1 (IVM+ALB)", COUNTRY_INFO!$T$9:$T$1000, " ") ->  | I87: 0 | M87: 0
A88: =IF(COUNTRY_INFO!A88=0," ",COUNTRY_INFO!A88) -> Tanzania | B88: =IF(COUNTRY_INFO!B88=0," ",COUNTRY_INFO!B88) -> Mara | C88: =IF(COUNTRY_INFO!C88=0," ",COUNTRY_INFO!C88) -> Serengeti District Council | D88: =IF(COUNTRY_INFO!$T$9:$T$1000="MDA1 (IVM+ALB)", COUNTRY_INFO!$T$9:$T$1000, " ") ->  | I88: 0 | M88: 0
A89: =IF(COUNTRY_INFO!A89=0," ",COUNTRY_INFO!A89) -> Tanzania | B89: =IF(COUNTRY_INFO!B89=0," ",COUNTRY_INFO!B89) -> Mara | C89: =IF(COUNTRY_INFO!C89=0," ",COUNTRY_INFO!C89) -> Tarime District Council | D89: =IF(COUNTRY_INFO!$T$9:$T$1000="MDA1 (IVM+ALB)", COUNTRY_INFO!$T$9:$T$1000, " ") ->  | I89: 0 | M89: 0
A90: =IF(COUNTRY_INFO!A90=0," ",COUNTRY_INFO!A90) -> Tanzania | B90: =IF(COUNTRY_INFO!B90=0," ",COUNTRY_INFO!B90) -> Mara | C90: =IF(COUNTRY_INFO!C90=0," ",COUNTRY_INFO!C90) -> Tarime Town Council | D90: =IF(COUNTRY_INFO!$T$9:$T$1000="MDA1 (IVM+ALB)", COUNTRY_INFO!$T$9:$T$1000, " ") ->  | I90: 0 | M90: 0
A91: =IF(COUNTRY_INFO!A91=0," ",COUNTRY_INFO!A91) -> Tanzania | B91: =IF(COUNTRY_INFO!B91=0," ",COUNTRY_INFO!B91) -> Mbeya | C91: =IF(COUNTRY_INFO!C91=0," ",COUNTRY_INFO!C91) -> Busokelo District Council | D91: =IF(COUNTRY_INFO!$T$9:$T$1000="MDA1 (IVM+ALB)", COUNTRY_INFO!$T$9:$T$1000, " ") ->  | I91: 0 | M91: 0
A92: =IF(COUNTRY_INFO!A92=0," ",COUNTRY_INFO!A92) -> Tanzania | B92: =IF(COUNTRY_INFO!B92=0," ",COUNTRY_INFO!B92) -> Mbeya | C92: =IF(COUNTRY_INFO!C92=0," ",COUNTRY_INFO!C92) -> Chunya District Council | D92: =IF(COUNTRY_INFO!$T$9:$T$1000="MDA1 (IVM+ALB)", COUNTRY_INFO!$T$9:$T$1000, " ") ->  | I92: 0 | M92: 0
A93: =IF(COUNTRY_INFO!A93=0," ",COUNTRY_INFO!A93) -> Tanzania | B93: =IF(COUNTRY_INFO!B93=0," ",COUNTRY_INFO!B93) -> Mbeya | C93: =IF(COUNTRY_INFO!C93=0," ",COUNTRY_INFO!C93) -> Kyela District Council | D93: =IF(COUNTRY_INFO!$T$9:$T$1000="MDA1 (IVM+ALB)", COUNTRY_INFO!$T$9:$T$1000, " ") ->  | I93: 0 | M93: 0
A94: =IF(COUNTRY_INFO!A94=0," ",COUNTRY_INFO!A94) -> Tanzania | B94: =IF(COUNTRY_INFO!B94=0," ",COUNTRY_INFO!B94) -> Mbeya | C94: =IF(COUNTRY_INFO!C94=0," ",COUNTRY_INFO!C94) -> Mbarali District Council | D94: =IF(COUNTRY_INFO!$T$9:$T$1000="MDA1 (IVM+ALB)", COUNTRY_INFO!$T$9:$T$1000, " ") ->  | I94: 0 | M94: 0
A95: =IF(COUNTRY_INFO!A95=0," ",COUNTRY_INFO!A95) -> Tanzania | B95: =IF(COUNTRY_INFO!B95=0," ",COUNTRY_INFO!B95) -> Mbeya | C95: =IF(COUNTRY_INFO!C95=0," ",COUNTRY_INFO!C95) -> Mbeya City Council | D95: =IF(COUNTRY_INFO!$T$9:$T$1000="MDA1 (IVM+ALB)", COUNTRY_INFO!$T$9:$T$1000, " ") ->  | I95: 0 | M95: 0
A96: =IF(COUNTRY_INFO!A96=0," ",COUNTRY_INFO!A96) -> Tanzania | B96: =IF(COUNTRY_INFO!B96=0," ",COUNTRY_INFO!B96) -> Mbeya | C96: =IF(COUNTRY_INFO!C96=0," ",COUNTRY_INFO!C96) -> Mbeya District Council | D96: =IF(COUNTRY_INFO!$T$9:$T$1000="MDA1 (IVM+ALB)", COUNTRY_INFO!$T$9:$T$1000, " ") ->  | I96: 0 | M96: 0
A97: =IF(COUNTRY_INFO!A97=0," ",COUNTRY_INFO!A97) -> Tanzania | B97: =IF(COUNTRY_INFO!B97=0," ",COUNTRY_INFO!B97) -> Mbeya | C97: =IF(COUNTRY_INFO!C97=0," ",COUNTRY_INFO!C97) -> Rungwe District Council | D97: =IF(COUNTRY_INFO!$T$9:$T$1000="MDA1 (IVM+ALB)", COUNTRY_INFO!$T$9:$T$1000, " ") ->  | I97: 0 | M97: 0
A98: =IF(COUNTRY_INFO!A98=0," ",COUNTRY_INFO!A98) -> Tanzania | B98: =IF(COUNTRY_INFO!B98=0," ",COUNTRY_INFO!B98) -> Morogoro | C98: =IF(COUNTRY_INFO!C98=0," ",COUNTRY_INFO!C98) -> Gairo District Council | D98: =IF(COUNTRY_INFO!$T$9:$T$1000="MDA1 (IVM+ALB)", COUNTRY_INFO!$T$9:$T$1000, " ") ->  | I98: 0 | M98: 0
A99: =IF(COUNTRY_INFO!A99=0," ",COUNTRY_INFO!A99) -> Tanzania | B99: =IF(COUNTRY_INFO!B99=0," ",COUNTRY_INFO!B99) -> Morogoro | C99: =IF(COUNTRY_INFO!C99=0," ",COUNTRY_INFO!C99) -> Ifakara Town Council | D99: =IF(COUNTRY_INFO!$T$9:$T$1000="MDA1 (IVM+ALB)", COUNTRY_INFO!$T$9:$T$1000, " ") -> MDA1 (IVM+ALB) | E99: June - 2018 | G99: 28074 | H99: 99948 | I99: 128022 | K99: 21958.888 | L99: 93009.112 | M99: 114968 | O99: 78.21788131 | P99: 93.0575019 | Q99: 89.80331506
A100: =IF(COUNTRY_INFO!A100=0," ",COUNTRY_INFO!A100) -> Tanzania | B100: =IF(COUNTRY_INFO!B100=0," ",COUNTRY_INFO!B100) -> Morogoro | C100: =IF(COUNTRY_INFO!C100=0," ",COUNTRY_INFO!C100) -> Kilombero District Council | D100: =IF(COUNTRY_INFO!$T$9:$T$1000="MDA1 (IVM+ALB)", COUNTRY_INFO!$T$9:$T$1000, " ") -> MDA1 (IVM+ALB) | E100: June - 2018 | G100: 88142 | H100: 313806 | I100: 401948 | K100: 72276.692 | L100: 306135.308 | M100: 378412 | O100: 82.0002859 | P100: 97.55559422 | Q100: 94.14451621
A101: =IF(COUNTRY_INFO!A101=0," ",COUNTRY_INFO!A101) -> Tanzania | B101: =IF(COUNTRY_INFO!B101=0," ",COUNTRY_INFO!B101) -> Morogoro | C101: =IF(COUNTRY_INFO!C101=0," ",COUNTRY_INFO!C101) -> Kilosa District Council | D101: =IF(COUNTRY_INFO!$T$9:$T$1000="MDA1 (IVM+ALB)", COUNTRY_INFO!$T$9:$T$1000, " ") -> MDA1 (IVM+ALB) | E101: Oct - 2018 | G101: 98183 | H101: 349551 | I101: 447734 | K101: 81095.162 | L101: 343486.838 | M101: 424582 | O101: 82.59593005 | P101: 98.26515673 | Q101: 94.82907262
A102: =IF(COUNTRY_INFO!A102=0," ",COUNTRY_INFO!A102) -> Tanzania | B102: =IF(COUNTRY_INFO!B102=0," ",COUNTRY_INFO!B102) -> Morogoro | C102: =IF(COUNTRY_INFO!C102=0," ",COUNTRY_INFO!C102) -> Malinyi District Council | D102: =IF(COUNTRY_INFO!$T$9:$T$1000="MDA1 (IVM+ALB)", COUNTRY_INFO!$T$9:$T$1000, " ") -> MDA1 (IVM+ALB) | E102: June - 2018 | G102: 32633 | H102: 116182 | I102: 148815 | K102: 28204.206 | L102: 119461.794 | M102: 147666 | O102: 86.42848037 | P102: 102.8229795 | Q102: 99.22790041
A103: =IF(COUNTRY_INFO!A103=0," ",COUNTRY_INFO!A103) -> Tanzania | B103: =IF(COUNTRY_INFO!B103=0," ",COUNTRY_INFO!B103) -> Morogoro | C103: =IF(COUNTRY_INFO!C103=0," ",COUNTRY_INFO!C103) -> Morogoro District Council | D103: =IF(COUNTRY_INFO!$T$9:$T$1000="MDA1 (IVM+ALB)", COUNTRY_INFO!$T$9:$T$1000, " ") -> MDA1 (IVM+ALB) | E103: Sept - 2018 | G103: 63404 | H103: 225733 | I103: 289137 | K103: 49147.165 | L103: 208167.835 | M103: 257315 | O103: 77.51429721 | P103: 92.21861004 | Q103: 88.99414464
A104: =IF(COUNTRY_INFO!A104=0," ",COUNTRY_INFO!A104) -> Tanzania | B104: =IF(COUNTRY_INFO!B104=0," ",COUNTRY_INFO!B104) -> Morogoro | C104: =IF(COUNTRY_INFO!C104=0," ",COUNTRY_INFO!C104) -> Morogoro Municipal Council | D104: =IF(COUNTRY_INFO!$T$9:$T$1000="MDA1 (IVM+ALB)", COUNTRY_INFO!$T$9:$T$1000, " ") -> MDA1 (IVM+ALB) | E104: Sept - 2018 | G104: 69965 | H104: 249089 | I104: 319054 | K104: 61089.631 | L104: 258751.369 | M104: 319841 | O104: 87.31455871 | P104: 103.879083 | Q104: 100.2466667
A105: =IF(COUNTRY_INFO!A105=0," ",COUNTRY_INFO!A105) -> Tanzania | B105: =IF(COUNTRY_INFO!B105=0," ",COUNTRY_INFO!B105) -> Morogoro | C105: =IF(COUNTRY_INFO!C105=0," ",COUNTRY_INFO!C105) -> Mvomero District Council | D105: =IF(COUNTRY_INFO!$T$9:$T$1000="MDA1 (IVM+ALB)", COUNTRY_INFO!$T$9:$T$1000, " ") -> MDA1 (IVM+ALB) | E105: Sept - 2018 | G105: 69397 | H105: 247068 | I105: 316465 | K105: 56296.295 | L105: 238448.705 | M105: 294745 | O105: 81.12208741 | P105: 96.51136732 | Q105: 93.13668178
A106: =IF(COUNTRY_INFO!A106=0," ",COUNTRY_INFO!A106) -> Tanzania | B106: =IF(COUNTRY_INFO!B106=0," ",COUNTRY_INFO!B106) -> Morogoro | C106: =IF(COUNTRY_INFO!C106=0," ",COUNTRY_INFO!C106) -> Ulanga District Council | D106: =IF(COUNTRY_INFO!$T$9:$T$1000="MDA1 (IVM+ALB)", COUNTRY_INFO!$T$9:$T$1000, " ") -> MDA1 (IVM+ALB) | E106: June - 2018 | G106: 38038 | H106: 135423 | I106: 173461 | K106: 33845.2 | L106: 143354.8 | M106: 177200 | O106: 88.97733845 | P106: 105.8570553 | Q106: 102.1555278
A107: =IF(COUNTRY_INFO!A107=0," ",COUNTRY_INFO!A107) -> Tanzania | B107: =IF(COUNTRY_INFO!B107=0," ",COUNTRY_INFO!B107) -> Mtwara | C107: =IF(COUNTRY_INFO!C107=0," ",COUNTRY_INFO!C107) -> Masasi District Council | D107: =IF(COUNTRY_INFO!$T$9:$T$1000="MDA1 (IVM+ALB)", COUNTRY_INFO!$T$9:$T$1000, " ") -> MDA1 (IVM+ALB) | E107: Nov - 2018 | G107: 53038 | H107: 188828 | I107: 241866 | K107: 47573.325 | L107: 201501.675 | M107: 249075 | O107: 89.69667974 | P107: 106.7117562 | Q107: 102.980576
A108: =IF(COUNTRY_INFO!A108=0," ",COUNTRY_INFO!A108) -> Tanzania | B108: =IF(COUNTRY_INFO!B108=0," ",COUNTRY_INFO!B108) -> Mtwara | C108: =IF(COUNTRY_INFO!C108=0," ",COUNTRY_INFO!C108) -> Masasi Town Council | D108: =IF(COUNTRY_INFO!$T$9:$T$1000="MDA1 (IVM+ALB)", COUNTRY_INFO!$T$9:$T$1000, " ") ->  | I108: 0 | M108: 0
A109: =IF(COUNTRY_INFO!A109=0," ",COUNTRY_INFO!A109) -> Tanzania | B109: =IF(COUNTRY_INFO!B109=0," ",COUNTRY_INFO!B109) -> Mtwara | C109: =IF(COUNTRY_INFO!C109=0," ",COUNTRY_INFO!C109) -> Mtwara District Council | D109: =IF(COUNTRY_INFO!$T$9:$T$1000="MDA1 (IVM+ALB)", COUNTRY_INFO!$T$9:$T$1000, " ") ->  | I109: 0 | M109: 0
A110: =IF(COUNTRY_INFO!A110=0," ",COUNTRY_INFO!A110) -> Tanzania | B110: =IF(COUNTRY_INFO!B110=0," ",COUNTRY_INFO!B110) -> Mtwara | C110: =IF(COUNTRY_INFO!C110=0," ",COUNTRY_INFO!C110) -> Mtwara-Mikindani Municipal Council | D110: =IF(COUNTRY_INFO!$T$9:$T$1000="MDA1 (IVM+ALB)", COUNTRY_INFO!$T$9:$T$1000, " ") -> MDA1 (IVM+ALB) | E110: Sept - 2018 | G110: 27277 | H110: 97111 | I110: 124388 | K110: 22959.346 | L110: 97246.654 | M110: 120206 | O110: 84.17108186 | P110: 100.1396896 | Q110: 96.63793935
A111: =IF(COUNTRY_INFO!A111=0," ",COUNTRY_INFO!A111) -> Tanzania | B111: =IF(COUNTRY_INFO!B111=0," ",COUNTRY_INFO!B111) -> Mtwara | C111: =IF(COUNTRY_INFO!C111=0," ",COUNTRY_INFO!C111) -> Nanyamba District Council | D111: =IF(COUNTRY_INFO!$T$9:$T$1000="MDA1 (IVM+ALB)", COUNTRY_INFO!$T$9:$T$1000, " ") ->  | I111: 0 | M111: 0
A112: =IF(COUNTRY_INFO!A112=0," ",COUNTRY_INFO!A112) -> Tanzania | B112: =IF(COUNTRY_INFO!B112=0," ",COUNTRY_INFO!B112) -> Mtwara | C112: =IF(COUNTRY_INFO!C112=0," ",COUNTRY_INFO!C112) -> Nanyumbu District Council | D112: =IF(COUNTRY_INFO!$T$9:$T$1000="MDA1 (IVM+ALB)", COUNTRY_INFO!$T$9:$T$1000, " ") ->  | I112: 0 | M112: 0
A113: =IF(COUNTRY_INFO!A113=0," ",COUNTRY_INFO!A113) -> Tanzania | B113: =IF(COUNTRY_INFO!B113=0," ",COUNTRY_INFO!B113) -> Mtwara | C113: =IF(COUNTRY_INFO!C113=0," ",COUNTRY_INFO!C113) -> Newala District Council | D113: =IF(COUNTRY_INFO!$T$9:$T$1000="MDA1 (IVM+ALB)", COUNTRY_INFO!$T$9:$T$1000, " ") ->  | I113: 0 | M113: 0
A114: =IF(COUNTRY_INFO!A114=0," ",COUNTRY_INFO!A114) -> Tanzania | B114: =IF(COUNTRY_INFO!B114=0," ",COUNTRY_INFO!B114) -> Mtwara | C114: =IF(COUNTRY_INFO!C114=0," ",COUNTRY_INFO!C114) -> Newala Town Council | D114: =IF(COUNTRY_INFO!$T$9:$T$1000="MDA1 (IVM+ALB)", COUNTRY_INFO!$T$9:$T$1000, " ") ->  | I114: 0 | M114: 0
A115: =IF(COUNTRY_INFO!A115=0," ",COUNTRY_INFO!A115) -> Tanzania | B115: =IF(COUNTRY_INFO!B115=0," ",COUNTRY_INFO!B115) -> Mtwara | C115: =IF(COUNTRY_INFO!C115=0," ",COUNTRY_INFO!C115) -> Tandahimba District Council | D115: =IF(COUNTRY_INFO!$T$9:$T$1000="MDA1 (IVM+ALB)", COUNTRY_INFO!$T$9:$T$1000, " ") ->  | I115: 0 | M115: 0
A116: =IF(COUNTRY_INFO!A116=0," ",COUNTRY_INFO!A116) -> Tanzania | B116: =IF(COUNTRY_INFO!B116=0," ",COUNTRY_INFO!B116) -> Mwanza | C116: =IF(COUNTRY_INFO!C116=0," ",COUNTRY_INFO!C116) -> Buchosa District Council | D116: =IF(COUNTRY_INFO!$T$9:$T$1000="MDA1 (IVM+ALB)", COUNTRY_INFO!$T$9:$T$1000, " ") ->  | I116: 0 | M116: 0
A117: =IF(COUNTRY_INFO!A117=0," ",COUNTRY_INFO!A117) -> Tanzania | B117: =IF(COUNTRY_INFO!B117=0," ",COUNTRY_INFO!B117) -> Mwanza | C117: =IF(COUNTRY_INFO!C117=0," ",COUNTRY_INFO!C117) -> Ilemela Municipal Council | D117: =IF(COUNTRY_INFO!$T$9:$T$1000="MDA1 (IVM+ALB)", COUNTRY_INFO!$T$9:$T$1000, " ") ->  | I117: 0 | M117: 0
A118: =IF(COUNTRY_INFO!A118=0," ",COUNTRY_INFO!A118) -> Tanzania | B118: =IF(COUNTRY_INFO!B118=0," ",COUNTRY_INFO!B118) -> Mwanza | C118: =IF(COUNTRY_INFO!C118=0," ",COUNTRY_INFO!C118) -> Kwimba District Council | D118: =IF(COUNTRY_INFO!$T$9:$T$1000="MDA1 (IVM+ALB)", COUNTRY_INFO!$T$9:$T$1000, " ") ->  | I118: 0 | M118: 0
A119: =IF(COUNTRY_INFO!A119=0," ",COUNTRY_INFO!A119) -> Tanzania | B119: =IF(COUNTRY_INFO!B119=0," ",COUNTRY_INFO!B119) -> Mwanza | C119: =IF(COUNTRY_INFO!C119=0," ",COUNTRY_INFO!C119) -> Magu District Council | D119: =IF(COUNTRY_INFO!$T$9:$T$1000="MDA1 (IVM+ALB)", COUNTRY_INFO!$T$9:$T$1000, " ") ->  | I119: 0 | M119: 0
A120: =IF(COUNTRY_INFO!A120=0," ",COUNTRY_INFO!A120) -> Tanzania | B120: =IF(COUNTRY_INFO!B120=0," ",COUNTRY_INFO!B120) -> Mwanza | C120: =IF(COUNTRY_INFO!C120=0," ",COUNTRY_INFO!C120) -> Misungwi District Council | D120: =IF(COUNTRY_INFO!$T$9:$T$1000="MDA1 (IVM+ALB)", COUNTRY_INFO!$T$9:$T$1000, " ") ->  | I120: 0 | M120: 0
A121: =IF(COUNTRY_INFO!A121=0," ",COUNTRY_INFO!A121) -> Tanzania | B121: =IF(COUNTRY_INFO!B121=0," ",COUNTRY_INFO!B121) -> Mwanza | C121: =IF(COUNTRY_INFO!C121=0," ",COUNTRY_INFO!C121) -> Mwanza-Nyamagana City Council | D121: =IF(COUNTRY_INFO!$T$9:$T$1000="MDA1 (IVM+ALB)", COUNTRY_INFO!$T$9:$T$1000, " ") ->  | I121: 0 | M121: 0
A122: =IF(COUNTRY_INFO!A122=0," ",COUNTRY_INFO!A122) -> Tanzania | B122: =IF(COUNTRY_INFO!B122=0," ",COUNTRY_INFO!B122) -> Mwanza | C122: =IF(COUNTRY_INFO!C122=0," ",COUNTRY_INFO!C122) -> Sengerema District Council | D122: =IF(COUNTRY_INFO!$T$9:$T$1000="MDA1 (IVM+ALB)", COUNTRY_INFO!$T$9:$T$1000, " ") ->  | I122: 0 | M122: 0
A123: =IF(COUNTRY_INFO!A123=0," ",COUNTRY_INFO!A123) -> Tanzania | B123: =IF(COUNTRY_INFO!B123=0," ",COUNTRY_INFO!B123) -> Mwanza | C123: =IF(COUNTRY_INFO!C123=0," ",COUNTRY_INFO!C123) -> Ukerewe District Council | D123: =IF(COUNTRY_INFO!$T$9:$T$1000="MDA1 (IVM+ALB)", COUNTRY_INFO!$T$9:$T$1000, " ") ->  | I123: 0 | M123: 0
A124: =IF(COUNTRY_INFO!A124=0," ",COUNTRY_INFO!A124) -> Tanzania | B124: =IF(COUNTRY_INFO!B124=0," ",COUNTRY_INFO!B124) -> Njombe | C124: =IF(COUNTRY_INFO!C124=0," ",COUNTRY_INFO!C124) -> Ludewa District Council | D124: =IF(COUNTRY_INFO!$T$9:$T$1000="MDA1 (IVM+ALB)", COUNTRY_INFO!$T$9:$T$1000, " ") ->  | I124: 0 | M124: 0
A125: =IF(COUNTRY_INFO!A125=0," ",COUNTRY_INFO!A125) -> Tanzania | B125: =IF(COUNTRY_INFO!B125=0," ",COUNTRY_INFO!B125) -> Njombe | C125: =IF(COUNTRY_INFO!C125=0," ",COUNTRY_INFO!C125) -> Makambako Town Council | D125: =IF(COUNTRY_INFO!$T$9:$T$1000="MDA1 (IVM+ALB)", COUNTRY_INFO!$T$9:$T$1000, " ") ->  | I125: 0 | M125: 0
A126: =IF(COUNTRY_INFO!A126=0," ",COUNTRY_INFO!A126) -> Tanzania | B126: =IF(COUNTRY_INFO!B126=0," ",COUNTRY_INFO!B126) -> Njombe | C126: =IF(COUNTRY_INFO!C126=0," ",COUNTRY_INFO!C126) -> Makete District Council | D126: =IF(COUNTRY_INFO!$T$9:$T$1000="MDA1 (IVM+ALB)", COUNTRY_INFO!$T$9:$T$1000, " ") ->  | I126: 0 | M126: 0
A127: =IF(COUNTRY_INFO!A127=0," ",COUNTRY_INFO!A127) -> Tanzania | B127: =IF(COUNTRY_INFO!B127=0," ",COUNTRY_INFO!B127) -> Njombe | C127: =IF(COUNTRY_INFO!C127=0," ",COUNTRY_INFO!C127) -> Njombe District Council | D127: =IF(COUNTRY_INFO!$T$9:$T$1000="MDA1 (IVM+ALB)", COUNTRY_INFO!$T$9:$T$1000, " ") ->  | I127: 0 | M127: 0
A128: =IF(COUNTRY_INFO!A128=0," ",COUNTRY_INFO!A128) -> Tanzania | B128: =IF(COUNTRY_INFO!B128=0," ",COUNTRY_INFO!B128) -> Njombe | C128: =IF(COUNTRY_INFO!C128=0," ",COUNTRY_INFO!C128) -> Njombe Town Council | D128: =IF(COUNTRY_INFO!$T$9:$T$1000="MDA1 (IVM+ALB)", COUNTRY_INFO!$T$9:$T$1000, " ") ->  | I128: 0 | M128: 0
A129: =IF(COUNTRY_INFO!A129=0," ",COUNTRY_INFO!A129) -> Tanzania | B129: =IF(COUNTRY_INFO!B129=0," ",COUNTRY_INFO!B129) -> Njombe | C129: =IF(COUNTRY_INFO!C129=0," ",COUNTRY_INFO!C129) -> Wanging'ombe District Council | D129: =IF(COUNTRY_INFO!$T$9:$T$1000="MDA1 (IVM+ALB)", COUNTRY_INFO!$T$9:$T$1000, " ") ->  | I129: 0 | M129: 0
A130: =IF(COUNTRY_INFO!A130=0," ",COUNTRY_INFO!A130) -> Tanzania | B130: =IF(COUNTRY_INFO!B130=0," ",COUNTRY_INFO!B130) -> Pwani | C130: =IF(COUNTRY_INFO!C130=0," ",COUNTRY_INFO!C130) -> Bagamoyo District Council | D130: =IF(COUNTRY_INFO!$T$9:$T$1000="MDA1 (IVM+ALB)", COUNTRY_INFO!$T$9:$T$1000, " ") ->  | I130: 0 | M130: 0
A131: =IF(COUNTRY_INFO!A131=0," ",COUNTRY_INFO!A131) -> Tanzania | B131: =IF(COUNTRY_INFO!B131=0," ",COUNTRY_INFO!B131) -> Pwani | C131: =IF(COUNTRY_INFO!C131=0," ",COUNTRY_INFO!C131) -> Chalinze District Council | D131: =IF(COUNTRY_INFO!$T$9:$T$1000="MDA1 (IVM+ALB)", COUNTRY_INFO!$T$9:$T$1000, " ") ->  | I131: 0 | M131: 0
A132: =IF(COUNTRY_INFO!A132=0," ",COUNTRY_INFO!A132) -> Tanzania | B132: =IF(COUNTRY_INFO!B132=0," ",COUNTRY_INFO!B132) -> Pwani | C132: =IF(COUNTRY_INFO!C132=0," ",COUNTRY_INFO!C132) -> Kibaha District Council | D132: =IF(COUNTRY_INFO!$T$9:$T$1000="MDA1 (IVM+ALB)", COUNTRY_INFO!$T$9:$T$1000, " ") -> MDA1 (IVM+ALB) | E132: Sept - 2018 | G132: 15280 | H132: 54401 | I132: 69681 | K132: 12731.105 | L132: 53923.895 | M132: 66655 | O132: 83.31875 | P132: 99.12298487 | Q132: 95.65735279
A133: =IF(COUNTRY_INFO!A133=0," ",COUNTRY_INFO!A133) -> Tanzania | B133: =IF(COUNTRY_INFO!B133=0," ",COUNTRY_INFO!B133) -> Pwani | C133: =IF(COUNTRY_INFO!C133=0," ",COUNTRY_INFO!C133) -> Kibaha Town Council | D133: =IF(COUNTRY_INFO!$T$9:$T$1000="MDA1 (IVM+ALB)", COUNTRY_INFO!$T$9:$T$1000, " ") ->  | I133: 0 | M133: 0
A134: =IF(COUNTRY_INFO!A134=0," ",COUNTRY_INFO!A134) -> Tanzania | B134: =IF(COUNTRY_INFO!B134=0," ",COUNTRY_INFO!B134) -> Pwani | C134: =IF(COUNTRY_INFO!C134=0," ",COUNTRY_INFO!C134) -> Kibiti District Council | D134: =IF(COUNTRY_INFO!$T$9:$T$1000="MDA1 (IVM+ALB)", COUNTRY_INFO!$T$9:$T$1000, " ") ->  | I134: 0 | M134: 0
A135: =IF(COUNTRY_INFO!A135=0," ",COUNTRY_INFO!A135) -> Tanzania | B135: =IF(COUNTRY_INFO!B135=0," ",COUNTRY_INFO!B135) -> Pwani | C135: =IF(COUNTRY_INFO!C135=0," ",COUNTRY_INFO!C135) -> Kisarawe District Council | D135: =IF(COUNTRY_INFO!$T$9:$T$1000="MDA1 (IVM+ALB)", COUNTRY_INFO!$T$9:$T$1000, " ") ->  | I135: 0 | M135: 0
A136: =IF(COUNTRY_INFO!A136=0," ",COUNTRY_INFO!A136) -> Tanzania | B136: =IF(COUNTRY_INFO!B136=0," ",COUNTRY_INFO!B136) -> Pwani | C136: =IF(COUNTRY_INFO!C136=0," ",COUNTRY_INFO!C136) -> Mafia District Council | D136: =IF(COUNTRY_INFO!$T$9:$T$1000="MDA1 (IVM+ALB)", COUNTRY_INFO!$T$9:$T$1000, " ") -> MDA1 (IVM+ALB) | E136: Nov - 2018 | G136: 10107 | H136: 35982 | I136: 46089 | K136: 8240.313 | L136: 34902.687 | M136: 43143 | O136: 81.53075096 | P136: 97.00040854 | Q136: 93.60801927
A137: =IF(COUNTRY_INFO!A137=0," ",COUNTRY_INFO!A137) -> Tanzania | B137: =IF(COUNTRY_INFO!B137=0," ",COUNTRY_INFO!B137) -> Pwani | C137: =IF(COUNTRY_INFO!C137=0," ",COUNTRY_INFO!C137) -> Mkuranga District Council | D137: =IF(COUNTRY_INFO!$T$9:$T$1000="MDA1 (IVM+ALB)", COUNTRY_INFO!$T$9:$T$1000, " ") ->  | I137: 0 | M137: 0
A138: =IF(COUNTRY_INFO!A138=0," ",COUNTRY_INFO!A138) -> Tanzania | B138: =IF(COUNTRY_INFO!B138=0," ",COUNTRY_INFO!B138) -> Pwani | C138: =IF(COUNTRY_INFO!C138=0," ",COUNTRY_INFO!C138) -> Rufiji District Council | D138: =IF(COUNTRY_INFO!$T$9:$T$1000="MDA1 (IVM+ALB)", COUNTRY_INFO!$T$9:$T$1000, " ") ->  | I138: =SUM(F138:H138) -> 0 | M138: =SUM(J138:L138) -> 0 | O138: =IF(G138<>0, IF(K138/G138*100=0, "-", K138/G138*100), " ") ->  | P138: =IF(H138<>0, IF(L138/H138*100=0, "-", L138/H138*100), " ") ->  | Q138: =IF(I138<>0, IF(M138/I138*100=0, "-", M138/I138*100), " ") -> 
A139: =IF(COUNTRY_INFO!A139=0," ",COUNTRY_INFO!A139) -> Tanzania | B139: =IF(COUNTRY_INFO!B139=0," ",COUNTRY_INFO!B139) -> Rukwa | C139: =IF(COUNTRY_INFO!C139=0," ",COUNTRY_INFO!C139) -> Kalambo District Council | D139: =IF(COUNTRY_INFO!$T$9:$T$1000="MDA1 (IVM+ALB)", COUNTRY_INFO!$T$9:$T$1000, " ") ->  | I139: 0 | M139: 0
A140: =IF(COUNTRY_INFO!A140=0," ",COUNTRY_INFO!A140) -> Tanzania | B140: =IF(COUNTRY_INFO!B140=0," ",COUNTRY_INFO!B140) -> Rukwa | C140: =IF(COUNTRY_INFO!C140=0," ",COUNTRY_INFO!C140) -> Nkasi District Council | D140: =IF(COUNTRY_INFO!$T$9:$T$1000="MDA1 (IVM+ALB)", COUNTRY_INFO!$T$9:$T$1000, " ") ->  | I140: 0 | M140: 0
A141: =IF(COUNTRY_INFO!A141=0," ",COUNTRY_INFO!A141) -> Tanzania | B141: =IF(COUNTRY_INFO!B141=0," ",COUNTRY_INFO!B141) -> Rukwa | C141: =IF(COUNTRY_INFO!C141=0," ",COUNTRY_INFO!C141) -> Sumbawanga District Council | D141: =IF(COUNTRY_INFO!$T$9:$T$1000="MDA1 (IVM+ALB)", COUNTRY_INFO!$T$9:$T$1000, " ") ->  | I141: 0 | M141: 0
A142: =IF(COUNTRY_INFO!A142=0," ",COUNTRY_INFO!A142) -> Tanzania | B142: =IF(COUNTRY_INFO!B142=0," ",COUNTRY_INFO!B142) -> Rukwa | C142: =IF(COUNTRY_INFO!C142=0," ",COUNTRY_INFO!C142) -> Sumbawanga Municipal Council | D142: =IF(COUNTRY_INFO!$T$9:$T$1000="MDA1 (IVM+ALB)", COUNTRY_INFO!$T$9:$T$1000, " ") ->  | I142: 0 | M142: 0
A143: =IF(COUNTRY_INFO!A143=0," ",COUNTRY_INFO!A143) -> Tanzania | B143: =IF(COUNTRY_INFO!B143=0," ",COUNTRY_INFO!B143) -> Ruvuma | C143: =IF(COUNTRY_INFO!C143=0," ",COUNTRY_INFO!C143) -> Madaba District Council | D143: =IF(COUNTRY_INFO!$T$9:$T$1000="MDA1 (IVM+ALB)", COUNTRY_INFO!$T$9:$T$1000, " ") ->  | I143: 0 | M143: 0
A144: =IF(COUNTRY_INFO!A144=0," ",COUNTRY_INFO!A144) -> Tanzania | B144: =IF(COUNTRY_INFO!B144=0," ",COUNTRY_INFO!B144) -> Ruvuma | C144: =IF(COUNTRY_INFO!C144=0," ",COUNTRY_INFO!C144) -> Mbinga District Council | D144: =IF(COUNTRY_INFO!$T$9:$T$1000="MDA1 (IVM+ALB)", COUNTRY_INFO!$T$9:$T$1000, " ") ->  | I144: 0 | M144: 0
A145: =IF(COUNTRY_INFO!A145=0," ",COUNTRY_INFO!A145) -> Tanzania | B145: =IF(COUNTRY_INFO!B145=0," ",COUNTRY_INFO!B145) -> Ruvuma | C145: =IF(COUNTRY_INFO!C145=0," ",COUNTRY_INFO!C145) -> Mbinga Town Council | D145: =IF(COUNTRY_INFO!$T$9:$T$1000="MDA1 (IVM+ALB)", COUNTRY_INFO!$T$9:$T$1000, " ") ->  | I145: 0 | M145: 0
A146: =IF(COUNTRY_INFO!A146=0," ",COUNTRY_INFO!A146) -> Tanzania | B146: =IF(COUNTRY_INFO!B146=0," ",COUNTRY_INFO!B146) -> Ruvuma | C146: =IF(COUNTRY_INFO!C146=0," ",COUNTRY_INFO!C146) -> Namtumbo District Council | D146: =IF(COUNTRY_INFO!$T$9:$T$1000="MDA1 (IVM+ALB)", COUNTRY_INFO!$T$9:$T$1000, " ") ->  | I146: 0 | M146: 0
A147: =IF(COUNTRY_INFO!A147=0," ",COUNTRY_INFO!A147) -> Tanzania | B147: =IF(COUNTRY_INFO!B147=0," ",COUNTRY_INFO!B147) -> Ruvuma | C147: =IF(COUNTRY_INFO!C147=0," ",COUNTRY_INFO!C147) -> Nyasa District Council | D147: =IF(COUNTRY_INFO!$T$9:$T$1000="MDA1 (IVM+ALB)", COUNTRY_INFO!$T$9:$T$1000, " ") ->  | I147: 0 | M147: 0
A148: =IF(COUNTRY_INFO!A148=0," ",COUNTRY_INFO!A148) -> Tanzania | B148: =IF(COUNTRY_INFO!B148=0," ",COUNTRY_INFO!B148) -> Ruvuma | C148: =IF(COUNTRY_INFO!C148=0," ",COUNTRY_INFO!C148) -> Songea District Council | D148: =IF(COUNTRY_INFO!$T$9:$T$1000="MDA1 (IVM+ALB)", COUNTRY_INFO!$T$9:$T$1000, " ") ->  | I148: 0 | M148: 0
A149: =IF(COUNTRY_INFO!A149=0," ",COUNTRY_INFO!A149) -> Tanzania | B149: =IF(COUNTRY_INFO!B149=0," ",COUNTRY_INFO!B149) -> Ruvuma | C149: =IF(COUNTRY_INFO!C149=0," ",COUNTRY_INFO!C149) -> Songea Municipal Council | D149: =IF(COUNTRY_INFO!$T$9:$T$1000="MDA1 (IVM+ALB)", COUNTRY_INFO!$T$9:$T$1000, " ") ->  | I149: 0 | M149: 0
A150: =IF(COUNTRY_INFO!A150=0," ",COUNTRY_INFO!A150) -> Tanzania | B150: =IF(COUNTRY_INFO!B150=0," ",COUNTRY_INFO!B150) -> Ruvuma | C150: =IF(COUNTRY_INFO!C150=0," ",COUNTRY_INFO!C150) -> Tunduru District Council | D150: =IF(COUNTRY_INFO!$T$9:$T$1000="MDA1 (IVM+ALB)", COUNTRY_INFO!$T$9:$T$1000, " ") ->  | I150: 0 | M150: 0
A151: =IF(COUNTRY_INFO!A151=0," ",COUNTRY_INFO!A151) -> Tanzania | B151: =IF(COUNTRY_INFO!B151=0," ",COUNTRY_INFO!B151) -> Shinyanga | C151: =IF(COUNTRY_INFO!C151=0," ",COUNTRY_INFO!C151) -> Kahama Town Council | D151: =IF(COUNTRY_INFO!$T$9:$T$1000="MDA1 (IVM+ALB)", COUNTRY_INFO!$T$9:$T$1000, " ") ->  | I151: 0 | M151: 0
A152: =IF(COUNTRY_INFO!A152=0," ",COUNTRY_INFO!A152) -> Tanzania | B152: =IF(COUNTRY_INFO!B152=0," ",COUNTRY_INFO!B152) -> Shinyanga | C152: =IF(COUNTRY_INFO!C152=0," ",COUNTRY_INFO!C152) -> Kishapu District Council | D152: =IF(COUNTRY_INFO!$T$9:$T$1000="MDA1 (IVM+ALB)", COUNTRY_INFO!$T$9:$T$1000, " ") ->  | I152: 0 | M152: 0
A153: =IF(COUNTRY_INFO!A153=0," ",COUNTRY_INFO!A153) -> Tanzania | B153: =IF(COUNTRY_INFO!B153=0," ",COUNTRY_INFO!B153) -> Shinyanga | C153: =IF(COUNTRY_INFO!C153=0," ",COUNTRY_INFO!C153) -> Msalala District Council | D153: =IF(COUNTRY_INFO!$T$9:$T$1000="MDA1 (IVM+ALB)", COUNTRY_INFO!$T$9:$T$1000, " ") ->  | I153: 0 | M153: 0
A154: =IF(COUNTRY_INFO!A154=0," ",COUNTRY_INFO!A154) -> Tanzania | B154: =IF(COUNTRY_INFO!B154=0," ",COUNTRY_INFO!B154) -> Shinyanga | C154: =IF(COUNTRY_INFO!C154=0," ",COUNTRY_INFO!C154) -> Shinyanga District Council | D154: =IF(COUNTRY_INFO!$T$9:$T$1000="MDA1 (IVM+ALB)", COUNTRY_INFO!$T$9:$T$1000, " ") ->  | I154: 0 | M154: 0
A155: =IF(COUNTRY_INFO!A155=0," ",COUNTRY_INFO!A155) -> Tanzania | B155: =IF(COUNTRY_INFO!B155=0," ",COUNTRY_INFO!B155) -> Shinyanga | C155: =IF(COUNTRY_INFO!C155=0," ",COUNTRY_INFO!C155) -> Shinyanga Municipal Council | D155: =IF(COUNTRY_INFO!$T$9:$T$1000="MDA1 (IVM+ALB)", COUNTRY_INFO!$T$9:$T$1000, " ") ->  | I155: 0 | M155: 0
A156: =IF(COUNTRY_INFO!A156=0," ",COUNTRY_INFO!A156) -> Tanzania | B156: =IF(COUNTRY_INFO!B156=0," ",COUNTRY_INFO!B156) -> Shinyanga | C156: =IF(COUNTRY_INFO!C156=0," ",COUNTRY_INFO!C156) -> Ushetu District Council | D156: =IF(COUNTRY_INFO!$T$9:$T$1000="MDA1 (IVM+ALB)", COUNTRY_INFO!$T$9:$T$1000, " ") ->  | I156: 0 | M156: 0
A157: =IF(COUNTRY_INFO!A157=0," ",COUNTRY_INFO!A157) -> Tanzania | B157: =IF(COUNTRY_INFO!B157=0," ",COUNTRY_INFO!B157) -> Simiyu | C157: =IF(COUNTRY_INFO!C157=0," ",COUNTRY_INFO!C157) -> Bariadi District Council | D157: =IF(COUNTRY_INFO!$T$9:$T$1000="MDA1 (IVM+ALB)", COUNTRY_INFO!$T$9:$T$1000, " ") ->  | I157: 0 | M157: 0
A158: =IF(COUNTRY_INFO!A158=0," ",COUNTRY_INFO!A158) -> Tanzania | B158: =IF(COUNTRY_INFO!B158=0," ",COUNTRY_INFO!B158) -> Simiyu | C158: =IF(COUNTRY_INFO!C158=0," ",COUNTRY_INFO!C158) -> Bariadi Town Council | D158: =IF(COUNTRY_INFO!$T$9:$T$1000="MDA1 (IVM+ALB)", COUNTRY_INFO!$T$9:$T$1000, " ") ->  | I158: 0 | M158: 0
A159: =IF(COUNTRY_INFO!A159=0," ",COUNTRY_INFO!A159) -> Tanzania | B159: =IF(COUNTRY_INFO!B159=0," ",COUNTRY_INFO!B159) -> Simiyu | C159: =IF(COUNTRY_INFO!C159=0," ",COUNTRY_INFO!C159) -> Busega District Council | D159: =IF(COUNTRY_INFO!$T$9:$T$1000="MDA1 (IVM+ALB)", COUNTRY_INFO!$T$9:$T$1000, " ") ->  | I159: 0 | M159: 0
A160: =IF(COUNTRY_INFO!A160=0," ",COUNTRY_INFO!A160) -> Tanzania | B160: =IF(COUNTRY_INFO!B160=0," ",COUNTRY_INFO!B160) -> Simiyu | C160: =IF(COUNTRY_INFO!C160=0," ",COUNTRY_INFO!C160) -> Itilima District Council | D160: =IF(COUNTRY_INFO!$T$9:$T$1000="MDA1 (IVM+ALB)", COUNTRY_INFO!$T$9:$T$1000, " ") ->  | I160: 0 | M160: 0
A161: =IF(COUNTRY_INFO!A161=0," ",COUNTRY_INFO!A161) -> Tanzania | B161: =IF(COUNTRY_INFO!B161=0," ",COUNTRY_INFO!B161) -> Simiyu | C161: =IF(COUNTRY_INFO!C161=0," ",COUNTRY_INFO!C161) -> Maswa District Council | D161: =IF(COUNTRY_INFO!$T$9:$T$1000="MDA1 (IVM+ALB)", COUNTRY_INFO!$T$9:$T$1000, " ") ->  | I161: 0 | M161: 0
A162: =IF(COUNTRY_INFO!A162=0," ",COUNTRY_INFO!A162) -> Tanzania | B162: =IF(COUNTRY_INFO!B162=0," ",COUNTRY_INFO!B162) -> Simiyu | C162: =IF(COUNTRY_INFO!C162=0," ",COUNTRY_INFO!C162) -> Meatu District Council | D162: =IF(COUNTRY_INFO!$T$9:$T$1000="MDA1 (IVM+ALB)", COUNTRY_INFO!$T$9:$T$1000, " ") ->  | I162: 0 | M162: 0
A163: =IF(COUNTRY_INFO!A163=0," ",COUNTRY_INFO!A163) -> Tanzania | B163: =IF(COUNTRY_INFO!B163=0," ",COUNTRY_INFO!B163) -> Singida | C163: =IF(COUNTRY_INFO!C163=0," ",COUNTRY_INFO!C163) -> Ikungi District Council | D163: =IF(COUNTRY_INFO!$T$9:$T$1000="MDA1 (IVM+ALB)", COUNTRY_INFO!$T$9:$T$1000, " ") ->  | I163: 0 | M163: 0
A164: =IF(COUNTRY_INFO!A164=0," ",COUNTRY_INFO!A164) -> Tanzania | B164: =IF(COUNTRY_INFO!B164=0," ",COUNTRY_INFO!B164) -> Singida | C164: =IF(COUNTRY_INFO!C164=0," ",COUNTRY_INFO!C164) -> Iramba District Council | D164: =IF(COUNTRY_INFO!$T$9:$T$1000="MDA1 (IVM+ALB)", COUNTRY_INFO!$T$9:$T$1000, " ") ->  | I164: 0 | M164: 0
A165: =IF(COUNTRY_INFO!A165=0," ",COUNTRY_INFO!A165) -> Tanzania | B165: =IF(COUNTRY_INFO!B165=0," ",COUNTRY_INFO!B165) -> Singida | C165: =IF(COUNTRY_INFO!C165=0," ",COUNTRY_INFO!C165) -> Itigi District Council | D165: =IF(COUNTRY_INFO!$T$9:$T$1000="MDA1 (IVM+ALB)", COUNTRY_INFO!$T$9:$T$1000, " ") ->  | I165: 0 | M165: 0
A166: =IF(COUNTRY_INFO!A166=0," ",COUNTRY_INFO!A166) -> Tanzania | B166: =IF(COUNTRY_INFO!B166=0," ",COUNTRY_INFO!B166) -> Singida | C166: =IF(COUNTRY_INFO!C166=0," ",COUNTRY_INFO!C166) -> Manyoni District Council | D166: =IF(COUNTRY_INFO!$T$9:$T$1000="MDA1 (IVM+ALB)", COUNTRY_INFO!$T$9:$T$1000, " ") ->  | I166: 0 | M166: 0
A167: =IF(COUNTRY_INFO!A167=0," ",COUNTRY_INFO!A167) -> Tanzania | B167: =IF(COUNTRY_INFO!B167=0," ",COUNTRY_INFO!B167) -> Singida | C167: =IF(COUNTRY_INFO!C167=0," ",COUNTRY_INFO!C167) -> Mkalama District Council | D167: =IF(COUNTRY_INFO!$T$9:$T$1000="MDA1 (IVM+ALB)", COUNTRY_INFO!$T$9:$T$1000, " ") ->  | I167: 0 | M167: 0
A168: =IF(COUNTRY_INFO!A168=0," ",COUNTRY_INFO!A168) -> Tanzania | B168: =IF(COUNTRY_INFO!B168=0," ",COUNTRY_INFO!B168) -> Singida | C168: =IF(COUNTRY_INFO!C168=0," ",COUNTRY_INFO!C168) -> Singida District Council | D168: =IF(COUNTRY_INFO!$T$9:$T$1000="MDA1 (IVM+ALB)", COUNTRY_INFO!$T$9:$T$1000, " ") ->  | I168: 0 | M168: 0
A169: =IF(COUNTRY_INFO!A169=0," ",COUNTRY_INFO!A169) -> Tanzania | B169: =IF(COUNTRY_INFO!B169=0," ",COUNTRY_INFO!B169) -> Singida | C169: =IF(COUNTRY_INFO!C169=0," ",COUNTRY_INFO!C169) -> Singida Municipal Council | D169: =IF(COUNTRY_INFO!$T$9:$T$1000="MDA1 (IVM+ALB)", COUNTRY_INFO!$T$9:$T$1000, " ") ->  | I169: 0 | M169: 0
A170: =IF(COUNTRY_INFO!A170=0," ",COUNTRY_INFO!A170) -> Tanzania | B170: =IF(COUNTRY_INFO!B170=0," ",COUNTRY_INFO!B170) -> Songwe | C170: =IF(COUNTRY_INFO!C170=0," ",COUNTRY_INFO!C170) -> Ileje District Council | D170: =IF(COUNTRY_INFO!$T$9:$T$1000="MDA1 (IVM+ALB)", COUNTRY_INFO!$T$9:$T$1000, " ") ->  | I170: 0 | M170: 0
A171: =IF(COUNTRY_INFO!A171=0," ",COUNTRY_INFO!A171) -> Tanzania | B171: =IF(COUNTRY_INFO!B171=0," ",COUNTRY_INFO!B171) -> Songwe | C171: =IF(COUNTRY_INFO!C171=0," ",COUNTRY_INFO!C171) -> Mbozi District Council | D171: =IF(COUNTRY_INFO!$T$9:$T$1000="MDA1 (IVM+ALB)", COUNTRY_INFO!$T$9:$T$1000, " ") ->  | I171: 0 | M171: 0
A172: =IF(COUNTRY_INFO!A172=0," ",COUNTRY_INFO!A172) -> Tanzania | B172: =IF(COUNTRY_INFO!B172=0," ",COUNTRY_INFO!B172) -> Songwe | C172: =IF(COUNTRY_INFO!C172=0," ",COUNTRY_INFO!C172) -> Momba District Council | D172: =IF(COUNTRY_INFO!$T$9:$T$1000="MDA1 (IVM+ALB)", COUNTRY_INFO!$T$9:$T$1000, " ") ->  | I172: 0 | M172: 0
A173: =IF(COUNTRY_INFO!A173=0," ",COUNTRY_INFO!A173) -> Tanzania | B173: =IF(COUNTRY_INFO!B173=0," ",COUNTRY_INFO!B173) -> Songwe | C173: =IF(COUNTRY_INFO!C173=0," ",COUNTRY_INFO!C173) -> Songwe District Council | D173: =IF(COUNTRY_INFO!$T$9:$T$1000="MDA1 (IVM+ALB)", COUNTRY_INFO!$T$9:$T$1000, " ") ->  | I173: 0 | M173: 0
A174: =IF(COUNTRY_INFO!A174=0," ",COUNTRY_INFO!A174) -> Tanzania | B174: =IF(COUNTRY_INFO!B174=0," ",COUNTRY_INFO!B174) -> Songwe | C174: =IF(COUNTRY_INFO!C174=0," ",COUNTRY_INFO!C174) -> Tunduma Town Council | D174: =IF(COUNTRY_INFO!$T$9:$T$1000="MDA1 (IVM+ALB)", COUNTRY_INFO!$T$9:$T$1000, " ") ->  | I174: 0 | M174: 0
A175: =IF(COUNTRY_INFO!A175=0," ",COUNTRY_INFO!A175) -> Tanzania | B175: =IF(COUNTRY_INFO!B175=0," ",COUNTRY_INFO!B175) -> Tabora | C175: =IF(COUNTRY_INFO!C175=0," ",COUNTRY_INFO!C175) -> Igunga District Council | D175: =IF(COUNTRY_INFO!$T$9:$T$1000="MDA1 (IVM+ALB)", COUNTRY_INFO!$T$9:$T$1000, " ") ->  | I175: 0 | M175: 0
A176: =IF(COUNTRY_INFO!A176=0," ",COUNTRY_INFO!A176) -> Tanzania | B176: =IF(COUNTRY_INFO!B176=0," ",COUNTRY_INFO!B176) -> Tabora | C176: =IF(COUNTRY_INFO!C176=0," ",COUNTRY_INFO!C176) -> Kaliua District Council | D176: =IF(COUNTRY_INFO!$T$9:$T$1000="MDA1 (IVM+ALB)", COUNTRY_INFO!$T$9:$T$1000, " ") ->  | I176: 0 | M176: 0
A177: =IF(COUNTRY_INFO!A177=0," ",COUNTRY_INFO!A177) -> Tanzania | B177: =IF(COUNTRY_INFO!B177=0," ",COUNTRY_INFO!B177) -> Tabora | C177: =IF(COUNTRY_INFO!C177=0," ",COUNTRY_INFO!C177) -> Nzega District Council | D177: =IF(COUNTRY_INFO!$T$9:$T$1000="MDA1 (IVM+ALB)", COUNTRY_INFO!$T$9:$T$1000, " ") ->  | I177: 0 | M177: 0
A178: =IF(COUNTRY_INFO!A178=0," ",COUNTRY_INFO!A178) -> Tanzania | B178: =IF(COUNTRY_INFO!B178=0," ",COUNTRY_INFO!B178) -> Tabora | C178: =IF(COUNTRY_INFO!C178=0," ",COUNTRY_INFO!C178) -> Nzega Town Council | D178: =IF(COUNTRY_INFO!$T$9:$T$1000="MDA1 (IVM+ALB)", COUNTRY_INFO!$T$9:$T$1000, " ") ->  | I178: 0 | M178: 0
A179: =IF(COUNTRY_INFO!A179=0," ",COUNTRY_INFO!A179) -> Tanzania | B179: =IF(COUNTRY_INFO!B179=0," ",COUNTRY_INFO!B179) -> Tabora | C179: =IF(COUNTRY_INFO!C179=0," ",COUNTRY_INFO!C179) -> Sikonge District Council | D179: =IF(COUNTRY_INFO!$T$9:$T$1000="MDA1 (IVM+ALB)", COUNTRY_INFO!$T$9:$T$1000, " ") ->  | I179: 0 | M179: 0
A180: =IF(COUNTRY_INFO!A180=0," ",COUNTRY_INFO!A180) -> Tanzania | B180: =IF(COUNTRY_INFO!B180=0," ",COUNTRY_INFO!B180) -> Tabora | C180: =IF(COUNTRY_INFO!C180=0," ",COUNTRY_INFO!C180) -> Tabora Municipal Council | D180: =IF(COUNTRY_INFO!$T$9:$T$1000="MDA1 (IVM+ALB)", COUNTRY_INFO!$T$9:$T$1000, " ") ->  | I180: 0 | M180: 0
A181: =IF(COUNTRY_INFO!A181=0," ",COUNTRY_INFO!A181) -> Tanzania | B181: =IF(COUNTRY_INFO!B181=0," ",COUNTRY_INFO!B181) -> Tabora | C181: =IF(COUNTRY_INFO!C181=0," ",COUNTRY_INFO!C181) -> Urambo District Council | D181: =IF(COUNTRY_INFO!$T$9:$T$1000="MDA1 (IVM+ALB)", COUNTRY_INFO!$T$9:$T$1000, " ") ->  | I181: 0 | M181: 0
A182: =IF(COUNTRY_INFO!A182=0," ",COUNTRY_INFO!A182) -> Tanzania | B182: =IF(COUNTRY_INFO!B182=0," ",COUNTRY_INFO!B182) -> Tabora | C182: =IF(COUNTRY_INFO!C182=0," ",COUNTRY_INFO!C182) -> Uyui District Council | D182: =IF(COUNTRY_INFO!$T$9:$T$1000="MDA1 (IVM+ALB)", COUNTRY_INFO!$T$9:$T$1000, " ") ->  | I182: 0 | M182: 0
A183: =IF(COUNTRY_INFO!A183=0," ",COUNTRY_INFO!A183) -> Tanzania | B183: =IF(COUNTRY_INFO!B183=0," ",COUNTRY_INFO!B183) -> Tanga | C183: =IF(COUNTRY_INFO!C183=0," ",COUNTRY_INFO!C183) -> Bumbuli District Council | D183: =IF(COUNTRY_INFO!$T$9:$T$1000="MDA1 (IVM+ALB)", COUNTRY_INFO!$T$9:$T$1000, " ") ->  | I183: 0 | M183: 0
A184: =IF(COUNTRY_INFO!A184=0," ",COUNTRY_INFO!A184) -> Tanzania | B184: =IF(COUNTRY_INFO!B184=0," ",COUNTRY_INFO!B184) -> Tanga | C184: =IF(COUNTRY_INFO!C184=0," ",COUNTRY_INFO!C184) -> Handeni District Council | D184: =IF(COUNTRY_INFO!$T$9:$T$1000="MDA1 (IVM+ALB)", COUNTRY_INFO!$T$9:$T$1000, " ") ->  | I184: 0 | M184: 0
A185: =IF(COUNTRY_INFO!A185=0," ",COUNTRY_INFO!A185) -> Tanzania | B185: =IF(COUNTRY_INFO!B185=0," ",COUNTRY_INFO!B185) -> Tanga | C185: =IF(COUNTRY_INFO!C185=0," ",COUNTRY_INFO!C185) -> Handeni Town Council | D185: =IF(COUNTRY_INFO!$T$9:$T$1000="MDA1 (IVM+ALB)", COUNTRY_INFO!$T$9:$T$1000, " ") ->  | I185: 0 | M185: 0
A186: =IF(COUNTRY_INFO!A186=0," ",COUNTRY_INFO!A186) -> Tanzania | B186: =IF(COUNTRY_INFO!B186=0," ",COUNTRY_INFO!B186) -> Tanga | C186: =IF(COUNTRY_INFO!C186=0," ",COUNTRY_INFO!C186) -> Kilindi District Council | D186: =IF(COUNTRY_INFO!$T$9:$T$1000="MDA1 (IVM+ALB)", COUNTRY_INFO!$T$9:$T$1000, " ") ->  | I186: 0 | M186: 0
A187: =IF(COUNTRY_INFO!A187=0," ",COUNTRY_INFO!A187) -> Tanzania | B187: =IF(COUNTRY_INFO!B187=0," ",COUNTRY_INFO!B187) -> Tanga | C187: =IF(COUNTRY_INFO!C187=0," ",COUNTRY_INFO!C187) -> Korogwe District Council | D187: =IF(COUNTRY_INFO!$T$9:$T$1000="MDA1 (IVM+ALB)", COUNTRY_INFO!$T$9:$T$1000, " ") -> MDA1 (IVM+ALB) | E187: Dec - 2018 | G187: 52677 | H187: 187542 | I187: 240219 | K187: 45871.897 | L187: 194295.103 | M187: 240167 | O187: 87.08145301 | P187: 103.6008483 | Q187: 99.97835309
A188: =IF(COUNTRY_INFO!A188=0," ",COUNTRY_INFO!A188) -> Tanzania | B188: =IF(COUNTRY_INFO!B188=0," ",COUNTRY_INFO!B188) -> Tanga | C188: =IF(COUNTRY_INFO!C188=0," ",COUNTRY_INFO!C188) -> Korogwe Town Council | D188: =IF(COUNTRY_INFO!$T$9:$T$1000="MDA1 (IVM+ALB)", COUNTRY_INFO!$T$9:$T$1000, " ") -> MDA1 (IVM+ALB) | E188: Nov - 2018 | G188: 14867 | H188: 52928 | I188: 67795 | K188: 12094.884 | L188: 51229.116 | M188: 63324 | O188: 81.35389789 | P188: 96.790198 | Q188: 93.40511837
A189: =IF(COUNTRY_INFO!A189=0," ",COUNTRY_INFO!A189) -> Tanzania | B189: =IF(COUNTRY_INFO!B189=0," ",COUNTRY_INFO!B189) -> Tanga | C189: =IF(COUNTRY_INFO!C189=0," ",COUNTRY_INFO!C189) -> Lushoto District Council | D189: =IF(COUNTRY_INFO!$T$9:$T$1000="MDA1 (IVM+ALB)", COUNTRY_INFO!$T$9:$T$1000, " ") ->  | I189: 0 | M189: 0
A190: =IF(COUNTRY_INFO!A190=0," ",COUNTRY_INFO!A190) -> Tanzania | B190: =IF(COUNTRY_INFO!B190=0," ",COUNTRY_INFO!B190) -> Tanga | C190: =IF(COUNTRY_INFO!C190=0," ",COUNTRY_INFO!C190) -> Mkinga District Council | D190: =IF(COUNTRY_INFO!$T$9:$T$1000="MDA1 (IVM+ALB)", COUNTRY_INFO!$T$9:$T$1000, " ") -> MDA1 (IVM+ALB) | G190: 25696 | H190: 91482 | I190: 117178 | K190: 21874 | L190: 92652 | M190: 114526 | O190: 85.12608966 | P190: 101.2789401 | Q190: 97.73677653
A191: =IF(COUNTRY_INFO!A191=0," ",COUNTRY_INFO!A191) -> Tanzania | B191: =IF(COUNTRY_INFO!B191=0," ",COUNTRY_INFO!B191) -> Tanga | C191: =IF(COUNTRY_INFO!C191=0," ",COUNTRY_INFO!C191) -> Muheza District Council | D191: =IF(COUNTRY_INFO!$T$9:$T$1000="MDA1 (IVM+ALB)", COUNTRY_INFO!$T$9:$T$1000, " ") ->  | I191: 0 | M191: 0
A192: =IF(COUNTRY_INFO!A192=0," ",COUNTRY_INFO!A192) -> Tanzania | B192: =IF(COUNTRY_INFO!B192=0," ",COUNTRY_INFO!B192) -> Tanga | C192: =IF(COUNTRY_INFO!C192=0," ",COUNTRY_INFO!C192) -> Pangani District Council | D192: =IF(COUNTRY_INFO!$T$9:$T$1000="MDA1 (IVM+ALB)", COUNTRY_INFO!$T$9:$T$1000, " ") -> MDA1 (IVM+ALB) | E192: Oct - 2018 | G192: 11758 | H192: 41861 | I192: 53619 | K192: 9155.394 | L192: 38778.606 | M192: 47934 | O192: 77.86523218 | P192: 92.63659731 | Q192: 89.3974151
A193: =IF(COUNTRY_INFO!A193=0," ",COUNTRY_INFO!A193) -> Tanzania | B193: =IF(COUNTRY_INFO!B193=0," ",COUNTRY_INFO!B193) -> Tanga | C193: =IF(COUNTRY_INFO!C193=0," ",COUNTRY_INFO!C193) -> Tanga City Council | D193: =IF(COUNTRY_INFO!$T$9:$T$1000="MDA1 (IVM+ALB)", COUNTRY_INFO!$T$9:$T$1000, " ") -> MDA1 (IVM+ALB) | E193: Oct - 2018 | G193: 59488 | H193: 211790 | I193: 271278 | K193: 56402.491 | L193: 238898.509 | M193: 295301 | O193: 94.81322452 | P193: 112.7997115 | Q193: 108.8554914

Sheet MDA2 (hidden)
A1: MDA 2 - Diethylcarbamazine citrate (DEC) + Albendazole (ALB)
A2: Administrative structure, population requiring PC by age group, population treated by age group and coverage
A4: TOTAL | F4: =SUM(F$9:F$1000) -> 0 | G4: =SUM(G$9:G$1000) -> 0 | H4: 0 | I4: 0 | J4: 0 | K4: 0 | L4: 0 | M4: 0 | N4: =IF(F4<>0, IF(J4/F4*100=0, "-", J4/F4*100), " ") ->  | O4: =IF(G4<>0, IF(K4/G4*100=0, "-", K4/G4*100), " ") ->  | P4: =IF(H4<>0, IF(L4/H4*100=0, "-", L4/H4*100), " ") ->  | Q4: =IF(I4<>0, IF(M4/I4*100=0, "-", M4/I4*100), " ") -> 
D6: PC implemented | E6: Date | F6: Population targeted for MDA 2 | J6: Population treated | N6: Programme coverage (%)
A7: Country | B7: Province/State | C7: District | F7: PreSAC | G7: SAC | H7: Adults | I7: Total | J7: PreSAC | K7: SAC | L7: Adults | M7: Total | N7: PreSAC | O7: SAC | P7: Adults | Q7: Total
A9: =IF(COUNTRY_INFO!A9=0," ",COUNTRY_INFO!A9) -> Tanzania | B9: =IF(COUNTRY_INFO!B9=0," ",COUNTRY_INFO!B9) -> Arusha | C9: =IF(COUNTRY_INFO!C9=0," ",COUNTRY_INFO!C9) -> Arusha City Council | D9: =IF(COUNTRY_INFO!$T$9:$T$1000="MDA2 (DEC+ALB)", COUNTRY_INFO!$T$9:$T$1000, " ") ->  | I9: =SUM(F9:H9) -> 0 | M9: =SUM(J9:L9) -> 0 | N9: =IF(F9<>0, IF(J9/F9*100=0, "-", J9/F9*100), " ") -> 
A10: =IF(COUNTRY_INFO!A10=0," ",COUNTRY_INFO!A10) -> Tanzania | B10: =IF(COUNTRY_INFO!B10=0," ",COUNTRY_INFO!B10) -> Arusha | C10: =IF(COUNTRY_INFO!C10=0," ",COUNTRY_INFO!C10) -> Arusha District Council | D10: =IF(COUNTRY_INFO!$T$9:$T$1000="MDA2 (DEC+ALB)", COUNTRY_INFO!$T$9:$T$1000, " ") ->  | I10: =SUM(F10:H10) -> 0 | M10: =SUM(J10:L10) -> 0 | N10: =IF(F10<>0, IF(J10/F10*100=0, "-", J10/F10*100), " ") ->  | O10: =IF(G10<>0, IF(K10/G10*100=0, "-", K10/G10*100), " ") ->  | P10: =IF(H10<>0, IF(L10/H10*100=0, "-", L10/H10*100), " ") ->  | Q10: =IF(I10<>0, IF(M10/I10*100=0, "-", M10/I10*100), " ") -> 
A11: =IF(COUNTRY_INFO!A11=0," ",COUNTRY_INFO!A11) -> Tanzania | B11: =IF(COUNTRY_INFO!B11=0," ",COUNTRY_INFO!B11) -> Arusha | C11: =IF(COUNTRY_INFO!C11=0," ",COUNTRY_INFO!C11) -> Karatu District Council | D11: =IF(COUNTRY_INFO!$T$9:$T$1000="MDA2 (DEC+ALB)", COUNTRY_INFO!$T$9:$T$1000, " ") ->  | I11: 0 | M11: 0
A12: =IF(COUNTRY_INFO!A12=0," ",COUNTRY_INFO!A12) -> Tanzania | B12: =IF(COUNTRY_INFO!B12=0," ",COUNTRY_INFO!B12) -> Arusha | C12: =IF(COUNTRY_INFO!C12=0," ",COUNTRY_INFO!C12) -> Longido District Council | D12: =IF(COUNTRY_INFO!$T$9:$T$1000="MDA2 (DEC+ALB)", COUNTRY_INFO!$T$9:$T$1000, " ") ->  | I12: 0 | M12: 0
A13: =IF(COUNTRY_INFO!A13=0," ",COUNTRY_INFO!A13) -> Tanzania | B13: =IF(COUNTRY_INFO!B13=0," ",COUNTRY_INFO!B13) -> Arusha | C13: =IF(COUNTRY_INFO!C13=0," ",COUNTRY_INFO!C13) -> Meru District Council | D13: =IF(COUNTRY_INFO!$T$9:$T$1000="MDA2 (DEC+ALB)", COUNTRY_INFO!$T$9:$T$1000, " ") ->  | I13: 0 | M13: 0
A14: =IF(COUNTRY_INFO!A14=0," ",COUNTRY_INFO!A14) -> Tanzania | B14: =IF(COUNTRY_INFO!B14=0," ",COUNTRY_INFO!B14) -> Arusha | C14: =IF(COUNTRY_INFO!C14=0," ",COUNTRY_INFO!C14) -> Monduli District Council | D14: =IF(COUNTRY_INFO!$T$9:$T$1000="MDA2 (DEC+ALB)", COUNTRY_INFO!$T$9:$T$1000, " ") ->  | I14: 0 | M14: 0
A15: =IF(COUNTRY_INFO!A15=0," ",COUNTRY_INFO!A15) -> Tanzania | B15: =IF(COUNTRY_INFO!B15=0," ",COUNTRY_INFO!B15) -> Arusha | C15: =IF(COUNTRY_INFO!C15=0," ",COUNTRY_INFO!C15) -> Ngorongoro District Council | D15: =IF(COUNTRY_INFO!$T$9:$T$1000="MDA2 (DEC+ALB)", COUNTRY_INFO!$T$9:$T$1000, " ") ->  | I15: 0 | M15: 0
A16: =IF(COUNTRY_INFO!A16=0," ",COUNTRY_INFO!A16) -> Tanzania | B16: =IF(COUNTRY_INFO!B16=0," ",COUNTRY_INFO!B16) -> Dar Es Salaam | C16: =IF(COUNTRY_INFO!C16=0," ",COUNTRY_INFO!C16) -> Dar es Salaam City Council | D16: =IF(COUNTRY_INFO!$T$9:$T$1000="MDA2 (DEC+ALB)", COUNTRY_INFO!$T$9:$T$1000, " ") ->  | I16: 0 | M16: 0
A17: =IF(COUNTRY_INFO!A17=0," ",COUNTRY_INFO!A17) -> Tanzania | B17: =IF(COUNTRY_INFO!B17=0," ",COUNTRY_INFO!B17) -> Dar Es Salaam | C17: =IF(COUNTRY_INFO!C17=0," ",COUNTRY_INFO!C17) -> Ilala Municipal Council | D17: =IF(COUNTRY_INFO!$T$9:$T$1000="MDA2 (DEC+ALB)", COUNTRY_INFO!$T$9:$T$1000, " ") ->  | I17: 0 | M17: 0
A18: =IF(COUNTRY_INFO!A18=0," ",COUNTRY_INFO!A18) -> Tanzania | B18: =IF(COUNTRY_INFO!B18=0," ",COUNTRY_INFO!B18) -> Dar Es Salaam | C18: =IF(COUNTRY_INFO!C18=0," ",COUNTRY_INFO!C18) -> Kigamboni Municipal Council | D18: =IF(COUNTRY_INFO!$T$9:$T$1000="MDA2 (DEC+ALB)", COUNTRY_INFO!$T$9:$T$1000, " ") ->  | I18: 0 | M18: 0
A19: =IF(COUNTRY_INFO!A19=0," ",COUNTRY_INFO!A19) -> Tanzania | B19: =IF(COUNTRY_INFO!B19=0," ",COUNTRY_INFO!B19) -> Dar Es Salaam | C19: =IF(COUNTRY_INFO!C19=0," ",COUNTRY_INFO!C19) -> Kinondoni Municipal Council | D19: =IF(COUNTRY_INFO!$T$9:$T$1000="MDA2 (DEC+ALB)", COUNTRY_INFO!$T$9:$T$1000, " ") ->  | I19: 0 | M19: 0
A20: =IF(COUNTRY_INFO!A20=0," ",COUNTRY_INFO!A20) -> Tanzania | B20: =IF(COUNTRY_INFO!B20=0," ",COUNTRY_INFO!B20) -> Dar Es Salaam | C20: =IF(COUNTRY_INFO!C20=0," ",COUNTRY_INFO!C20) -> Temeke Municipal Council | D20: =IF(COUNTRY_INFO!$T$9:$T$1000="MDA2 (DEC+ALB)", COUNTRY_INFO!$T$9:$T$1000, " ") ->  | I20: 0 | M20: 0
A21: =IF(COUNTRY_INFO!A21=0," ",COUNTRY_INFO!A21) -> Tanzania | B21: =IF(COUNTRY_INFO!B21=0," ",COUNTRY_INFO!B21) -> Dar Es Salaam | C21: =IF(COUNTRY_INFO!C21=0," ",COUNTRY_INFO!C21) -> Ubungo Municipal Council | D21: =IF(COUNTRY_INFO!$T$9:$T$1000="MDA2 (DEC+ALB)", COUNTRY_INFO!$T$9:$T$1000, " ") ->  | I21: 0 | M21: 0
A22: =IF(COUNTRY_INFO!A22=0," ",COUNTRY_INFO!A22) -> Tanzania | B22: =IF(COUNTRY_INFO!B22=0," ",COUNTRY_INFO!B22) -> Dodoma | C22: =IF(COUNTRY_INFO!C22=0," ",COUNTRY_INFO!C22) -> Bahi District Council | D22: =IF(COUNTRY_INFO!$T$9:$T$1000="MDA2 (DEC+ALB)", COUNTRY_INFO!$T$9:$T$1000, " ") ->  | I22: 0 | M22: 0
A23: =IF(COUNTRY_INFO!A23=0," ",COUNTRY_INFO!A23) -> Tanzania | B23: =IF(COUNTRY_INFO!B23=0," ",COUNTRY_INFO!B23) -> Dodoma | C23: =IF(COUNTRY_INFO!C23=0," ",COUNTRY_INFO!C23) -> Chamwino District Council | D23: =IF(COUNTRY_INFO!$T$9:$T$1000="MDA2 (DEC+ALB)", COUNTRY_INFO!$T$9:$T$1000, " ") ->  | I23: 0 | M23: 0
A24: =IF(COUNTRY_INFO!A24=0," ",COUNTRY_INFO!A24) -> Tanzania | B24: =IF(COUNTRY_INFO!B24=0," ",COUNTRY_INFO!B24) -> Dodoma | C24: =IF(COUNTRY_INFO!C24=0," ",COUNTRY_INFO!C24) -> Chemba District Council | D24: =IF(COUNTRY_INFO!$T$9:$T$1000="MDA2 (DEC+ALB)", COUNTRY_INFO!$T$9:$T$1000, " ") ->  | I24: 0 | M24: 0
A25: =IF(COUNTRY_INFO!A25=0," ",COUNTRY_INFO!A25) -> Tanzania | B25: =IF(COUNTRY_INFO!B25=0," ",COUNTRY_INFO!B25) -> Dodoma | C25: =IF(COUNTRY_INFO!C25=0," ",COUNTRY_INFO!C25) -> Dodoma Municipal Council | D25: =IF(COUNTRY_INFO!$T$9:$T$1000="MDA2 (DEC+ALB)", COUNTRY_INFO!$T$9:$T$1000, " ") ->  | I25: 0 | M25: 0
A26: =IF(COUNTRY_INFO!A26=0," ",COUNTRY_INFO!A26) -> Tanzania | B26: =IF(COUNTRY_INFO!B26=0," ",COUNTRY_INFO!B26) -> Dodoma | C26: =IF(COUNTRY_INFO!C26=0," ",COUNTRY_INFO!C26) -> Kondoa District Council | D26: =IF(COUNTRY_INFO!$T$9:$T$1000="MDA2 (DEC+ALB)", COUNTRY_INFO!$T$9:$T$1000, " ") ->  | I26: 0 | M26: 0
A27: =IF(COUNTRY_INFO!A27=0," ",COUNTRY_INFO!A27) -> Tanzania | B27: =IF(COUNTRY_INFO!B27=0," ",COUNTRY_INFO!B27) -> Dodoma | C27: =IF(COUNTRY_INFO!C27=0," ",COUNTRY_INFO!C27) -> Kondoa Town Council | D27: =IF(COUNTRY_INFO!$T$9:$T$1000="MDA2 (DEC+ALB)", COUNTRY_INFO!$T$9:$T$1000, " ") ->  | I27: 0 | M27: 0
A28: =IF(COUNTRY_INFO!A28=0," ",COUNTRY_INFO!A28) -> Tanzania | B28: =IF(COUNTRY_INFO!B28=0," ",COUNTRY_INFO!B28) -> Dodoma | C28: =IF(COUNTRY_INFO!C28=0," ",COUNTRY_INFO!C28) -> Kongwa District Council | D28: =IF(COUNTRY_INFO!$T$9:$T$1000="MDA2 (DEC+ALB)", COUNTRY_INFO!$T$9:$T$1000, " ") ->  | I28: 0 | M28: 0
A29: =IF(COUNTRY_INFO!A29=0," ",COUNTRY_INFO!A29) -> Tanzania | B29: =IF(COUNTRY_INFO!B29=0," ",COUNTRY_INFO!B29) -> Dodoma | C29: =IF(COUNTRY_INFO!C29=0," ",COUNTRY_INFO!C29) -> Mpwapwa District Council | D29: =IF(COUNTRY_INFO!$T$9:$T$1000="MDA2 (DEC+ALB)", COUNTRY_INFO!$T$9:$T$1000, " ") ->  | I29: 0 | M29: 0
A30: =IF(COUNTRY_INFO!A30=0," ",COUNTRY_INFO!A30) -> Tanzania | B30: =IF(COUNTRY_INFO!B30=0," ",COUNTRY_INFO!B30) -> Geita | C30: =IF(COUNTRY_INFO!C30=0," ",COUNTRY_INFO!C30) -> Bukombe District Council | D30: =IF(COUNTRY_INFO!$T$9:$T$1000="MDA2 (DEC+ALB)", COUNTRY_INFO!$T$9:$T$1000, " ") ->  | I30: 0 | M30: 0
A31: =IF(COUNTRY_INFO!A31=0," ",COUNTRY_INFO!A31) -> Tanzania | B31: =IF(COUNTRY_INFO!B31=0," ",COUNTRY_INFO!B31) -> Geita | C31: =IF(COUNTRY_INFO!C31=0," ",COUNTRY_INFO!C31) -> Chato District Council | D31: =IF(COUNTRY_INFO!$T$9:$T$1000="MDA2 (DEC+ALB)", COUNTRY_INFO!$T$9:$T$1000, " ") ->  | I31: 0 | M31: 0
A32: =IF(COUNTRY_INFO!A32=0," ",COUNTRY_INFO!A32) -> Tanzania | B32: =IF(COUNTRY_INFO!B32=0," ",COUNTRY_INFO!B32) -> Geita | C32: =IF(COUNTRY_INFO!C32=0," ",COUNTRY_INFO!C32) -> Geita District Council | D32: =IF(COUNTRY_INFO!$T$9:$T$1000="MDA2 (DEC+ALB)", COUNTRY_INFO!$T$9:$T$1000, " ") ->  | I32: 0 | M32: 0
A33: =IF(COUNTRY_INFO!A33=0," ",COUNTRY_INFO!A33) -> Tanzania | B33: =IF(COUNTRY_INFO!B33=0," ",COUNTRY_INFO!B33) -> Geita | C33: =IF(COUNTRY_INFO!C33=0," ",COUNTRY_INFO!C33) -> Geita Town Council | D33: =IF(COUNTRY_INFO!$T$9:$T$1000="MDA2 (DEC+ALB)", COUNTRY_INFO!$T$9:$T$1000, " ") ->  | I33: 0 | M33: 0
A34: =IF(COUNTRY_INFO!A34=0," ",COUNTRY_INFO!A34) -> Tanzania | B34: =IF(COUNTRY_INFO!B34=0," ",COUNTRY_INFO!B34) -> Geita | C34: =IF(COUNTRY_INFO!C34=0," ",COUNTRY_INFO!C34) -> Mbogwe District Council | D34: =IF(COUNTRY_INFO!$T$9:$T$1000="MDA2 (DEC+ALB)", COUNTRY_INFO!$T$9:$T$1000, " ") ->  | I34: 0 | M34: 0
A35: =IF(COUNTRY_INFO!A35=0," ",COUNTRY_INFO!A35) -> Tanzania | B35: =IF(COUNTRY_INFO!B35=0," ",COUNTRY_INFO!B35) -> Geita | C35: =IF(COUNTRY_INFO!C35=0," ",COUNTRY_INFO!C35) -> Nyang'hwale District Council | D35: =IF(COUNTRY_INFO!$T$9:$T$1000="MDA2 (DEC+ALB)", COUNTRY_INFO!$T$9:$T$1000, " ") ->  | I35: 0 | M35: 0
A36: =IF(COUNTRY_INFO!A36=0," ",COUNTRY_INFO!A36) -> Tanzania | B36: =IF(COUNTRY_INFO!B36=0," ",COUNTRY_INFO!B36) -> Iringa | C36: =IF(COUNTRY_INFO!C36=0," ",COUNTRY_INFO!C36) -> Iringa District Council | D36: =IF(COUNTRY_INFO!$T$9:$T$1000="MDA2 (DEC+ALB)", COUNTRY_INFO!$T$9:$T$1000, " ") ->  | I36: 0 | M36: 0
A37: =IF(COUNTRY_INFO!A37=0," ",COUNTRY_INFO!A37) -> Tanzania | B37: =IF(COUNTRY_INFO!B37=0," ",COUNTRY_INFO!B37) -> Iringa | C37: =IF(COUNTRY_INFO!C37=0," ",COUNTRY_INFO!C37) -> Iringa Municipal Council | D37: =IF(COUNTRY_INFO!$T$9:$T$1000="MDA2 (DEC+ALB)", COUNTRY_INFO!$T$9:$T$1000, " ") ->  | I37: 0 | M37: 0
A38: =IF(COUNTRY_INFO!A38=0," ",COUNTRY_INFO!A38) -> Tanzania | B38: =IF(COUNTRY_INFO!B38=0," ",COUNTRY_INFO!B38) -> Iringa | C38: =IF(COUNTRY_INFO!C38=0," ",COUNTRY_INFO!C38) -> Kilolo District Council | D38: =IF(COUNTRY_INFO!$T$9:$T$1000="MDA2 (DEC+ALB)", COUNTRY_INFO!$T$9:$T$1000, " ") ->  | I38: 0 | M38: 0
A39: =IF(COUNTRY_INFO!A39=0," ",COUNTRY_INFO!A39) -> Tanzania | B39: =IF(COUNTRY_INFO!B39=0," ",COUNTRY_INFO!B39) -> Iringa | C39: =IF(COUNTRY_INFO!C39=0," ",COUNTRY_INFO!C39) -> Mafinga Town Council | D39: =IF(COUNTRY_INFO!$T$9:$T$1000="MDA2 (DEC+ALB)", COUNTRY_INFO!$T$9:$T$1000, " ") ->  | I39: 0 | M39: 0
A40: =IF(COUNTRY_INFO!A40=0," ",COUNTRY_INFO!A40) -> Tanzania | B40: =IF(COUNTRY_INFO!B40=0," ",COUNTRY_INFO!B40) -> Iringa | C40: =IF(COUNTRY_INFO!C40=0," ",COUNTRY_INFO!C40) -> Mufindi District Council | D40: =IF(COUNTRY_INFO!$T$9:$T$1000="MDA2 (DEC+ALB)", COUNTRY_INFO!$T$9:$T$1000, " ") ->  | I40: 0 | M40: 0
A41: =IF(COUNTRY_INFO!A41=0," ",COUNTRY_INFO!A41) -> Tanzania | B41: =IF(COUNTRY_INFO!B41=0," ",COUNTRY_INFO!B41) -> Kagera | C41: =IF(COUNTRY_INFO!C41=0," ",COUNTRY_INFO!C41) -> Biharamulo District Council | D41: =IF(COUNTRY_INFO!$T$9:$T$1000="MDA2 (DEC+ALB)", COUNTRY_INFO!$T$9:$T$1000, " ") ->  | I41: 0 | M41: 0
A42: =IF(COUNTRY_INFO!A42=0," ",COUNTRY_INFO!A42) -> Tanzania | B42: =IF(COUNTRY_INFO!B42=0," ",COUNTRY_INFO!B42) -> Kagera | C42: =IF(COUNTRY_INFO!C42=0," ",COUNTRY_INFO!C42) -> Bukoba District Council | D42: =IF(COUNTRY_INFO!$T$9:$T$1000="MDA2 (DEC+ALB)", COUNTRY_INFO!$T$9:$T$1000, " ") ->  | I42: 0 | M42: 0
A43: =IF(COUNTRY_INFO!A43=0," ",COUNTRY_INFO!A43) -> Tanzania | B43: =IF(COUNTRY_INFO!B43=0," ",COUNTRY_INFO!B43) -> Kagera | C43: =IF(COUNTRY_INFO!C43=0," ",COUNTRY_INFO!C43) -> Bukoba Municipal Council | D43: =IF(COUNTRY_INFO!$T$9:$T$1000="MDA2 (DEC+ALB)", COUNTRY_INFO!$T$9:$T$1000, " ") ->  | I43: 0 | M43: 0
A44: =IF(COUNTRY_INFO!A44=0," ",COUNTRY_INFO!A44) -> Tanzania | B44: =IF(COUNTRY_INFO!B44=0," ",COUNTRY_INFO!B44) -> Kagera | C44: =IF(COUNTRY_INFO!C44=0," ",COUNTRY_INFO!C44) -> Karagwe District Council | D44: =IF(COUNTRY_INFO!$T$9:$T$1000="MDA2 (DEC+ALB)", COUNTRY_INFO!$T$9:$T$1000, " ") ->  | I44: 0 | M44: 0
A45: =IF(COUNTRY_INFO!A45=0," ",COUNTRY_INFO!A45) -> Tanzania | B45: =IF(COUNTRY_INFO!B45=0," ",COUNTRY_INFO!B45) -> Kagera | C45: =IF(COUNTRY_INFO!C45=0," ",COUNTRY_INFO!C45) -> Kyerwa District Council | D45: =IF(COUNTRY_INFO!$T$9:$T$1000="MDA2 (DEC+ALB)", COUNTRY_INFO!$T$9:$T$1000, " ") ->  | I45: 0 | M45: 0
A46: =IF(COUNTRY_INFO!A46=0," ",COUNTRY_INFO!A46) -> Tanzania | B46: =IF(COUNTRY_INFO!B46=0," ",COUNTRY_INFO!B46) -> Kagera | C46: =IF(COUNTRY_INFO!C46=0," ",COUNTRY_INFO!C46) -> Missenyi District Council | D46: =IF(COUNTRY_INFO!$T$9:$T$1000="MDA2 (DEC+ALB)", COUNTRY_INFO!$T$9:$T$1000, " ") ->  | I46: 0 | M46: 0
A47: =IF(COUNTRY_INFO!A47=0," ",COUNTRY_INFO!A47) -> Tanzania | B47: =IF(COUNTRY_INFO!B47=0," ",COUNTRY_INFO!B47) -> Kagera | C47: =IF(COUNTRY_INFO!C47=0," ",COUNTRY_INFO!C47) -> Muleba District Council | D47: =IF(COUNTRY_INFO!$T$9:$T$1000="MDA2 (DEC+ALB)", COUNTRY_INFO!$T$9:$T$1000, " ") ->  | I47: 0 | M47: 0
A48: =IF(COUNTRY_INFO!A48=0," ",COUNTRY_INFO!A48) -> Tanzania | B48: =IF(COUNTRY_INFO!B48=0," ",COUNTRY_INFO!B48) -> Kagera | C48: =IF(COUNTRY_INFO!C48=0," ",COUNTRY_INFO!C48) -> Ngara District Council | D48: =IF(COUNTRY_INFO!$T$9:$T$1000="MDA2 (DEC+ALB)", COUNTRY_INFO!$T$9:$T$1000, " ") ->  | I48: 0 | M48: 0
A49: =IF(COUNTRY_INFO!A49=0," ",COUNTRY_INFO!A49) -> Tanzania | B49: =IF(COUNTRY_INFO!B49=0," ",COUNTRY_INFO!B49) -> Katavi | C49: =IF(COUNTRY_INFO!C49=0," ",COUNTRY_INFO!C49) -> Mlele District Council | D49: =IF(COUNTRY_INFO!$T$9:$T$1000="MDA2 (DEC+ALB)", COUNTRY_INFO!$T$9:$T$1000, " ") ->  | I49: 0 | M49: 0
A50: =IF(COUNTRY_INFO!A50=0," ",COUNTRY_INFO!A50) -> Tanzania | B50: =IF(COUNTRY_INFO!B50=0," ",COUNTRY_INFO!B50) -> Katavi | C50: =IF(COUNTRY_INFO!C50=0," ",COUNTRY_INFO!C50) -> Mpanda District Council | D50: =IF(COUNTRY_INFO!$T$9:$T$1000="MDA2 (DEC+ALB)", COUNTRY_INFO!$T$9:$T$1000, " ") ->  | I50: 0 | M50: 0
A51: =IF(COUNTRY_INFO!A51=0," ",COUNTRY_INFO!A51) -> Tanzania | B51: =IF(COUNTRY_INFO!B51=0," ",COUNTRY_INFO!B51) -> Katavi | C51: =IF(COUNTRY_INFO!C51=0," ",COUNTRY_INFO!C51) -> Mpanda Municipal Council | D51: =IF(COUNTRY_INFO!$T$9:$T$1000="MDA2 (DEC+ALB)", COUNTRY_INFO!$T$9:$T$1000, " ") ->  | I51: 0 | M51: 0
A52: =IF(COUNTRY_INFO!A52=0," ",COUNTRY_INFO!A52) -> Tanzania | B52: =IF(COUNTRY_INFO!B52=0," ",COUNTRY_INFO!B52) -> Katavi | C52: =IF(COUNTRY_INFO!C52=0," ",COUNTRY_INFO!C52) -> Mpimbwe District Council | D52: =IF(COUNTRY_INFO!$T$9:$T$1000="MDA2 (DEC+ALB)", COUNTRY_INFO!$T$9:$T$1000, " ") ->  | I52: 0 | M52: 0
A53: =IF(COUNTRY_INFO!A53=0," ",COUNTRY_INFO!A53) -> Tanzania | B53: =IF(COUNTRY_INFO!B53=0," ",COUNTRY_INFO!B53) -> Katavi | C53: =IF(COUNTRY_INFO!C53=0," ",COUNTRY_INFO!C53) -> Nsimbo District Council | D53: =IF(COUNTRY_INFO!$T$9:$T$1000="MDA2 (DEC+ALB)", COUNTRY_INFO!$T$9:$T$1000, " ") ->  | I53: 0 | M53: 0
A54: =IF(COUNTRY_INFO!A54=0," ",COUNTRY_INFO!A54) -> Tanzania | B54: =IF(COUNTRY_INFO!B54=0," ",COUNTRY_INFO!B54) -> Kigoma | C54: =IF(COUNTRY_INFO!C54=0," ",COUNTRY_INFO!C54) -> Buhigwe District Council | D54: =IF(COUNTRY_INFO!$T$9:$T$1000="MDA2 (DEC+ALB)", COUNTRY_INFO!$T$9:$T$1000, " ") ->  | I54: 0 | M54: 0
A55: =IF(COUNTRY_INFO!A55=0," ",COUNTRY_INFO!A55) -> Tanzania | B55: =IF(COUNTRY_INFO!B55=0," ",COUNTRY_INFO!B55) -> Kigoma | C55: =IF(COUNTRY_INFO!C55=0," ",COUNTRY_INFO!C55) -> Kakonko District Council | D55: =IF(COUNTRY_INFO!$T$9:$T$1000="MDA2 (DEC+ALB)", COUNTRY_INFO!$T$9:$T$1000, " ") ->  | I55: 0 | M55: 0
A56: =IF(COUNTRY_INFO!A56=0," ",COUNTRY_INFO!A56) -> Tanzania | B56: =IF(COUNTRY_INFO!B56=0," ",COUNTRY_INFO!B56) -> Kigoma | C56: =IF(COUNTRY_INFO!C56=0," ",COUNTRY_INFO!C56) -> Kasulu District Council | D56: =IF(COUNTRY_INFO!$T$9:$T$1000="MDA2 (DEC+ALB)", COUNTRY_INFO!$T$9:$T$1000, " ") ->  | I56: 0 | M56: 0
A57: =IF(COUNTRY_INFO!A57=0," ",COUNTRY_INFO!A57) -> Tanzania | B57: =IF(COUNTRY_INFO!B57=0," ",COUNTRY_INFO!B57) -> Kigoma | C57: =IF(COUNTRY_INFO!C57=0," ",COUNTRY_INFO!C57) -> Kasulu Town Council | D57: =IF(COUNTRY_INFO!$T$9:$T$1000="MDA2 (DEC+ALB)", COUNTRY_INFO!$T$9:$T$1000, " ") ->  | I57: 0 | M57: 0
A58: =IF(COUNTRY_INFO!A58=0," ",COUNTRY_INFO!A58) -> Tanzania | B58: =IF(COUNTRY_INFO!B58=0," ",COUNTRY_INFO!B58) -> Kigoma | C58: =IF(COUNTRY_INFO!C58=0," ",COUNTRY_INFO!C58) -> Kibondo District Council | D58: =IF(COUNTRY_INFO!$T$9:$T$1000="MDA2 (DEC+ALB)", COUNTRY_INFO!$T$9:$T$1000, " ") ->  | I58: 0 | M58: 0
A59: =IF(COUNTRY_INFO!A59=0," ",COUNTRY_INFO!A59) -> Tanzania | B59: =IF(COUNTRY_INFO!B59=0," ",COUNTRY_INFO!B59) -> Kigoma | C59: =IF(COUNTRY_INFO!C59=0," ",COUNTRY_INFO!C59) -> Kigoma District Council | D59: =IF(COUNTRY_INFO!$T$9:$T$1000="MDA2 (DEC+ALB)", COUNTRY_INFO!$T$9:$T$1000, " ") ->  | I59: 0 | M59: 0
A60: =IF(COUNTRY_INFO!A60=0," ",COUNTRY_INFO!A60) -> Tanzania | B60: =IF(COUNTRY_INFO!B60=0," ",COUNTRY_INFO!B60) -> Kigoma | C60: =IF(COUNTRY_INFO!C60=0," ",COUNTRY_INFO!C60) -> Kigoma-Ujiji Municipal Council | D60: =IF(COUNTRY_INFO!$T$9:$T$1000="MDA2 (DEC+ALB)", COUNTRY_INFO!$T$9:$T$1000, " ") ->  | I60: 0 | M60: 0
A61: =IF(COUNTRY_INFO!A61=0," ",COUNTRY_INFO!A61) -> Tanzania | B61: =IF(COUNTRY_INFO!B61=0," ",COUNTRY_INFO!B61) -> Kigoma | C61: =IF(COUNTRY_INFO!C61=0," ",COUNTRY_INFO!C61) -> Uvinza District Council | D61: =IF(COUNTRY_INFO!$T$9:$T$1000="MDA2 (DEC+ALB)", COUNTRY_INFO!$T$9:$T$1000, " ") ->  | I61: 0 | M61: 0
A62: =IF(COUNTRY_INFO!A62=0," ",COUNTRY_INFO!A62) -> Tanzania | B62: =IF(COUNTRY_INFO!B62=0," ",COUNTRY_INFO!B62) -> Kilimanjaro | C62: =IF(COUNTRY_INFO!C62=0," ",COUNTRY_INFO!C62) -> Hai District Council | D62: =IF(COUNTRY_INFO!$T$9:$T$1000="MDA2 (DEC+ALB)", COUNTRY_INFO!$T$9:$T$1000, " ") ->  | I62: 0 | M62: 0
A63: =IF(COUNTRY_INFO!A63=0," ",COUNTRY_INFO!A63) -> Tanzania | B63: =IF(COUNTRY_INFO!B63=0," ",COUNTRY_INFO!B63) -> Kilimanjaro | C63: =IF(COUNTRY_INFO!C63=0," ",COUNTRY_INFO!C63) -> Moshi District Council | D63: =IF(COUNTRY_INFO!$T$9:$T$1000="MDA2 (DEC+ALB)", COUNTRY_INFO!$T$9:$T$1000, " ") ->  | I63: 0 | M63: 0
A64: =IF(COUNTRY_INFO!A64=0," ",COUNTRY_INFO!A64) -> Tanzania | B64: =IF(COUNTRY_INFO!B64=0," ",COUNTRY_INFO!B64) -> Kilimanjaro | C64: =IF(COUNTRY_INFO!C64=0," ",COUNTRY_INFO!C64) -> Moshi Municipal Council | D64: =IF(COUNTRY_INFO!$T$9:$T$1000="MDA2 (DEC+ALB)", COUNTRY_INFO!$T$9:$T$1000, " ") ->  | I64: 0 | M64: 0
A65: =IF(COUNTRY_INFO!A65=0," ",COUNTRY_INFO!A65) -> Tanzania | B65: =IF(COUNTRY_INFO!B65=0," ",COUNTRY_INFO!B65) -> Kilimanjaro | C65: =IF(COUNTRY_INFO!C65=0," ",COUNTRY_INFO!C65) -> Mwanga District Council | D65: =IF(COUNTRY_INFO!$T$9:$T$1000="MDA2 (DEC+ALB)", COUNTRY_INFO!$T$9:$T$1000, " ") ->  | I65: 0 | M65: 0
A66: =IF(COUNTRY_INFO!A66=0," ",COUNTRY_INFO!A66) -> Tanzania | B66: =IF(COUNTRY_INFO!B66=0," ",COUNTRY_INFO!B66) -> Kilimanjaro | C66: =IF(COUNTRY_INFO!C66=0," ",COUNTRY_INFO!C66) -> Rombo District Council | D66: =IF(COUNTRY_INFO!$T$9:$T$1000="MDA2 (DEC+ALB)", COUNTRY_INFO!$T$9:$T$1000, " ") ->  | I66: 0 | M66: 0
A67: =IF(COUNTRY_INFO!A67=0," ",COUNTRY_INFO!A67) -> Tanzania | B67: =IF(COUNTRY_INFO!B67=0," ",COUNTRY_INFO!B67) -> Kilimanjaro | C67: =IF(COUNTRY_INFO!C67=0," ",COUNTRY_INFO!C67) -> Same District Council | D67: =IF(COUNTRY_INFO!$T$9:$T$1000="MDA2 (DEC+ALB)", COUNTRY_INFO!$T$9:$T$1000, " ") ->  | I67: 0 | M67: 0
A68: =IF(COUNTRY_INFO!A68=0," ",COUNTRY_INFO!A68) -> Tanzania | B68: =IF(COUNTRY_INFO!B68=0," ",COUNTRY_INFO!B68) -> Kilimanjaro | C68: =IF(COUNTRY_INFO!C68=0," ",COUNTRY_INFO!C68) -> Siha District Council | D68: =IF(COUNTRY_INFO!$T$9:$T$1000="MDA2 (DEC+ALB)", COUNTRY_INFO!$T$9:$T$1000, " ") ->  | I68: 0 | M68: 0
A69: =IF(COUNTRY_INFO!A69=0," ",COUNTRY_INFO!A69) -> Tanzania | B69: =IF(COUNTRY_INFO!B69=0," ",COUNTRY_INFO!B69) -> Lindi | C69: =IF(COUNTRY_INFO!C69=0," ",COUNTRY_INFO!C69) -> Kilwa District Council | D69: =IF(COUNTRY_INFO!$T$9:$T$1000="MDA2 (DEC+ALB)", COUNTRY_INFO!$T$9:$T$1000, " ") ->  | I69: 0 | M69: 0
A70: =IF(COUNTRY_INFO!A70=0," ",COUNTRY_INFO!A70) -> Tanzania | B70: =IF(COUNTRY_INFO!B70=0," ",COUNTRY_INFO!B70) -> Lindi | C70: =IF(COUNTRY_INFO!C70=0," ",COUNTRY_INFO!C70) -> Lindi District Council | D70: =IF(COUNTRY_INFO!$T$9:$T$1000="MDA2 (DEC+ALB)", COUNTRY_INFO!$T$9:$T$1000, " ") ->  | I70: 0 | M70: 0
A71: =IF(COUNTRY_INFO!A71=0," ",COUNTRY_INFO!A71) -> Tanzania | B71: =IF(COUNTRY_INFO!B71=0," ",COUNTRY_INFO!B71) -> Lindi | C71: =IF(COUNTRY_INFO!C71=0," ",COUNTRY_INFO!C71) -> Lindi Municipal Council | D71: =IF(COUNTRY_INFO!$T$9:$T$1000="MDA2 (DEC+ALB)", COUNTRY_INFO!$T$9:$T$1000, " ") ->  | I71: 0 | M71: 0
A72: =IF(COUNTRY_INFO!A72=0," ",COUNTRY_INFO!A72) -> Tanzania | B72: =IF(COUNTRY_INFO!B72=0," ",COUNTRY_INFO!B72) -> Lindi | C72: =IF(COUNTRY_INFO!C72=0," ",COUNTRY_INFO!C72) -> Liwale District Council | D72: =IF(COUNTRY_INFO!$T$9:$T$1000="MDA2 (DEC+ALB)", COUNTRY_INFO!$T$9:$T$1000, " ") ->  | I72: 0 | M72: 0
A73: =IF(COUNTRY_INFO!A73=0," ",COUNTRY_INFO!A73) -> Tanzania | B73: =IF(COUNTRY_INFO!B73=0," ",COUNTRY_INFO!B73) -> Lindi | C73: =IF(COUNTRY_INFO!C73=0," ",COUNTRY_INFO!C73) -> Nachingwea District Council | D73: =IF(COUNTRY_INFO!$T$9:$T$1000="MDA2 (DEC+ALB)", COUNTRY_INFO!$T$9:$T$1000, " ") ->  | I73: 0 | M73: 0
A74: =IF(COUNTRY_INFO!A74=0," ",COUNTRY_INFO!A74) -> Tanzania | B74: =IF(COUNTRY_INFO!B74=0," ",COUNTRY_INFO!B74) -> Lindi | C74: =IF(COUNTRY_INFO!C74=0," ",COUNTRY_INFO!C74) -> Ruangwa District Council | D74: =IF(COUNTRY_INFO!$T$9:$T$1000="MDA2 (DEC+ALB)", COUNTRY_INFO!$T$9:$T$1000, " ") ->  | I74: =SUM(F74:H74) -> 0 | M74: =SUM(J74:L74) -> 0 | N74: =IF(F74<>0, IF(J74/F74*100=0, "-", J74/F74*100), " ") ->  | O74: =IF(G74<>0, IF(K74/G74*100=0, "-", K74/G74*100), " ") ->  | P74: =IF(H74<>0, IF(L74/H74*100=0, "-", L74/H74*100), " ") ->  | Q74: =IF(I74<>0, IF(M74/I74*100=0, "-", M74/I74*100), " ") -> 
A75: =IF(COUNTRY_INFO!A75=0," ",COUNTRY_INFO!A75) -> Tanzania | B75: =IF(COUNTRY_INFO!B75=0," ",COUNTRY_INFO!B75) -> Manyara | C75: =IF(COUNTRY_INFO!C75=0," ",COUNTRY_INFO!C75) -> Babati District Council | D75: =IF(COUNTRY_INFO!$T$9:$T$1000="MDA2 (DEC+ALB)", COUNTRY_INFO!$T$9:$T$1000, " ") ->  | I75: 0 | M75: 0
A76: =IF(COUNTRY_INFO!A76=0," ",COUNTRY_INFO!A76) -> Tanzania | B76: =IF(COUNTRY_INFO!B76=0," ",COUNTRY_INFO!B76) -> Manyara | C76: =IF(COUNTRY_INFO!C76=0," ",COUNTRY_INFO!C76) -> Babati Town Council | D76: =IF(COUNTRY_INFO!$T$9:$T$1000="MDA2 (DEC+ALB)", COUNTRY_INFO!$T$9:$T$1000, " ") ->  | I76: 0 | M76: 0
A77: =IF(COUNTRY_INFO!A77=0," ",COUNTRY_INFO!A77) -> Tanzania | B77: =IF(COUNTRY_INFO!B77=0," ",COUNTRY_INFO!B77) -> Manyara | C77: =IF(COUNTRY_INFO!C77=0," ",COUNTRY_INFO!C77) -> Hanang District Council | D77: =IF(COUNTRY_INFO!$T$9:$T$1000="MDA2 (DEC+ALB)", COUNTRY_INFO!$T$9:$T$1000, " ") ->  | I77: 0 | M77: 0
A78: =IF(COUNTRY_INFO!A78=0," ",COUNTRY_INFO!A78) -> Tanzania | B78: =IF(COUNTRY_INFO!B78=0," ",COUNTRY_INFO!B78) -> Manyara | C78: =IF(COUNTRY_INFO!C78=0," ",COUNTRY_INFO!C78) -> Kiteto District Council | D78: =IF(COUNTRY_INFO!$T$9:$T$1000="MDA2 (DEC+ALB)", COUNTRY_INFO!$T$9:$T$1000, " ") ->  | I78: 0 | M78: 0
A79: =IF(COUNTRY_INFO!A79=0," ",COUNTRY_INFO!A79) -> Tanzania | B79: =IF(COUNTRY_INFO!B79=0," ",COUNTRY_INFO!B79) -> Manyara | C79: =IF(COUNTRY_INFO!C79=0," ",COUNTRY_INFO!C79) -> Mbulu District Council | D79: =IF(COUNTRY_INFO!$T$9:$T$1000="MDA2 (DEC+ALB)", COUNTRY_INFO!$T$9:$T$1000, " ") ->  | I79: 0 | M79: 0
A80: =IF(COUNTRY_INFO!A80=0," ",COUNTRY_INFO!A80) -> Tanzania | B80: =IF(COUNTRY_INFO!B80=0," ",COUNTRY_INFO!B80) -> Manyara | C80: =IF(COUNTRY_INFO!C80=0," ",COUNTRY_INFO!C80) -> Mbulu Town Council | D80: =IF(COUNTRY_INFO!$T$9:$T$1000="MDA2 (DEC+ALB)", COUNTRY_INFO!$T$9:$T$1000, " ") ->  | I80: 0 | M80: 0
A81: =IF(COUNTRY_INFO!A81=0," ",COUNTRY_INFO!A81) -> Tanzania | B81: =IF(COUNTRY_INFO!B81=0," ",COUNTRY_INFO!B81) -> Manyara | C81: =IF(COUNTRY_INFO!C81=0," ",COUNTRY_INFO!C81) -> Simanjiro District Council | D81: =IF(COUNTRY_INFO!$T$9:$T$1000="MDA2 (DEC+ALB)", COUNTRY_INFO!$T$9:$T$1000, " ") ->  | I81: 0 | M81: 0
A82: =IF(COUNTRY_INFO!A82=0," ",COUNTRY_INFO!A82) -> Tanzania | B82: =IF(COUNTRY_INFO!B82=0," ",COUNTRY_INFO!B82) -> Mara | C82: =IF(COUNTRY_INFO!C82=0," ",COUNTRY_INFO!C82) -> Bunda District Council | D82: =IF(COUNTRY_INFO!$T$9:$T$1000="MDA2 (DEC+ALB)", COUNTRY_INFO!$T$9:$T$1000, " ") ->  | I82: 0 | M82: 0
A83: =IF(COUNTRY_INFO!A83=0," ",COUNTRY_INFO!A83) -> Tanzania | B83: =IF(COUNTRY_INFO!B83=0," ",COUNTRY_INFO!B83) -> Mara | C83: =IF(COUNTRY_INFO!C83=0," ",COUNTRY_INFO!C83) -> Bunda Town Council | D83: =IF(COUNTRY_INFO!$T$9:$T$1000="MDA2 (DEC+ALB)", COUNTRY_INFO!$T$9:$T$1000, " ") ->  | I83: 0 | M83: 0
A84: =IF(COUNTRY_INFO!A84=0," ",COUNTRY_INFO!A84) -> Tanzania | B84: =IF(COUNTRY_INFO!B84=0," ",COUNTRY_INFO!B84) -> Mara | C84: =IF(COUNTRY_INFO!C84=0," ",COUNTRY_INFO!C84) -> Butiama District Council | D84: =IF(COUNTRY_INFO!$T$9:$T$1000="MDA2 (DEC+ALB)", COUNTRY_INFO!$T$9:$T$1000, " ") ->  | I84: 0 | M84: 0
A85: =IF(COUNTRY_INFO!A85=0," ",COUNTRY_INFO!A85) -> Tanzania | B85: =IF(COUNTRY_INFO!B85=0," ",COUNTRY_INFO!B85) -> Mara | C85: =IF(COUNTRY_INFO!C85=0," ",COUNTRY_INFO!C85) -> Musoma District Council | D85: =IF(COUNTRY_INFO!$T$9:$T$1000="MDA2 (DEC+ALB)", COUNTRY_INFO!$T$9:$T$1000, " ") ->  | I85: 0 | M85: 0
A86: =IF(COUNTRY_INFO!A86=0," ",COUNTRY_INFO!A86) -> Tanzania | B86: =IF(COUNTRY_INFO!B86=0," ",COUNTRY_INFO!B86) -> Mara | C86: =IF(COUNTRY_INFO!C86=0," ",COUNTRY_INFO!C86) -> Musoma Municipal Council | D86: =IF(COUNTRY_INFO!$T$9:$T$1000="MDA2 (DEC+ALB)", COUNTRY_INFO!$T$9:$T$1000, " ") ->  | I86: 0 | M86: 0
A87: =IF(COUNTRY_INFO!A87=0," ",COUNTRY_INFO!A87) -> Tanzania | B87: =IF(COUNTRY_INFO!B87=0," ",COUNTRY_INFO!B87) -> Mara | C87: =IF(COUNTRY_INFO!C87=0," ",COUNTRY_INFO!C87) -> Rorya District Council | D87: =IF(COUNTRY_INFO!$T$9:$T$1000="MDA2 (DEC+ALB)", COUNTRY_INFO!$T$9:$T$1000, " ") ->  | I87: 0 | M87: 0
A88: =IF(COUNTRY_INFO!A88=0," ",COUNTRY_INFO!A88) -> Tanzania | B88: =IF(COUNTRY_INFO!B88=0," ",COUNTRY_INFO!B88) -> Mara | C88: =IF(COUNTRY_INFO!C88=0," ",COUNTRY_INFO!C88) -> Serengeti District Council | D88: =IF(COUNTRY_INFO!$T$9:$T$1000="MDA2 (DEC+ALB)", COUNTRY_INFO!$T$9:$T$1000, " ") ->  | I88: 0 | M88: 0
A89: =IF(COUNTRY_INFO!A89=0," ",COUNTRY_INFO!A89) -> Tanzania | B89: =IF(COUNTRY_INFO!B89=0," ",COUNTRY_INFO!B89) -> Mara | C89: =IF(COUNTRY_INFO!C89=0," ",COUNTRY_INFO!C89) -> Tarime District Council | D89: =IF(COUNTRY_INFO!$T$9:$T$1000="MDA2 (DEC+ALB)", COUNTRY_INFO!$T$9:$T$1000, " ") ->  | I89: 0 | M89: 0
A90: =IF(COUNTRY_INFO!A90=0," ",COUNTRY_INFO!A90) -> Tanzania | B90: =IF(COUNTRY_INFO!B90=0," ",COUNTRY_INFO!B90) -> Mara | C90: =IF(COUNTRY_INFO!C90=0," ",COUNTRY_INFO!C90) -> Tarime Town Council | D90: =IF(COUNTRY_INFO!$T$9:$T$1000="MDA2 (DEC+ALB)", COUNTRY_INFO!$T$9:$T$1000, " ") ->  | I90: 0 | M90: 0
A91: =IF(COUNTRY_INFO!A91=0," ",COUNTRY_INFO!A91) -> Tanzania | B91: =IF(COUNTRY_INFO!B91=0," ",COUNTRY_INFO!B91) -> Mbeya | C91: =IF(COUNTRY_INFO!C91=0," ",COUNTRY_INFO!C91) -> Busokelo District Council | D91: =IF(COUNTRY_INFO!$T$9:$T$1000="MDA2 (DEC+ALB)", COUNTRY_INFO!$T$9:$T$1000, " ") ->  | I91: 0 | M91: 0
A92: =IF(COUNTRY_INFO!A92=0," ",COUNTRY_INFO!A92) -> Tanzania | B92: =IF(COUNTRY_INFO!B92=0," ",COUNTRY_INFO!B92) -> Mbeya | C92: =IF(COUNTRY_INFO!C92=0," ",COUNTRY_INFO!C92) -> Chunya District Council | D92: =IF(COUNTRY_INFO!$T$9:$T$1000="MDA2 (DEC+ALB)", COUNTRY_INFO!$T$9:$T$1000, " ") ->  | I92: 0 | M92: 0
A93: =IF(COUNTRY_INFO!A93=0," ",COUNTRY_INFO!A93) -> Tanzania | B93: =IF(COUNTRY_INFO!B93=0," ",COUNTRY_INFO!B93) -> Mbeya | C93: =IF(COUNTRY_INFO!C93=0," ",COUNTRY_INFO!C93) -> Kyela District Council | D93: =IF(COUNTRY_INFO!$T$9:$T$1000="MDA2 (DEC+ALB)", COUNTRY_INFO!$T$9:$T$1000, " ") ->  | I93: 0 | M93: 0
A94: =IF(COUNTRY_INFO!A94=0," ",COUNTRY_INFO!A94) -> Tanzania | B94: =IF(COUNTRY_INFO!B94=0," ",COUNTRY_INFO!B94) -> Mbeya | C94: =IF(COUNTRY_INFO!C94=0," ",COUNTRY_INFO!C94) -> Mbarali District Council | D94: =IF(COUNTRY_INFO!$T$9:$T$1000="MDA2 (DEC+ALB)", COUNTRY_INFO!$T$9:$T$1000, " ") ->  | I94: 0 | M94: 0
A95: =IF(COUNTRY_INFO!A95=0," ",COUNTRY_INFO!A95) -> Tanzania | B95: =IF(COUNTRY_INFO!B95=0," ",COUNTRY_INFO!B95) -> Mbeya | C95: =IF(COUNTRY_INFO!C95=0," ",COUNTRY_INFO!C95) -> Mbeya City Council | D95: =IF(COUNTRY_INFO!$T$9:$T$1000="MDA2 (DEC+ALB)", COUNTRY_INFO!$T$9:$T$1000, " ") ->  | I95: 0 | M95: 0
A96: =IF(COUNTRY_INFO!A96=0," ",COUNTRY_INFO!A96) -> Tanzania | B96: =IF(COUNTRY_INFO!B96=0," ",COUNTRY_INFO!B96) -> Mbeya | C96: =IF(COUNTRY_INFO!C96=0," ",COUNTRY_INFO!C96) -> Mbeya District Council | D96: =IF(COUNTRY_INFO!$T$9:$T$1000="MDA2 (DEC+ALB)", COUNTRY_INFO!$T$9:$T$1000, " ") ->  | I96: 0 | M96: 0
A97: =IF(COUNTRY_INFO!A97=0," ",COUNTRY_INFO!A97) -> Tanzania | B97: =IF(COUNTRY_INFO!B97=0," ",COUNTRY_INFO!B97) -> Mbeya | C97: =IF(COUNTRY_INFO!C97=0," ",COUNTRY_INFO!C97) -> Rungwe District Council | D97: =IF(COUNTRY_INFO!$T$9:$T$1000="MDA2 (DEC+ALB)", COUNTRY_INFO!$T$9:$T$1000, " ") ->  | I97: 0 | M97: 0
A98: =IF(COUNTRY_INFO!A98=0," ",COUNTRY_INFO!A98) -> Tanzania | B98: =IF(COUNTRY_INFO!B98=0," ",COUNTRY_INFO!B98) -> Morogoro | C98: =IF(COUNTRY_INFO!C98=0," ",COUNTRY_INFO!C98) -> Gairo District Council | D98: =IF(COUNTRY_INFO!$T$9:$T$1000="MDA2 (DEC+ALB)", COUNTRY_INFO!$T$9:$T$1000, " ") ->  | I98: 0 | M98: 0
A99: =IF(COUNTRY_INFO!A99=0," ",COUNTRY_INFO!A99) -> Tanzania | B99: =IF(COUNTRY_INFO!B99=0," ",COUNTRY_INFO!B99) -> Morogoro | C99: =IF(COUNTRY_INFO!C99=0," ",COUNTRY_INFO!C99) -> Ifakara Town Council | D99: =IF(COUNTRY_INFO!$T$9:$T$1000="MDA2 (DEC+ALB)", COUNTRY_INFO!$T$9:$T$1000, " ") ->  | I99: 0 | M99: 0
A100: =IF(COUNTRY_INFO!A100=0," ",COUNTRY_INFO!A100) -> Tanzania | B100: =IF(COUNTRY_INFO!B100=0," ",COUNTRY_INFO!B100) -> Morogoro | C100: =IF(COUNTRY_INFO!C100=0," ",COUNTRY_INFO!C100) -> Kilombero District Council | D100: =IF(COUNTRY_INFO!$T$9:$T$1000="MDA2 (DEC+ALB)", COUNTRY_INFO!$T$9:$T$1000, " ") ->  | I100: 0 | M100: 0
A101: =IF(COUNTRY_INFO!A101=0," ",COUNTRY_INFO!A101) -> Tanzania | B101: =IF(COUNTRY_INFO!B101=0," ",COUNTRY_INFO!B101) -> Morogoro | C101: =IF(COUNTRY_INFO!C101=0," ",COUNTRY_INFO!C101) -> Kilosa District Council | D101: =IF(COUNTRY_INFO!$T$9:$T$1000="MDA2 (DEC+ALB)", COUNTRY_INFO!$T$9:$T$1000, " ") ->  | I101: 0 | M101: 0
A102: =IF(COUNTRY_INFO!A102=0," ",COUNTRY_INFO!A102) -> Tanzania | B102: =IF(COUNTRY_INFO!B102=0," ",COUNTRY_INFO!B102) -> Morogoro | C102: =IF(COUNTRY_INFO!C102=0," ",COUNTRY_INFO!C102) -> Malinyi District Council | D102: =IF(COUNTRY_INFO!$T$9:$T$1000="MDA2 (DEC+ALB)", COUNTRY_INFO!$T$9:$T$1000, " ") ->  | I102: 0 | M102: 0
A103: =IF(COUNTRY_INFO!A103=0," ",COUNTRY_INFO!A103) -> Tanzania | B103: =IF(COUNTRY_INFO!B103=0," ",COUNTRY_INFO!B103) -> Morogoro | C103: =IF(COUNTRY_INFO!C103=0," ",COUNTRY_INFO!C103) -> Morogoro District Council | D103: =IF(COUNTRY_INFO!$T$9:$T$1000="MDA2 (DEC+ALB)", COUNTRY_INFO!$T$9:$T$1000, " ") ->  | I103: 0 | M103: 0
A104: =IF(COUNTRY_INFO!A104=0," ",COUNTRY_INFO!A104) -> Tanzania | B104: =IF(COUNTRY_INFO!B104=0," ",COUNTRY_INFO!B104) -> Morogoro | C104: =IF(COUNTRY_INFO!C104=0," ",COUNTRY_INFO!C104) -> Morogoro Municipal Council | D104: =IF(COUNTRY_INFO!$T$9:$T$1000="MDA2 (DEC+ALB)", COUNTRY_INFO!$T$9:$T$1000, " ") ->  | I104: 0 | M104: 0
A105: =IF(COUNTRY_INFO!A105=0," ",COUNTRY_INFO!A105) -> Tanzania | B105: =IF(COUNTRY_INFO!B105=0," ",COUNTRY_INFO!B105) -> Morogoro | C105: =IF(COUNTRY_INFO!C105=0," ",COUNTRY_INFO!C105) -> Mvomero District Council | D105: =IF(COUNTRY_INFO!$T$9:$T$1000="MDA2 (DEC+ALB)", COUNTRY_INFO!$T$9:$T$1000, " ") ->  | I105: 0 | M105: 0
A106: =IF(COUNTRY_INFO!A106=0," ",COUNTRY_INFO!A106) -> Tanzania | B106: =IF(COUNTRY_INFO!B106=0," ",COUNTRY_INFO!B106) -> Morogoro | C106: =IF(COUNTRY_INFO!C106=0," ",COUNTRY_INFO!C106) -> Ulanga District Council | D106: =IF(COUNTRY_INFO!$T$9:$T$1000="MDA2 (DEC+ALB)", COUNTRY_INFO!$T$9:$T$1000, " ") ->  | I106: 0 | M106: 0
A107: =IF(COUNTRY_INFO!A107=0," ",COUNTRY_INFO!A107) -> Tanzania | B107: =IF(COUNTRY_INFO!B107=0," ",COUNTRY_INFO!B107) -> Mtwara | C107: =IF(COUNTRY_INFO!C107=0," ",COUNTRY_INFO!C107) -> Masasi District Council | D107: =IF(COUNTRY_INFO!$T$9:$T$1000="MDA2 (DEC+ALB)", COUNTRY_INFO!$T$9:$T$1000, " ") ->  | I107: 0 | M107: 0
A108: =IF(COUNTRY_INFO!A108=0," ",COUNTRY_INFO!A108) -> Tanzania | B108: =IF(COUNTRY_INFO!B108=0," ",COUNTRY_INFO!B108) -> Mtwara | C108: =IF(COUNTRY_INFO!C108=0," ",COUNTRY_INFO!C108) -> Masasi Town Council | D108: =IF(COUNTRY_INFO!$T$9:$T$1000="MDA2 (DEC+ALB)", COUNTRY_INFO!$T$9:$T$1000, " ") ->  | I108: 0 | M108: 0
A109: =IF(COUNTRY_INFO!A109=0," ",COUNTRY_INFO!A109) -> Tanzania | B109: =IF(COUNTRY_INFO!B109=0," ",COUNTRY_INFO!B109) -> Mtwara | C109: =IF(COUNTRY_INFO!C109=0," ",COUNTRY_INFO!C109) -> Mtwara District Council | D109: =IF(COUNTRY_INFO!$T$9:$T$1000="MDA2 (DEC+ALB)", COUNTRY_INFO!$T$9:$T$1000, " ") ->  | I109: 0 | M109: 0
A110: =IF(COUNTRY_INFO!A110=0," ",COUNTRY_INFO!A110) -> Tanzania | B110: =IF(COUNTRY_INFO!B110=0," ",COUNTRY_INFO!B110) -> Mtwara | C110: =IF(COUNTRY_INFO!C110=0," ",COUNTRY_INFO!C110) -> Mtwara-Mikindani Municipal Council | D110: =IF(COUNTRY_INFO!$T$9:$T$1000="MDA2 (DEC+ALB)", COUNTRY_INFO!$T$9:$T$1000, " ") ->  | I110: 0 | M110: 0
A111: =IF(COUNTRY_INFO!A111=0," ",COUNTRY_INFO!A111) -> Tanzania | B111: =IF(COUNTRY_INFO!B111=0," ",COUNTRY_INFO!B111) -> Mtwara | C111: =IF(COUNTRY_INFO!C111=0," ",COUNTRY_INFO!C111) -> Nanyamba District Council | D111: =IF(COUNTRY_INFO!$T$9:$T$1000="MDA2 (DEC+ALB)", COUNTRY_INFO!$T$9:$T$1000, " ") ->  | I111: 0 | M111: 0
A112: =IF(COUNTRY_INFO!A112=0," ",COUNTRY_INFO!A112) -> Tanzania | B112: =IF(COUNTRY_INFO!B112=0," ",COUNTRY_INFO!B112) -> Mtwara | C112: =IF(COUNTRY_INFO!C112=0," ",COUNTRY_INFO!C112) -> Nanyumbu District Council | D112: =IF(COUNTRY_INFO!$T$9:$T$1000="MDA2 (DEC+ALB)", COUNTRY_INFO!$T$9:$T$1000, " ") ->  | I112: 0 | M112: 0
A113: =IF(COUNTRY_INFO!A113=0," ",COUNTRY_INFO!A113) -> Tanzania | B113: =IF(COUNTRY_INFO!B113=0," ",COUNTRY_INFO!B113) -> Mtwara | C113: =IF(COUNTRY_INFO!C113=0," ",COUNTRY_INFO!C113) -> Newala District Council | D113: =IF(COUNTRY_INFO!$T$9:$T$1000="MDA2 (DEC+ALB)", COUNTRY_INFO!$T$9:$T$1000, " ") ->  | I113: 0 | M113: 0
A114: =IF(COUNTRY_INFO!A114=0," ",COUNTRY_INFO!A114) -> Tanzania | B114: =IF(COUNTRY_INFO!B114=0," ",COUNTRY_INFO!B114) -> Mtwara | C114: =IF(COUNTRY_INFO!C114=0," ",COUNTRY_INFO!C114) -> Newala Town Council | D114: =IF(COUNTRY_INFO!$T$9:$T$1000="MDA2 (DEC+ALB)", COUNTRY_INFO!$T$9:$T$1000, " ") ->  | I114: 0 | M114: 0
A115: =IF(COUNTRY_INFO!A115=0," ",COUNTRY_INFO!A115) -> Tanzania | B115: =IF(COUNTRY_INFO!B115=0," ",COUNTRY_INFO!B115) -> Mtwara | C115: =IF(COUNTRY_INFO!C115=0," ",COUNTRY_INFO!C115) -> Tandahimba District Council | D115: =IF(COUNTRY_INFO!$T$9:$T$1000="MDA2 (DEC+ALB)", COUNTRY_INFO!$T$9:$T$1000, " ") ->  | I115: 0 | M115: 0
A116: =IF(COUNTRY_INFO!A116=0," ",COUNTRY_INFO!A116) -> Tanzania | B116: =IF(COUNTRY_INFO!B116=0," ",COUNTRY_INFO!B116) -> Mwanza | C116: =IF(COUNTRY_INFO!C116=0," ",COUNTRY_INFO!C116) -> Buchosa District Council | D116: =IF(COUNTRY_INFO!$T$9:$T$1000="MDA2 (DEC+ALB)", COUNTRY_INFO!$T$9:$T$1000, " ") ->  | I116: 0 | M116: 0
A117: =IF(COUNTRY_INFO!A117=0," ",COUNTRY_INFO!A117) -> Tanzania | B117: =IF(COUNTRY_INFO!B117=0," ",COUNTRY_INFO!B117) -> Mwanza | C117: =IF(COUNTRY_INFO!C117=0," ",COUNTRY_INFO!C117) -> Ilemela Municipal Council | D117: =IF(COUNTRY_INFO!$T$9:$T$1000="MDA2 (DEC+ALB)", COUNTRY_INFO!$T$9:$T$1000, " ") ->  | I117: 0 | M117: 0
A118: =IF(COUNTRY_INFO!A118=0," ",COUNTRY_INFO!A118) -> Tanzania | B118: =IF(COUNTRY_INFO!B118=0," ",COUNTRY_INFO!B118) -> Mwanza | C118: =IF(COUNTRY_INFO!C118=0," ",COUNTRY_INFO!C118) -> Kwimba District Council | D118: =IF(COUNTRY_INFO!$T$9:$T$1000="MDA2 (DEC+ALB)", COUNTRY_INFO!$T$9:$T$1000, " ") ->  | I118: 0 | M118: 0
A119: =IF(COUNTRY_INFO!A119=0," ",COUNTRY_INFO!A119) -> Tanzania | B119: =IF(COUNTRY_INFO!B119=0," ",COUNTRY_INFO!B119) -> Mwanza | C119: =IF(COUNTRY_INFO!C119=0," ",COUNTRY_INFO!C119) -> Magu District Council | D119: =IF(COUNTRY_INFO!$T$9:$T$1000="MDA2 (DEC+ALB)", COUNTRY_INFO!$T$9:$T$1000, " ") ->  | I119: 0 | M119: 0
A120: =IF(COUNTRY_INFO!A120=0," ",COUNTRY_INFO!A120) -> Tanzania | B120: =IF(COUNTRY_INFO!B120=0," ",COUNTRY_INFO!B120) -> Mwanza | C120: =IF(COUNTRY_INFO!C120=0," ",COUNTRY_INFO!C120) -> Misungwi District Council | D120: =IF(COUNTRY_INFO!$T$9:$T$1000="MDA2 (DEC+ALB)", COUNTRY_INFO!$T$9:$T$1000, " ") ->  | I120: 0 | M120: 0
A121: =IF(COUNTRY_INFO!A121=0," ",COUNTRY_INFO!A121) -> Tanzania | B121: =IF(COUNTRY_INFO!B121=0," ",COUNTRY_INFO!B121) -> Mwanza | C121: =IF(COUNTRY_INFO!C121=0," ",COUNTRY_INFO!C121) -> Mwanza-Nyamagana City Council | D121: =IF(COUNTRY_INFO!$T$9:$T$1000="MDA2 (DEC+ALB)", COUNTRY_INFO!$T$9:$T$1000, " ") ->  | I121: 0 | M121: 0
A122: =IF(COUNTRY_INFO!A122=0," ",COUNTRY_INFO!A122) -> Tanzania | B122: =IF(COUNTRY_INFO!B122=0," ",COUNTRY_INFO!B122) -> Mwanza | C122: =IF(COUNTRY_INFO!C122=0," ",COUNTRY_INFO!C122) -> Sengerema District Council | D122: =IF(COUNTRY_INFO!$T$9:$T$1000="MDA2 (DEC+ALB)", COUNTRY_INFO!$T$9:$T$1000, " ") ->  | I122: 0 | M122: 0
A123: =IF(COUNTRY_INFO!A123=0," ",COUNTRY_INFO!A123) -> Tanzania | B123: =IF(COUNTRY_INFO!B123=0," ",COUNTRY_INFO!B123) -> Mwanza | C123: =IF(COUNTRY_INFO!C123=0," ",COUNTRY_INFO!C123) -> Ukerewe District Council | D123: =IF(COUNTRY_INFO!$T$9:$T$1000="MDA2 (DEC+ALB)", COUNTRY_INFO!$T$9:$T$1000, " ") ->  | I123: 0 | M123: 0
A124: =IF(COUNTRY_INFO!A124=0," ",COUNTRY_INFO!A124) -> Tanzania | B124: =IF(COUNTRY_INFO!B124=0," ",COUNTRY_INFO!B124) -> Njombe | C124: =IF(COUNTRY_INFO!C124=0," ",COUNTRY_INFO!C124) -> Ludewa District Council | D124: =IF(COUNTRY_INFO!$T$9:$T$1000="MDA2 (DEC+ALB)", COUNTRY_INFO!$T$9:$T$1000, " ") ->  | I124: 0 | M124: 0
A125: =IF(COUNTRY_INFO!A125=0," ",COUNTRY_INFO!A125) -> Tanzania | B125: =IF(COUNTRY_INFO!B125=0," ",COUNTRY_INFO!B125) -> Njombe | C125: =IF(COUNTRY_INFO!C125=0," ",COUNTRY_INFO!C125) -> Makambako Town Council | D125: =IF(COUNTRY_INFO!$T$9:$T$1000="MDA2 (DEC+ALB)", COUNTRY_INFO!$T$9:$T$1000, " ") ->  | I125: 0 | M125: 0
A126: =IF(COUNTRY_INFO!A126=0," ",COUNTRY_INFO!A126) -> Tanzania | B126: =IF(COUNTRY_INFO!B126=0," ",COUNTRY_INFO!B126) -> Njombe | C126: =IF(COUNTRY_INFO!C126=0," ",COUNTRY_INFO!C126) -> Makete District Council | D126: =IF(COUNTRY_INFO!$T$9:$T$1000="MDA2 (DEC+ALB)", COUNTRY_INFO!$T$9:$T$1000, " ") ->  | I126: 0 | M126: 0
A127: =IF(COUNTRY_INFO!A127=0," ",COUNTRY_INFO!A127) -> Tanzania | B127: =IF(COUNTRY_INFO!B127=0," ",COUNTRY_INFO!B127) -> Njombe | C127: =IF(COUNTRY_INFO!C127=0," ",COUNTRY_INFO!C127) -> Njombe District Council | D127: =IF(COUNTRY_INFO!$T$9:$T$1000="MDA2 (DEC+ALB)", COUNTRY_INFO!$T$9:$T$1000, " ") ->  | I127: 0 | M127: 0
A128: =IF(COUNTRY_INFO!A128=0," ",COUNTRY_INFO!A128) -> Tanzania | B128: =IF(COUNTRY_INFO!B128=0," ",COUNTRY_INFO!B128) -> Njombe | C128: =IF(COUNTRY_INFO!C128=0," ",COUNTRY_INFO!C128) -> Njombe Town Council | D128: =IF(COUNTRY_INFO!$T$9:$T$1000="MDA2 (DEC+ALB)", COUNTRY_INFO!$T$9:$T$1000, " ") ->  | I128: 0 | M128: 0
A129: =IF(COUNTRY_INFO!A129=0," ",COUNTRY_INFO!A129) -> Tanzania | B129: =IF(COUNTRY_INFO!B129=0," ",COUNTRY_INFO!B129) -> Njombe | C129: =IF(COUNTRY_INFO!C129=0," ",COUNTRY_INFO!C129) -> Wanging'ombe District Council | D129: =IF(COUNTRY_INFO!$T$9:$T$1000="MDA2 (DEC+ALB)", COUNTRY_INFO!$T$9:$T$1000, " ") ->  | I129: 0 | M129: 0
A130: =IF(COUNTRY_INFO!A130=0," ",COUNTRY_INFO!A130) -> Tanzania | B130: =IF(COUNTRY_INFO!B130=0," ",COUNTRY_INFO!B130) -> Pwani | C130: =IF(COUNTRY_INFO!C130=0," ",COUNTRY_INFO!C130) -> Bagamoyo District Council | D130: =IF(COUNTRY_INFO!$T$9:$T$1000="MDA2 (DEC+ALB)", COUNTRY_INFO!$T$9:$T$1000, " ") ->  | I130: 0 | M130: 0
A131: =IF(COUNTRY_INFO!A131=0," ",COUNTRY_INFO!A131) -> Tanzania | B131: =IF(COUNTRY_INFO!B131=0," ",COUNTRY_INFO!B131) -> Pwani | C131: =IF(COUNTRY_INFO!C131=0," ",COUNTRY_INFO!C131) -> Chalinze District Council | D131: =IF(COUNTRY_INFO!$T$9:$T$1000="MDA2 (DEC+ALB)", COUNTRY_INFO!$T$9:$T$1000, " ") ->  | I131: 0 | M131: 0
A132: =IF(COUNTRY_INFO!A132=0," ",COUNTRY_INFO!A132) -> Tanzania | B132: =IF(COUNTRY_INFO!B132=0," ",COUNTRY_INFO!B132) -> Pwani | C132: =IF(COUNTRY_INFO!C132=0," ",COUNTRY_INFO!C132) -> Kibaha District Council | D132: =IF(COUNTRY_INFO!$T$9:$T$1000="MDA2 (DEC+ALB)", COUNTRY_INFO!$T$9:$T$1000, " ") ->  | I132: 0 | M132: 0
A133: =IF(COUNTRY_INFO!A133=0," ",COUNTRY_INFO!A133) -> Tanzania | B133: =IF(COUNTRY_INFO!B133=0," ",COUNTRY_INFO!B133) -> Pwani | C133: =IF(COUNTRY_INFO!C133=0," ",COUNTRY_INFO!C133) -> Kibaha Town Council | D133: =IF(COUNTRY_INFO!$T$9:$T$1000="MDA2 (DEC+ALB)", COUNTRY_INFO!$T$9:$T$1000, " ") ->  | I133: 0 | M133: 0
A134: =IF(COUNTRY_INFO!A134=0," ",COUNTRY_INFO!A134) -> Tanzania | B134: =IF(COUNTRY_INFO!B134=0," ",COUNTRY_INFO!B134) -> Pwani | C134: =IF(COUNTRY_INFO!C134=0," ",COUNTRY_INFO!C134) -> Kibiti District Council | D134: =IF(COUNTRY_INFO!$T$9:$T$1000="MDA2 (DEC+ALB)", COUNTRY_INFO!$T$9:$T$1000, " ") ->  | I134: 0 | M134: 0
A135: =IF(COUNTRY_INFO!A135=0," ",COUNTRY_INFO!A135) -> Tanzania | B135: =IF(COUNTRY_INFO!B135=0," ",COUNTRY_INFO!B135) -> Pwani | C135: =IF(COUNTRY_INFO!C135=0," ",COUNTRY_INFO!C135) -> Kisarawe District Council | D135: =IF(COUNTRY_INFO!$T$9:$T$1000="MDA2 (DEC+ALB)", COUNTRY_INFO!$T$9:$T$1000, " ") ->  | I135: 0 | M135: 0
A136: =IF(COUNTRY_INFO!A136=0," ",COUNTRY_INFO!A136) -> Tanzania | B136: =IF(COUNTRY_INFO!B136=0," ",COUNTRY_INFO!B136) -> Pwani | C136: =IF(COUNTRY_INFO!C136=0," ",COUNTRY_INFO!C136) -> Mafia District Council | D136: =IF(COUNTRY_INFO!$T$9:$T$1000="MDA2 (DEC+ALB)", COUNTRY_INFO!$T$9:$T$1000, " ") ->  | I136: 0 | M136: 0
A137: =IF(COUNTRY_INFO!A137=0," ",COUNTRY_INFO!A137) -> Tanzania | B137: =IF(COUNTRY_INFO!B137=0," ",COUNTRY_INFO!B137) -> Pwani | C137: =IF(COUNTRY_INFO!C137=0," ",COUNTRY_INFO!C137) -> Mkuranga District Council | D137: =IF(COUNTRY_INFO!$T$9:$T$1000="MDA2 (DEC+ALB)", COUNTRY_INFO!$T$9:$T$1000, " ") ->  | I137: 0 | M137: 0
A138: =IF(COUNTRY_INFO!A138=0," ",COUNTRY_INFO!A138) -> Tanzania | B138: =IF(COUNTRY_INFO!B138=0," ",COUNTRY_INFO!B138) -> Pwani | C138: =IF(COUNTRY_INFO!C138=0," ",COUNTRY_INFO!C138) -> Rufiji District Council | D138: =IF(COUNTRY_INFO!$T$9:$T$1000="MDA2 (DEC+ALB)", COUNTRY_INFO!$T$9:$T$1000, " ") ->  | I138: =SUM(F138:H138) -> 0 | M138: =SUM(J138:L138) -> 0 | N138: =IF(F138<>0, IF(J138/F138*100=0, "-", J138/F138*100), " ") ->  | O138: =IF(G138<>0, IF(K138/G138*100=0, "-", K138/G138*100), " ") ->  | P138: =IF(H138<>0, IF(L138/H138*100=0, "-", L138/H138*100), " ") ->  | Q138: =IF(I138<>0, IF(M138/I138*100=0, "-", M138/I138*100), " ") -> 
A139: =IF(COUNTRY_INFO!A139=0," ",COUNTRY_INFO!A139) -> Tanzania | B139: =IF(COUNTRY_INFO!B139=0," ",COUNTRY_INFO!B139) -> Rukwa | C139: =IF(COUNTRY_INFO!C139=0," ",COUNTRY_INFO!C139) -> Kalambo District Council | D139: =IF(COUNTRY_INFO!$T$9:$T$1000="MDA2 (DEC+ALB)", COUNTRY_INFO!$T$9:$T$1000, " ") ->  | I139: 0 | M139: 0
A140: =IF(COUNTRY_INFO!A140=0," ",COUNTRY_INFO!A140) -> Tanzania | B140: =IF(COUNTRY_INFO!B140=0," ",COUNTRY_INFO!B140) -> Rukwa | C140: =IF(COUNTRY_INFO!C140=0," ",COUNTRY_INFO!C140) -> Nkasi District Council | D140: =IF(COUNTRY_INFO!$T$9:$T$1000="MDA2 (DEC+ALB)", COUNTRY_INFO!$T$9:$T$1000, " ") ->  | I140: 0 | M140: 0
A141: =IF(COUNTRY_INFO!A141=0," ",COUNTRY_INFO!A141) -> Tanzania | B141: =IF(COUNTRY_INFO!B141=0," ",COUNTRY_INFO!B141) -> Rukwa | C141: =IF(COUNTRY_INFO!C141=0," ",COUNTRY_INFO!C141) -> Sumbawanga District Council | D141: =IF(COUNTRY_INFO!$T$9:$T$1000="MDA2 (DEC+ALB)", COUNTRY_INFO!$T$9:$T$1000, " ") ->  | I141: 0 | M141: 0
A142: =IF(COUNTRY_INFO!A142=0," ",COUNTRY_INFO!A142) -> Tanzania | B142: =IF(COUNTRY_INFO!B142=0," ",COUNTRY_INFO!B142) -> Rukwa | C142: =IF(COUNTRY_INFO!C142=0," ",COUNTRY_INFO!C142) -> Sumbawanga Municipal Council | D142: =IF(COUNTRY_INFO!$T$9:$T$1000="MDA2 (DEC+ALB)", COUNTRY_INFO!$T$9:$T$1000, " ") ->  | I142: 0 | M142: 0
A143: =IF(COUNTRY_INFO!A143=0," ",COUNTRY_INFO!A143) -> Tanzania | B143: =IF(COUNTRY_INFO!B143=0," ",COUNTRY_INFO!B143) -> Ruvuma | C143: =IF(COUNTRY_INFO!C143=0," ",COUNTRY_INFO!C143) -> Madaba District Council | D143: =IF(COUNTRY_INFO!$T$9:$T$1000="MDA2 (DEC+ALB)", COUNTRY_INFO!$T$9:$T$1000, " ") ->  | I143: 0 | M143: 0
A144: =IF(COUNTRY_INFO!A144=0," ",COUNTRY_INFO!A144) -> Tanzania | B144: =IF(COUNTRY_INFO!B144=0," ",COUNTRY_INFO!B144) -> Ruvuma | C144: =IF(COUNTRY_INFO!C144=0," ",COUNTRY_INFO!C144) -> Mbinga District Council | D144: =IF(COUNTRY_INFO!$T$9:$T$1000="MDA2 (DEC+ALB)", COUNTRY_INFO!$T$9:$T$1000, " ") ->  | I144: 0 | M144: 0
A145: =IF(COUNTRY_INFO!A145=0," ",COUNTRY_INFO!A145) -> Tanzania | B145: =IF(COUNTRY_INFO!B145=0," ",COUNTRY_INFO!B145) -> Ruvuma | C145: =IF(COUNTRY_INFO!C145=0," ",COUNTRY_INFO!C145) -> Mbinga Town Council | D145: =IF(COUNTRY_INFO!$T$9:$T$1000="MDA2 (DEC+ALB)", COUNTRY_INFO!$T$9:$T$1000, " ") ->  | I145: 0 | M145: 0
A146: =IF(COUNTRY_INFO!A146=0," ",COUNTRY_INFO!A146) -> Tanzania | B146: =IF(COUNTRY_INFO!B146=0," ",COUNTRY_INFO!B146) -> Ruvuma | C146: =IF(COUNTRY_INFO!C146=0," ",COUNTRY_INFO!C146) -> Namtumbo District Council | D146: =IF(COUNTRY_INFO!$T$9:$T$1000="MDA2 (DEC+ALB)", COUNTRY_INFO!$T$9:$T$1000, " ") ->  | I146: 0 | M146: 0
A147: =IF(COUNTRY_INFO!A147=0," ",COUNTRY_INFO!A147) -> Tanzania | B147: =IF(COUNTRY_INFO!B147=0," ",COUNTRY_INFO!B147) -> Ruvuma | C147: =IF(COUNTRY_INFO!C147=0," ",COUNTRY_INFO!C147) -> Nyasa District Council | D147: =IF(COUNTRY_INFO!$T$9:$T$1000="MDA2 (DEC+ALB)", COUNTRY_INFO!$T$9:$T$1000, " ") ->  | I147: 0 | M147: 0
A148: =IF(COUNTRY_INFO!A148=0," ",COUNTRY_INFO!A148) -> Tanzania | B148: =IF(COUNTRY_INFO!B148=0," ",COUNTRY_INFO!B148) -> Ruvuma | C148: =IF(COUNTRY_INFO!C148=0," ",COUNTRY_INFO!C148) -> Songea District Council | D148: =IF(COUNTRY_INFO!$T$9:$T$1000="MDA2 (DEC+ALB)", COUNTRY_INFO!$T$9:$T$1000, " ") ->  | I148: 0 | M148: 0
A149: =IF(COUNTRY_INFO!A149=0," ",COUNTRY_INFO!A149) -> Tanzania | B149: =IF(COUNTRY_INFO!B149=0," ",COUNTRY_INFO!B149) -> Ruvuma | C149: =IF(COUNTRY_INFO!C149=0," ",COUNTRY_INFO!C149) -> Songea Municipal Council | D149: =IF(COUNTRY_INFO!$T$9:$T$1000="MDA2 (DEC+ALB)", COUNTRY_INFO!$T$9:$T$1000, " ") ->  | I149: 0 | M149: 0
A150: =IF(COUNTRY_INFO!A150=0," ",COUNTRY_INFO!A150) -> Tanzania | B150: =IF(COUNTRY_INFO!B150=0," ",COUNTRY_INFO!B150) -> Ruvuma | C150: =IF(COUNTRY_INFO!C150=0," ",COUNTRY_INFO!C150) -> Tunduru District Council | D150: =IF(COUNTRY_INFO!$T$9:$T$1000="MDA2 (DEC+ALB)", COUNTRY_INFO!$T$9:$T$1000, " ") ->  | I150: 0 | M150: 0
A151: =IF(COUNTRY_INFO!A151=0," ",COUNTRY_INFO!A151) -> Tanzania | B151: =IF(COUNTRY_INFO!B151=0," ",COUNTRY_INFO!B151) -> Shinyanga | C151: =IF(COUNTRY_INFO!C151=0," ",COUNTRY_INFO!C151) -> Kahama Town Council | D151: =IF(COUNTRY_INFO!$T$9:$T$1000="MDA2 (DEC+ALB)", COUNTRY_INFO!$T$9:$T$1000, " ") ->  | I151: 0 | M151: 0
A152: =IF(COUNTRY_INFO!A152=0," ",COUNTRY_INFO!A152) -> Tanzania | B152: =IF(COUNTRY_INFO!B152=0," ",COUNTRY_INFO!B152) -> Shinyanga | C152: =IF(COUNTRY_INFO!C152=0," ",COUNTRY_INFO!C152) -> Kishapu District Council | D152: =IF(COUNTRY_INFO!$T$9:$T$1000="MDA2 (DEC+ALB)", COUNTRY_INFO!$T$9:$T$1000, " ") ->  | I152: 0 | M152: 0
A153: =IF(COUNTRY_INFO!A153=0," ",COUNTRY_INFO!A153) -> Tanzania | B153: =IF(COUNTRY_INFO!B153=0," ",COUNTRY_INFO!B153) -> Shinyanga | C153: =IF(COUNTRY_INFO!C153=0," ",COUNTRY_INFO!C153) -> Msalala District Council | D153: =IF(COUNTRY_INFO!$T$9:$T$1000="MDA2 (DEC+ALB)", COUNTRY_INFO!$T$9:$T$1000, " ") ->  | I153: 0 | M153: 0
A154: =IF(COUNTRY_INFO!A154=0," ",COUNTRY_INFO!A154) -> Tanzania | B154: =IF(COUNTRY_INFO!B154=0," ",COUNTRY_INFO!B154) -> Shinyanga | C154: =IF(COUNTRY_INFO!C154=0," ",COUNTRY_INFO!C154) -> Shinyanga District Council | D154: =IF(COUNTRY_INFO!$T$9:$T$1000="MDA2 (DEC+ALB)", COUNTRY_INFO!$T$9:$T$1000, " ") ->  | I154: 0 | M154: 0
A155: =IF(COUNTRY_INFO!A155=0," ",COUNTRY_INFO!A155) -> Tanzania | B155: =IF(COUNTRY_INFO!B155=0," ",COUNTRY_INFO!B155) -> Shinyanga | C155: =IF(COUNTRY_INFO!C155=0," ",COUNTRY_INFO!C155) -> Shinyanga Municipal Council | D155: =IF(COUNTRY_INFO!$T$9:$T$1000="MDA2 (DEC+ALB)", COUNTRY_INFO!$T$9:$T$1000, " ") ->  | I155: 0 | M155: 0
A156: =IF(COUNTRY_INFO!A156=0," ",COUNTRY_INFO!A156) -> Tanzania | B156: =IF(COUNTRY_INFO!B156=0," ",COUNTRY_INFO!B156) -> Shinyanga | C156: =IF(COUNTRY_INFO!C156=0," ",COUNTRY_INFO!C156) -> Ushetu District Council | D156: =IF(COUNTRY_INFO!$T$9:$T$1000="MDA2 (DEC+ALB)", COUNTRY_INFO!$T$9:$T$1000, " ") ->  | I156: 0 | M156: 0
A157: =IF(COUNTRY_INFO!A157=0," ",COUNTRY_INFO!A157) -> Tanzania | B157: =IF(COUNTRY_INFO!B157=0," ",COUNTRY_INFO!B157) -> Simiyu | C157: =IF(COUNTRY_INFO!C157=0," ",COUNTRY_INFO!C157) -> Bariadi District Council | D157: =IF(COUNTRY_INFO!$T$9:$T$1000="MDA2 (DEC+ALB)", COUNTRY_INFO!$T$9:$T$1000, " ") ->  | I157: 0 | M157: 0
A158: =IF(COUNTRY_INFO!A158=0," ",COUNTRY_INFO!A158) -> Tanzania | B158: =IF(COUNTRY_INFO!B158=0," ",COUNTRY_INFO!B158) -> Simiyu | C158: =IF(COUNTRY_INFO!C158=0," ",COUNTRY_INFO!C158) -> Bariadi Town Council | D158: =IF(COUNTRY_INFO!$T$9:$T$1000="MDA2 (DEC+ALB)", COUNTRY_INFO!$T$9:$T$1000, " ") ->  | I158: 0 | M158: 0
A159: =IF(COUNTRY_INFO!A159=0," ",COUNTRY_INFO!A159) -> Tanzania | B159: =IF(COUNTRY_INFO!B159=0," ",COUNTRY_INFO!B159) -> Simiyu | C159: =IF(COUNTRY_INFO!C159=0," ",COUNTRY_INFO!C159) -> Busega District Council | D159: =IF(COUNTRY_INFO!$T$9:$T$1000="MDA2 (DEC+ALB)", COUNTRY_INFO!$T$9:$T$1000, " ") ->  | I159: 0 | M159: 0
A160: =IF(COUNTRY_INFO!A160=0," ",COUNTRY_INFO!A160) -> Tanzania | B160: =IF(COUNTRY_INFO!B160=0," ",COUNTRY_INFO!B160) -> Simiyu | C160: =IF(COUNTRY_INFO!C160=0," ",COUNTRY_INFO!C160) -> Itilima District Council | D160: =IF(COUNTRY_INFO!$T$9:$T$1000="MDA2 (DEC+ALB)", COUNTRY_INFO!$T$9:$T$1000, " ") ->  | I160: 0 | M160: 0
A161: =IF(COUNTRY_INFO!A161=0," ",COUNTRY_INFO!A161) -> Tanzania | B161: =IF(COUNTRY_INFO!B161=0," ",COUNTRY_INFO!B161) -> Simiyu | C161: =IF(COUNTRY_INFO!C161=0," ",COUNTRY_INFO!C161) -> Maswa District Council | D161: =IF(COUNTRY_INFO!$T$9:$T$1000="MDA2 (DEC+ALB)", COUNTRY_INFO!$T$9:$T$1000, " ") ->  | I161: 0 | M161: 0
A162: =IF(COUNTRY_INFO!A162=0," ",COUNTRY_INFO!A162) -> Tanzania | B162: =IF(COUNTRY_INFO!B162=0," ",COUNTRY_INFO!B162) -> Simiyu | C162: =IF(COUNTRY_INFO!C162=0," ",COUNTRY_INFO!C162) -> Meatu District Council | D162: =IF(COUNTRY_INFO!$T$9:$T$1000="MDA2 (DEC+ALB)", COUNTRY_INFO!$T$9:$T$1000, " ") ->  | I162: 0 | M162: 0
A163: =IF(COUNTRY_INFO!A163=0," ",COUNTRY_INFO!A163) -> Tanzania | B163: =IF(COUNTRY_INFO!B163=0," ",COUNTRY_INFO!B163) -> Singida | C163: =IF(COUNTRY_INFO!C163=0," ",COUNTRY_INFO!C163) -> Ikungi District Council | D163: =IF(COUNTRY_INFO!$T$9:$T$1000="MDA2 (DEC+ALB)", COUNTRY_INFO!$T$9:$T$1000, " ") ->  | I163: 0 | M163: 0
A164: =IF(COUNTRY_INFO!A164=0," ",COUNTRY_INFO!A164) -> Tanzania | B164: =IF(COUNTRY_INFO!B164=0," ",COUNTRY_INFO!B164) -> Singida | C164: =IF(COUNTRY_INFO!C164=0," ",COUNTRY_INFO!C164) -> Iramba District Council | D164: =IF(COUNTRY_INFO!$T$9:$T$1000="MDA2 (DEC+ALB)", COUNTRY_INFO!$T$9:$T$1000, " ") ->  | I164: 0 | M164: 0
A165: =IF(COUNTRY_INFO!A165=0," ",COUNTRY_INFO!A165) -> Tanzania | B165: =IF(COUNTRY_INFO!B165=0," ",COUNTRY_INFO!B165) -> Singida | C165: =IF(COUNTRY_INFO!C165=0," ",COUNTRY_INFO!C165) -> Itigi District Council | D165: =IF(COUNTRY_INFO!$T$9:$T$1000="MDA2 (DEC+ALB)", COUNTRY_INFO!$T$9:$T$1000, " ") ->  | I165: 0 | M165: 0
A166: =IF(COUNTRY_INFO!A166=0," ",COUNTRY_INFO!A166) -> Tanzania | B166: =IF(COUNTRY_INFO!B166=0," ",COUNTRY_INFO!B166) -> Singida | C166: =IF(COUNTRY_INFO!C166=0," ",COUNTRY_INFO!C166) -> Manyoni District Council | D166: =IF(COUNTRY_INFO!$T$9:$T$1000="MDA2 (DEC+ALB)", COUNTRY_INFO!$T$9:$T$1000, " ") ->  | I166: 0 | M166: 0
A167: =IF(COUNTRY_INFO!A167=0," ",COUNTRY_INFO!A167) -> Tanzania | B167: =IF(COUNTRY_INFO!B167=0," ",COUNTRY_INFO!B167) -> Singida | C167: =IF(COUNTRY_INFO!C167=0," ",COUNTRY_INFO!C167) -> Mkalama District Council | D167: =IF(COUNTRY_INFO!$T$9:$T$1000="MDA2 (DEC+ALB)", COUNTRY_INFO!$T$9:$T$1000, " ") ->  | I167: 0 | M167: 0
A168: =IF(COUNTRY_INFO!A168=0," ",COUNTRY_INFO!A168) -> Tanzania | B168: =IF(COUNTRY_INFO!B168=0," ",COUNTRY_INFO!B168) -> Singida | C168: =IF(COUNTRY_INFO!C168=0," ",COUNTRY_INFO!C168) -> Singida District Council | D168: =IF(COUNTRY_INFO!$T$9:$T$1000="MDA2 (DEC+ALB)", COUNTRY_INFO!$T$9:$T$1000, " ") ->  | I168: 0 | M168: 0
A169: =IF(COUNTRY_INFO!A169=0," ",COUNTRY_INFO!A169) -> Tanzania | B169: =IF(COUNTRY_INFO!B169=0," ",COUNTRY_INFO!B169) -> Singida | C169: =IF(COUNTRY_INFO!C169=0," ",COUNTRY_INFO!C169) -> Singida Municipal Council | D169: =IF(COUNTRY_INFO!$T$9:$T$1000="MDA2 (DEC+ALB)", COUNTRY_INFO!$T$9:$T$1000, " ") ->  | I169: 0 | M169: 0
A170: =IF(COUNTRY_INFO!A170=0," ",COUNTRY_INFO!A170) -> Tanzania | B170: =IF(COUNTRY_INFO!B170=0," ",COUNTRY_INFO!B170) -> Songwe | C170: =IF(COUNTRY_INFO!C170=0," ",COUNTRY_INFO!C170) -> Ileje District Council | D170: =IF(COUNTRY_INFO!$T$9:$T$1000="MDA2 (DEC+ALB)", COUNTRY_INFO!$T$9:$T$1000, " ") ->  | I170: 0 | M170: 0
A171: =IF(COUNTRY_INFO!A171=0," ",COUNTRY_INFO!A171) -> Tanzania | B171: =IF(COUNTRY_INFO!B171=0," ",COUNTRY_INFO!B171) -> Songwe | C171: =IF(COUNTRY_INFO!C171=0," ",COUNTRY_INFO!C171) -> Mbozi District Council | D171: =IF(COUNTRY_INFO!$T$9:$T$1000="MDA2 (DEC+ALB)", COUNTRY_INFO!$T$9:$T$1000, " ") ->  | I171: 0 | M171: 0
A172: =IF(COUNTRY_INFO!A172=0," ",COUNTRY_INFO!A172) -> Tanzania | B172: =IF(COUNTRY_INFO!B172=0," ",COUNTRY_INFO!B172) -> Songwe | C172: =IF(COUNTRY_INFO!C172=0," ",COUNTRY_INFO!C172) -> Momba District Council | D172: =IF(COUNTRY_INFO!$T$9:$T$1000="MDA2 (DEC+ALB)", COUNTRY_INFO!$T$9:$T$1000, " ") ->  | I172: 0 | M172: 0
A173: =IF(COUNTRY_INFO!A173=0," ",COUNTRY_INFO!A173) -> Tanzania | B173: =IF(COUNTRY_INFO!B173=0," ",COUNTRY_INFO!B173) -> Songwe | C173: =IF(COUNTRY_INFO!C173=0," ",COUNTRY_INFO!C173) -> Songwe District Council | D173: =IF(COUNTRY_INFO!$T$9:$T$1000="MDA2 (DEC+ALB)", COUNTRY_INFO!$T$9:$T$1000, " ") ->  | I173: 0 | M173: 0
A174: =IF(COUNTRY_INFO!A174=0," ",COUNTRY_INFO!A174) -> Tanzania | B174: =IF(COUNTRY_INFO!B174=0," ",COUNTRY_INFO!B174) -> Songwe | C174: =IF(COUNTRY_INFO!C174=0," ",COUNTRY_INFO!C174) -> Tunduma Town Council | D174: =IF(COUNTRY_INFO!$T$9:$T$1000="MDA2 (DEC+ALB)", COUNTRY_INFO!$T$9:$T$1000, " ") ->  | I174: 0 | M174: 0
A175: =IF(COUNTRY_INFO!A175=0," ",COUNTRY_INFO!A175) -> Tanzania | B175: =IF(COUNTRY_INFO!B175=0," ",COUNTRY_INFO!B175) -> Tabora | C175: =IF(COUNTRY_INFO!C175=0," ",COUNTRY_INFO!C175) -> Igunga District Council | D175: =IF(COUNTRY_INFO!$T$9:$T$1000="MDA2 (DEC+ALB)", COUNTRY_INFO!$T$9:$T$1000, " ") ->  | I175: 0 | M175: 0
A176: =IF(COUNTRY_INFO!A176=0," ",COUNTRY_INFO!A176) -> Tanzania | B176: =IF(COUNTRY_INFO!B176=0," ",COUNTRY_INFO!B176) -> Tabora | C176: =IF(COUNTRY_INFO!C176=0," ",COUNTRY_INFO!C176) -> Kaliua District Council | D176: =IF(COUNTRY_INFO!$T$9:$T$1000="MDA2 (DEC+ALB)", COUNTRY_INFO!$T$9:$T$1000, " ") ->  | I176: 0 | M176: 0
A177: =IF(COUNTRY_INFO!A177=0," ",COUNTRY_INFO!A177) -> Tanzania | B177: =IF(COUNTRY_INFO!B177=0," ",COUNTRY_INFO!B177) -> Tabora | C177: =IF(COUNTRY_INFO!C177=0," ",COUNTRY_INFO!C177) -> Nzega District Council | D177: =IF(COUNTRY_INFO!$T$9:$T$1000="MDA2 (DEC+ALB)", COUNTRY_INFO!$T$9:$T$1000, " ") ->  | I177: 0 | M177: 0
A178: =IF(COUNTRY_INFO!A178=0," ",COUNTRY_INFO!A178) -> Tanzania | B178: =IF(COUNTRY_INFO!B178=0," ",COUNTRY_INFO!B178) -> Tabora | C178: =IF(COUNTRY_INFO!C178=0," ",COUNTRY_INFO!C178) -> Nzega Town Council | D178: =IF(COUNTRY_INFO!$T$9:$T$1000="MDA2 (DEC+ALB)", COUNTRY_INFO!$T$9:$T$1000, " ") ->  | I178: 0 | M178: 0
A179: =IF(COUNTRY_INFO!A179=0," ",COUNTRY_INFO!A179) -> Tanzania | B179: =IF(COUNTRY_INFO!B179=0," ",COUNTRY_INFO!B179) -> Tabora | C179: =IF(COUNTRY_INFO!C179=0," ",COUNTRY_INFO!C179) -> Sikonge District Council | D179: =IF(COUNTRY_INFO!$T$9:$T$1000="MDA2 (DEC+ALB)", COUNTRY_INFO!$T$9:$T$1000, " ") ->  | I179: 0 | M179: 0
A180: =IF(COUNTRY_INFO!A180=0," ",COUNTRY_INFO!A180) -> Tanzania | B180: =IF(COUNTRY_INFO!B180=0," ",COUNTRY_INFO!B180) -> Tabora | C180: =IF(COUNTRY_INFO!C180=0," ",COUNTRY_INFO!C180) -> Tabora Municipal Council | D180: =IF(COUNTRY_INFO!$T$9:$T$1000="MDA2 (DEC+ALB)", COUNTRY_INFO!$T$9:$T$1000, " ") ->  | I180: 0 | M180: 0
A181: =IF(COUNTRY_INFO!A181=0," ",COUNTRY_INFO!A181) -> Tanzania | B181: =IF(COUNTRY_INFO!B181=0," ",COUNTRY_INFO!B181) -> Tabora | C181: =IF(COUNTRY_INFO!C181=0," ",COUNTRY_INFO!C181) -> Urambo District Council | D181: =IF(COUNTRY_INFO!$T$9:$T$1000="MDA2 (DEC+ALB)", COUNTRY_INFO!$T$9:$T$1000, " ") ->  | I181: 0 | M181: 0
A182: =IF(COUNTRY_INFO!A182=0," ",COUNTRY_INFO!A182) -> Tanzania | B182: =IF(COUNTRY_INFO!B182=0," ",COUNTRY_INFO!B182) -> Tabora | C182: =IF(COUNTRY_INFO!C182=0," ",COUNTRY_INFO!C182) -> Uyui District Council | D182: =IF(COUNTRY_INFO!$T$9:$T$1000="MDA2 (DEC+ALB)", COUNTRY_INFO!$T$9:$T$1000, " ") ->  | I182: 0 | M182: 0
A183: =IF(COUNTRY_INFO!A183=0," ",COUNTRY_INFO!A183) -> Tanzania | B183: =IF(COUNTRY_INFO!B183=0," ",COUNTRY_INFO!B183) -> Tanga | C183: =IF(COUNTRY_INFO!C183=0," ",COUNTRY_INFO!C183) -> Bumbuli District Council | D183: =IF(COUNTRY_INFO!$T$9:$T$1000="MDA2 (DEC+ALB)", COUNTRY_INFO!$T$9:$T$1000, " ") ->  | I183: 0 | M183: 0
A184: =IF(COUNTRY_INFO!A184=0," ",COUNTRY_INFO!A184) -> Tanzania | B184: =IF(COUNTRY_INFO!B184=0," ",COUNTRY_INFO!B184) -> Tanga | C184: =IF(COUNTRY_INFO!C184=0," ",COUNTRY_INFO!C184) -> Handeni District Council | D184: =IF(COUNTRY_INFO!$T$9:$T$1000="MDA2 (DEC+ALB)", COUNTRY_INFO!$T$9:$T$1000, " ") ->  | I184: 0 | M184: 0
A185: =IF(COUNTRY_INFO!A185=0," ",COUNTRY_INFO!A185) -> Tanzania | B185: =IF(COUNTRY_INFO!B185=0," ",COUNTRY_INFO!B185) -> Tanga | C185: =IF(COUNTRY_INFO!C185=0," ",COUNTRY_INFO!C185) -> Handeni Town Council | D185: =IF(COUNTRY_INFO!$T$9:$T$1000="MDA2 (DEC+ALB)", COUNTRY_INFO!$T$9:$T$1000, " ") ->  | I185: 0 | M185: 0
A186: =IF(COUNTRY_INFO!A186=0," ",COUNTRY_INFO!A186) -> Tanzania | B186: =IF(COUNTRY_INFO!B186=0," ",COUNTRY_INFO!B186) -> Tanga | C186: =IF(COUNTRY_INFO!C186=0," ",COUNTRY_INFO!C186) -> Kilindi District Council | D186: =IF(COUNTRY_INFO!$T$9:$T$1000="MDA2 (DEC+ALB)", COUNTRY_INFO!$T$9:$T$1000, " ") ->  | I186: 0 | M186: 0
A187: =IF(COUNTRY_INFO!A187=0," ",COUNTRY_INFO!A187) -> Tanzania | B187: =IF(COUNTRY_INFO!B187=0," ",COUNTRY_INFO!B187) -> Tanga | C187: =IF(COUNTRY_INFO!C187=0," ",COUNTRY_INFO!C187) -> Korogwe District Council | D187: =IF(COUNTRY_INFO!$T$9:$T$1000="MDA2 (DEC+ALB)", COUNTRY_INFO!$T$9:$T$1000, " ") ->  | I187: 0 | M187: 0
A188: =IF(COUNTRY_INFO!A188=0," ",COUNTRY_INFO!A188) -> Tanzania | B188: =IF(COUNTRY_INFO!B188=0," ",COUNTRY_INFO!B188) -> Tanga | C188: =IF(COUNTRY_INFO!C188=0," ",COUNTRY_INFO!C188) -> Korogwe Town Council | D188: =IF(COUNTRY_INFO!$T$9:$T$1000="MDA2 (DEC+ALB)", COUNTRY_INFO!$T$9:$T$1000, " ") ->  | I188: 0 | M188: 0
A189: =IF(COUNTRY_INFO!A189=0," ",COUNTRY_INFO!A189) -> Tanzania | B189: =IF(COUNTRY_INFO!B189=0," ",COUNTRY_INFO!B189) -> Tanga | C189: =IF(COUNTRY_INFO!C189=0," ",COUNTRY_INFO!C189) -> Lushoto District Council | D189: =IF(COUNTRY_INFO!$T$9:$T$1000="MDA2 (DEC+ALB)", COUNTRY_INFO!$T$9:$T$1000, " ") ->  | I189: 0 | M189: 0
A190: =IF(COUNTRY_INFO!A190=0," ",COUNTRY_INFO!A190) -> Tanzania | B190: =IF(COUNTRY_INFO!B190=0," ",COUNTRY_INFO!B190) -> Tanga | C190: =IF(COUNTRY_INFO!C190=0," ",COUNTRY_INFO!C190) -> Mkinga District Council | D190: =IF(COUNTRY_INFO!$T$9:$T$1000="MDA2 (DEC+ALB)", COUNTRY_INFO!$T$9:$T$1000, " ") ->  | I190: 0 | M190: 0
A191: =IF(COUNTRY_INFO!A191=0," ",COUNTRY_INFO!A191) -> Tanzania | B191: =IF(COUNTRY_INFO!B191=0," ",COUNTRY_INFO!B191) -> Tanga | C191: =IF(COUNTRY_INFO!C191=0," ",COUNTRY_INFO!C191) -> Muheza District Council | D191: =IF(COUNTRY_INFO!$T$9:$T$1000="MDA2 (DEC+ALB)", COUNTRY_INFO!$T$9:$T$1000, " ") ->  | I191: 0 | M191: 0
A192: =IF(COUNTRY_INFO!A192=0," ",COUNTRY_INFO!A192) -> Tanzania | B192: =IF(COUNTRY_INFO!B192=0," ",COUNTRY_INFO!B192) -> Tanga | C192: =IF(COUNTRY_INFO!C192=0," ",COUNTRY_INFO!C192) -> Pangani District Council | D192: =IF(COUNTRY_INFO!$T$9:$T$1000="MDA2 (DEC+ALB)", COUNTRY_INFO!$T$9:$T$1000, " ") ->  | I192: 0 | M192: 0
A193: =IF(COUNTRY_INFO!A193=0," ",COUNTRY_INFO!A193) -> Tanzania | B193: =IF(COUNTRY_INFO!B193=0," ",COUNTRY_INFO!B193) -> Tanga | C193: =IF(COUNTRY_INFO!C193=0," ",COUNTRY_INFO!C193) -> Tanga City Council | D193: =IF(COUNTRY_INFO!$T$9:$T$1000="MDA2 (DEC+ALB)", COUNTRY_INFO!$T$9:$T$1000, " ") ->  | I193: 0 | M193: 0

Sheet MDA3
A1: MDA 3 - Ivermectin (IVM)
A2: Administrative structure, population requiring PC by age group, population treated by age group and coverage
A4: TOTAL | F4: =SUM(F$9:F$1000) -> 750715 | G4: 2672705 | H4: 3423420 | I4: 595093.246 | J4: 2520583.754 | K4: 3115677 | L4: 0 | M4: 0 | N4: 0 | O4: 595093.246 | P4: 2520583.754 | Q4: 3115677 | R4: =IF(F4<>0, IF(O4/F4*100=0, "-", O4/F4*100), " ") -> 79.27019521 | S4: =IF(G4<>0, IF(P4/G4*100=0, "-", P4/G4*100), " ") -> 94.30834132 | T4: =IF(H4<>0, IF(Q4/H4*100=0, "-", Q4/H4*100), " ") -> 91.01065601
D6: PC implemented | E6: Date | F6: Population targeted for MDA 3 | I6: Population treated - 1st round | L6: Population treated - 2nd round | O6: Population treated | R6: Programme coverage (%)
A7: Country | B7: Province/State | C7: District | F7: SAC | G7: Adults | H7: Total | I7: SAC | J7: Adults | K7: Total | L7: SAC | M7: Adults | N7: Total | O7: SAC | P7: Adults | Q7: Total | R7: SAC | S7: Adults | T7: Total
A9: =IF(COUNTRY_INFO!A9=0," ",COUNTRY_INFO!A9) -> Tanzania | B9: =IF(COUNTRY_INFO!B9=0," ",COUNTRY_INFO!B9) -> Arusha | C9: =IF(COUNTRY_INFO!C9=0," ",COUNTRY_INFO!C9) -> Arusha City Council | D9: =IF(COUNTRY_INFO!$T$9:$T$1000="MDA3 (IVM)", COUNTRY_INFO!$T$9:$T$1000, " ") ->  | H9: =SUM(F9:G9) -> 0 | K9: =SUM(I9:J9) -> 0 | N9: =SUM(L9:M9) -> 0 | O9: =MAX(I9,L9) -> 0 | P9: 0 | Q9: =SUM(O9:P9) -> 0 | R9: =IF(F9<>0, IF(MAX(I9,L9)/F9*100=0, "-", MAX(I9,L9)/F9*100), " ") ->  | T9: =IF(H9<>0, IF((MAX(I9,L9)+MAX(J9,M9))/H9*100=0, "-",(MAX(I9,L9)+MAX(J9,M9))/H9*100), " ") -> 
A10: =IF(COUNTRY_INFO!A10=0," ",COUNTRY_INFO!A10) -> Tanzania | B10: =IF(COUNTRY_INFO!B10=0," ",COUNTRY_INFO!B10) -> Arusha | C10: =IF(COUNTRY_INFO!C10=0," ",COUNTRY_INFO!C10) -> Arusha District Council | D10: =IF(COUNTRY_INFO!$T$9:$T$1000="MDA3 (IVM)", COUNTRY_INFO!$T$9:$T$1000, " ") ->  | H10: =SUM(F10:G10) -> 0 | K10: =SUM(I10:J10) -> 0 | N10: =SUM(L10:M10) -> 0 | O10: =MAX(I10,L10) -> 0 | P10: =MAX(J10,M10) -> 0 | Q10: =SUM(O10:P10) -> 0 | R10: =IF(F10<>0, IF(MAX(I10,L10)/F10*100=0, "-", MAX(I10,L10)/F10*100), " ") ->  | S10: =IF(G10<>0, IF(MAX(J10,M10)/G10*100=0, "-", MAX(J10,M10)/G10*100), " ") ->  | T10: =IF(H10<>0, IF((MAX(I10,L10)+MAX(J10,M10))/H10*100=0, "-",(MAX(I10,L10)+MAX(J10,M10))/H10*100), " ") -> 
A11: =IF(COUNTRY_INFO!A11=0," ",COUNTRY_INFO!A11) -> Tanzania | B11: =IF(COUNTRY_INFO!B11=0," ",COUNTRY_INFO!B11) -> Arusha | C11: =IF(COUNTRY_INFO!C11=0," ",COUNTRY_INFO!C11) -> Karatu District Council | D11: =IF(COUNTRY_INFO!$T$9:$T$1000="MDA3 (IVM)", COUNTRY_INFO!$T$9:$T$1000, " ") ->  | H11: 0 | K11: 0 | N11: 0 | O11: 0 | P11: 0 | Q11: 0
A12: =IF(COUNTRY_INFO!A12=0," ",COUNTRY_INFO!A12) -> Tanzania | B12: =IF(COUNTRY_INFO!B12=0," ",COUNTRY_INFO!B12) -> Arusha | C12: =IF(COUNTRY_INFO!C12=0," ",COUNTRY_INFO!C12) -> Longido District Council | D12: =IF(COUNTRY_INFO!$T$9:$T$1000="MDA3 (IVM)", COUNTRY_INFO!$T$9:$T$1000, " ") ->  | H12: 0 | K12: 0 | N12: 0 | O12: 0 | P12: 0 | Q12: 0
A13: =IF(COUNTRY_INFO!A13=0," ",COUNTRY_INFO!A13) -> Tanzania | B13: =IF(COUNTRY_INFO!B13=0," ",COUNTRY_INFO!B13) -> Arusha | C13: =IF(COUNTRY_INFO!C13=0," ",COUNTRY_INFO!C13) -> Meru District Council | D13: =IF(COUNTRY_INFO!$T$9:$T$1000="MDA3 (IVM)", COUNTRY_INFO!$T$9:$T$1000, " ") ->  | H13: 0 | K13: 0 | N13: 0 | O13: 0 | P13: 0 | Q13: 0
A14: =IF(COUNTRY_INFO!A14=0," ",COUNTRY_INFO!A14) -> Tanzania | B14: =IF(COUNTRY_INFO!B14=0," ",COUNTRY_INFO!B14) -> Arusha | C14: =IF(COUNTRY_INFO!C14=0," ",COUNTRY_INFO!C14) -> Monduli District Council | D14: =IF(COUNTRY_INFO!$T$9:$T$1000="MDA3 (IVM)", COUNTRY_INFO!$T$9:$T$1000, " ") ->  | H14: 0 | K14: 0 | N14: 0 | O14: 0 | P14: 0 | Q14: 0
A15: =IF(COUNTRY_INFO!A15=0," ",COUNTRY_INFO!A15) -> Tanzania | B15: =IF(COUNTRY_INFO!B15=0," ",COUNTRY_INFO!B15) -> Arusha | C15: =IF(COUNTRY_INFO!C15=0," ",COUNTRY_INFO!C15) -> Ngorongoro District Council | D15: =IF(COUNTRY_INFO!$T$9:$T$1000="MDA3 (IVM)", COUNTRY_INFO!$T$9:$T$1000, " ") ->  | H15: 0 | K15: 0 | N15: 0 | O15: 0 | P15: 0 | Q15: 0
A16: =IF(COUNTRY_INFO!A16=0," ",COUNTRY_INFO!A16) -> Tanzania | B16: =IF(COUNTRY_INFO!B16=0," ",COUNTRY_INFO!B16) -> Dar Es Salaam | C16: =IF(COUNTRY_INFO!C16=0," ",COUNTRY_INFO!C16) -> Dar es Salaam City Council | D16: =IF(COUNTRY_INFO!$T$9:$T$1000="MDA3 (IVM)", COUNTRY_INFO!$T$9:$T$1000, " ") ->  | H16: 0 | K16: 0 | N16: 0 | O16: 0 | P16: 0 | Q16: 0
A17: =IF(COUNTRY_INFO!A17=0," ",COUNTRY_INFO!A17) -> Tanzania | B17: =IF(COUNTRY_INFO!B17=0," ",COUNTRY_INFO!B17) -> Dar Es Salaam | C17: =IF(COUNTRY_INFO!C17=0," ",COUNTRY_INFO!C17) -> Ilala Municipal Council | D17: =IF(COUNTRY_INFO!$T$9:$T$1000="MDA3 (IVM)", COUNTRY_INFO!$T$9:$T$1000, " ") ->  | H17: 0 | K17: 0 | N17: 0 | O17: 0 | P17: 0 | Q17: 0
A18: =IF(COUNTRY_INFO!A18=0," ",COUNTRY_INFO!A18) -> Tanzania | B18: =IF(COUNTRY_INFO!B18=0," ",COUNTRY_INFO!B18) -> Dar Es Salaam | C18: =IF(COUNTRY_INFO!C18=0," ",COUNTRY_INFO!C18) -> Kigamboni Municipal Council | D18: =IF(COUNTRY_INFO!$T$9:$T$1000="MDA3 (IVM)", COUNTRY_INFO!$T$9:$T$1000, " ") ->  | H18: 0 | K18: 0 | N18: 0 | O18: 0 | P18: 0 | Q18: 0
A19: =IF(COUNTRY_INFO!A19=0," ",COUNTRY_INFO!A19) -> Tanzania | B19: =IF(COUNTRY_INFO!B19=0," ",COUNTRY_INFO!B19) -> Dar Es Salaam | C19: =IF(COUNTRY_INFO!C19=0," ",COUNTRY_INFO!C19) -> Kinondoni Municipal Council | D19: =IF(COUNTRY_INFO!$T$9:$T$1000="MDA3 (IVM)", COUNTRY_INFO!$T$9:$T$1000, " ") ->  | H19: 0 | K19: 0 | N19: 0 | O19: 0 | P19: 0 | Q19: 0
A20: =IF(COUNTRY_INFO!A20=0," ",COUNTRY_INFO!A20) -> Tanzania | B20: =IF(COUNTRY_INFO!B20=0," ",COUNTRY_INFO!B20) -> Dar Es Salaam | C20: =IF(COUNTRY_INFO!C20=0," ",COUNTRY_INFO!C20) -> Temeke Municipal Council | D20: =IF(COUNTRY_INFO!$T$9:$T$1000="MDA3 (IVM)", COUNTRY_INFO!$T$9:$T$1000, " ") ->  | H20: 0 | K20: 0 | N20: 0 | O20: 0 | P20: 0 | Q20: 0
A21: =IF(COUNTRY_INFO!A21=0," ",COUNTRY_INFO!A21) -> Tanzania | B21: =IF(COUNTRY_INFO!B21=0," ",COUNTRY_INFO!B21) -> Dar Es Salaam | C21: =IF(COUNTRY_INFO!C21=0," ",COUNTRY_INFO!C21) -> Ubungo Municipal Council | D21: =IF(COUNTRY_INFO!$T$9:$T$1000="MDA3 (IVM)", COUNTRY_INFO!$T$9:$T$1000, " ") ->  | H21: 0 | K21: 0 | N21: 0 | O21: 0 | P21: 0 | Q21: 0
A22: =IF(COUNTRY_INFO!A22=0," ",COUNTRY_INFO!A22) -> Tanzania | B22: =IF(COUNTRY_INFO!B22=0," ",COUNTRY_INFO!B22) -> Dodoma | C22: =IF(COUNTRY_INFO!C22=0," ",COUNTRY_INFO!C22) -> Bahi District Council | D22: =IF(COUNTRY_INFO!$T$9:$T$1000="MDA3 (IVM)", COUNTRY_INFO!$T$9:$T$1000, " ") ->  | H22: 0 | K22: 0 | N22: 0 | O22: 0 | P22: 0 | Q22: 0
A23: =IF(COUNTRY_INFO!A23=0," ",COUNTRY_INFO!A23) -> Tanzania | B23: =IF(COUNTRY_INFO!B23=0," ",COUNTRY_INFO!B23) -> Dodoma | C23: =IF(COUNTRY_INFO!C23=0," ",COUNTRY_INFO!C23) -> Chamwino District Council | D23: =IF(COUNTRY_INFO!$T$9:$T$1000="MDA3 (IVM)", COUNTRY_INFO!$T$9:$T$1000, " ") ->  | H23: 0 | K23: 0 | N23: 0 | O23: 0 | P23: 0 | Q23: 0
A24: =IF(COUNTRY_INFO!A24=0," ",COUNTRY_INFO!A24) -> Tanzania | B24: =IF(COUNTRY_INFO!B24=0," ",COUNTRY_INFO!B24) -> Dodoma | C24: =IF(COUNTRY_INFO!C24=0," ",COUNTRY_INFO!C24) -> Chemba District Council | D24: =IF(COUNTRY_INFO!$T$9:$T$1000="MDA3 (IVM)", COUNTRY_INFO!$T$9:$T$1000, " ") ->  | H24: 0 | K24: 0 | N24: 0 | O24: 0 | P24: 0 | Q24: 0
A25: =IF(COUNTRY_INFO!A25=0," ",COUNTRY_INFO!A25) -> Tanzania | B25: =IF(COUNTRY_INFO!B25=0," ",COUNTRY_INFO!B25) -> Dodoma | C25: =IF(COUNTRY_INFO!C25=0," ",COUNTRY_INFO!C25) -> Dodoma Municipal Council | D25: =IF(COUNTRY_INFO!$T$9:$T$1000="MDA3 (IVM)", COUNTRY_INFO!$T$9:$T$1000, " ") ->  | H25: 0 | K25: 0 | N25: 0 | O25: 0 | P25: 0 | Q25: 0
A26: =IF(COUNTRY_INFO!A26=0," ",COUNTRY_INFO!A26) -> Tanzania | B26: =IF(COUNTRY_INFO!B26=0," ",COUNTRY_INFO!B26) -> Dodoma | C26: =IF(COUNTRY_INFO!C26=0," ",COUNTRY_INFO!C26) -> Kondoa District Council | D26: =IF(COUNTRY_INFO!$T$9:$T$1000="MDA3 (IVM)", COUNTRY_INFO!$T$9:$T$1000, " ") ->  | H26: 0 | K26: 0 | N26: 0 | O26: 0 | P26: 0 | Q26: 0
A27: =IF(COUNTRY_INFO!A27=0," ",COUNTRY_INFO!A27) -> Tanzania | B27: =IF(COUNTRY_INFO!B27=0," ",COUNTRY_INFO!B27) -> Dodoma | C27: =IF(COUNTRY_INFO!C27=0," ",COUNTRY_INFO!C27) -> Kondoa Town Council | D27: =IF(COUNTRY_INFO!$T$9:$T$1000="MDA3 (IVM)", COUNTRY_INFO!$T$9:$T$1000, " ") ->  | H27: 0 | K27: 0 | N27: 0 | O27: 0 | P27: 0 | Q27: 0
